Workbook

Sheet 使い方・説明
B1: 経済波及効果簡易分析ツール
B2: （平成23年千葉市産業連関表）
A4: ●使い方
A5: 1. | B5: 「波及効果分析」シートのD9:D45に費用構成を購入者価格で入力してください。
B6: 購入者価格とは・・・物品やサービスを購入した際の市場価格
A7: 2. | B7: 「波及効果分析」シートにある「計算開始」ボタンを押してください。また、計算結果をクリアにする場合は、
B8: 「データのクリア」ボタンを押してください。
A10: ●説明
B11: 計算に用いた計算式は、下記の典型的な競争移輸入型モデルである。
B13: X={I-(I-M)A}**(-1)×(I-M)F
B14: X : 生産波及、I :単位行列、M:移輸入行列、A:投入行列、F:需要ベクトル
B16: この式により直接効果及び一次波及効果が計算される。
B17: また、２次波及効果は、直接効果及び一次波及効果によりもたらされる「賃金・俸給」を通じて、さらに
B18: それが民間消費となることによる波及効果である。
B19: 「賃金・俸給」からの家計消費への消費性向は、家計調査のデータ（「消費性向」シートを参照）を用いた。
A21: ●前提条件
A22: ① | B22: 産業部門の生産能力には限界がなく、あらゆる需要に応じられる。
A23: ② | B23: 産業構造や投入構造（投入係数）、自給率（市内需要をどのくらい市内生産で満たしているかの率）などは、
B24: 産業連関表作成の基準時点（平成23年）の状況を示すもので、短期的には変化せず「一定」であると仮定する。
A25: ③ | B25: 生産額が2倍になれば原材料費などの投入額も2倍になるとし、規模の拡大による費用の減少などの効果は考慮しない。
A26: ④ | B26: 需要の増加には全て生産増で対応するものと仮定する。在庫の取り崩しや移輸入率の上昇による波及の中断は
B27: 想定しない。この意味において、波及効果が過大に計算されることがある。
A28: ⑤ | B28: 各産業間の相互干渉はない。（工場の生産活動により発生した公害が、農業の生産を抑制するような例のように、
B29: ある産業の活動が他の産業の活動に及ぼすマイナスの影響（外部不経済）やプラスの影響（外部経済）は考慮しない。）
A30: ⑥ | B30: ２次波及効果では、直接・一次波及による生産増加が賃金・俸給（雇用者所得の一部）を増加させ、この所得の
B31: 増加により民間消費支出が増加し、更なる生産が誘発されるという効果を計算する。ここでの賃金・俸給には、
B32: 自営業者などの所得が含まれていないため、この意味において、波及効果は過少となる可能性がある。
A33: ⑦ | B33: 波及効果が達成されるまでの期間は不明である。いつ頃、どの産業に、どの程度の波及が及ぶかという時間的な推移を
B34: 明らかにすることはできない。
A35: ⑧ | B35: 雇用誘発者数は理論上必要となる労働力であり、時間外労働や機械の稼働率を調整して対応するといったことは考慮しない。
A37: ●留意事項
A38: ① | B38: 産業連関表を用いた波及効果分析は経済モデルのひとつの考え方であり、このツールによる分析結果を
B39: 千葉市が保証するものではありません。
A40: ② | B40: このツールは、産業連関表対象年（平成23年）の価格によるものであり、分析対象時点の価格を考慮していません。
A41: ③ | B41: 本分析ツールは、簡便に分析を行うことを目的として作成したものです。しかしながら、産業連関分析は上記のような
B42: 特性があるほか、仮定の置き方や与件データの設定内容により分析結果が異なる場合があります。このため、
B43: 本分析ツールで行った分析結果の使用に当たりましては、ご注意いただきますようにお願いいたします。
A44: ④ | B44: <分析の対象にできないもの>
B45: ア どの産業部門にどれだけ需要が増加したか推計（把握）できない場合（例：使途の特定できない補助金）
B46: イ 市内に需要増加があっても、全て市外の企業に発注したような場合
A48: ●お願い
B49: このツールを用いて分析された場合、次の事項についてお知らせいただければ幸いです。
B50: ア 分析テーマ名
B51: イ 実施機関名（分析を行った団体名等）
B52: ウ 分析の概要
B53: エ 公表の有無（分析結果を公表された場合は、お手数ですが、公表資料等を下記までご提供ください。）
B55: 千葉市総合政策局総合政策部政策企画課統計室 産業連関表担当
B56: 〒260-8722 千葉市中央区千葉港１番１号
B57: 電話０４３－２４５－５７１５ FAX０４３－２４５－５８９１
B58: E-mail tokei@city.chiba.lg.jp

Sheet 波及効果分析
B1: 経済波及効果簡易分析ツール
B2: （平成23年千葉市産業連関表）
D4: ●発生する需要額を部門別に入力して、「計算開始」ボタンを押してください。
R5: （単位：100万円） | W5: （単位：100万円） | AB5: （単位：人） | AJ5: （単位：100万円） | AO5: （単位：100万円） | AT5: （単位：人）
D6: （単位：100万円） | I6: （単位：100万円） | K6: 13部門 | M6: 37部門 （統合大分類） | O6: 生産波及 | T6: 粗付加価値波及 | Y6: 雇用波及 | AE6: 13部門 | AG6: 生産波及 | AL6: 粗付加価値波及 | AQ6: 雇用波及
D7: 発生需要額 （購入者価格） | I7: 発生需要額 （生産者価格） | O7: 直接効果 | P7: 第一次 波及効果 | Q7: 第二次 波及効果 | R7: 合計 | T7: 直接効果 | U7: 第一次 波及効果 | V7: 第二次 波及効果 | W7: 合計 | Y7: 直接効果 | Z7: 第一次 波及効果 | AA7: 第二次 波及効果 | AB7: 合計 | AG7: 直接効果 | AH7: 第一次 波及効果 | AI7: 第二次 波及効果 | AJ7: 合計 | AL7: 直接効果 | AM7: 第一次 波及効果 | AN7: 第二次 波及効果 | AO7: 合計 | AQ7: 直接効果 | AR7: 第一次 波及効果 | AS7: 第二次 波及効果 | AT7: 合計
O8: ① | P8: ② | Q8: ③ | R8: ①+②+③ | T8: ① | U8: ② | V8: ③ | W8: ①+②+③ | Y8: ① | Z8: ② | AA8: ③ | AB8: ①+②+③ | AG8: ① | AH8: ② | AI8: ③ | AJ8: ①+②+③ | AL8: ① | AM8: ② | AN8: ③ | AO8: ①+②+③ | AQ8: ① | AR8: ② | AS8: ③ | AT8: ①+②+③
B9: 01 | C9: 農林水産業 | D9: 0 | I9: 0 | K9: 01 | L9: 農林水産業 | M9: 01 | N9: 農林水産業 | O9: 0 | P9: 0 | Q9: 0 | R9: =SUM(O9:Q9) -> 0 | T9: 0 | U9: 0 | V9: 0 | W9: =SUM(T9:V9) -> 0 | Y9: 0 | Z9: 0 | AA9: 0 | AB9: =SUM(Y9:AA9) -> 0 | AE9: 01 | AF9: 農林水産業 | AG9: =SUMIF($L:$L,$AF9,O:O) -> 0 | AH9: =SUMIF($L:$L,$AF9,P:P) -> 0 | AI9: =SUMIF($L:$L,$AF9,Q:Q) -> 0 | AJ9: =SUM(AG9:AI9) -> 0 | AL9: =SUMIF($L:$L,$AF9,T:T) -> 0 | AM9: =SUMIF($L:$L,$AF9,U:U) -> 0 | AN9: =SUMIF($L:$L,$AF9,V:V) -> 0 | AO9: =SUM(AL9:AN9) -> 0 | AQ9: =SUMIF($L:$L,$AF9,Y:Y) -> 0 | AR9: =SUMIF($L:$L,$AF9,Z:Z) -> 0 | AS9: =SUMIF($L:$L,$AF9,AA:AA) -> 0 | AT9: =SUM(AQ9:AS9) -> 0
B10: 06 | C10: 鉱業 | D10: 0 | I10: 0 | K10: 02 | L10: 鉱業 | M10: 06 | N10: 鉱業 | O10: 0 | P10: 0 | Q10: 0 | R10: =SUM(O10:Q10) -> 0 | T10: 0 | U10: 0 | V10: 0 | W10: =SUM(T10:V10) -> 0 | Y10: 0 | Z10: 0 | AA10: 0 | AB10: =SUM(Y10:AA10) -> 0 | AE10: 02 | AF10: 鉱業 | AG10: 0 | AH10: 0 | AI10: 0 | AJ10: =SUM(AG10:AI10) -> 0 | AL10: 0 | AM10: 0 | AN10: 0 | AO10: =SUM(AL10:AN10) -> 0 | AQ10: 0 | AR10: 0 | AS10: 0 | AT10: =SUM(AQ10:AS10) -> 0
B11: 11 | C11: 飲食料品 | D11: 0 | I11: 0 | K11: 03 | L11: 製造業 | M11: 11 | N11: 飲食料品 | O11: 0 | P11: 0 | Q11: 0 | R11: 0 | T11: 0 | U11: 0 | V11: 0 | W11: 0 | Y11: 0 | Z11: 0 | AA11: 0 | AB11: 0 | AE11: 03 | AF11: 製造業 | AG11: 0 | AH11: 0 | AI11: 0 | AJ11: 0 | AL11: 0 | AM11: 0 | AN11: 0 | AO11: 0 | AQ11: 0 | AR11: 0 | AS11: 0 | AT11: 0
B12: 15 | C12: 繊維製品 | D12: 0 | I12: 0 | K12: 03 | L12: 製造業 | M12: 15 | N12: 繊維製品 | O12: 0 | P12: 0 | Q12: 0 | R12: 0 | T12: 0 | U12: 0 | V12: 0 | W12: 0 | Y12: 0 | Z12: 0 | AA12: 0 | AB12: 0 | AE12: 04 | AF12: 建設 | AG12: 0 | AH12: 0 | AI12: 0 | AJ12: 0 | AL12: 0 | AM12: 0 | AN12: 0 | AO12: 0 | AQ12: 0 | AR12: 0 | AS12: 0 | AT12: 0
B13: 16 | C13: パルプ・紙・木製品 | D13: 0 | I13: 0 | K13: 03 | L13: 製造業 | M13: 16 | N13: パルプ・紙・木製品 | O13: 0 | P13: 0 | Q13: 0 | R13: 0 | T13: 0 | U13: 0 | V13: 0 | W13: 0 | Y13: 0 | Z13: 0 | AA13: 0 | AB13: 0 | AE13: 05 | AF13: 電力・ガス・水道 | AG13: 0 | AH13: 0 | AI13: 0 | AJ13: 0 | AL13: 0 | AM13: 0 | AN13: 0 | AO13: 0 | AQ13: 0 | AR13: 0 | AS13: 0 | AT13: 0
B14: 20 | C14: 化学製品 | D14: 0 | I14: 0 | K14: 03 | L14: 製造業 | M14: 20 | N14: 化学製品 | O14: 0 | P14: 0 | Q14: 0 | R14: 0 | T14: 0 | U14: 0 | V14: 0 | W14: 0 | Y14: 0 | Z14: 0 | AA14: 0 | AB14: 0 | AE14: 06 | AF14: 商業 | AG14: 0 | AH14: 0 | AI14: 0 | AJ14: 0 | AL14: 0 | AM14: 0 | AN14: 0 | AO14: 0 | AQ14: 0 | AR14: 0 | AS14: 0 | AT14: 0
B15: 21 | C15: 石油・石炭製品 | D15: 0 | I15: 0 | K15: 03 | L15: 製造業 | M15: 21 | N15: 石油・石炭製品 | O15: 0 | P15: 0 | Q15: 0 | R15: 0 | T15: 0 | U15: 0 | V15: 0 | W15: 0 | Y15: 0 | Z15: 0 | AA15: 0 | AB15: 0 | AE15: 07 | AF15: 金融・保険 | AG15: 0 | AH15: 0 | AI15: 0 | AJ15: 0 | AL15: 0 | AM15: 0 | AN15: 0 | AO15: 0 | AQ15: 0 | AR15: 0 | AS15: 0 | AT15: 0
B16: 22 | C16: プラスチック・ゴム | D16: 0 | I16: 0 | K16: 03 | L16: 製造業 | M16: 22 | N16: プラスチック・ゴム | O16: 0 | P16: 0 | Q16: 0 | R16: 0 | T16: 0 | U16: 0 | V16: 0 | W16: 0 | Y16: 0 | Z16: 0 | AA16: 0 | AB16: 0 | AE16: 08 | AF16: 不動産 | AG16: 0 | AH16: 0 | AI16: 0 | AJ16: 0 | AL16: 0 | AM16: 0 | AN16: 0 | AO16: 0 | AQ16: 0 | AR16: 0 | AS16: 0 | AT16: 0
B17: 25 | C17: 窯業・土石製品 | D17: 0 | I17: 0 | K17: 03 | L17: 製造業 | M17: 25 | N17: 窯業・土石製品 | O17: 0 | P17: 0 | Q17: 0 | R17: 0 | T17: 0 | U17: 0 | V17: 0 | W17: 0 | Y17: 0 | Z17: 0 | AA17: 0 | AB17: 0 | AE17: 09 | AF17: 運輸・郵便 | AG17: 0 | AH17: 0 | AI17: 0 | AJ17: 0 | AL17: 0 | AM17: 0 | AN17: 0 | AO17: 0 | AQ17: 0 | AR17: 0 | AS17: 0 | AT17: 0
B18: 26 | C18: 鉄鋼 | D18: 0 | I18: 0 | K18: 03 | L18: 製造業 | M18: 26 | N18: 鉄鋼 | O18: 0 | P18: 0 | Q18: 0 | R18: 0 | T18: 0 | U18: 0 | V18: 0 | W18: 0 | Y18: 0 | Z18: 0 | AA18: 0 | AB18: 0 | AE18: 10 | AF18: 情報通信 | AG18: 0 | AH18: 0 | AI18: 0 | AJ18: 0 | AL18: 0 | AM18: 0 | AN18: 0 | AO18: 0 | AQ18: 0 | AR18: 0 | AS18: 0 | AT18: 0
B19: 27 | C19: 非鉄金属 | D19: 0 | I19: 0 | K19: 03 | L19: 製造業 | M19: 27 | N19: 非鉄金属 | O19: 0 | P19: 0 | Q19: 0 | R19: 0 | T19: 0 | U19: 0 | V19: 0 | W19: 0 | Y19: 0 | Z19: 0 | AA19: 0 | AB19: 0 | AE19: 11 | AF19: 公務 | AG19: 0 | AH19: 0 | AI19: 0 | AJ19: 0 | AL19: 0 | AM19: 0 | AN19: 0 | AO19: 0 | AQ19: 0 | AR19: 0 | AS19: 0 | AT19: 0
B20: 28 | C20: 金属製品 | D20: 0 | I20: 0 | K20: 03 | L20: 製造業 | M20: 28 | N20: 金属製品 | O20: 0 | P20: 0 | Q20: 0 | R20: 0 | T20: 0 | U20: 0 | V20: 0 | W20: 0 | Y20: 0 | Z20: 0 | AA20: 0 | AB20: 0 | AE20: 12 | AF20: サービス | AG20: 0 | AH20: 0 | AI20: 0 | AJ20: 0 | AL20: 0 | AM20: 0 | AN20: 0 | AO20: 0 | AQ20: 0 | AR20: 0 | AS20: 0 | AT20: 0
B21: 29 | C21: はん用機械 | D21: 0 | I21: 0 | K21: 03 | L21: 製造業 | M21: 29 | N21: はん用機械 | O21: 0 | P21: 0 | Q21: 0 | R21: 0 | T21: 0 | U21: 0 | V21: 0 | W21: 0 | Y21: 0 | Z21: 0 | AA21: 0 | AB21: 0 | AE21: 13 | AF21: 分類不明 | AG21: 0 | AH21: 0 | AI21: 0 | AJ21: 0 | AL21: 0 | AM21: 0 | AN21: 0 | AO21: 0 | AQ21: 0 | AR21: 0 | AS21: 0 | AT21: 0
B22: 30 | C22: 生産用機械 | D22: 0 | I22: 0 | K22: 03 | L22: 製造業 | M22: 30 | N22: 生産用機械 | O22: 0 | P22: 0 | Q22: 0 | R22: 0 | T22: 0 | U22: 0 | V22: 0 | W22: 0 | Y22: 0 | Z22: 0 | AA22: 0 | AB22: 0 | AE22: 合計 | AG22: =SUM(AG9:AG21) -> 0 | AH22: =SUM(AH9:AH21) -> 0 | AI22: 0 | AJ22: 0 | AL22: =SUM(AL9:AL21) -> 0 | AM22: =SUM(AM9:AM21) -> 0 | AN22: =SUM(AN9:AN21) -> 0 | AO22: 0 | AQ22: =SUM(AQ9:AQ21) -> 0 | AR22: =SUM(AR9:AR21) -> 0 | AS22: =SUM(AS9:AS21) -> 0 | AT22: 0
B23: 31 | C23: 業務用機械 | D23: 0 | I23: 0 | K23: 03 | L23: 製造業 | M23: 31 | N23: 業務用機械 | O23: 0 | P23: 0 | Q23: 0 | R23: 0 | T23: 0 | U23: 0 | V23: 0 | W23: 0 | Y23: 0 | Z23: 0 | AA23: 0 | AB23: 0
B24: 32 | C24: 電子部品 | D24: 0 | I24: 0 | K24: 03 | L24: 製造業 | M24: 32 | N24: 電子部品 | O24: 0 | P24: 0 | Q24: 0 | R24: 0 | T24: 0 | U24: 0 | V24: 0 | W24: 0 | Y24: 0 | Z24: 0 | AA24: 0 | AB24: 0
B25: 33 | C25: 電気機械 | D25: 0 | I25: 0 | K25: 03 | L25: 製造業 | M25: 33 | N25: 電気機械 | O25: 0 | P25: 0 | Q25: 0 | R25: 0 | T25: 0 | U25: 0 | V25: 0 | W25: 0 | Y25: 0 | Z25: 0 | AA25: 0 | AB25: 0
B26: 34 | C26: 情報・通信機器 | D26: 0 | I26: 0 | K26: 03 | L26: 製造業 | M26: 34 | N26: 情報・通信機器 | O26: 0 | P26: 0 | Q26: 0 | R26: 0 | T26: 0 | U26: 0 | V26: 0 | W26: 0 | Y26: 0 | Z26: 0 | AA26: 0 | AB26: 0
B27: 35 | C27: 輸送機械 | D27: 0 | I27: 0 | K27: 03 | L27: 製造業 | M27: 35 | N27: 輸送機械 | O27: 0 | P27: 0 | Q27: 0 | R27: 0 | T27: 0 | U27: 0 | V27: 0 | W27: 0 | Y27: 0 | Z27: 0 | AA27: 0 | AB27: 0
B28: 39 | C28: その他の製造工業製品 | D28: 0 | I28: 0 | K28: 03 | L28: 製造業 | M28: 39 | N28: その他の製造工業製品 | O28: 0 | P28: 0 | Q28: 0 | R28: 0 | T28: 0 | U28: 0 | V28: 0 | W28: 0 | Y28: 0 | Z28: 0 | AA28: 0 | AB28: 0
B29: 41 | C29: 建設 | D29: 0 | I29: 0 | K29: 04 | L29: 建設 | M29: 41 | N29: 建設 | O29: 0 | P29: 0 | Q29: 0 | R29: 0 | T29: 0 | U29: 0 | V29: 0 | W29: 0 | Y29: 0 | Z29: 0 | AA29: 0 | AB29: 0
B30: 46 | C30: 電力・ガス・熱供給 | D30: 0 | I30: 0 | K30: 05 | L30: 電力・ガス・水道 | M30: 46 | N30: 電力・ガス・熱供給 | O30: 0 | P30: 0 | Q30: 0 | R30: 0 | T30: 0 | U30: 0 | V30: 0 | W30: 0 | Y30: 0 | Z30: 0 | AA30: 0 | AB30: 0
B31: 47 | C31: 水道 | D31: 0 | I31: 0 | K31: 05 | L31: 電力・ガス・水道 | M31: 47 | N31: 水道 | O31: 0 | P31: 0 | Q31: 0 | R31: 0 | T31: 0 | U31: 0 | V31: 0 | W31: 0 | Y31: 0 | Z31: 0 | AA31: 0 | AB31: 0
B32: 48 | C32: 廃棄物処理 | D32: 0 | I32: 0 | K32: 12 | L32: サービス | M32: 48 | N32: 廃棄物処理 | O32: 0 | P32: 0 | Q32: 0 | R32: 0 | T32: 0 | U32: 0 | V32: 0 | W32: 0 | Y32: 0 | Z32: 0 | AA32: 0 | AB32: 0
B33: 51 | C33: 商業 | D33: 0 | I33: 0 | K33: 06 | L33: 商業 | M33: 51 | N33: 商業 | O33: 0 | P33: 0 | Q33: 0 | R33: 0 | T33: 0 | U33: 0 | V33: 0 | W33: 0 | Y33: 0 | Z33: 0 | AA33: 0 | AB33: 0
B34: 53 | C34: 金融・保険 | D34: 0 | I34: 0 | K34: 07 | L34: 金融・保険 | M34: 53 | N34: 金融・保険 | O34: 0 | P34: 0 | Q34: 0 | R34: 0 | T34: 0 | U34: 0 | V34: 0 | W34: 0 | Y34: 0 | Z34: 0 | AA34: 0 | AB34: 0
B35: 55 | C35: 不動産 | D35: 0 | I35: 0 | K35: 08 | L35: 不動産 | M35: 55 | N35: 不動産 | O35: 0 | P35: 0 | Q35: 0 | R35: 0 | T35: 0 | U35: 0 | V35: 0 | W35: 0 | Y35: 0 | Z35: 0 | AA35: 0 | AB35: 0
B36: 57 | C36: 運輸・郵便 | D36: 0 | I36: 0 | K36: 09 | L36: 運輸・郵便 | M36: 57 | N36: 運輸・郵便 | O36: 0 | P36: 0 | Q36: 0 | R36: 0 | T36: 0 | U36: 0 | V36: 0 | W36: 0 | Y36: 0 | Z36: 0 | AA36: 0 | AB36: 0
B37: 59 | C37: 情報通信 | D37: 0 | I37: 0 | K37: 10 | L37: 情報通信 | M37: 59 | N37: 情報通信 | O37: 0 | P37: 0 | Q37: 0 | R37: 0 | T37: 0 | U37: 0 | V37: 0 | W37: 0 | Y37: 0 | Z37: 0 | AA37: 0 | AB37: 0
B38: 61 | C38: 公務 | D38: 0 | I38: 0 | K38: 11 | L38: 公務 | M38: 61 | N38: 公務 | O38: 0 | P38: 0 | Q38: 0 | R38: 0 | T38: 0 | U38: 0 | V38: 0 | W38: 0 | Y38: 0 | Z38: 0 | AA38: 0 | AB38: 0
B39: 63 | C39: 教育・研究 | D39: 0 | I39: 0 | K39: 12 | L39: サービス | M39: 63 | N39: 教育・研究 | O39: 0 | P39: 0 | Q39: 0 | R39: 0 | T39: 0 | U39: 0 | V39: 0 | W39: 0 | Y39: 0 | Z39: 0 | AA39: 0 | AB39: 0
B40: 64 | C40: 医療・福祉 | D40: 0 | I40: 0 | K40: 12 | L40: サービス | M40: 64 | N40: 医療・福祉 | O40: 0 | P40: 0 | Q40: 0 | R40: 0 | T40: 0 | U40: 0 | V40: 0 | W40: 0 | Y40: 0 | Z40: 0 | AA40: 0 | AB40: 0
B41: 65 | C41: その他の非営利団体サービス | D41: 0 | I41: 0 | K41: 12 | L41: サービス | M41: 65 | N41: その他の非営利団体サービス | O41: 0 | P41: 0 | Q41: 0 | R41: 0 | T41: 0 | U41: 0 | V41: 0 | W41: 0 | Y41: 0 | Z41: 0 | AA41: 0 | AB41: 0
B42: 66 | C42: 対事業所サービス | D42: 0 | I42: 0 | K42: 12 | L42: サービス | M42: 66 | N42: 対事業所サービス | O42: 0 | P42: 0 | Q42: 0 | R42: 0 | T42: 0 | U42: 0 | V42: 0 | W42: 0 | Y42: 0 | Z42: 0 | AA42: 0 | AB42: 0
B43: 67 | C43: 対個人サービス | D43: 0 | I43: 0 | K43: 12 | L43: サービス | M43: 67 | N43: 対個人サービス | O43: 0 | P43: 0 | Q43: 0 | R43: 0 | T43: 0 | U43: 0 | V43: 0 | W43: 0 | Y43: 0 | Z43: 0 | AA43: 0 | AB43: 0
B44: 68 | C44: 事務用品 | D44: 0 | I44: 0 | K44: 03 | L44: 製造業 | M44: 68 | N44: 事務用品 | O44: 0 | P44: 0 | Q44: 0 | R44: 0 | T44: 0 | U44: 0 | V44: 0 | W44: 0 | Y44: 0 | Z44: 0 | AA44: 0 | AB44: 0
B45: 69 | C45: 分類不明 | D45: 0 | I45: 0 | K45: 13 | L45: 分類不明 | M45: 69 | N45: 分類不明 | O45: 0 | P45: 0 | Q45: 0 | R45: 0 | T45: 0 | U45: 0 | V45: 0 | W45: 0 | Y45: 0 | Z45: 0 | AA45: 0 | AB45: 0
D46: =SUM(D9:D45) -> 0 | I46: =SUM(I9:I45) -> 0 | K46: 合計 | O46: =SUM(O9:O45) -> 0 | P46: 0 | Q46: 0 | R46: =SUM(R9:R45) -> 0 | T46: =SUM(T9:T45) -> 0 | U46: 0 | V46: 0 | W46: =SUM(W9:W45) -> 0 | Y46: =SUM(Y9:Y45) -> 0 | Z46: 0 | AA46: 0 | AB46: =SUM(AB9:AB45) -> 0

Sheet 結果
B3: ○○の需要増加による経済波及効果分析
B4: 【分析結果】～平成23年千葉市産業連関表（37部門表）による～
B7: ① 最終需要増加額（初期投資額）
E8: =+波及効果分析!D6 -> （単位：100万円）
C9: 最終需要額 | E9: =+波及効果分析!I46 -> 0
C10: うち市内最終需要額 | E10: =+波及効果分析!O46 -> 0
C11: 消費転換率（＝平均消費性向） | E11: =+消費性向!C9 -> 0.594428441
C12: =+消費性向!D9 -> （平成23年家計調査年報（関東地方））
B14: ② 分析結果
E16: 生産誘発額 | G16: 雇用誘発者数
D17: 区分 | F17: うち粗付加価値誘発額
E18: =+E8 -> （単位：100万円） | F18: =+E8 -> （単位：100万円） | G18: （人）
C19: 総合効果 | E19: =+波及効果分析!R46 -> 0 | F19: =+波及効果分析!W46 -> 0 | G19: =+波及効果分析!AB46 -> 0
D20: 直接効果（市内需要額） | E20: =+波及効果分析!O46 -> 0 | F20: =+波及効果分析!T46 -> 0 | G20: =+波及効果分析!Y46 -> 0
D21: 第１次間接波及効果 | E21: =+波及効果分析!P46 -> 0 | F21: =+波及効果分析!U46 -> 0 | G21: =+波及効果分析!Z46 -> 0
D22: 第２次間接波及効果 | E22: =+波及効果分析!Q46 -> 0 | F22: =+波及効果分析!V46 -> 0 | G22: =+波及効果分析!AA46 -> 0
C23: 市内需要額に対する波及倍率※1 | E23: =+IF(ISERROR(E19/E10),"",E19/E10) -> 
C24: 需要増加額に対する波及倍率※2 | E24: =+IF(ISERROR(E19/E9),"",E19/E9) -> 
C26: ※1 市内需要額に対する波及倍率＝総合効果÷市内最終需要額
C27: ※2 需要増加額に対する波及倍率＝総合効果÷最終需要額
C29: (注) 四捨五入の関係で、「合計」が、直接効果、第1次間接効果、第2次間接効果の総額と一致しない場合がある。

Sheet 取引額表 (hidden)
B5: 平成23年千葉市産業連関表 生産者価格評価表 統合大分類（37部門）
D7: 01 | E7: 06 | F7: 11 | G7: 15 | H7: 16 | I7: 20 | J7: 21 | K7: 22 | L7: 25 | M7: 26 | N7: 27 | O7: 28 | P7: 29 | Q7: 30 | R7: 31 | S7: 32 | T7: 33 | U7: 34 | V7: 35 | W7: 39 | X7: 41 | Y7: 46 | Z7: 47 | AA7: 48 | AB7: 51 | AC7: 53 | AD7: 55 | AE7: 57 | AF7: 59 | AG7: 61 | AH7: 63 | AI7: 64 | AJ7: 65 | AK7: 66 | AL7: 67 | AM7: 68 | AN7: 69 | AO7: 70 | AP7: 71 | AQ7: 72 | AR7: 73 | AS7: 74 | AT7: 75 | AU7: 76 | AV7: 77 | AW7: 78 | AX7: 79 | AY7: 80 | AZ7: 81 | BA7: 82 | BB7: 83 | BC7: 84 | BD7: 85 | BE7: 86 | BF7: 87 | BG7: 88 | BH7: 89
D8: 農林水産業 | E8: 鉱業 | F8: 飲食料品 | G8: 繊維製品 | H8: パルプ・紙・木製品 | I8: 化学製品 | J8: 石油・石炭製品 | K8: プラスチック・ゴム | L8: 窯業・土石製品 | M8: 鉄鋼 | N8: 非鉄金属 | O8: 金属製品 | P8: はん用機械 | Q8: 生産用機械 | R8: 業務用機械 | S8: 電子部品 | T8: 電気機械 | U8: 情報・通信機器 | V8: 輸送機械 | W8: その他の製造工業製品（１／３） | X8: 建設 | Y8: 電力・ガス・熱供給 | Z8: 水道 | AA8: 廃棄物処理 | AB8: 商業 | AC8: 金融・保険 | AD8: 不動産 | AE8: 運輸・郵便 | AF8: 情報通信 | AG8: 公務 | AH8: 教育・研究 | AI8: 医療・福祉 | AJ8: その他の非営利団体サービス | AK8: 対事業所サービス | AL8: 対個人サービス | AM8: 事務用品 | AN8: 分類不明 | AO8: 内生部門計 | AP8: 家計外消費支出（列） | AQ8: 民間消費支出 | AR8: 一般政府消費支出 | AS8: 市内総固定資本形成（公的） | AT8: 市内総固定資本形成（民間） | AU8: 在庫純増 | AV8: 調整項 | AW8: 市内最終需要計 | AX8: 市内需要合計 | AY8: 輸出 | AZ8: 移出 | BA8: 移輸出計 | BB8: 最終需要計 | BC8: 需要合計 | BD8: （控除）輸入 | BE8: （控除）移入 | BF8: （控除）移輸入計 | BG8: 最終需要部門計 | BH8: 市内生産額
B9: 01 | C9: 農林水産業 | D9: 1325 | E9: 0 | F9: 99089 | G9: 6 | H9: 73 | I9: 14 | J9: 0 | K9: 65 | L9: 8 | M9: 0 | N9: 0 | O9: 0 | P9: 0 | Q9: 0 | R9: 0 | S9: 0 | T9: 0 | U9: 0 | V9: 0 | W9: 629 | X9: 260 | Y9: 0 | Z9: 0 | AA9: 0 | AB9: 54 | AC9: 0 | AD9: 1 | AE9: 50 | AF9: 0 | AG9: 1 | AH9: 224 | AI9: 693 | AJ9: 45 | AK9: 4 | AL9: 8131 | AM9: 0 | AN9: 0 | AO9: 110672 | AP9: 430 | AQ9: 29364 | AR9: 0 | AS9: 0 | AT9: 8 | AU9: 1469 | AV9: 2 | AW9: 31273 | AX9: 141945 | AY9: 50 | AZ9: 6162 | BA9: 6212 | BB9: 37485 | BC9: 148157 | BD9: -70743 | BE9: -63092 | BF9: -133835 | BG9: -96350 | BH9: 14322
B10: 06 | C10: 鉱業 | D10: 0 | E10: 0 | F10: 5 | G10: 0 | H10: 0 | I10: 149 | J10: 56854 | K10: 0 | L10: 2083 | M10: 92497 | N10: 12 | O10: 8 | P10: 0 | Q10: 0 | R10: 1 | S10: 0 | T10: 0 | U10: 0 | V10: 0 | W10: 51 | X10: 2502 | Y10: 62383 | Z10: 0 | AA10: 0 | AB10: 0 | AC10: 0 | AD10: 0 | AE10: 1 | AF10: 0 | AG10: 0 | AH10: 6 | AI10: 0 | AJ10: 0 | AK10: 0 | AL10: -3 | AM10: 0 | AN10: 3 | AO10: 216552 | AP10: -37 | AQ10: 1 | AR10: 0 | AS10: 0 | AT10: -29 | AU10: -67 | AV10: 0 | AW10: -132 | AX10: 216420 | AY10: 10 | AZ10: 644 | BA10: 654 | BB10: 522 | BC10: 217074 | BD10: -185388 | BE10: -30698 | BF10: -216086 | BG10: -215564 | BH10: 988
B11: 11 | C11: 飲食料品 | D11: 711 | E11: 0 | F11: 59293 | G11: 1 | H11: 15 | I11: 99 | J11: 0 | K11: 0 | L11: 23 | M11: 0 | N11: 0 | O11: 0 | P11: 0 | Q11: 0 | R11: 0 | S11: 0 | T11: 0 | U11: 0 | V11: 0 | W11: 19 | X11: 1 | Y11: 0 | Z11: 0 | AA11: 0 | AB11: 73 | AC11: 0 | AD11: 0 | AE11: 272 | AF11: 0 | AG11: 51 | AH11: 288 | AI11: 3000 | AJ11: 96 | AK11: 3 | AL11: 52670 | AM11: 0 | AN11: 46 | AO11: 116661 | AP11: 5700 | AQ11: 221745 | AR11: 1660 | AS11: 0 | AT11: 0 | AU11: 3188 | AV11: 59 | AW11: 232352 | AX11: 349013 | AY11: 1917 | AZ11: 188170 | BA11: 190087 | BB11: 422439 | BC11: 539100 | BD11: -57330 | BE11: -204329 | BF11: -261659 | BG11: 160780 | BH11: 277441
B12: 15 | C12: 繊維製品 | D12: 42 | E12: 5 | F12: 306 | G12: 286 | H12: 72 | I12: 8 | J12: 13 | K12: 26 | L12: 65 | M12: 581 | N12: 11 | O12: 49 | P12: 5 | Q12: 65 | R12: 9 | S12: 24 | T12: 17 | U12: 6 | V12: 0 | W12: 56 | X12: 1087 | Y12: 39 | Z12: 29 | AA12: 132 | AB12: 2209 | AC12: 319 | AD12: 21 | AE12: 1263 | AF12: 314 | AG12: 844 | AH12: 168 | AI12: 1191 | AJ12: 410 | AK12: 1146 | AL12: 1096 | AM12: 158 | AN12: 24 | AO12: 12096 | AP12: 701 | AQ12: 35511 | AR12: 0 | AS12: 2 | AT12: 1366 | AU12: -368 | AV12: 1 | AW12: 37213 | AX12: 49309 | AY12: 44 | AZ12: 956 | BA12: 1000 | BB12: 38213 | BC12: 50309 | BD12: -32765 | BE12: -16423 | BF12: -49188 | BG12: -10975 | BH12: 1121
B13: 16 | C13: パルプ・紙・木製品 | D13: 524 | E13: 2 | F13: 1809 | G13: 7 | H13: 3416 | I13: 88 | J13: 8 | K13: 79 | L13: 199 | M13: 558 | N13: 64 | O13: 116 | P13: 3 | Q13: 54 | R13: 76 | S13: 23 | T13: 126 | U13: 28 | V13: 3 | W13: 1980 | X13: 16998 | Y13: 147 | Z13: 76 | AA13: 239 | AB13: 4062 | AC13: 828 | AD13: 295 | AE13: 1746 | AF13: 3128 | AG13: 268 | AH13: 1277 | AI13: 1824 | AJ13: 361 | AK13: 1625 | AL13: 1956 | AM13: 4004 | AN13: 77 | AO13: 48074 | AP13: 458 | AQ13: 3251 | AR13: 16 | AS13: 43 | AT13: 1538 | AU13: -88 | AV13: 4 | AW13: 5222 | AX13: 53296 | AY13: 1056 | AZ13: 11589 | BA13: 12645 | BB13: 17867 | BC13: 65941 | BD13: -8902 | BE13: -43540 | BF13: -52442 | BG13: -34575 | BH13: 13499
B14: 20 | C14: 化学製品 | D14: 1142 | E14: 17 | F14: 1637 | G14: 73 | H14: 399 | I14: 6025 | J14: 155 | K14: 2074 | L14: 794 | M14: 5257 | N14: 88 | O14: 381 | P14: 15 | Q14: 286 | R14: 109 | S14: 53 | T14: 128 | U14: 43 | V14: 17 | W14: 615 | X14: 1626 | Y14: 366 | Z14: 385 | AA14: 888 | AB14: 6 | AC14: 5 | AD14: 13 | AE14: 141 | AF14: 283 | AG14: 162 | AH14: 894 | AI14: 40573 | AJ14: 44 | AK14: 1758 | AL14: 2437 | AM14: 145 | AN14: 402 | AO14: 69436 | AP14: 1097 | AQ14: 21346 | AR14: 0 | AS14: 0 | AT14: 0 | AU14: 733 | AV14: 60 | AW14: 23236 | AX14: 92672 | AY14: 2055 | AZ14: 10279 | BA14: 12334 | BB14: 35570 | BC14: 105006 | BD14: -22078 | BE14: -67821 | BF14: -89899 | BG14: -54329 | BH14: 15107
B15: 21 | C15: 石油・石炭製品 | D15: 104 | E15: 44 | F15: 1721 | G15: 0 | H15: 32 | I15: 216 | J15: 5128 | K15: 18 | L15: 591 | M15: 54788 | N15: 59 | O15: 138 | P15: 2 | Q15: 91 | R15: 19 | S15: 9 | T15: 16 | U15: 0 | V15: 2 | W15: 91 | X15: 2330 | Y15: 10929 | Z15: 651 | AA15: 857 | AB15: 1245 | AC15: 108 | AD15: 467 | AE15: 19638 | AF15: 321 | AG15: 1353 | AH15: 1810 | AI15: 1313 | AJ15: 110 | AK15: 1483 | AL15: 2414 | AM15: 0 | AN15: 1110 | AO15: 109208 | AP15: 161 | AQ15: 44320 | AR15: 36 | AS15: 0 | AT15: 0 | AU15: 266 | AV15: 65 | AW15: 44848 | AX15: 154056 | AY15: 1758 | AZ15: 63072 | BA15: 64830 | BB15: 109678 | BC15: 218886 | BD15: -9123 | BE15: -131926 | BF15: -141049 | BG15: -31371 | BH15: 77837
B16: 22 | C16: プラスチック・ゴム | D16: 126 | E16: 3 | F16: 2423 | G16: 22 | H16: 298 | I16: 146 | J16: 5 | K16: 2503 | L16: 86 | M16: 865 | N16: 27 | O16: 116 | P16: 65 | Q16: 2905 | R16: 446 | S16: 103 | T16: 406 | U16: 98 | V16: 44 | W16: 1041 | X16: 4126 | Y16: 0 | Z16: 1185 | AA16: 632 | AB16: 2555 | AC16: 566 | AD16: 379 | AE16: 831 | AF16: 1303 | AG16: 279 | AH16: 694 | AI16: 739 | AJ16: 118 | AK16: 4742 | AL16: 792 | AM16: 454 | AN16: 283 | AO16: 31406 | AP16: 161 | AQ16: 6293 | AR16: 0 | AS16: 0 | AT16: -3 | AU16: -661 | AV16: 40 | AW16: 5830 | AX16: 37236 | AY16: 1383 | AZ16: 7407 | BA16: 8790 | BB16: 14620 | BC16: 46026 | BD16: -9732 | BE16: -25758 | BF16: -35490 | BG16: -20870 | BH16: 10536
B17: 25 | C17: 窯業・土石製品 | D17: 54 | E17: 0 | F17: 129 | G17: 1 | H17: 119 | I17: 115 | J17: 135 | K17: 47 | L17: 2032 | M17: 4438 | N17: 26 | O17: 235 | P17: 54 | Q17: 291 | R17: 42 | S17: 156 | T17: 86 | U17: 10 | V17: 3 | W17: 101 | X17: 16629 | Y17: 13 | Z17: 210 | AA17: 33 | AB17: 122 | AC17: 3 | AD17: 34 | AE17: 21 | AF17: 1 | AG17: 47 | AH17: 493 | AI17: 280 | AJ17: 5 | AK17: 544 | AL17: 450 | AM17: 71 | AN17: 285 | AO17: 27315 | AP17: 113 | AQ17: 2554 | AR17: 0 | AS17: 0 | AT17: 0 | AU17: -147 | AV17: 144 | AW17: 2664 | AX17: 29979 | AY17: 2775 | AZ17: 7310 | BA17: 10085 | BB17: 12749 | BC17: 40064 | BD17: -4068 | BE17: -13105 | BF17: -17173 | BG17: -4424 | BH17: 22891
B18: 26 | C18: 鉄鋼 | D18: 0 | E18: 0 | F18: 0 | G18: 0 | H18: 318 | I18: 2 | J18: 0 | K18: 8 | L18: 168 | M18: 613400 | N18: 0 | O18: 8589 | P18: 409 | Q18: 6574 | R18: 93 | S18: 14 | T18: 355 | U18: 26 | V18: 89 | W18: 38 | X18: 2989 | Y18: 0 | Z18: 13 | AA18: 0 | AB18: 0 | AC18: 0 | AD18: 0 | AE18: 29 | AF18: 0 | AG18: 1 | AH18: 0 | AI18: 0 | AJ18: 0 | AK18: 96 | AL18: 10 | AM18: 0 | AN18: 285 | AO18: 633506 | AP18: 0 | AQ18: -382 | AR18: 0 | AS18: -18746 | AT18: -807 | AU18: 2706 | AV18: 1887 | AW18: -15342 | AX18: 618164 | AY18: 127393 | AZ18: 529774 | BA18: 657167 | BB18: 641825 | BC18: 1275331 | BD18: -11332 | BE18: -93046 | BF18: -104378 | BG18: 537447 | BH18: 1170953
B19: 27 | C19: 非鉄金属 | D19: 0 | E19: 0 | F19: 124 | G19: 0 | H19: 65 | I19: 84 | J19: 0 | K19: 20 | L19: 164 | M19: 11501 | N19: 10961 | O19: 1403 | P19: 144 | Q19: 1160 | R19: 329 | S19: 122 | T19: 750 | U19: 157 | V19: 29 | W19: 303 | X19: 2882 | Y19: 15 | Z19: 7 | AA19: 1 | AB19: 6 | AC19: 0 | AD19: 0 | AE19: 10 | AF19: 5 | AG19: 13 | AH19: 6 | AI19: 403 | AJ19: 3 | AK19: 329 | AL19: 97 | AM19: 6 | AN19: 212 | AO19: 31311 | AP19: 9 | AQ19: 1153 | AR19: 0 | AS19: 2 | AT19: -584 | AU19: -253 | AV19: 82 | AW19: 409 | AX19: 31720 | AY19: 1979 | AZ19: 14868 | BA19: 16847 | BB19: 17256 | BC19: 48567 | BD19: -18636 | BE19: -11079 | BF19: -29715 | BG19: -12459 | BH19: 18852
B20: 28 | C20: 金属製品 | D20: 14 | E20: 33 | F20: 710 | G20: 2 | H20: 462 | I20: 236 | J20: 137 | K20: 59 | L20: 280 | M20: 194 | N20: 20 | O20: 2002 | P20: 127 | Q20: 3044 | R20: 131 | S20: 60 | T20: 459 | U20: 58 | V20: 20 | W20: 184 | X20: 29682 | Y20: 121 | Z20: 35 | AA20: 9 | AB20: 1475 | AC20: 19 | AD20: 170 | AE20: 661 | AF20: 95 | AG20: 445 | AH20: 24 | AI20: 114 | AJ20: 42 | AK20: 747 | AL20: 885 | AM20: 3 | AN20: 136 | AO20: 42895 | AP20: 214 | AQ20: 3247 | AR20: 5 | AS20: 125 | AT20: 1703 | AU20: 306 | AV20: 93 | AW20: 5693 | AX20: 48588 | AY20: 2309 | AZ20: 26876 | BA20: 29185 | BB20: 34878 | BC20: 77773 | BD20: -4157 | BE20: -40634 | BF20: -44791 | BG20: -9913 | BH20: 32982
B21: 29 | C21: はん用機械 | D21: 0 | E21: 1 | F21: 0 | G21: 0 | H21: 27 | I21: 0 | J21: 0 | K21: 4 | L21: 22 | M21: 4 | N21: 3 | O21: 46 | P21: 681 | Q21: 3121 | R21: 34 | S21: 9 | T21: 50 | U21: 5 | V21: 20 | W21: 2 | X21: 1813 | Y21: 0 | Z21: 182 | AA21: 0 | AB21: 2 | AC21: 0 | AD21: 0 | AE21: 25 | AF21: 2 | AG21: 22 | AH21: 0 | AI21: 0 | AJ21: 0 | AK21: 4884 | AL21: 4 | AM21: 0 | AN21: 0 | AO21: 10963 | AP21: 0 | AQ21: 120 | AR21: 0 | AS21: 358 | AT21: 13566 | AU21: 240 | AV21: 44 | AW21: 14328 | AX21: 25291 | AY21: 1484 | AZ21: 3916 | BA21: 5400 | BB21: 19728 | BC21: 30691 | BD21: -3387 | BE21: -21756 | BF21: -25143 | BG21: -5415 | BH21: 5548
B22: 30 | C22: 生産用機械 | D22: 0 | E22: 3 | F22: 0 | G22: 0 | H22: 3 | I22: 0 | J22: 1 | K22: 28 | L22: 18 | M22: 19 | N22: 1 | O22: 26 | P22: 24 | Q22: 12680 | R22: 2 | S22: 12 | T22: 30 | U22: 3 | V22: 2 | W22: 0 | X22: 16 | Y22: 3 | Z22: 5 | AA22: 0 | AB22: 2 | AC22: 0 | AD22: 0 | AE22: 33 | AF22: 0 | AG22: 2 | AH22: 0 | AI22: 0 | AJ22: 0 | AK22: 7107 | AL22: 3 | AM22: 0 | AN22: 0 | AO22: 20023 | AP22: 0 | AQ22: 63 | AR22: 0 | AS22: 220 | AT22: 19571 | AU22: -877 | AV22: 926 | AW22: 19903 | AX22: 39926 | AY22: 32840 | AZ22: 38558 | BA22: 71398 | BB22: 91301 | BC22: 111324 | BD22: -8319 | BE22: -20320 | BF22: -28639 | BG22: 62662 | BH22: 82685
B23: 31 | C23: 業務用機械 | D23: 24 | E23: 0 | F23: 0 | G23: 0 | H23: 0 | I23: 0 | J23: 0 | K23: 0 | L23: 0 | M23: 0 | N23: 0 | O23: 1 | P23: 15 | Q23: 776 | R23: 103 | S23: 0 | T23: 15 | U23: 0 | V23: 1 | W23: 2 | X23: 68 | Y23: 0 | Z23: 3 | AA23: 2 | AB23: 614 | AC23: 2 | AD23: 0 | AE23: 9 | AF23: 22 | AG23: 695 | AH23: 0 | AI23: 3473 | AJ23: 0 | AK23: 4140 | AL23: 177 | AM23: 221 | AN23: 0 | AO23: 10363 | AP23: 18 | AQ23: 1415 | AR23: 0 | AS23: 875 | AT23: 21482 | AU23: 224 | AV23: 54 | AW23: 24068 | AX23: 34431 | AY23: 1532 | AZ23: 4308 | BA23: 5840 | BB23: 29908 | BC23: 40271 | BD23: -11877 | BE23: -21812 | BF23: -33689 | BG23: -3781 | BH23: 6582
B24: 32 | C24: 電子部品 | D24: 0 | E24: 0 | F24: 0 | G24: 0 | H24: 0 | I24: 0 | J24: 0 | K24: 0 | L24: 0 | M24: 0 | N24: 0 | O24: 4 | P24: 63 | Q24: 213 | R24: 1220 | S24: 1578 | T24: 1099 | U24: 1451 | V24: 12 | W24: 13 | X24: 101 | Y24: 0 | Z24: 0 | AA24: 0 | AB24: 11 | AC24: 6 | AD24: 0 | AE24: 1 | AF24: 232 | AG24: 128 | AH24: 128 | AI24: 1 | AJ24: 0 | AK24: 8271 | AL24: 5 | AM24: 244 | AN24: 0 | AO24: 14781 | AP24: 7 | AQ24: 1054 | AR24: 0 | AS24: 273 | AT24: 0 | AU24: 71 | AV24: 41 | AW24: 1446 | AX24: 16227 | AY24: 2368 | AZ24: 3181 | BA24: 5549 | BB24: 6995 | BC24: 21776 | BD24: -4118 | BE24: -12045 | BF24: -16163 | BG24: -9168 | BH24: 5613
B25: 33 | C25: 電気機械 | D25: 0 | E25: 0 | F25: 0 | G25: 0 | H25: 3 | I25: 0 | J25: 0 | K25: 0 | L25: 4 | M25: 0 | N25: 0 | O25: 11 | P25: 75 | Q25: 1516 | R25: 78 | S25: 306 | T25: 931 | U25: 58 | V25: 30 | W25: 9 | X25: 2565 | Y25: 0 | Z25: 4 | AA25: 0 | AB25: 126 | AC25: 1 | AD25: 9 | AE25: 115 | AF25: 49 | AG25: 178 | AH25: 106 | AI25: 54 | AJ25: 0 | AK25: 4332 | AL25: 58 | AM25: 0 | AN25: 45 | AO25: 10663 | AP25: 359 | AQ25: 26228 | AR25: 0 | AS25: 5616 | AT25: 18207 | AU25: -872 | AV25: 208 | AW25: 49746 | AX25: 60409 | AY25: 5021 | AZ25: 4090 | BA25: 9111 | BB25: 58857 | BC25: 69520 | BD25: -23198 | BE25: -35993 | BF25: -59191 | BG25: -334 | BH25: 10329
B26: 34 | C26: 情報・通信機器 | D26: 0 | E26: 0 | F26: 2 | G26: 0 | H26: 0 | I26: 0 | J26: 0 | K26: 0 | L26: 1 | M26: 0 | N26: 0 | O26: 3 | P26: 13 | Q26: 40 | R26: 0 | S26: 0 | T26: 1 | U26: 127 | V26: 3 | W26: 2 | X26: 585 | Y26: 4 | Z26: 1 | AA26: 1 | AB26: 284 | AC26: 45 | AD26: 71 | AE26: 53 | AF26: 158 | AG26: 135 | AH26: 27 | AI26: 17 | AJ26: 3 | AK26: 798 | AL26: 70 | AM26: 0 | AN26: 0 | AO26: 2444 | AP26: 591 | AQ26: 39051 | AR26: 0 | AS26: 2889 | AT26: 18125 | AU26: -260 | AV26: 83 | AW26: 60479 | AX26: 62923 | AY26: 2355 | AZ26: 2221 | BA26: 4576 | BB26: 65055 | BC26: 67499 | BD26: -26674 | BE26: -36079 | BF26: -62753 | BG26: 2302 | BH26: 4746
B27: 35 | C27: 輸送機械 | D27: 0 | E27: 0 | F27: 0 | G27: 0 | H27: 0 | I27: 0 | J27: 0 | K27: 0 | L27: 0 | M27: 0 | N27: 0 | O27: 0 | P27: 0 | Q27: 139 | R27: 0 | S27: 0 | T27: 0 | U27: 0 | V27: 483 | W27: 0 | X27: 0 | Y27: 0 | Z27: 0 | AA27: 0 | AB27: 0 | AC27: 0 | AD27: 0 | AE27: 8036 | AF27: 0 | AG27: 756 | AH27: 34 | AI27: 0 | AJ27: 0 | AK27: 12060 | AL27: 24 | AM27: 0 | AN27: 0 | AO27: 21532 | AP27: 0 | AQ27: 42848 | AR27: 0 | AS27: 1227 | AT27: 23635 | AU27: -2939 | AV27: 12 | AW27: 64783 | AX27: 86315 | AY27: 519 | AZ27: 1085 | BA27: 1604 | BB27: 66387 | BC27: 87919 | BD27: -15211 | BE27: -71056 | BF27: -86267 | BG27: -19880 | BH27: 1652
B28: 39 | C28: その他の製造工業製品 | D28: 4 | E28: 6 | F28: 1842 | G28: 23 | H28: 146 | I28: 64 | J28: 1243 | K28: 104 | L28: 132 | M28: 8520 | N28: 290 | O28: 52 | P28: 6 | Q28: 217 | R28: 32 | S28: 39 | T28: 31 | U28: 31 | V28: 1 | W28: 1205 | X28: 1188 | Y28: 1819 | Z28: 121 | AA28: 337 | AB28: 3980 | AC28: 3945 | AD28: 52 | AE28: 929 | AF28: 4854 | AG28: 1960 | AH28: 3934 | AI28: 1744 | AJ28: 1156 | AK28: 3851 | AL28: 2339 | AM28: 1297 | AN28: 67 | AO28: 47561 | AP28: 1539 | AQ28: 24588 | AR28: 0 | AS28: 122 | AT28: 5204 | AU28: -267 | AV28: 38 | AW28: 31224 | AX28: 78785 | AY28: 1071 | AZ28: 14460 | BA28: 15531 | BB28: 46755 | BC28: 94316 | BD28: -12540 | BE28: -54264 | BF28: -66804 | BG28: -20049 | BH28: 27512
B29: 41 | C29: 建設 | D29: 70 | E29: 10 | F29: 281 | G29: 5 | H29: 79 | I29: 156 | J29: 86 | K29: 91 | L29: 258 | M29: 11249 | N29: 195 | O29: 406 | P29: 23 | Q29: 172 | R29: 30 | S29: 37 | T29: 46 | U29: 16 | V29: 1 | W29: 68 | X29: 416 | Y29: 8035 | Z29: 2750 | AA29: 413 | AB29: 2829 | AC29: 427 | AD29: 19443 | AE29: 3937 | AF29: 1691 | AG29: 4892 | AH29: 2470 | AI29: 2158 | AJ29: 66 | AK29: 574 | AL29: 2024 | AM29: 0 | AN29: 0 | AO29: 65404 | AP29: 0 | AQ29: 0 | AR29: 0 | AS29: 140813 | AT29: 116346 | AU29: 0 | AV29: 0 | AW29: 257159 | AX29: 322563 | AY29: 0 | AZ29: 0 | BA29: 0 | BB29: 257159 | BC29: 322563 | BD29: 0 | BE29: 0 | BF29: 0 | BG29: 257159 | BH29: 322563
B30: 46 | C30: 電力・ガス・熱供給 | D30: 46 | E30: 5 | F30: 1838 | G30: 4 | H30: 63 | I30: 286 | J30: 282 | K30: 133 | L30: 247 | M30: 16122 | N30: 165 | O30: 330 | P30: 13 | Q30: 223 | R30: 24 | S30: 45 | T30: 33 | U30: 5 | V30: 7 | W30: 114 | X30: 582 | Y30: 3692 | Z30: 379 | AA30: 773 | AB30: 4257 | AC30: 791 | AD30: 1183 | AE30: 1228 | AF30: 945 | AG30: 1139 | AH30: 1937 | AI30: 1671 | AJ30: 54 | AK30: 1646 | AL30: 4535 | AM30: 0 | AN30: 106 | AO30: 44903 | AP30: 15 | AQ30: 33917 | AR30: 0 | AS30: 0 | AT30: 0 | AU30: 0 | AV30: 0 | AW30: 33932 | AX30: 78835 | AY30: 126 | AZ30: 76062 | BA30: 76188 | BB30: 110120 | BC30: 155023 | BD30: 0 | BE30: 0 | BF30: 0 | BG30: 110120 | BH30: 155023
B31: 47 | C31: 水道 | D31: 22 | E31: 5 | F31: 571 | G31: 0 | H31: 13 | I31: 49 | J31: 311 | K31: 17 | L31: 31 | M31: 3276 | N31: 47 | O31: 34 | P31: 1 | Q31: 62 | R31: 4 | S31: 6 | T31: 5 | U31: 0 | V31: 0 | W31: 38 | X31: 328 | Y31: 377 | Z31: 3832 | AA31: 848 | AB31: 1599 | AC31: 363 | AD31: 402 | AE31: 1365 | AF31: 740 | AG31: 821 | AH31: 2679 | AI31: 2368 | AJ31: 72 | AK31: 452 | AL31: 4343 | AM31: 0 | AN31: 140 | AO31: 25221 | AP31: 23 | AQ31: 22024 | AR31: -1759 | AS31: 0 | AT31: 0 | AU31: 0 | AV31: 0 | AW31: 20288 | AX31: 45509 | AY31: 97 | AZ31: 0 | BA31: 97 | BB31: 20385 | BC31: 45606 | BD31: 0 | BE31: 0 | BF31: 0 | BG31: 20385 | BH31: 45606
B32: 48 | C32: 廃棄物処理 | D32: 12 | E32: 4 | F32: 163 | G32: 0 | H32: 2 | I32: 75 | J32: 33 | K32: 0 | L32: 157 | M32: 269 | N32: 0 | O32: 2 | P32: 0 | Q32: 2 | R32: 0 | S32: 4 | T32: 0 | U32: 0 | V32: 0 | W32: 10 | X32: 439 | Y32: 1578 | Z32: 98 | AA32: 0 | AB32: 1269 | AC32: 825 | AD32: 17 | AE32: 2337 | AF32: 1700 | AG32: 8985 | AH32: 1287 | AI32: 1936 | AJ32: 0 | AK32: 239 | AL32: 8022 | AM32: 0 | AN32: 248 | AO32: 29713 | AP32: 0 | AQ32: 3372 | AR32: 8972 | AS32: 0 | AT32: 0 | AU32: 0 | AV32: 0 | AW32: 12344 | AX32: 42057 | AY32: 54 | AZ32: 20558 | BA32: 20612 | BB32: 32956 | BC32: 62669 | BD32: -1 | BE32: -5518 | BF32: -5519 | BG32: 27437 | BH32: 57150
B33: 51 | C33: 商業 | D33: 579 | E33: 22 | F33: 8289 | G33: 79 | H33: 731 | I33: 575 | J33: 796 | K33: 440 | L33: 581 | M33: 55219 | N33: 1128 | O33: 1733 | P33: 141 | Q33: 2322 | R33: 236 | S33: 131 | T33: 392 | U33: 120 | V33: 46 | W33: 1264 | X33: 8259 | Y33: 1344 | Z33: 405 | AA33: 612 | AB33: 4129 | AC33: 805 | AD33: 781 | AE33: 4108 | AF33: 2187 | AG33: 1409 | AH33: 2375 | AI33: 2630 | AJ33: 583 | AK33: 5872 | AL33: 14202 | AM33: 1205 | AN33: 264 | AO33: 125994 | AP33: 10975 | AQ33: 423499 | AR33: 1219 | AS33: 17637 | AT33: 28497 | AU33: 548 | AV33: 0 | AW33: 482375 | AX33: 608369 | AY33: 54723 | AZ33: 252028 | BA33: 306751 | BB33: 789126 | BC33: 915120 | BD33: -637 | BE33: -269846 | BF33: -270483 | BG33: 518643 | BH33: 644637
B34: 53 | C34: 金融・保険 | D34: 158 | E34: 70 | F34: 1654 | G34: 31 | H34: 258 | I34: 165 | J34: 557 | K34: 49 | L34: 374 | M34: 13813 | N34: 184 | O34: 774 | P34: 48 | Q34: 890 | R34: 150 | S34: 41 | T34: 78 | U34: 44 | V34: 10 | W34: 457 | X34: 6414 | Y34: 3799 | Z34: 262 | AA34: 637 | AB34: 14819 | AC34: 18675 | AD34: 70232 | AE34: 11564 | AF34: 2448 | AG34: 11225 | AH34: 608 | AI34: 3679 | AJ34: 2493 | AK34: 8811 | AL34: 3219 | AM34: 0 | AN34: 283 | AO34: 178973 | AP34: 1 | AQ34: 187636 | AR34: 0 | AS34: 0 | AT34: 0 | AU34: 0 | AV34: 0 | AW34: 187637 | AX34: 366610 | AY34: 7913 | AZ34: 3729 | BA34: 11642 | BB34: 199279 | BC34: 378252 | BD34: -8295 | BE34: -90206 | BF34: -98501 | BG34: 100778 | BH34: 279751
B35: 55 | C35: 不動産 | D35: 203 | E35: 6 | F35: 730 | G35: 3 | H35: 53 | I35: 43 | J35: 62 | K35: 45 | L35: 76 | M35: 2070 | N35: 22 | O35: 226 | P35: 20 | Q35: 243 | R35: 11 | S35: 6 | T35: 28 | U35: 7 | V35: 0 | W35: 68 | X35: 2008 | Y35: 1797 | Z35: 77 | AA35: 211 | AB35: 24725 | AC35: 5538 | AD35: 21025 | AE35: 17437 | AF35: 11624 | AG35: 186 | AH35: 1444 | AI35: 9237 | AJ35: 469 | AK35: 4519 | AL35: 6474 | AM35: 0 | AN35: 1556 | AO35: 112249 | AP35: 0 | AQ35: 505343 | AR35: 133536 | AS35: 0 | AT35: 0 | AU35: 0 | AV35: 0 | AW35: 638879 | AX35: 751128 | AY35: 370 | AZ35: 0 | BA35: 370 | BB35: 639249 | BC35: 751498 | BD35: 0 | BE35: -6721 | BF35: -6721 | BG35: 632528 | BH35: 744777
B36: 57 | C36: 運輸・郵便 | D36: 696 | E36: 328 | F36: 12600 | G36: 22 | H36: 600 | I36: 401 | J36: 3007 | K36: 184 | L36: 1341 | M36: 38507 | N36: 568 | O36: 1260 | P36: 94 | Q36: 1501 | R36: 130 | S36: 62 | T36: 209 | U36: 68 | V36: 16 | W36: 3818 | X36: 11123 | Y36: 6790 | Z36: 582 | AA36: 3240 | AB36: 26685 | AC36: 6621 | AD36: 1467 | AE36: 32989 | AF36: 6715 | AG36: 4705 | AH36: 5752 | AI36: 4635 | AJ36: 708 | AK36: 7012 | AL36: 11203 | AM36: 357 | AN36: 2650 | AO36: 198646 | AP36: 2399 | AQ36: 133565 | AR36: -190 | AS36: 297 | AT36: 3706 | AU36: 594 | AV36: 0 | AW36: 140371 | AX36: 339017 | AY36: 43999 | AZ36: 129045 | BA36: 173044 | BB36: 313415 | BC36: 512061 | BD36: -9110 | BE36: -120104 | BF36: -129214 | BG36: 184201 | BH36: 382847
B37: 59 | C37: 情報通信 | D37: 76 | E37: 3 | F37: 1276 | G37: 4 | H37: 167 | I37: 203 | J37: 121 | K37: 93 | L37: 277 | M37: 7433 | N37: 158 | O37: 419 | P37: 59 | Q37: 1917 | R37: 86 | S37: 45 | T37: 414 | U37: 288 | V37: 2 | W37: 195 | X37: 3402 | Y37: 2846 | Z37: 2551 | AA37: 728 | AB37: 28997 | AC37: 17153 | AD37: 3881 | AE37: 6820 | AF37: 50438 | AG37: 6398 | AH37: 5937 | AI37: 7649 | AJ37: 1775 | AK37: 27896 | AL37: 9255 | AM37: 0 | AN37: 1586 | AO37: 190548 | AP37: 1395 | AQ37: 161411 | AR37: 74 | AS37: 19039 | AT37: 155972 | AU37: -141 | AV37: 1 | AW37: 337751 | AX37: 528299 | AY37: 2946 | AZ37: 24956 | BA37: 27902 | BB37: 365653 | BC37: 556201 | BD37: -5504 | BE37: -156097 | BF37: -161601 | BG37: 204052 | BH37: 394600
B38: 61 | C38: 公務 | D38: 0 | E38: 0 | F38: 0 | G38: 0 | H38: 0 | I38: 0 | J38: 0 | K38: 0 | L38: 0 | M38: 0 | N38: 0 | O38: 0 | P38: 0 | Q38: 0 | R38: 0 | S38: 0 | T38: 0 | U38: 0 | V38: 0 | W38: 0 | X38: 0 | Y38: 0 | Z38: 0 | AA38: 0 | AB38: 0 | AC38: 0 | AD38: 0 | AE38: 0 | AF38: 0 | AG38: 0 | AH38: 0 | AI38: 0 | AJ38: 0 | AK38: 0 | AL38: 0 | AM38: 0 | AN38: 7568 | AO38: 7568 | AP38: 0 | AQ38: 22776 | AR38: 200842 | AS38: 0 | AT38: 0 | AU38: 0 | AV38: 0 | AW38: 223618 | AX38: 231186 | AY38: 0 | AZ38: 0 | BA38: 0 | BB38: 223618 | BC38: 231186 | BD38: 0 | BE38: 0 | BF38: 0 | BG38: 223618 | BH38: 231186
B39: 63 | C39: 教育・研究 | D39: 5 | E39: 1 | F39: 1081 | G39: 11 | H39: 72 | I39: 877 | J39: 128 | K39: 206 | L39: 223 | M39: 10630 | N39: 450 | O39: 324 | P39: 103 | Q39: 2429 | R39: 410 | S39: 251 | T39: 783 | U39: 325 | V39: 42 | W39: 272 | X39: 672 | Y39: 1892 | Z39: 6 | AA39: 15 | AB39: 1469 | AC39: 187 | AD39: 1 | AE39: 1187 | AF39: 7275 | AG39: 29 | AH39: 1550 | AI39: 1538 | AJ39: 0 | AK39: 1169 | AL39: 279 | AM39: 0 | AN39: 652 | AO39: 36544 | AP39: 0 | AQ39: 83043 | AR39: 131924 | AS39: 0 | AT39: 0 | AU39: 0 | AV39: 0 | AW39: 214967 | AX39: 251511 | AY39: 1299 | AZ39: 16096 | BA39: 17395 | BB39: 232362 | BC39: 268906 | BD39: -7304 | BE39: -18072 | BF39: -25376 | BG39: 206986 | BH39: 243530
B40: 64 | C40: 医療・福祉 | D40: 31 | E40: 0 | F40: 0 | G40: 0 | H40: 0 | I40: 0 | J40: 0 | K40: 0 | L40: 0 | M40: 3 | N40: 0 | O40: 0 | P40: 0 | Q40: 0 | R40: 0 | S40: 0 | T40: 0 | U40: 0 | V40: 0 | W40: 0 | X40: 0 | Y40: 1 | Z40: 9 | AA40: 0 | AB40: 11 | AC40: 22 | AD40: 5 | AE40: 298 | AF40: 127 | AG40: 3 | AH40: 9 | AI40: 11773 | AJ40: 0 | AK40: 5 | AL40: 17 | AM40: 0 | AN40: 104 | AO40: 12418 | AP40: 4036 | AQ40: 87315 | AR40: 366691 | AS40: 0 | AT40: 0 | AU40: 0 | AV40: 0 | AW40: 458042 | AX40: 470460 | AY40: 1 | AZ40: 19689 | BA40: 19690 | BB40: 477732 | BC40: 490150 | BD40: 0 | BE40: -109584 | BF40: -109584 | BG40: 368148 | BH40: 380566
B41: 65 | C41: その他の非営利団体サービス | D41: 8 | E41: 2 | F41: 198 | G41: 1 | H41: 6 | I41: 38 | J41: 38 | K41: 6 | L41: 22 | M41: 1257 | N41: 13 | O41: 44 | P41: 11 | Q41: 84 | R41: 7 | S41: 3 | T41: 8 | U41: 5 | V41: 0 | W41: 26 | X41: 390 | Y41: 488 | Z41: 393 | AA41: 142 | AB41: 338 | AC41: 620 | AD41: 300 | AE41: 495 | AF41: 482 | AG41: 0 | AH41: 264 | AI41: 544 | AJ41: 0 | AK41: 1207 | AL41: 1199 | AM41: 0 | AN41: 79 | AO41: 8718 | AP41: 0 | AQ41: 31774 | AR41: 0 | AS41: 0 | AT41: 0 | AU41: 0 | AV41: 0 | AW41: 31774 | AX41: 40492 | AY41: 118 | AZ41: 0 | BA41: 118 | BB41: 31892 | BC41: 40610 | BD41: -427 | BE41: -10307 | BF41: -10734 | BG41: 21158 | BH41: 29876
B42: 66 | C42: 対事業所サービス | D42: 662 | E42: 50 | F42: 7586 | G42: 63 | H42: 770 | I42: 964 | J42: 1707 | K42: 612 | L42: 2065 | M42: 25982 | N42: 757 | O42: 1863 | P42: 382 | Q42: 4807 | R42: 288 | S42: 280 | T42: 651 | U42: 239 | V42: 39 | W42: 1429 | X42: 44286 | Y42: 13533 | Z42: 8320 | AA42: 4521 | AB42: 54700 | AC42: 28659 | AD42: 30209 | AE42: 45571 | AF42: 67527 | AG42: 19137 | AH42: 19407 | AI42: 32476 | AJ42: 2297 | AK42: 80444 | AL42: 17510 | AM42: 0 | AN42: 3083 | AO42: 522876 | AP42: 659 | AQ42: 41744 | AR42: 0 | AS42: 2308 | AT42: 28814 | AU42: 0 | AV42: 0 | AW42: 73525 | AX42: 596401 | AY42: 13152 | AZ42: 186191 | BA42: 199343 | BB42: 272868 | BC42: 795744 | BD42: -12582 | BE42: -172382 | BF42: -184964 | BG42: 87904 | BH42: 610780
B43: 67 | C43: 対個人サービス | D43: 9 | E43: 0 | F43: 760 | G43: 0 | H43: 0 | I43: 0 | J43: 4 | K43: 0 | L43: 1 | M43: 118 | N43: 0 | O43: 0 | P43: 0 | Q43: 20 | R43: 0 | S43: 0 | T43: 2 | U43: 0 | V43: 0 | W43: 0 | X43: 61 | Y43: 10 | Z43: 10 | AA43: 3 | AB43: 449 | AC43: 41 | AD43: 366 | AE43: 264 | AF43: 2905 | AG43: 73 | AH43: 265 | AI43: 6975 | AJ43: 55 | AK43: 569 | AL43: 5172 | AM43: 0 | AN43: 103 | AO43: 18235 | AP43: 61425 | AQ43: 367403 | AR43: 0 | AS43: 0 | AT43: 0 | AU43: 0 | AV43: 11 | AW43: 428839 | AX43: 447074 | AY43: 2494 | AZ43: 54169 | BA43: 56663 | BB43: 485502 | BC43: 503737 | BD43: -2326 | BE43: -126068 | BF43: -128394 | BG43: 357108 | BH43: 375343
B44: 68 | C44: 事務用品 | D44: 11 | E44: 0 | F44: 138 | G44: 1 | H44: 18 | I44: 11 | J44: 7 | K44: 1 | L44: 20 | M44: 202 | N44: 6 | O44: 13 | P44: 4 | Q44: 78 | R44: 9 | S44: 7 | T44: 12 | U44: 2 | V44: 0 | W44: 24 | X44: 190 | Y44: 13 | Z44: 29 | AA44: 188 | AB44: 1233 | AC44: 759 | AD44: 252 | AE44: 1013 | AF44: 516 | AG44: 569 | AH44: 739 | AI44: 721 | AJ44: 91 | AK44: 649 | AL44: 643 | AM44: 0 | AN44: 5 | AO44: 8174 | AP44: 0 | AQ44: 0 | AR44: 0 | AS44: 0 | AT44: 0 | AU44: 0 | AV44: 0 | AW44: 0 | AX44: 8174 | AY44: 0 | AZ44: 0 | BA44: 0 | BB44: 0 | BC44: 8174 | BD44: 0 | BE44: 0 | BF44: 0 | BG44: 0 | BH44: 8174
B45: 69 | C45: 分類不明 | D45: 232 | E45: 5 | F45: 349 | G45: 2 | H45: 54 | I45: 27 | J45: 170 | K45: 22 | L45: 156 | M45: 3485 | N45: 42 | O45: 126 | P45: 59 | Q45: 819 | R45: 18 | S45: 11 | T45: 43 | U45: 25 | V45: 3 | W45: 49 | X45: 5635 | Y45: 488 | Z45: 371 | AA45: 132 | AB45: 4278 | AC45: 970 | AD45: 4392 | AE45: 3213 | AF45: 2116 | AG45: 167 | AH45: 2689 | AI45: 1463 | AJ45: 87 | AK45: 4646 | AL45: 920 | AM45: 9 | AN45: 0 | AO45: 37273 | AP45: 0 | AQ45: 240 | AR45: 1540 | AS45: 241 | AT45: 0 | AU45: 17 | AV45: 0 | AW45: 2038 | AX45: 39311 | AY45: 29 | AZ45: 4961 | BA45: 4990 | BB45: 7028 | BC45: 44301 | BD45: -2964 | BE45: -5634 | BF45: -8598 | BG45: -1570 | BH45: 35703
B46: 70 | C46: 内生部門計 | D46: 6890 | E46: 625 | F46: 206604 | G46: 647 | H46: 8334 | I46: 11116 | J46: 70988 | K46: 6934 | L46: 12499 | M46: 982257 | N46: 15297 | O46: 20734 | P46: 2659 | Q46: 48741 | R46: 4127 | S46: 3437 | T46: 7204 | U46: 3245 | V46: 925 | W46: 14173 | X46: 171653 | Y46: 122522 | Z46: 22981 | AA46: 15594 | AB46: 188613 | AC46: 88303 | AD46: 155468 | AE46: 167690 | AF46: 170203 | AG46: 67078 | AH46: 59525 | AI46: 146872 | AJ46: 11143 | AK46: 203630 | AL46: 162632 | AM46: 8174 | AN46: 21402 | AO46: 3210919 | AP46: 92449 | AQ46: 2608832 | AR46: 844566 | AS46: 173341 | AT46: 456317 | AU46: 3422 | AV46: 3855 | AW46: 4182782 | AX46: 7393701 | AY46: 317240 | AZ46: 1726410 | BA46: 2043650 | BB46: 6226432 | BC46: 9437351 | BD46: -588728 | BE46: -2105315 | BF46: -2694043 | BG46: 3532389 | BH46: 6743308
B47: 71 | C47: 家計外消費支出（行） | D47: 80 | E47: 67 | F47: 2410 | G47: 18 | H47: 176 | I47: 221 | J47: 349 | K47: 176 | L47: 492 | M47: 6305 | N47: 145 | O47: 676 | P47: 51 | Q47: 622 | R47: 106 | S47: 49 | T47: 279 | U47: 156 | V47: 11 | W47: 396 | X47: 6184 | Y47: 1605 | Z47: 562 | AA47: 1411 | AB47: 14118 | AC47: 8473 | AD47: 3901 | AE47: 9157 | AF47: 7185 | AG47: 1798 | AH47: 2263 | AI47: 3799 | AJ47: 864 | AK47: 10434 | AL47: 7794 | AM47: 0 | AN47: 116 | AO47: 92449
B48: 91 | C48: 雇用者所得 | D48: 2626 | E48: 159 | F48: 36195 | G48: 414 | H48: 2925 | I48: 1741 | J48: 1068 | K48: 2622 | L48: 3699 | M48: 38831 | N48: 2475 | O48: 10005 | P48: 2357 | Q48: 17702 | R48: 1776 | S48: 1823 | T48: 1398 | U48: 721 | V48: 616 | W48: 10164 | X48: 118605 | Y48: 7024 | Z48: 6239 | AA48: 29572 | AB48: 274110 | AC48: 93409 | AD48: 34769 | AE48: 102548 | AF48: 122599 | AG48: 90408 | AH48: 159439 | AI48: 189841 | AJ48: 16091 | AK48: 240682 | AL48: 117610 | AM48: 0 | AN48: 1361 | AO48: 1743624
B49: 92 | C49: 営業余剰 | D49: 3674 | E49: 23 | F49: 13358 | G49: -57 | H49: 908 | I49: 662 | J49: -22 | K49: -252 | L49: 3777 | M49: 79431 | N49: 334 | O49: -1398 | P49: 220 | Q49: 9606 | R49: -111 | S49: -126 | T49: 358 | U49: 14 | V49: 34 | W49: 441 | X49: 6428 | Y49: -6385 | Z49: 5996 | AA49: 1810 | AB49: 100136 | AC49: 60783 | AD49: 309708 | AE49: 24439 | AF49: 50863 | AG49: 0 | AH49: 911 | AI49: 11879 | AJ49: -129 | AK49: 51333 | AL49: 36307 | AM49: 0 | AN49: 10539 | AO49: 775492
B50: 93 | C50: 資本減耗引当 | D50: 1862 | E50: 60 | F50: 9172 | G50: 57 | H50: 705 | I50: 1081 | J50: 5125 | K50: 741 | L50: 1760 | M50: 53337 | N50: 374 | O50: 2105 | P50: 217 | Q50: 5224 | R50: 582 | S50: 386 | T50: 1002 | U50: 575 | V50: 68 | W50: 1434 | X50: 9175 | Y50: 25675 | Z50: 10591 | AA50: 6488 | AB50: 44692 | AC50: 31609 | AD50: 198797 | AE50: 63294 | AF50: 35765 | AG50: 71698 | AH50: 19368 | AI50: 27731 | AJ50: 1647 | AK50: 82370 | AL50: 32203 | AM50: 0 | AN50: 1955 | AO50: 748925
B51: 94 | C51: 間接税（関税・輸入品商品税を除く。） | D51: 610 | E51: 54 | F51: 11167 | G51: 42 | H51: 451 | I51: 286 | J51: 329 | K51: 315 | L51: 664 | M51: 10800 | N51: 227 | O51: 860 | P51: 44 | Q51: 792 | R51: 102 | S51: 44 | T51: 88 | U51: 35 | V51: -2 | W51: 905 | X51: 11459 | Y51: 5157 | Z51: 1738 | AA51: 2276 | AB51: 23313 | AC51: 4702 | AD51: 42831 | AE51: 18757 | AF51: 8005 | AG51: 204 | AH51: 2723 | AI51: 5631 | AJ51: 668 | AK51: 22484 | AL51: 18803 | AM51: 0 | AN51: 330 | AO51: 196894
B52: 95 | C52: （控除）経常補助金 | D52: -1420 | E52: 0 | F52: -1465 | G52: 0 | H52: 0 | I52: 0 | J52: 0 | K52: 0 | L52: 0 | M52: -8 | N52: 0 | O52: 0 | P52: 0 | Q52: -2 | R52: 0 | S52: 0 | T52: 0 | U52: 0 | V52: 0 | W52: -1 | X52: -941 | Y52: -575 | Z52: -2501 | AA52: -1 | AB52: -345 | AC52: -7528 | AD52: -697 | AE52: -3038 | AF52: -20 | AG52: 0 | AH52: -699 | AI52: -5187 | AJ52: -408 | AK52: -153 | AL52: -6 | AM52: 0 | AN52: 0 | AO52: -24995
B53: 96 | C53: 粗付加価値部門計 | D53: 7432 | E53: 363 | F53: 70837 | G53: 474 | H53: 5165 | I53: 3991 | J53: 6849 | K53: 3602 | L53: 10392 | M53: 188696 | N53: 3555 | O53: 12248 | P53: 2889 | Q53: 33944 | R53: 2455 | S53: 2176 | T53: 3125 | U53: 1501 | V53: 727 | W53: 13339 | X53: 150910 | Y53: 32501 | Z53: 22625 | AA53: 41556 | AB53: 456024 | AC53: 191448 | AD53: 589309 | AE53: 215157 | AF53: 224397 | AG53: 164108 | AH53: 184005 | AI53: 233694 | AJ53: 18733 | AK53: 407150 | AL53: 212711 | AM53: 0 | AN53: 14301 | AO53: 3532389
B54: 97 | C54: 市内生産額 | D54: 14322 | E54: 988 | F54: 277441 | G54: 1121 | H54: 13499 | I54: 15107 | J54: 77837 | K54: 10536 | L54: 22891 | M54: 1170953 | N54: 18852 | O54: 32982 | P54: 5548 | Q54: 82685 | R54: 6582 | S54: 5613 | T54: 10329 | U54: 4746 | V54: 1652 | W54: 27512 | X54: 322563 | Y54: 155023 | Z54: 45606 | AA54: 57150 | AB54: 644637 | AC54: 279751 | AD54: 744777 | AE54: 382847 | AF54: 394600 | AG54: 231186 | AH54: 243530 | AI54: 380566 | AJ54: 29876 | AK54: 610780 | AL54: 375343 | AM54: 8174 | AN54: 35703 | AO54: 6743308
B55: 91 | C55: 雇用者所得 | D55: =+SUM(D56:D58) -> 2626 | E55: 159 | F55: 36195 | G55: 414 | H55: 2925 | I55: 1741 | J55: 1068 | K55: 2622 | L55: 3699 | M55: 38831 | N55: 2475 | O55: 10005 | P55: 2357 | Q55: 17702 | R55: 1776 | S55: 1823 | T55: 1398 | U55: 721 | V55: 616 | W55: 10164 | X55: 118605 | Y55: 7024 | Z55: 6239 | AA55: 29572 | AB55: 274110 | AC55: 93409 | AD55: 34769 | AE55: 102548 | AF55: 122599 | AG55: 90408 | AH55: 159439 | AI55: 189841 | AJ55: 16091 | AK55: 240682 | AL55: 117610 | AM55: 0 | AN55: 1361 | AO55: =+SUM(AO56:AO58) -> 1743624
C56: 賃金・俸給 | D56: 2332 | E56: 138 | F56: 30442 | G56: 349 | H56: 2439 | I56: 1390 | J56: 854 | K56: 2180 | L56: 3053 | M56: 30961 | N56: 2016 | O56: 8388 | P56: 1946 | Q56: 14336 | R56: 1451 | S56: 1466 | T56: 1120 | U56: 600 | V56: 515 | W56: 8515 | X56: 102541 | Y56: 5638 | Z56: 4461 | AA56: 25950 | AB56: 236864 | AC56: 69513 | AD56: 31887 | AE56: 86651 | AF56: 104458 | AG56: 66511 | AH56: 128162 | AI56: 165130 | AJ56: 14561 | AK56: 209771 | AL56: 105909 | AM56: 0 | AN56: 1225 | AO56: 1473723
C57: 社会保険料（雇用主負担） | D57: 186 | E57: 15 | F57: 3903 | G57: 44 | H57: 319 | I57: 180 | J57: 111 | K57: 285 | L57: 399 | M57: 4029 | N57: 262 | O57: 1097 | P57: 254 | Q57: 1868 | R57: 189 | S57: 191 | T57: 148 | U57: 77 | V57: 62 | W57: 1086 | X57: 11320 | Y57: 781 | Z57: 907 | AA57: 3104 | AB57: 26452 | AC57: 10419 | AD57: 2131 | AE57: 10004 | AF57: 12645 | AG57: 14385 | AH57: 20437 | AI57: 18820 | AJ57: 1012 | AK57: 23437 | AL57: 9524 | AM57: 0 | AN57: 102 | AO57: 180185
C58: その他の給与及び手当 | D58: 108 | E58: 6 | F58: 1850 | G58: 21 | H58: 167 | I58: 171 | J58: 103 | K58: 157 | L58: 247 | M58: 3841 | N58: 197 | O58: 520 | P58: 157 | Q58: 1498 | R58: 136 | S58: 166 | T58: 130 | U58: 44 | V58: 39 | W58: 563 | X58: 4744 | Y58: 605 | Z58: 871 | AA58: 518 | AB58: 10794 | AC58: 13477 | AD58: 751 | AE58: 5893 | AF58: 5496 | AG58: 9512 | AH58: 10840 | AI58: 5891 | AJ58: 518 | AK58: 7474 | AL58: 2177 | AM58: 0 | AN58: 34 | AO58: 89716

Sheet 投入係数表 (hidden)
B5: 平成23年千葉市産業連関表 投入係数表 統合大分類（37部門）
D7: 01 | E7: 06 | F7: 11 | G7: 15 | H7: 16 | I7: 20 | J7: 21 | K7: 22 | L7: 25 | M7: 26 | N7: 27 | O7: 28 | P7: 29 | Q7: 30 | R7: 31 | S7: 32 | T7: 33 | U7: 34 | V7: 35 | W7: 39 | X7: 41 | Y7: 46 | Z7: 47 | AA7: 48 | AB7: 51 | AC7: 53 | AD7: 55 | AE7: 57 | AF7: 59 | AG7: 61 | AH7: 63 | AI7: 64 | AJ7: 65 | AK7: 66 | AL7: 67 | AM7: 68 | AN7: 69 | AO7: 70 | AP7: 71 | AQ7: 72 | AR7: 73 | AS7: 74 | AT7: 75 | AU7: 76 | AV7: 77 | AW7: 78 | AX7: 79 | AY7: 80 | AZ7: 81 | BA7: 82 | BB7: 83 | BC7: 84 | BD7: 85 | BE7: 86 | BF7: 87 | BG7: 88 | BH7: 89
D8: 農林水産業 | E8: 鉱業 | F8: 飲食料品 | G8: 繊維製品 | H8: パルプ・紙・木製品 | I8: 化学製品 | J8: 石油・石炭製品 | K8: プラスチック・ゴム | L8: 窯業・土石製品 | M8: 鉄鋼 | N8: 非鉄金属 | O8: 金属製品 | P8: はん用機械 | Q8: 生産用機械 | R8: 業務用機械 | S8: 電子部品 | T8: 電気機械 | U8: 情報・通信機器 | V8: 輸送機械 | W8: その他の製造工業製品（１／３） | X8: 建設 | Y8: 電力・ガス・熱供給 | Z8: 水道 | AA8: 廃棄物処理 | AB8: 商業 | AC8: 金融・保険 | AD8: 不動産 | AE8: 運輸・郵便 | AF8: 情報通信 | AG8: 公務 | AH8: 教育・研究 | AI8: 医療・福祉 | AJ8: その他の非営利団体サービス | AK8: 対事業所サービス | AL8: 対個人サービス | AM8: 事務用品 | AN8: 分類不明 | AO8: 内生部門計 | AP8: 家計外消費支出（列） | AQ8: 民間消費支出 | AR8: 一般政府消費支出 | AS8: 市内総固定資本形成（公的） | AT8: 市内総固定資本形成（民間） | AU8: 在庫純増 | AV8: 調整項 | AW8: 市内最終需要計 | AX8: 市内需要合計 | AY8: 輸出 | AZ8: 移出 | BA8: 移輸出計 | BB8: 最終需要計 | BC8: 需要合計 | BD8: （控除）輸入 | BE8: （控除）移入 | BF8: （控除）移輸入計 | BG8: 最終需要部門計 | BH8: 市内生産額
B9: 01 | C9: 農林水産業 | D9: =IF(取引額表!D$54=0,0,取引額表!D9/取引額表!D$54) -> 0.09251501187 | E9: =IF(取引額表!E$54=0,0,取引額表!E9/取引額表!E$54) -> 0 | F9: =IF(取引額表!F$54=0,0,取引額表!F9/取引額表!F$54) -> 0.3571534128 | G9: =IF(取引額表!G$54=0,0,取引額表!G9/取引額表!G$54) -> 0.005352363961 | H9: =IF(取引額表!H$54=0,0,取引額表!H9/取引額表!H$54) -> 0.005407807986 | I9: =IF(取引額表!I$54=0,0,取引額表!I9/取引額表!I$54) -> 0.0009267227113 | J9: =IF(取引額表!J$54=0,0,取引額表!J9/取引額表!J$54) -> 0 | K9: =IF(取引額表!K$54=0,0,取引額表!K9/取引額表!K$54) -> 0.006169324222 | L9: =IF(取引額表!L$54=0,0,取引額表!L9/取引額表!L$54) -> 0.0003494823293 | M9: =IF(取引額表!M$54=0,0,取引額表!M9/取引額表!M$54) -> 0 | N9: =IF(取引額表!N$54=0,0,取引額表!N9/取引額表!N$54) -> 0 | O9: =IF(取引額表!O$54=0,0,取引額表!O9/取引額表!O$54) -> 0 | P9: =IF(取引額表!P$54=0,0,取引額表!P9/取引額表!P$54) -> 0 | Q9: =IF(取引額表!Q$54=0,0,取引額表!Q9/取引額表!Q$54) -> 0 | R9: =IF(取引額表!R$54=0,0,取引額表!R9/取引額表!R$54) -> 0 | S9: =IF(取引額表!S$54=0,0,取引額表!S9/取引額表!S$54) -> 0 | T9: =IF(取引額表!T$54=0,0,取引額表!T9/取引額表!T$54) -> 0 | U9: =IF(取引額表!U$54=0,0,取引額表!U9/取引額表!U$54) -> 0 | V9: =IF(取引額表!V$54=0,0,取引額表!V9/取引額表!V$54) -> 0 | W9: =IF(取引額表!W$54=0,0,取引額表!W9/取引額表!W$54) -> 0.0228627508 | X9: =IF(取引額表!X$54=0,0,取引額表!X9/取引額表!X$54) -> 0.0008060440906 | Y9: =IF(取引額表!Y$54=0,0,取引額表!Y9/取引額表!Y$54) -> 0 | Z9: =IF(取引額表!Z$54=0,0,取引額表!Z9/取引額表!Z$54) -> 0 | AA9: =IF(取引額表!AA$54=0,0,取引額表!AA9/取引額表!AA$54) -> 0 | AB9: =IF(取引額表!AB$54=0,0,取引額表!AB9/取引額表!AB$54) -> 8.376807413e-05 | AC9: =IF(取引額表!AC$54=0,0,取引額表!AC9/取引額表!AC$54) -> 0 | AD9: =IF(取引額表!AD$54=0,0,取引額表!AD9/取引額表!AD$54) -> 1.342683783e-06 | AE9: =IF(取引額表!AE$54=0,0,取引額表!AE9/取引額表!AE$54) -> 0.0001306004749 | AF9: =IF(取引額表!AF$54=0,0,取引額表!AF9/取引額表!AF$54) -> 0 | AG9: =IF(取引額表!AG$54=0,0,取引額表!AG9/取引額表!AG$54) -> 4.325521442e-06 | AH9: =IF(取引額表!AH$54=0,0,取引額表!AH9/取引額表!AH$54) -> 0.0009198045415 | AI9: =IF(取引額表!AI$54=0,0,取引額表!AI9/取引額表!AI$54) -> 0.001820971921 | AJ9: =IF(取引額表!AJ$54=0,0,取引額表!AJ9/取引額表!AJ$54) -> 0.001506225733 | AK9: =IF(取引額表!AK$54=0,0,取引額表!AK9/取引額表!AK$54) -> 6.549002914e-06 | AL9: =IF(取引額表!AL$54=0,0,取引額表!AL9/取引額表!AL$54) -> 0.02166285238 | AM9: =IF(取引額表!AM$54=0,0,取引額表!AM9/取引額表!AM$54) -> 0 | AN9: =IF(取引額表!AN$54=0,0,取引額表!AN9/取引額表!AN$54) -> 0 | AO9: =IF(取引額表!AO$54=0,0,取引額表!AO9/取引額表!AO$54) -> 0.01641212295 | AP9: =IF(取引額表!AP$46=0,0,取引額表!AP9/取引額表!AP$46) -> 0.004651213101 | AQ9: =IF(取引額表!AQ$46=0,0,取引額表!AQ9/取引額表!AQ$46) -> 0.01125561171 | AR9: =IF(取引額表!AR$46=0,0,取引額表!AR9/取引額表!AR$46) -> 0 | AS9: =IF(取引額表!AS$46=0,0,取引額表!AS9/取引額表!AS$46) -> 0 | AT9: =IF(取引額表!AT$46=0,0,取引額表!AT9/取引額表!AT$46) -> 1.753167206e-05 | AU9: =IF(取引額表!AU$46=0,0,取引額表!AU9/取引額表!AU$46) -> 0.4292811222 | AV9: =IF(取引額表!AV$46=0,0,取引額表!AV9/取引額表!AV$46) -> 0.0005188067445 | AW9: =IF(取引額表!AW$46=0,0,取引額表!AW9/取引額表!AW$46) -> 0.007476602893 | AX9: =IF(取引額表!AX$46=0,0,取引額表!AX9/取引額表!AX$46) -> 0.01919809849 | AY9: =IF(取引額表!AY$46=0,0,取引額表!AY9/取引額表!AY$46) -> 0.0001576093809 | AZ9: =IF(取引額表!AZ$46=0,0,取引額表!AZ9/取引額表!AZ$46) -> 0.003569256434 | BA9: =IF(取引額表!BA$46=0,0,取引額表!BA9/取引額表!BA$46) -> 0.003039659433 | BB9: =IF(取引額表!BB$46=0,0,取引額表!BB9/取引額表!BB$46) -> 0.006020301836 | BC9: =IF(取引額表!BC$46=0,0,取引額表!BC9/取引額表!BC$46) -> 0.01569900282 | BD9: =IF(取引額表!BD$46=0,0,取引額表!BD9/取引額表!BD$46) -> 0.1201624519 | BE9: =IF(取引額表!BE$46=0,0,取引額表!BE9/取引額表!BE$46) -> 0.02996796204 | BF9: =IF(取引額表!BF$46=0,0,取引額表!BF9/取引額表!BF$46) -> 0.04967812318 | BG9: =IF(取引額表!BG$46=0,0,取引額表!BG9/取引額表!BG$46) -> -0.02727615786 | BH9: =IF(取引額表!BH$46=0,0,取引額表!BH9/取引額表!BH$46) -> 0.002123883412
B10: 06 | C10: 鉱業 | D10: =IF(取引額表!D$54=0,0,取引額表!D10/取引額表!D$54) -> 0 | E10: =IF(取引額表!E$54=0,0,取引額表!E10/取引額表!E$54) -> 0 | F10: =IF(取引額表!F$54=0,0,取引額表!F10/取引額表!F$54) -> 1.802184969e-05 | G10: =IF(取引額表!G$54=0,0,取引額表!G10/取引額表!G$54) -> 0 | H10: =IF(取引額表!H$54=0,0,取引額表!H10/取引額表!H$54) -> 0 | I10: =IF(取引額表!I$54=0,0,取引額表!I10/取引額表!I$54) -> 0.009862977428 | J10: =IF(取引額表!J$54=0,0,取引額表!J10/取引額表!J$54) -> 0.7304238344 | K10: =IF(取引額表!K$54=0,0,取引額表!K10/取引額表!K$54) -> 0 | L10: =IF(取引額表!L$54=0,0,取引額表!L10/取引額表!L$54) -> 0.09099646149 | M10: =IF(取引額表!M$54=0,0,取引額表!M10/取引額表!M$54) -> 0.07899292286 | N10: =IF(取引額表!N$54=0,0,取引額表!N10/取引額表!N$54) -> 0.0006365372374 | O10: =IF(取引額表!O$54=0,0,取引額表!O10/取引額表!O$54) -> 0.000242556546 | P10: =IF(取引額表!P$54=0,0,取引額表!P10/取引額表!P$54) -> 0 | Q10: =IF(取引額表!Q$54=0,0,取引額表!Q10/取引額表!Q$54) -> 0 | R10: =IF(取引額表!R$54=0,0,取引額表!R10/取引額表!R$54) -> 0.0001519295047 | S10: =IF(取引額表!S$54=0,0,取引額表!S10/取引額表!S$54) -> 0 | T10: =IF(取引額表!T$54=0,0,取引額表!T10/取引額表!T$54) -> 0 | U10: =IF(取引額表!U$54=0,0,取引額表!U10/取引額表!U$54) -> 0 | V10: =IF(取引額表!V$54=0,0,取引額表!V10/取引額表!V$54) -> 0 | W10: =IF(取引額表!W$54=0,0,取引額表!W10/取引額表!W$54) -> 0.001853736551 | X10: =IF(取引額表!X$54=0,0,取引額表!X10/取引額表!X$54) -> 0.007756624287 | Y10: =IF(取引額表!Y$54=0,0,取引額表!Y10/取引額表!Y$54) -> 0.4024112551 | Z10: =IF(取引額表!Z$54=0,0,取引額表!Z10/取引額表!Z$54) -> 0 | AA10: =IF(取引額表!AA$54=0,0,取引額表!AA10/取引額表!AA$54) -> 0 | AB10: =IF(取引額表!AB$54=0,0,取引額表!AB10/取引額表!AB$54) -> 0 | AC10: =IF(取引額表!AC$54=0,0,取引額表!AC10/取引額表!AC$54) -> 0 | AD10: =IF(取引額表!AD$54=0,0,取引額表!AD10/取引額表!AD$54) -> 0 | AE10: =IF(取引額表!AE$54=0,0,取引額表!AE10/取引額表!AE$54) -> 2.612009497e-06 | AF10: =IF(取引額表!AF$54=0,0,取引額表!AF10/取引額表!AF$54) -> 0 | AG10: =IF(取引額表!AG$54=0,0,取引額表!AG10/取引額表!AG$54) -> 0 | AH10: =IF(取引額表!AH$54=0,0,取引額表!AH10/取引額表!AH$54) -> 2.463762165e-05 | AI10: =IF(取引額表!AI$54=0,0,取引額表!AI10/取引額表!AI$54) -> 0 | AJ10: =IF(取引額表!AJ$54=0,0,取引額表!AJ10/取引額表!AJ$54) -> 0 | AK10: =IF(取引額表!AK$54=0,0,取引額表!AK10/取引額表!AK$54) -> 0 | AL10: =IF(取引額表!AL$54=0,0,取引額表!AL10/取引額表!AL$54) -> -7.992689353e-06 | AM10: =IF(取引額表!AM$54=0,0,取引額表!AM10/取引額表!AM$54) -> 0 | AN10: =IF(取引額表!AN$54=0,0,取引額表!AN10/取引額表!AN$54) -> 8.402655239e-05 | AO10: =IF(取引額表!AO$54=0,0,取引額表!AO10/取引額表!AO$54) -> 0.03211361545 | AP10: =IF(取引額表!AP$46=0,0,取引額表!AP10/取引額表!AP$46) -> -0.0004002206622 | AQ10: =IF(取引額表!AQ$46=0,0,取引額表!AQ10/取引額表!AQ$46) -> 3.833132988e-07 | AR10: =IF(取引額表!AR$46=0,0,取引額表!AR10/取引額表!AR$46) -> 0 | AS10: =IF(取引額表!AS$46=0,0,取引額表!AS10/取引額表!AS$46) -> 0 | AT10: =IF(取引額表!AT$46=0,0,取引額表!AT10/取引額表!AT$46) -> -6.355231122e-05 | AU10: =IF(取引額表!AU$46=0,0,取引額表!AU10/取引額表!AU$46) -> -0.01957919345 | AV10: =IF(取引額表!AV$46=0,0,取引額表!AV10/取引額表!AV$46) -> 0 | AW10: =IF(取引額表!AW$46=0,0,取引額表!AW10/取引額表!AW$46) -> -3.155794397e-05 | AX10: =IF(取引額表!AX$46=0,0,取引額表!AX10/取引額表!AX$46) -> 0.02927086178 | AY10: =IF(取引額表!AY$46=0,0,取引額表!AY10/取引額表!AY$46) -> 3.152187618e-05 | AZ10: =IF(取引額表!AZ$46=0,0,取引額表!AZ10/取引額表!AZ$46) -> 0.0003730284231 | BA10: =IF(取引額表!BA$46=0,0,取引額表!BA10/取引額表!BA$46) -> 0.0003200156583 | BB10: =IF(取引額表!BB$46=0,0,取引額表!BB10/取引額表!BB$46) -> 8.383613601e-05 | BC10: =IF(取引額表!BC$46=0,0,取引額表!BC10/取引額表!BC$46) -> 0.02300158169 | BD10: =IF(取引額表!BD$46=0,0,取引額表!BD10/取引額表!BD$46) -> 0.3148958432 | BE10: =IF(取引額表!BE$46=0,0,取引額表!BE10/取引額表!BE$46) -> 0.01458119094 | BF10: =IF(取引額表!BF$46=0,0,取引額表!BF10/取引額表!BF$46) -> 0.08020881627 | BG10: =IF(取引額表!BG$46=0,0,取引額表!BG10/取引額表!BG$46) -> -0.06102498904 | BH10: =IF(取引額表!BH$46=0,0,取引額表!BH10/取引額表!BH$46) -> 0.000146515627
B11: 11 | C11: 飲食料品 | D11: =IF(取引額表!D$54=0,0,取引額表!D11/取引額表!D$54) -> 0.04964390448 | E11: =IF(取引額表!E$54=0,0,取引額表!E11/取引額表!E$54) -> 0 | F11: =IF(取引額表!F$54=0,0,取引額表!F11/取引額表!F$54) -> 0.2137139067 | G11: =IF(取引額表!G$54=0,0,取引額表!G11/取引額表!G$54) -> 0.0008920606601 | H11: =IF(取引額表!H$54=0,0,取引額表!H11/取引額表!H$54) -> 0.001111193422 | I11: =IF(取引額表!I$54=0,0,取引額表!I11/取引額表!I$54) -> 0.006553253459 | J11: =IF(取引額表!J$54=0,0,取引額表!J11/取引額表!J$54) -> 0 | K11: =IF(取引額表!K$54=0,0,取引額表!K11/取引額表!K$54) -> 0 | L11: =IF(取引額表!L$54=0,0,取引額表!L11/取引額表!L$54) -> 0.001004761697 | M11: =IF(取引額表!M$54=0,0,取引額表!M11/取引額表!M$54) -> 0 | N11: =IF(取引額表!N$54=0,0,取引額表!N11/取引額表!N$54) -> 0 | O11: =IF(取引額表!O$54=0,0,取引額表!O11/取引額表!O$54) -> 0 | P11: =IF(取引額表!P$54=0,0,取引額表!P11/取引額表!P$54) -> 0 | Q11: =IF(取引額表!Q$54=0,0,取引額表!Q11/取引額表!Q$54) -> 0 | R11: =IF(取引額表!R$54=0,0,取引額表!R11/取引額表!R$54) -> 0 | S11: =IF(取引額表!S$54=0,0,取引額表!S11/取引額表!S$54) -> 0 | T11: =IF(取引額表!T$54=0,0,取引額表!T11/取引額表!T$54) -> 0 | U11: =IF(取引額表!U$54=0,0,取引額表!U11/取引額表!U$54) -> 0 | V11: =IF(取引額表!V$54=0,0,取引額表!V11/取引額表!V$54) -> 0 | W11: =IF(取引額表!W$54=0,0,取引額表!W11/取引額表!W$54) -> 0.0006906077348 | X11: =IF(取引額表!X$54=0,0,取引額表!X11/取引額表!X$54) -> 3.100169579e-06 | Y11: =IF(取引額表!Y$54=0,0,取引額表!Y11/取引額表!Y$54) -> 0 | Z11: =IF(取引額表!Z$54=0,0,取引額表!Z11/取引額表!Z$54) -> 0 | AA11: =IF(取引額表!AA$54=0,0,取引額表!AA11/取引額表!AA$54) -> 0 | AB11: =IF(取引額表!AB$54=0,0,取引額表!AB11/取引額表!AB$54) -> 0.0001132420261 | AC11: =IF(取引額表!AC$54=0,0,取引額表!AC11/取引額表!AC$54) -> 0 | AD11: =IF(取引額表!AD$54=0,0,取引額表!AD11/取引額表!AD$54) -> 0 | AE11: =IF(取引額表!AE$54=0,0,取引額表!AE11/取引額表!AE$54) -> 0.0007104665833 | AF11: =IF(取引額表!AF$54=0,0,取引額表!AF11/取引額表!AF$54) -> 0 | AG11: =IF(取引額表!AG$54=0,0,取引額表!AG11/取引額表!AG$54) -> 0.0002206015935 | AH11: =IF(取引額表!AH$54=0,0,取引額表!AH11/取引額表!AH$54) -> 0.001182605839 | AI11: =IF(取引額表!AI$54=0,0,取引額表!AI11/取引額表!AI$54) -> 0.007882995328 | AJ11: =IF(取引額表!AJ$54=0,0,取引額表!AJ11/取引額表!AJ$54) -> 0.003213281564 | AK11: =IF(取引額表!AK$54=0,0,取引額表!AK11/取引額表!AK$54) -> 4.911752186e-06 | AL11: =IF(取引額表!AL$54=0,0,取引額表!AL11/取引額表!AL$54) -> 0.1403249827 | AM11: =IF(取引額表!AM$54=0,0,取引額表!AM11/取引額表!AM$54) -> 0 | AN11: =IF(取引額表!AN$54=0,0,取引額表!AN11/取引額表!AN$54) -> 0.001288407137 | AO11: =IF(取引額表!AO$54=0,0,取引額表!AO11/取引額表!AO$54) -> 0.01730026272 | AP11: =IF(取引額表!AP$46=0,0,取引額表!AP11/取引額表!AP$46) -> 0.06165561553 | AQ11: =IF(取引額表!AQ$46=0,0,取引額表!AQ11/取引額表!AQ$46) -> 0.08499780745 | AR11: =IF(取引額表!AR$46=0,0,取引額表!AR11/取引額表!AR$46) -> 0.001965506544 | AS11: =IF(取引額表!AS$46=0,0,取引額表!AS11/取引額表!AS$46) -> 0 | AT11: =IF(取引額表!AT$46=0,0,取引額表!AT11/取引額表!AT$46) -> 0 | AU11: =IF(取引額表!AU$46=0,0,取引額表!AU11/取引額表!AU$46) -> 0.9316189363 | AV11: =IF(取引額表!AV$46=0,0,取引額表!AV11/取引額表!AV$46) -> 0.01530479896 | AW11: =IF(取引額表!AW$46=0,0,取引額表!AW11/取引額表!AW$46) -> 0.0555496318 | AX11: =IF(取引額表!AX$46=0,0,取引額表!AX11/取引額表!AX$46) -> 0.04720409981 | AY11: =IF(取引額表!AY$46=0,0,取引額表!AY11/取引額表!AY$46) -> 0.006042743664 | AZ11: =IF(取引額表!AZ$46=0,0,取引額表!AZ11/取引額表!AZ$46) -> 0.1089949664 | BA11: =IF(取引額表!BA$46=0,0,取引額表!BA11/取引額表!BA$46) -> 0.09301348078 | BB11: =IF(取引額表!BB$46=0,0,取引額表!BB11/取引額表!BB$46) -> 0.06784607942 | BC11: =IF(取引額表!BC$46=0,0,取引額表!BC11/取引額表!BC$46) -> 0.05712408069 | BD11: =IF(取引額表!BD$46=0,0,取引額表!BD11/取引額表!BD$46) -> 0.09737943499 | BE11: =IF(取引額表!BE$46=0,0,取引額表!BE11/取引額表!BE$46) -> 0.09705388505 | BF11: =IF(取引額表!BF$46=0,0,取引額表!BF11/取引額表!BF$46) -> 0.09712502733 | BG11: =IF(取引額表!BG$46=0,0,取引額表!BG11/取引額表!BG$46) -> 0.04551593836 | BH11: =IF(取引額表!BH$46=0,0,取引額表!BH11/取引額表!BH$46) -> 0.04114316
B12: 15 | C12: 繊維製品 | D12: =IF(取引額表!D$54=0,0,取引額表!D12/取引額表!D$54) -> 0.00293255132 | E12: =IF(取引額表!E$54=0,0,取引額表!E12/取引額表!E$54) -> 0.005060728745 | F12: =IF(取引額表!F$54=0,0,取引額表!F12/取引額表!F$54) -> 0.001102937201 | G12: =IF(取引額表!G$54=0,0,取引額表!G12/取引額表!G$54) -> 0.2551293488 | H12: =IF(取引額表!H$54=0,0,取引額表!H12/取引額表!H$54) -> 0.005333728424 | I12: =IF(取引額表!I$54=0,0,取引額表!I12/取引額表!I$54) -> 0.000529555835 | J12: =IF(取引額表!J$54=0,0,取引額表!J12/取引額表!J$54) -> 0.0001670156866 | K12: =IF(取引額表!K$54=0,0,取引額表!K12/取引額表!K$54) -> 0.002467729689 | L12: =IF(取引額表!L$54=0,0,取引額表!L12/取引額表!L$54) -> 0.002839543926 | M12: =IF(取引額表!M$54=0,0,取引額表!M12/取引額表!M$54) -> 0.0004961770455 | N12: =IF(取引額表!N$54=0,0,取引額表!N12/取引額表!N$54) -> 0.0005834924676 | O12: =IF(取引額表!O$54=0,0,取引額表!O12/取引額表!O$54) -> 0.001485658844 | P12: =IF(取引額表!P$54=0,0,取引額表!P12/取引額表!P$54) -> 0.0009012256669 | Q12: =IF(取引額表!Q$54=0,0,取引額表!Q12/取引額表!Q$54) -> 0.0007861159823 | R12: =IF(取引額表!R$54=0,0,取引額表!R12/取引額表!R$54) -> 0.001367365542 | S12: =IF(取引額表!S$54=0,0,取引額表!S12/取引額表!S$54) -> 0.004275788348 | T12: =IF(取引額表!T$54=0,0,取引額表!T12/取引額表!T$54) -> 0.001645851486 | U12: =IF(取引額表!U$54=0,0,取引額表!U12/取引額表!U$54) -> 0.001264222503 | V12: =IF(取引額表!V$54=0,0,取引額表!V12/取引額表!V$54) -> 0 | W12: =IF(取引額表!W$54=0,0,取引額表!W12/取引額表!W$54) -> 0.002035475429 | X12: =IF(取引額表!X$54=0,0,取引額表!X12/取引額表!X$54) -> 0.003369884333 | Y12: =IF(取引額表!Y$54=0,0,取引額表!Y12/取引額表!Y$54) -> 0.0002515755727 | Z12: =IF(取引額表!Z$54=0,0,取引額表!Z12/取引額表!Z$54) -> 0.0006358812437 | AA12: =IF(取引額表!AA$54=0,0,取引額表!AA12/取引額表!AA$54) -> 0.002309711286 | AB12: =IF(取引額表!AB$54=0,0,取引額表!AB12/取引額表!AB$54) -> 0.003426734736 | AC12: =IF(取引額表!AC$54=0,0,取引額表!AC12/取引額表!AC$54) -> 0.001140299767 | AD12: =IF(取引額表!AD$54=0,0,取引額表!AD12/取引額表!AD$54) -> 2.819635945e-05 | AE12: =IF(取引額表!AE$54=0,0,取引額表!AE12/取引額表!AE$54) -> 0.003298967995 | AF12: =IF(取引額表!AF$54=0,0,取引額表!AF12/取引額表!AF$54) -> 0.0007957425241 | AG12: =IF(取引額表!AG$54=0,0,取引額表!AG12/取引額表!AG$54) -> 0.003650740097 | AH12: =IF(取引額表!AH$54=0,0,取引額表!AH12/取引額表!AH$54) -> 0.0006898534062 | AI12: =IF(取引額表!AI$54=0,0,取引額表!AI12/取引額表!AI$54) -> 0.003129549145 | AJ12: =IF(取引額表!AJ$54=0,0,取引額表!AJ12/取引額表!AJ$54) -> 0.01372339001 | AK12: =IF(取引額表!AK$54=0,0,取引額表!AK12/取引額表!AK$54) -> 0.001876289335 | AL12: =IF(取引額表!AL$54=0,0,取引額表!AL12/取引額表!AL$54) -> 0.002919995844 | AM12: =IF(取引額表!AM$54=0,0,取引額表!AM12/取引額表!AM$54) -> 0.0193295816 | AN12: =IF(取引額表!AN$54=0,0,取引額表!AN12/取引額表!AN$54) -> 0.0006722124191 | AO12: =IF(取引額表!AO$54=0,0,取引額表!AO12/取引額表!AO$54) -> 0.001793778365 | AP12: =IF(取引額表!AP$46=0,0,取引額表!AP12/取引額表!AP$46) -> 0.007582559033 | AQ12: =IF(取引額表!AQ$46=0,0,取引額表!AQ12/取引額表!AQ$46) -> 0.01361183855 | AR12: =IF(取引額表!AR$46=0,0,取引額表!AR12/取引額表!AR$46) -> 0 | AS12: =IF(取引額表!AS$46=0,0,取引額表!AS12/取引額表!AS$46) -> 1.153795121e-05 | AT12: =IF(取引額表!AT$46=0,0,取引額表!AT12/取引額表!AT$46) -> 0.002993533004 | AU12: =IF(取引額表!AU$46=0,0,取引額表!AU12/取引額表!AU$46) -> -0.1075394506 | AV12: =IF(取引額表!AV$46=0,0,取引額表!AV12/取引額表!AV$46) -> 0.0002594033722 | AW12: =IF(取引額表!AW$46=0,0,取引額表!AW12/取引額表!AW$46) -> 0.008896710371 | AX12: =IF(取引額表!AX$46=0,0,取引額表!AX12/取引額表!AX$46) -> 0.006669055186 | AY12: =IF(取引額表!AY$46=0,0,取引額表!AY12/取引額表!AY$46) -> 0.0001386962552 | AZ12: =IF(取引額表!AZ$46=0,0,取引額表!AZ12/取引額表!AZ$46) -> 0.0005537502679 | BA12: =IF(取引額表!BA$46=0,0,取引額表!BA12/取引額表!BA$46) -> 0.0004893205784 | BB12: =IF(取引額表!BB$46=0,0,取引額表!BB12/取引額表!BB$46) -> 0.00613722273 | BC12: =IF(取引額表!BC$46=0,0,取引額表!BC12/取引額表!BC$46) -> 0.005330839131 | BD12: =IF(取引額表!BD$46=0,0,取引額表!BD12/取引額表!BD$46) -> 0.05565388431 | BE12: =IF(取引額表!BE$46=0,0,取引額表!BE12/取引額表!BE$46) -> 0.007800732907 | BF12: =IF(取引額表!BF$46=0,0,取引額表!BF12/取引額表!BF$46) -> 0.01825806047 | BG12: =IF(取引額表!BG$46=0,0,取引額表!BG12/取引額表!BG$46) -> -0.003106962455 | BH12: =IF(取引額表!BH$46=0,0,取引額表!BH12/取引額表!BH$46) -> 0.0001662388845
B13: 16 | C13: パルプ・紙・木製品 | D13: =IF(取引額表!D$54=0,0,取引額表!D13/取引額表!D$54) -> 0.03658706885 | E13: =IF(取引額表!E$54=0,0,取引額表!E13/取引額表!E$54) -> 0.002024291498 | F13: =IF(取引額表!F$54=0,0,取引額表!F13/取引額表!F$54) -> 0.006520305218 | G13: =IF(取引額表!G$54=0,0,取引額表!G13/取引額表!G$54) -> 0.006244424621 | H13: =IF(取引額表!H$54=0,0,取引額表!H13/取引額表!H$54) -> 0.2530557819 | I13: =IF(取引額表!I$54=0,0,取引額表!I13/取引額表!I$54) -> 0.005825114185 | J13: =IF(取引額表!J$54=0,0,取引額表!J13/取引額表!J$54) -> 0.0001027788841 | K13: =IF(取引額表!K$54=0,0,取引額表!K13/取引額表!K$54) -> 0.007498101746 | L13: =IF(取引額表!L$54=0,0,取引額表!L13/取引額表!L$54) -> 0.008693372941 | M13: =IF(取引額表!M$54=0,0,取引額表!M13/取引額表!M$54) -> 0.000476534925 | N13: =IF(取引額表!N$54=0,0,取引額表!N13/取引額表!N$54) -> 0.003394865266 | O13: =IF(取引額表!O$54=0,0,取引額表!O13/取引額表!O$54) -> 0.003517069917 | P13: =IF(取引額表!P$54=0,0,取引額表!P13/取引額表!P$54) -> 0.0005407354001 | Q13: =IF(取引額表!Q$54=0,0,取引額表!Q13/取引額表!Q$54) -> 0.0006530809699 | R13: =IF(取引額表!R$54=0,0,取引額表!R13/取引額表!R$54) -> 0.01154664236 | S13: =IF(取引額表!S$54=0,0,取引額表!S13/取引額表!S$54) -> 0.004097630501 | T13: =IF(取引額表!T$54=0,0,取引額表!T13/取引額表!T$54) -> 0.01219866396 | U13: =IF(取引額表!U$54=0,0,取引額表!U13/取引額表!U$54) -> 0.005899705015 | V13: =IF(取引額表!V$54=0,0,取引額表!V13/取引額表!V$54) -> 0.00181598063 | W13: =IF(取引額表!W$54=0,0,取引額表!W13/取引額表!W$54) -> 0.07196859552 | X13: =IF(取引額表!X$54=0,0,取引額表!X13/取引額表!X$54) -> 0.05269668251 | Y13: =IF(取引額表!Y$54=0,0,取引額表!Y13/取引額表!Y$54) -> 0.0009482463892 | Z13: =IF(取引額表!Z$54=0,0,取引額表!Z13/取引額表!Z$54) -> 0.001666447397 | AA13: =IF(取引額表!AA$54=0,0,取引額表!AA13/取引額表!AA$54) -> 0.004181977253 | AB13: =IF(取引額表!AB$54=0,0,取引額表!AB13/取引額表!AB$54) -> 0.006301220687 | AC13: =IF(取引額表!AC$54=0,0,取引額表!AC13/取引額表!AC$54) -> 0.002959774943 | AD13: =IF(取引額表!AD$54=0,0,取引額表!AD13/取引額表!AD$54) -> 0.000396091716 | AE13: =IF(取引額表!AE$54=0,0,取引額表!AE13/取引額表!AE$54) -> 0.004560568582 | AF13: =IF(取引額表!AF$54=0,0,取引額表!AF13/取引額表!AF$54) -> 0.007927014698 | AG13: =IF(取引額表!AG$54=0,0,取引額表!AG13/取引額表!AG$54) -> 0.001159239746 | AH13: =IF(取引額表!AH$54=0,0,取引額表!AH13/取引額表!AH$54) -> 0.005243707141 | AI13: =IF(取引額表!AI$54=0,0,取引額表!AI13/取引額表!AI$54) -> 0.004792861159 | AJ13: =IF(取引額表!AJ$54=0,0,取引額表!AJ13/取引額表!AJ$54) -> 0.01208327755 | AK13: =IF(取引額表!AK$54=0,0,取引額表!AK13/取引額表!AK$54) -> 0.002660532434 | AL13: =IF(取引額表!AL$54=0,0,取引額表!AL13/取引額表!AL$54) -> 0.005211233458 | AM13: =IF(取引額表!AM$54=0,0,取引額表!AM13/取引額表!AM$54) -> 0.4898458527 | AN13: =IF(取引額表!AN$54=0,0,取引額表!AN13/取引額表!AN$54) -> 0.002156681511 | AO13: =IF(取引額表!AO$54=0,0,取引額表!AO13/取引額表!AO$54) -> 0.007129141958 | AP13: =IF(取引額表!AP$46=0,0,取引額表!AP13/取引額表!AP$46) -> 0.004954082792 | AQ13: =IF(取引額表!AQ$46=0,0,取引額表!AQ13/取引額表!AQ$46) -> 0.001246151534 | AR13: =IF(取引額表!AR$46=0,0,取引額表!AR13/取引額表!AR$46) -> 1.894464139e-05 | AS13: =IF(取引額表!AS$46=0,0,取引額表!AS13/取引額表!AS$46) -> 0.0002480659509 | AT13: =IF(取引額表!AT$46=0,0,取引額表!AT13/取引額表!AT$46) -> 0.003370463954 | AU13: =IF(取引額表!AU$46=0,0,取引額表!AU13/取引額表!AU$46) -> -0.02571595558 | AV13: =IF(取引額表!AV$46=0,0,取引額表!AV13/取引額表!AV$46) -> 0.001037613489 | AW13: =IF(取引額表!AW$46=0,0,取引額表!AW13/取引額表!AW$46) -> 0.00124845139 | AX13: =IF(取引額表!AX$46=0,0,取引額表!AX13/取引額表!AX$46) -> 0.007208297982 | AY13: =IF(取引額表!AY$46=0,0,取引額表!AY13/取引額表!AY$46) -> 0.003328710125 | AZ13: =IF(取引額表!AZ$46=0,0,取引額表!AZ13/取引額表!AZ$46) -> 0.006712773907 | BA13: =IF(取引額表!BA$46=0,0,取引額表!BA13/取引額表!BA$46) -> 0.006187458714 | BB13: =IF(取引額表!BB$46=0,0,取引額表!BB13/取引額表!BB$46) -> 0.002869540694 | BC13: =IF(取引額表!BC$46=0,0,取引額表!BC13/取引額表!BC$46) -> 0.006987236143 | BD13: =IF(取引額表!BD$46=0,0,取引額表!BD13/取引額表!BD$46) -> 0.01512073487 | BE13: =IF(取引額表!BE$46=0,0,取引額表!BE13/取引額表!BE$46) -> 0.02068099073 | BF13: =IF(取引額表!BF$46=0,0,取引額表!BF13/取引額表!BF$46) -> 0.01946591053 | BG13: =IF(取引額表!BG$46=0,0,取引額表!BG13/取引額表!BG$46) -> -0.009787993338 | BH13: =IF(取引額表!BH$46=0,0,取引額表!BH13/取引額表!BH$46) -> 0.002001836487
B14: 20 | C14: 化学製品 | D14: =IF(取引額表!D$54=0,0,取引額表!D14/取引額表!D$54) -> 0.07973746683 | E14: =IF(取引額表!E$54=0,0,取引額表!E14/取引額表!E$54) -> 0.01720647773 | F14: =IF(取引額表!F$54=0,0,取引額表!F14/取引額表!F$54) -> 0.005900353589 | G14: =IF(取引額表!G$54=0,0,取引額表!G14/取引額表!G$54) -> 0.06512042819 | H14: =IF(取引額表!H$54=0,0,取引額表!H14/取引額表!H$54) -> 0.02955774502 | I14: =IF(取引額表!I$54=0,0,取引額表!I14/取引額表!I$54) -> 0.3988217383 | J14: =IF(取引額表!J$54=0,0,取引額表!J14/取引額表!J$54) -> 0.001991340879 | K14: =IF(取引額表!K$54=0,0,取引額表!K14/取引額表!K$54) -> 0.196848899 | L14: =IF(取引額表!L$54=0,0,取引額表!L14/取引額表!L$54) -> 0.03468612118 | M14: =IF(取引額表!M$54=0,0,取引額表!M14/取引額表!M$54) -> 0.004489505557 | N14: =IF(取引額表!N$54=0,0,取引額表!N14/取引額表!N$54) -> 0.004667939741 | O14: =IF(取引額表!O$54=0,0,取引額表!O14/取引額表!O$54) -> 0.0115517555 | P14: =IF(取引額表!P$54=0,0,取引額表!P14/取引額表!P$54) -> 0.002703677001 | Q14: =IF(取引額表!Q$54=0,0,取引額表!Q14/取引額表!Q$54) -> 0.003458910322 | R14: =IF(取引額表!R$54=0,0,取引額表!R14/取引額表!R$54) -> 0.01656031601 | S14: =IF(取引額表!S$54=0,0,取引額表!S14/取引額表!S$54) -> 0.009442365936 | T14: =IF(取引額表!T$54=0,0,取引額表!T14/取引額表!T$54) -> 0.01239229354 | U14: =IF(取引額表!U$54=0,0,取引額表!U14/取引額表!U$54) -> 0.009060261273 | V14: =IF(取引額表!V$54=0,0,取引額表!V14/取引額表!V$54) -> 0.0102905569 | W14: =IF(取引額表!W$54=0,0,取引額表!W14/取引額表!W$54) -> 0.02235388194 | X14: =IF(取引額表!X$54=0,0,取引額表!X14/取引額表!X$54) -> 0.005040875736 | Y14: =IF(取引額表!Y$54=0,0,取引額表!Y14/取引額表!Y$54) -> 0.00236093999 | Z14: =IF(取引額表!Z$54=0,0,取引額表!Z14/取引額表!Z$54) -> 0.008441871684 | AA14: =IF(取引額表!AA$54=0,0,取引額表!AA14/取引額表!AA$54) -> 0.01553805774 | AB14: =IF(取引額表!AB$54=0,0,取引額表!AB14/取引額表!AB$54) -> 9.307563792e-06 | AC14: =IF(取引額表!AC$54=0,0,取引額表!AC14/取引額表!AC$54) -> 1.787303709e-05 | AD14: =IF(取引額表!AD$54=0,0,取引額表!AD14/取引額表!AD$54) -> 1.745488918e-05 | AE14: =IF(取引額表!AE$54=0,0,取引額表!AE14/取引額表!AE$54) -> 0.0003682933391 | AF14: =IF(取引額表!AF$54=0,0,取引額表!AF14/取引額表!AF$54) -> 0.0007171819564 | AG14: =IF(取引額表!AG$54=0,0,取引額表!AG14/取引額表!AG$54) -> 0.0007007344735 | AH14: =IF(取引額表!AH$54=0,0,取引額表!AH14/取引額表!AH$54) -> 0.003671005626 | AI14: =IF(取引額表!AI$54=0,0,取引額表!AI14/取引額表!AI$54) -> 0.1066122565 | AJ14: =IF(取引額表!AJ$54=0,0,取引額表!AJ14/取引額表!AJ$54) -> 0.00147275405 | AK14: =IF(取引額表!AK$54=0,0,取引額表!AK14/取引額表!AK$54) -> 0.002878286781 | AL14: =IF(取引額表!AL$54=0,0,取引額表!AL14/取引額表!AL$54) -> 0.006492727985 | AM14: =IF(取引額表!AM$54=0,0,取引額表!AM14/取引額表!AM$54) -> 0.01773917299 | AN14: =IF(取引額表!AN$54=0,0,取引額表!AN14/取引額表!AN$54) -> 0.01125955802 | AO14: =IF(取引額表!AO$54=0,0,取引額表!AO14/取引額表!AO$54) -> 0.01029702336 | AP14: =IF(取引額表!AP$46=0,0,取引額表!AP14/取引額表!AP$46) -> 0.0118660018 | AQ14: =IF(取引額表!AQ$46=0,0,取引額表!AQ14/取引額表!AQ$46) -> 0.008182205677 | AR14: =IF(取引額表!AR$46=0,0,取引額表!AR14/取引額表!AR$46) -> 0 | AS14: =IF(取引額表!AS$46=0,0,取引額表!AS14/取引額表!AS$46) -> 0 | AT14: =IF(取引額表!AT$46=0,0,取引額表!AT14/取引額表!AT$46) -> 0 | AU14: =IF(取引額表!AU$46=0,0,取引額表!AU14/取引額表!AU$46) -> 0.2142022209 | AV14: =IF(取引額表!AV$46=0,0,取引額表!AV14/取引額表!AV$46) -> 0.01556420233 | AW14: =IF(取引額表!AW$46=0,0,取引額表!AW14/取引額表!AW$46) -> 0.00555515444 | AX14: =IF(取引額表!AX$46=0,0,取引額表!AX14/取引額表!AX$46) -> 0.01253391231 | AY14: =IF(取引額表!AY$46=0,0,取引額表!AY14/取引額表!AY$46) -> 0.006477745555 | AZ14: =IF(取引額表!AZ$46=0,0,取引額表!AZ14/取引額表!AZ$46) -> 0.005953973853 | BA14: =IF(取引額表!BA$46=0,0,取引額表!BA14/取引額表!BA$46) -> 0.006035280014 | BB14: =IF(取引額表!BB$46=0,0,取引額表!BB14/取引額表!BB$46) -> 0.005712742065 | BC14: =IF(取引額表!BC$46=0,0,取引額表!BC14/取引額表!BC$46) -> 0.01112663924 | BD14: =IF(取引額表!BD$46=0,0,取引額表!BD14/取引額表!BD$46) -> 0.037501189 | BE14: =IF(取引額表!BE$46=0,0,取引額表!BE14/取引額表!BE$46) -> 0.03221418173 | BF14: =IF(取引額表!BF$46=0,0,取引額表!BF14/取引額表!BF$46) -> 0.03336954904 | BG14: =IF(取引額表!BG$46=0,0,取引額表!BG14/取引額表!BG$46) -> -0.01538024266 | BH14: =IF(取引額表!BH$46=0,0,取引額表!BH14/取引額表!BH$46) -> 0.002240295119
B15: 21 | C15: 石油・石炭製品 | D15: =IF(取引額表!D$54=0,0,取引額表!D15/取引額表!D$54) -> 0.007261555649 | E15: =IF(取引額表!E$54=0,0,取引額表!E15/取引額表!E$54) -> 0.04453441296 | F15: =IF(取引額表!F$54=0,0,取引額表!F15/取引額表!F$54) -> 0.006203120663 | G15: =IF(取引額表!G$54=0,0,取引額表!G15/取引額表!G$54) -> 0 | H15: =IF(取引額表!H$54=0,0,取引額表!H15/取引額表!H$54) -> 0.002370545966 | I15: =IF(取引額表!I$54=0,0,取引額表!I15/取引額表!I$54) -> 0.01429800755 | J15: =IF(取引額表!J$54=0,0,取引額表!J15/取引額表!J$54) -> 0.06588126469 | K15: =IF(取引額表!K$54=0,0,取引額表!K15/取引額表!K$54) -> 0.001708428246 | L15: =IF(取引額表!L$54=0,0,取引額表!L15/取引額表!L$54) -> 0.02581800708 | M15: =IF(取引額表!M$54=0,0,取引額表!M15/取引額表!M$54) -> 0.04678923919 | N15: =IF(取引額表!N$54=0,0,取引額表!N15/取引額表!N$54) -> 0.003129641417 | O15: =IF(取引額表!O$54=0,0,取引額表!O15/取引額表!O$54) -> 0.004184100418 | P15: =IF(取引額表!P$54=0,0,取引額表!P15/取引額表!P$54) -> 0.0003604902668 | Q15: =IF(取引額表!Q$54=0,0,取引額表!Q15/取引額表!Q$54) -> 0.001100562375 | R15: =IF(取引額表!R$54=0,0,取引額表!R15/取引額表!R$54) -> 0.002886660589 | S15: =IF(取引額表!S$54=0,0,取引額表!S15/取引額表!S$54) -> 0.001603420631 | T15: =IF(取引額表!T$54=0,0,取引額表!T15/取引額表!T$54) -> 0.001549036693 | U15: =IF(取引額表!U$54=0,0,取引額表!U15/取引額表!U$54) -> 0 | V15: =IF(取引額表!V$54=0,0,取引額表!V15/取引額表!V$54) -> 0.001210653753 | W15: =IF(取引額表!W$54=0,0,取引額表!W15/取引額表!W$54) -> 0.003307647572 | X15: =IF(取引額表!X$54=0,0,取引額表!X15/取引額表!X$54) -> 0.00722339512 | Y15: =IF(取引額表!Y$54=0,0,取引額表!Y15/取引額表!Y$54) -> 0.07049921625 | Z15: =IF(取引額表!Z$54=0,0,取引額表!Z15/取引額表!Z$54) -> 0.01427443757 | AA15: =IF(取引額表!AA$54=0,0,取引額表!AA15/取引額表!AA$54) -> 0.01499562555 | AB15: =IF(取引額表!AB$54=0,0,取引額表!AB15/取引額表!AB$54) -> 0.001931319487 | AC15: =IF(取引額表!AC$54=0,0,取引額表!AC15/取引額表!AC$54) -> 0.0003860576012 | AD15: =IF(取引額表!AD$54=0,0,取引額表!AD15/取引額表!AD$54) -> 0.0006270333268 | AE15: =IF(取引額表!AE$54=0,0,取引額表!AE15/取引額表!AE$54) -> 0.05129464251 | AF15: =IF(取引額表!AF$54=0,0,取引額表!AF15/取引額表!AF$54) -> 0.0008134820071 | AG15: =IF(取引額表!AG$54=0,0,取引額表!AG15/取引額表!AG$54) -> 0.00585243051 | AH15: =IF(取引額表!AH$54=0,0,取引額表!AH15/取引額表!AH$54) -> 0.007432349197 | AI15: =IF(取引額表!AI$54=0,0,取引額表!AI15/取引額表!AI$54) -> 0.003450124289 | AJ15: =IF(取引額表!AJ$54=0,0,取引額表!AJ15/取引額表!AJ$54) -> 0.003681885125 | AK15: =IF(取引額表!AK$54=0,0,取引額表!AK15/取引額表!AK$54) -> 0.00242804283 | AL15: =IF(取引額表!AL$54=0,0,取引額表!AL15/取引額表!AL$54) -> 0.0064314507 | AM15: =IF(取引額表!AM$54=0,0,取引額表!AM15/取引額表!AM$54) -> 0 | AN15: =IF(取引額表!AN$54=0,0,取引額表!AN15/取引額表!AN$54) -> 0.03108982438 | AO15: =IF(取引額表!AO$54=0,0,取引額表!AO15/取引額表!AO$54) -> 0.01619501882 | AP15: =IF(取引額表!AP$46=0,0,取引額表!AP15/取引額表!AP$46) -> 0.001741500719 | AQ15: =IF(取引額表!AQ$46=0,0,取引額表!AQ15/取引額表!AQ$46) -> 0.0169884454 | AR15: =IF(取引額表!AR$46=0,0,取引額表!AR15/取引額表!AR$46) -> 4.262544313e-05 | AS15: =IF(取引額表!AS$46=0,0,取引額表!AS15/取引額表!AS$46) -> 0 | AT15: =IF(取引額表!AT$46=0,0,取引額表!AT15/取引額表!AT$46) -> 0 | AU15: =IF(取引額表!AU$46=0,0,取引額表!AU15/取引額表!AU$46) -> 0.07773232028 | AV15: =IF(取引額表!AV$46=0,0,取引額表!AV15/取引額表!AV$46) -> 0.0168612192 | AW15: =IF(取引額表!AW$46=0,0,取引額表!AW15/取引額表!AW$46) -> 0.01072205054 | AX15: =IF(取引額表!AX$46=0,0,取引額表!AX15/取引額表!AX$46) -> 0.02083611442 | AY15: =IF(取引額表!AY$46=0,0,取引額表!AY15/取引額表!AY$46) -> 0.005541545833 | AZ15: =IF(取引額表!AZ$46=0,0,取引額表!AZ15/取引額表!AZ$46) -> 0.036533616 | BA15: =IF(取引額表!BA$46=0,0,取引額表!BA15/取引額表!BA$46) -> 0.0317226531 | BB15: =IF(取引額表!BB$46=0,0,取引額表!BB15/取引額表!BB$46) -> 0.01761490369 | BC15: =IF(取引額表!BC$46=0,0,取引額表!BC15/取引額表!BC$46) -> 0.02319358473 | BD15: =IF(取引額表!BD$46=0,0,取引額表!BD15/取引額表!BD$46) -> 0.01549612045 | BE15: =IF(取引額表!BE$46=0,0,取引額表!BE15/取引額表!BE$46) -> 0.06266330692 | BF15: =IF(取引額表!BF$46=0,0,取引額表!BF15/取引額表!BF$46) -> 0.05235588296 | BG15: =IF(取引額表!BG$46=0,0,取引額表!BG15/取引額表!BG$46) -> -0.008880958467 | BH15: =IF(取引額表!BH$46=0,0,取引額表!BH15/取引額表!BH$46) -> 0.01154285108
B16: 22 | C16: プラスチック・ゴム | D16: =IF(取引額表!D$54=0,0,取引額表!D16/取引額表!D$54) -> 0.008797653959 | E16: =IF(取引額表!E$54=0,0,取引額表!E16/取引額表!E$54) -> 0.003036437247 | F16: =IF(取引額表!F$54=0,0,取引額表!F16/取引額表!F$54) -> 0.00873338836 | G16: =IF(取引額表!G$54=0,0,取引額表!G16/取引額表!G$54) -> 0.01962533452 | H16: =IF(取引額表!H$54=0,0,取引額表!H16/取引額表!H$54) -> 0.02207570931 | I16: =IF(取引額表!I$54=0,0,取引額表!I16/取引額表!I$54) -> 0.00966439399 | J16: =IF(取引額表!J$54=0,0,取引額表!J16/取引額表!J$54) -> 6.423680255e-05 | K16: =IF(取引額表!K$54=0,0,取引額表!K16/取引額表!K$54) -> 0.2375664389 | L16: =IF(取引額表!L$54=0,0,取引額表!L16/取引額表!L$54) -> 0.00375693504 | M16: =IF(取引額表!M$54=0,0,取引額表!M16/取引額表!M$54) -> 0.0007387145342 | N16: =IF(取引額表!N$54=0,0,取引額表!N16/取引額表!N$54) -> 0.001432208784 | O16: =IF(取引額表!O$54=0,0,取引額表!O16/取引額表!O$54) -> 0.003517069917 | P16: =IF(取引額表!P$54=0,0,取引額表!P16/取引額表!P$54) -> 0.01171593367 | Q16: =IF(取引額表!Q$54=0,0,取引額表!Q16/取引額表!Q$54) -> 0.03513333736 | R16: =IF(取引額表!R$54=0,0,取引額表!R16/取引額表!R$54) -> 0.0677605591 | S16: =IF(取引額表!S$54=0,0,取引額表!S16/取引額表!S$54) -> 0.01835025833 | T16: =IF(取引額表!T$54=0,0,取引額表!T16/取引額表!T$54) -> 0.03930680608 | U16: =IF(取引額表!U$54=0,0,取引額表!U16/取引額表!U$54) -> 0.02064896755 | V16: =IF(取引額表!V$54=0,0,取引額表!V16/取引額表!V$54) -> 0.02663438257 | W16: =IF(取引額表!W$54=0,0,取引額表!W16/取引額表!W$54) -> 0.03783803431 | X16: =IF(取引額表!X$54=0,0,取引額表!X16/取引額表!X$54) -> 0.01279129968 | Y16: =IF(取引額表!Y$54=0,0,取引額表!Y16/取引額表!Y$54) -> 0 | Z16: =IF(取引額表!Z$54=0,0,取引額表!Z16/取引額表!Z$54) -> 0.02598342323 | AA16: =IF(取引額表!AA$54=0,0,取引額表!AA16/取引額表!AA$54) -> 0.01105861767 | AB16: =IF(取引額表!AB$54=0,0,取引額表!AB16/取引額表!AB$54) -> 0.003963470915 | AC16: =IF(取引額表!AC$54=0,0,取引額表!AC16/取引額表!AC$54) -> 0.002023227799 | AD16: =IF(取引額表!AD$54=0,0,取引額表!AD16/取引額表!AD$54) -> 0.0005088771538 | AE16: =IF(取引額表!AE$54=0,0,取引額表!AE16/取引額表!AE$54) -> 0.002170579892 | AF16: =IF(取引額表!AF$54=0,0,取引額表!AF16/取引額表!AF$54) -> 0.003302078054 | AG16: =IF(取引額表!AG$54=0,0,取引額表!AG16/取引額表!AG$54) -> 0.001206820482 | AH16: =IF(取引額表!AH$54=0,0,取引額表!AH16/取引額表!AH$54) -> 0.002849751571 | AI16: =IF(取引額表!AI$54=0,0,取引額表!AI16/取引額表!AI$54) -> 0.001941844516 | AJ16: =IF(取引額表!AJ$54=0,0,取引額表!AJ16/取引額表!AJ$54) -> 0.003949658589 | AK16: =IF(取引額表!AK$54=0,0,取引額表!AK16/取引額表!AK$54) -> 0.007763842955 | AL16: =IF(取引額表!AL$54=0,0,取引額表!AL16/取引額表!AL$54) -> 0.002110069989 | AM16: =IF(取引額表!AM$54=0,0,取引額表!AM16/取引額表!AM$54) -> 0.05554196232 | AN16: =IF(取引額表!AN$54=0,0,取引額表!AN16/取引額表!AN$54) -> 0.007926504776 | AO16: =IF(取引額表!AO$54=0,0,取引額表!AO16/取引額表!AO$54) -> 0.00465735808 | AP16: =IF(取引額表!AP$46=0,0,取引額表!AP16/取引額表!AP$46) -> 0.001741500719 | AQ16: =IF(取引額表!AQ$46=0,0,取引額表!AQ16/取引額表!AQ$46) -> 0.00241219059 | AR16: =IF(取引額表!AR$46=0,0,取引額表!AR16/取引額表!AR$46) -> 0 | AS16: =IF(取引額表!AS$46=0,0,取引額表!AS16/取引額表!AS$46) -> 0 | AT16: =IF(取引額表!AT$46=0,0,取引額表!AT16/取引額表!AT$46) -> -6.574377023e-06 | AU16: =IF(取引額表!AU$46=0,0,取引額表!AU16/取引額表!AU$46) -> -0.1931618936 | AV16: =IF(取引額表!AV$46=0,0,取引額表!AV16/取引額表!AV$46) -> 0.01037613489 | AW16: =IF(取引額表!AW$46=0,0,取引額表!AW16/取引額表!AW$46) -> 0.001393809192 | AX16: =IF(取引額表!AX$46=0,0,取引額表!AX16/取引額表!AX$46) -> 0.005036178769 | AY16: =IF(取引額表!AY$46=0,0,取引額表!AY16/取引額表!AY$46) -> 0.004359475476 | AZ16: =IF(取引額表!AZ$46=0,0,取引額表!AZ16/取引額表!AZ$46) -> 0.004290406103 | BA16: =IF(取引額表!BA$46=0,0,取引額表!BA16/取引額表!BA$46) -> 0.004301127884 | BB16: =IF(取引額表!BB$46=0,0,取引額表!BB16/取引額表!BB$46) -> 0.002348054231 | BC16: =IF(取引額表!BC$46=0,0,取引額表!BC16/取引額表!BC$46) -> 0.004877004151 | BD16: =IF(取引額表!BD$46=0,0,取引額表!BD16/取引額表!BD$46) -> 0.01653055401 | BE16: =IF(取引額表!BE$46=0,0,取引額表!BE16/取引額表!BE$46) -> 0.01223474872 | BF16: =IF(取引額表!BF$46=0,0,取引額表!BF16/取引額表!BF$46) -> 0.01317350911 | BG16: =IF(取引額表!BG$46=0,0,取引額表!BG16/取引額表!BG$46) -> -0.005908182819 | BH16: =IF(取引額表!BH$46=0,0,取引額表!BH16/取引額表!BH$46) -> 0.001562437901
B17: 25 | C17: 窯業・土石製品 | D17: =IF(取引額表!D$54=0,0,取引額表!D17/取引額表!D$54) -> 0.003770423125 | E17: =IF(取引額表!E$54=0,0,取引額表!E17/取引額表!E$54) -> 0 | F17: =IF(取引額表!F$54=0,0,取引額表!F17/取引額表!F$54) -> 0.000464963722 | G17: =IF(取引額表!G$54=0,0,取引額表!G17/取引額表!G$54) -> 0.0008920606601 | H17: =IF(取引額表!H$54=0,0,取引額表!H17/取引額表!H$54) -> 0.008815467812 | I17: =IF(取引額表!I$54=0,0,取引額表!I17/取引額表!I$54) -> 0.007612365129 | J17: =IF(取引額表!J$54=0,0,取引額表!J17/取引額表!J$54) -> 0.001734393669 | K17: =IF(取引額表!K$54=0,0,取引額表!K17/取引額表!K$54) -> 0.004460895976 | L17: =IF(取引額表!L$54=0,0,取引額表!L17/取引額表!L$54) -> 0.08876851164 | M17: =IF(取引額表!M$54=0,0,取引額表!M17/取引額表!M$54) -> 0.003790075263 | N17: =IF(取引額表!N$54=0,0,取引額表!N17/取引額表!N$54) -> 0.001379164014 | O17: =IF(取引額表!O$54=0,0,取引額表!O17/取引額表!O$54) -> 0.007125098539 | P17: =IF(取引額表!P$54=0,0,取引額表!P17/取引額表!P$54) -> 0.009733237203 | Q17: =IF(取引額表!Q$54=0,0,取引額表!Q17/取引額表!Q$54) -> 0.003519380782 | R17: =IF(取引額表!R$54=0,0,取引額表!R17/取引額表!R$54) -> 0.006381039198 | S17: =IF(取引額表!S$54=0,0,取引額表!S17/取引額表!S$54) -> 0.02779262427 | T17: =IF(取引額表!T$54=0,0,取引額表!T17/取引額表!T$54) -> 0.008326072224 | U17: =IF(取引額表!U$54=0,0,取引額表!U17/取引額表!U$54) -> 0.002107037505 | V17: =IF(取引額表!V$54=0,0,取引額表!V17/取引額表!V$54) -> 0.00181598063 | W17: =IF(取引額表!W$54=0,0,取引額表!W17/取引額表!W$54) -> 0.003671125327 | X17: =IF(取引額表!X$54=0,0,取引額表!X17/取引額表!X$54) -> 0.05155271993 | Y17: =IF(取引額表!Y$54=0,0,取引額表!Y17/取引額表!Y$54) -> 8.385852422e-05 | Z17: =IF(取引額表!Z$54=0,0,取引額表!Z17/取引額表!Z$54) -> 0.004604657282 | AA17: =IF(取引額表!AA$54=0,0,取引額表!AA17/取引額表!AA$54) -> 0.0005774278215 | AB17: =IF(取引額表!AB$54=0,0,取引額表!AB17/取引額表!AB$54) -> 0.0001892537971 | AC17: =IF(取引額表!AC$54=0,0,取引額表!AC17/取引額表!AC$54) -> 1.072382226e-05 | AD17: =IF(取引額表!AD$54=0,0,取引額表!AD17/取引額表!AD$54) -> 4.565124863e-05 | AE17: =IF(取引額表!AE$54=0,0,取引額表!AE17/取引額表!AE$54) -> 5.485219944e-05 | AF17: =IF(取引額表!AF$54=0,0,取引額表!AF17/取引額表!AF$54) -> 2.53421186e-06 | AG17: =IF(取引額表!AG$54=0,0,取引額表!AG17/取引額表!AG$54) -> 0.0002032995078 | AH17: =IF(取引額表!AH$54=0,0,取引額表!AH17/取引額表!AH$54) -> 0.002024391245 | AI17: =IF(取引額表!AI$54=0,0,取引額表!AI17/取引額表!AI$54) -> 0.0007357462306 | AJ17: =IF(取引額表!AJ$54=0,0,取引額表!AJ17/取引額表!AJ$54) -> 0.0001673584148 | AK17: =IF(取引額表!AK$54=0,0,取引額表!AK17/取引額表!AK$54) -> 0.0008906643963 | AL17: =IF(取引額表!AL$54=0,0,取引額表!AL17/取引額表!AL$54) -> 0.001198903403 | AM17: =IF(取引額表!AM$54=0,0,取引額表!AM17/取引額表!AM$54) -> 0.008686077808 | AN17: =IF(取引額表!AN$54=0,0,取引額表!AN17/取引額表!AN$54) -> 0.007982522477 | AO17: =IF(取引額表!AO$54=0,0,取引額表!AO17/取引額表!AO$54) -> 0.004050682543 | AP17: =IF(取引額表!AP$46=0,0,取引額表!AP17/取引額表!AP$46) -> 0.001222295536 | AQ17: =IF(取引額表!AQ$46=0,0,取引額表!AQ17/取引額表!AQ$46) -> 0.0009789821652 | AR17: =IF(取引額表!AR$46=0,0,取引額表!AR17/取引額表!AR$46) -> 0 | AS17: =IF(取引額表!AS$46=0,0,取引額表!AS17/取引額表!AS$46) -> 0 | AT17: =IF(取引額表!AT$46=0,0,取引額表!AT17/取引額表!AT$46) -> 0 | AU17: =IF(取引額表!AU$46=0,0,取引額表!AU17/取引額表!AU$46) -> -0.04295733489 | AV17: =IF(取引額表!AV$46=0,0,取引額表!AV17/取引額表!AV$46) -> 0.0373540856 | AW17: =IF(取引額表!AW$46=0,0,取引額表!AW17/取引額表!AW$46) -> 0.0006368966874 | AX17: =IF(取引額表!AX$46=0,0,取引額表!AX17/取引額表!AX$46) -> 0.004054667615 | AY17: =IF(取引額表!AY$46=0,0,取引額表!AY17/取引額表!AY$46) -> 0.008747320641 | AZ17: =IF(取引額表!AZ$46=0,0,取引額表!AZ17/取引額表!AZ$46) -> 0.004234220145 | BA17: =IF(取引額表!BA$46=0,0,取引額表!BA17/取引額表!BA$46) -> 0.004934798033 | BB17: =IF(取引額表!BB$46=0,0,取引額表!BB17/取引額表!BB$46) -> 0.002047561107 | BC17: =IF(取引額表!BC$46=0,0,取引額表!BC17/取引額表!BC$46) -> 0.004245259077 | BD17: =IF(取引額表!BD$46=0,0,取引額表!BD17/取引額表!BD$46) -> 0.006909812341 | BE17: =IF(取引額表!BE$46=0,0,取引額表!BE17/取引額表!BE$46) -> 0.006224721716 | BF17: =IF(取引額表!BF$46=0,0,取引額表!BF17/取引額表!BF$46) -> 0.006374434261 | BG17: =IF(取引額表!BG$46=0,0,取引額表!BG17/取引額表!BG$46) -> -0.001252410196 | BH17: =IF(取引額表!BH$46=0,0,取引額表!BH17/取引額表!BH$46) -> 0.003394624715
B18: 26 | C18: 鉄鋼 | D18: =IF(取引額表!D$54=0,0,取引額表!D18/取引額表!D$54) -> 0 | E18: =IF(取引額表!E$54=0,0,取引額表!E18/取引額表!E$54) -> 0 | F18: =IF(取引額表!F$54=0,0,取引額表!F18/取引額表!F$54) -> 0 | G18: =IF(取引額表!G$54=0,0,取引額表!G18/取引額表!G$54) -> 0 | H18: =IF(取引額表!H$54=0,0,取引額表!H18/取引額表!H$54) -> 0.02355730054 | I18: =IF(取引額表!I$54=0,0,取引額表!I18/取引額表!I$54) -> 0.0001323889588 | J18: =IF(取引額表!J$54=0,0,取引額表!J18/取引額表!J$54) -> 0 | K18: =IF(取引額表!K$54=0,0,取引額表!K18/取引額表!K$54) -> 0.0007593014427 | L18: =IF(取引額表!L$54=0,0,取引額表!L18/取引額表!L$54) -> 0.007339128915 | M18: =IF(取引額表!M$54=0,0,取引額表!M18/取引額表!M$54) -> 0.5238468154 | N18: =IF(取引額表!N$54=0,0,取引額表!N18/取引額表!N$54) -> 0 | O18: =IF(取引額表!O$54=0,0,取引額表!O18/取引額表!O$54) -> 0.2604147717 | P18: =IF(取引額表!P$54=0,0,取引額表!P18/取引額表!P$54) -> 0.07372025955 | Q18: =IF(取引額表!Q$54=0,0,取引額表!Q18/取引額表!Q$54) -> 0.07950656104 | R18: =IF(取引額表!R$54=0,0,取引額表!R18/取引額表!R$54) -> 0.01412944394 | S18: =IF(取引額表!S$54=0,0,取引額表!S18/取引額表!S$54) -> 0.00249420987 | T18: =IF(取引額表!T$54=0,0,取引額表!T18/取引額表!T$54) -> 0.03436925162 | U18: =IF(取引額表!U$54=0,0,取引額表!U18/取引額表!U$54) -> 0.005478297514 | V18: =IF(取引額表!V$54=0,0,取引額表!V18/取引額表!V$54) -> 0.05387409201 | W18: =IF(取引額表!W$54=0,0,取引額表!W18/取引額表!W$54) -> 0.00138121547 | X18: =IF(取引額表!X$54=0,0,取引額表!X18/取引額表!X$54) -> 0.009266406872 | Y18: =IF(取引額表!Y$54=0,0,取引額表!Y18/取引額表!Y$54) -> 0 | Z18: =IF(取引額表!Z$54=0,0,取引額表!Z18/取引額表!Z$54) -> 0.0002850502127 | AA18: =IF(取引額表!AA$54=0,0,取引額表!AA18/取引額表!AA$54) -> 0 | AB18: =IF(取引額表!AB$54=0,0,取引額表!AB18/取引額表!AB$54) -> 0 | AC18: =IF(取引額表!AC$54=0,0,取引額表!AC18/取引額表!AC$54) -> 0 | AD18: =IF(取引額表!AD$54=0,0,取引額表!AD18/取引額表!AD$54) -> 0 | AE18: =IF(取引額表!AE$54=0,0,取引額表!AE18/取引額表!AE$54) -> 7.574827542e-05 | AF18: =IF(取引額表!AF$54=0,0,取引額表!AF18/取引額表!AF$54) -> 0 | AG18: =IF(取引額表!AG$54=0,0,取引額表!AG18/取引額表!AG$54) -> 4.325521442e-06 | AH18: =IF(取引額表!AH$54=0,0,取引額表!AH18/取引額表!AH$54) -> 0 | AI18: =IF(取引額表!AI$54=0,0,取引額表!AI18/取引額表!AI$54) -> 0 | AJ18: =IF(取引額表!AJ$54=0,0,取引額表!AJ18/取引額表!AJ$54) -> 0 | AK18: =IF(取引額表!AK$54=0,0,取引額表!AK18/取引額表!AK$54) -> 0.0001571760699 | AL18: =IF(取引額表!AL$54=0,0,取引額表!AL18/取引額表!AL$54) -> 2.664229784e-05 | AM18: =IF(取引額表!AM$54=0,0,取引額表!AM18/取引額表!AM$54) -> 0 | AN18: =IF(取引額表!AN$54=0,0,取引額表!AN18/取引額表!AN$54) -> 0.007982522477 | AO18: =IF(取引額表!AO$54=0,0,取引額表!AO18/取引額表!AO$54) -> 0.09394587938 | AP18: =IF(取引額表!AP$46=0,0,取引額表!AP18/取引額表!AP$46) -> 0 | AQ18: =IF(取引額表!AQ$46=0,0,取引額表!AQ18/取引額表!AQ$46) -> -0.0001464256802 | AR18: =IF(取引額表!AR$46=0,0,取引額表!AR18/取引額表!AR$46) -> 0 | AS18: =IF(取引額表!AS$46=0,0,取引額表!AS18/取引額表!AS$46) -> -0.1081452167 | AT18: =IF(取引額表!AT$46=0,0,取引額表!AT18/取引額表!AT$46) -> -0.001768507419 | AU18: =IF(取引額表!AU$46=0,0,取引額表!AU18/取引額表!AU$46) -> 0.7907656341 | AV18: =IF(取引額表!AV$46=0,0,取引額表!AV18/取引額表!AV$46) -> 0.4894941634 | AW18: =IF(取引額表!AW$46=0,0,取引額表!AW18/取引額表!AW$46) -> -0.003667893761 | AX18: =IF(取引額表!AX$46=0,0,取引額表!AX18/取引額表!AX$46) -> 0.08360684318 | AY18: =IF(取引額表!AY$46=0,0,取引額表!AY18/取引額表!AY$46) -> 0.4015666372 | AZ18: =IF(取引額表!AZ$46=0,0,取引額表!AZ18/取引額表!AZ$46) -> 0.3068645339 | BA18: =IF(取引額表!BA$46=0,0,取引額表!BA18/取引額表!BA$46) -> 0.3215653365 | BB18: =IF(取引額表!BB$46=0,0,取引額表!BB18/取引額表!BB$46) -> 0.103080705 | BC18: =IF(取引額表!BC$46=0,0,取引額表!BC18/取引額表!BC$46) -> 0.1351365441 | BD18: =IF(取引額表!BD$46=0,0,取引額表!BD18/取引額表!BD$46) -> 0.01924827764 | BE18: =IF(取引額表!BE$46=0,0,取引額表!BE18/取引額表!BE$46) -> 0.04419576168 | BF18: =IF(取引額表!BF$46=0,0,取引額表!BF18/取引額表!BF$46) -> 0.03874399926 | BG18: =IF(取引額表!BG$46=0,0,取引額表!BG18/取引額表!BG$46) -> 0.1521483053 | BH18: =IF(取引額表!BH$46=0,0,取引額表!BH18/取引額表!BH$46) -> 0.1736466731
B19: 27 | C19: 非鉄金属 | D19: =IF(取引額表!D$54=0,0,取引額表!D19/取引額表!D$54) -> 0 | E19: =IF(取引額表!E$54=0,0,取引額表!E19/取引額表!E$54) -> 0 | F19: =IF(取引額表!F$54=0,0,取引額表!F19/取引額表!F$54) -> 0.0004469418723 | G19: =IF(取引額表!G$54=0,0,取引額表!G19/取引額表!G$54) -> 0 | H19: =IF(取引額表!H$54=0,0,取引額表!H19/取引額表!H$54) -> 0.004815171494 | I19: =IF(取引額表!I$54=0,0,取引額表!I19/取引額表!I$54) -> 0.005560336268 | J19: =IF(取引額表!J$54=0,0,取引額表!J19/取引額表!J$54) -> 0 | K19: =IF(取引額表!K$54=0,0,取引額表!K19/取引額表!K$54) -> 0.001898253607 | L19: =IF(取引額表!L$54=0,0,取引額表!L19/取引額表!L$54) -> 0.007164387751 | M19: =IF(取引額表!M$54=0,0,取引額表!M19/取引額表!M$54) -> 0.009821914287 | N19: =IF(取引額表!N$54=0,0,取引額表!N19/取引額表!N$54) -> 0.5814237216 | O19: =IF(取引額表!O$54=0,0,取引額表!O19/取引額表!O$54) -> 0.04253835425 | P19: =IF(取引額表!P$54=0,0,取引額表!P19/取引額表!P$54) -> 0.02595529921 | Q19: =IF(取引額表!Q$54=0,0,取引額表!Q19/取引額表!Q$54) -> 0.01402914676 | R19: =IF(取引額表!R$54=0,0,取引額表!R19/取引額表!R$54) -> 0.04998480705 | S19: =IF(取引額表!S$54=0,0,取引額表!S19/取引額表!S$54) -> 0.02173525744 | T19: =IF(取引額表!T$54=0,0,取引額表!T19/取引額表!T$54) -> 0.07261109498 | U19: =IF(取引額表!U$54=0,0,取引額表!U19/取引額表!U$54) -> 0.03308048883 | V19: =IF(取引額表!V$54=0,0,取引額表!V19/取引額表!V$54) -> 0.01755447942 | W19: =IF(取引額表!W$54=0,0,取引額表!W19/取引額表!W$54) -> 0.01101337598 | X19: =IF(取引額表!X$54=0,0,取引額表!X19/取引額表!X$54) -> 0.008934688727 | Y19: =IF(取引額表!Y$54=0,0,取引額表!Y19/取引額表!Y$54) -> 9.675983564e-05 | Z19: =IF(取引額表!Z$54=0,0,取引額表!Z19/取引額表!Z$54) -> 0.0001534885761 | AA19: =IF(取引額表!AA$54=0,0,取引額表!AA19/取引額表!AA$54) -> 1.749781277e-05 | AB19: =IF(取引額表!AB$54=0,0,取引額表!AB19/取引額表!AB$54) -> 9.307563792e-06 | AC19: =IF(取引額表!AC$54=0,0,取引額表!AC19/取引額表!AC$54) -> 0 | AD19: =IF(取引額表!AD$54=0,0,取引額表!AD19/取引額表!AD$54) -> 0 | AE19: =IF(取引額表!AE$54=0,0,取引額表!AE19/取引額表!AE$54) -> 2.612009497e-05 | AF19: =IF(取引額表!AF$54=0,0,取引額表!AF19/取引額表!AF$54) -> 1.26710593e-05 | AG19: =IF(取引額表!AG$54=0,0,取引額表!AG19/取引額表!AG$54) -> 5.623177874e-05 | AH19: =IF(取引額表!AH$54=0,0,取引額表!AH19/取引額表!AH$54) -> 2.463762165e-05 | AI19: =IF(取引額表!AI$54=0,0,取引額表!AI19/取引額表!AI$54) -> 0.001058949039 | AJ19: =IF(取引額表!AJ$54=0,0,取引額表!AJ19/取引額表!AJ$54) -> 0.0001004150489 | AK19: =IF(取引額表!AK$54=0,0,取引額表!AK19/取引額表!AK$54) -> 0.0005386554897 | AL19: =IF(取引額表!AL$54=0,0,取引額表!AL19/取引額表!AL$54) -> 0.0002584302891 | AM19: =IF(取引額表!AM$54=0,0,取引額表!AM19/取引額表!AM$54) -> 0.0007340347443 | AN19: =IF(取引額表!AN$54=0,0,取引額表!AN19/取引額表!AN$54) -> 0.005937876369 | AO19: =IF(取引額表!AO$54=0,0,取引額表!AO19/取引額表!AO$54) -> 0.004643270039 | AP19: =IF(取引額表!AP$46=0,0,取引額表!AP19/取引額表!AP$46) -> 9.735097189e-05 | AQ19: =IF(取引額表!AQ$46=0,0,取引額表!AQ19/取引額表!AQ$46) -> 0.0004419602335 | AR19: =IF(取引額表!AR$46=0,0,取引額表!AR19/取引額表!AR$46) -> 0 | AS19: =IF(取引額表!AS$46=0,0,取引額表!AS19/取引額表!AS$46) -> 1.153795121e-05 | AT19: =IF(取引額表!AT$46=0,0,取引額表!AT19/取引額表!AT$46) -> -0.00127981206 | AU19: =IF(取引額表!AU$46=0,0,取引額表!AU19/取引額表!AU$46) -> -0.0739333723 | AV19: =IF(取引額表!AV$46=0,0,取引額表!AV19/取引額表!AV$46) -> 0.02127107652 | AW19: =IF(取引額表!AW$46=0,0,取引額表!AW19/取引額表!AW$46) -> 9.778181124e-05 | AX19: =IF(取引額表!AX$46=0,0,取引額表!AX19/取引額表!AX$46) -> 0.004290138322 | AY19: =IF(取引額表!AY$46=0,0,取引額表!AY19/取引額表!AY$46) -> 0.006238179296 | AZ19: =IF(取引額表!AZ$46=0,0,取引額表!AZ19/取引額表!AZ$46) -> 0.008612090986 | BA19: =IF(取引額表!BA$46=0,0,取引額表!BA19/取引額表!BA$46) -> 0.008243583784 | BB19: =IF(取引額表!BB$46=0,0,取引額表!BB19/取引額表!BB$46) -> 0.002771410657 | BC19: =IF(取引額表!BC$46=0,0,取引額表!BC19/取引額表!BC$46) -> 0.005146253435 | BD19: =IF(取引額表!BD$46=0,0,取引額表!BD19/取引額表!BD$46) -> 0.03165468603 | BE19: =IF(取引額表!BE$46=0,0,取引額表!BE19/取引額表!BE$46) -> 0.005262395414 | BF19: =IF(取引額表!BF$46=0,0,取引額表!BF19/取引額表!BF$46) -> 0.01102989076 | BG19: =IF(取引額表!BG$46=0,0,取引額表!BG19/取引額表!BG$46) -> -0.003527074736 | BH19: =IF(取引額表!BH$46=0,0,取引額表!BH19/取引額表!BH$46) -> 0.002795660527
B20: 28 | C20: 金属製品 | D20: =IF(取引額表!D$54=0,0,取引額表!D20/取引額表!D$54) -> 0.0009775171065 | E20: =IF(取引額表!E$54=0,0,取引額表!E20/取引額表!E$54) -> 0.03340080972 | F20: =IF(取引額表!F$54=0,0,取引額表!F20/取引額表!F$54) -> 0.002559102656 | G20: =IF(取引額表!G$54=0,0,取引額表!G20/取引額表!G$54) -> 0.00178412132 | H20: =IF(取引額表!H$54=0,0,取引額表!H20/取引額表!H$54) -> 0.03422475739 | I20: =IF(取引額表!I$54=0,0,取引額表!I20/取引額表!I$54) -> 0.01562189713 | J20: =IF(取引額表!J$54=0,0,取引額表!J20/取引額表!J$54) -> 0.00176008839 | K20: =IF(取引額表!K$54=0,0,取引額表!K20/取引額表!K$54) -> 0.00559984814 | L20: =IF(取引額表!L$54=0,0,取引額表!L20/取引額表!L$54) -> 0.01223188153 | M20: =IF(取引額表!M$54=0,0,取引額表!M20/取引額表!M$54) -> 0.0001656770169 | N20: =IF(取引額表!N$54=0,0,取引額表!N20/取引額表!N$54) -> 0.001060895396 | O20: =IF(取引額表!O$54=0,0,取引額表!O20/取引額表!O$54) -> 0.06069977564 | P20: =IF(取引額表!P$54=0,0,取引額表!P20/取引額表!P$54) -> 0.02289113194 | Q20: =IF(取引額表!Q$54=0,0,取引額表!Q20/取引額表!Q$54) -> 0.03681441616 | R20: =IF(取引額表!R$54=0,0,取引額表!R20/取引額表!R$54) -> 0.01990276512 | S20: =IF(取引額表!S$54=0,0,取引額表!S20/取引額表!S$54) -> 0.01068947087 | T20: =IF(取引額表!T$54=0,0,取引額表!T20/取引額表!T$54) -> 0.04443799012 | U20: =IF(取引額表!U$54=0,0,取引額表!U20/取引額表!U$54) -> 0.01222081753 | V20: =IF(取引額表!V$54=0,0,取引額表!V20/取引額表!V$54) -> 0.01210653753 | W20: =IF(取引額表!W$54=0,0,取引額表!W20/取引額表!W$54) -> 0.006687990695 | X20: =IF(取引額表!X$54=0,0,取引額表!X20/取引額表!X$54) -> 0.09201923345 | Y20: =IF(取引額表!Y$54=0,0,取引額表!Y20/取引額表!Y$54) -> 0.0007805293408 | Z20: =IF(取引額表!Z$54=0,0,取引額表!Z20/取引額表!Z$54) -> 0.0007674428803 | AA20: =IF(取引額表!AA$54=0,0,取引額表!AA20/取引額表!AA$54) -> 0.000157480315 | AB20: =IF(取引額表!AB$54=0,0,取引額表!AB20/取引額表!AB$54) -> 0.002288109432 | AC20: =IF(取引額表!AC$54=0,0,取引額表!AC20/取引額表!AC$54) -> 6.791754096e-05 | AD20: =IF(取引額表!AD$54=0,0,取引額表!AD20/取引額表!AD$54) -> 0.0002282562431 | AE20: =IF(取引額表!AE$54=0,0,取引額表!AE20/取引額表!AE$54) -> 0.001726538278 | AF20: =IF(取引額表!AF$54=0,0,取引額表!AF20/取引額表!AF$54) -> 0.0002407501267 | AG20: =IF(取引額表!AG$54=0,0,取引額表!AG20/取引額表!AG$54) -> 0.001924857042 | AH20: =IF(取引額表!AH$54=0,0,取引額表!AH20/取引額表!AH$54) -> 9.855048659e-05 | AI20: =IF(取引額表!AI$54=0,0,取引額表!AI20/取引額表!AI$54) -> 0.0002995538225 | AJ20: =IF(取引額表!AJ$54=0,0,取引額表!AJ20/取引額表!AJ$54) -> 0.001405810684 | AK20: =IF(取引額表!AK$54=0,0,取引額表!AK20/取引額表!AK$54) -> 0.001223026294 | AL20: =IF(取引額表!AL$54=0,0,取引額表!AL20/取引額表!AL$54) -> 0.002357843359 | AM20: =IF(取引額表!AM$54=0,0,取引額表!AM20/取引額表!AM$54) -> 0.0003670173722 | AN20: =IF(取引額表!AN$54=0,0,取引額表!AN20/取引額表!AN$54) -> 0.003809203708 | AO20: =IF(取引額表!AO$54=0,0,取引額表!AO20/取引額表!AO$54) -> 0.006361121278 | AP20: =IF(取引額表!AP$46=0,0,取引額表!AP20/取引額表!AP$46) -> 0.002314789776 | AQ20: =IF(取引額表!AQ$46=0,0,取引額表!AQ20/取引額表!AQ$46) -> 0.001244618281 | AR20: =IF(取引額表!AR$46=0,0,取引額表!AR20/取引額表!AR$46) -> 5.920200434e-06 | AS20: =IF(取引額表!AS$46=0,0,取引額表!AS20/取引額表!AS$46) -> 0.0007211219504 | AT20: =IF(取引額表!AT$46=0,0,取引額表!AT20/取引額表!AT$46) -> 0.00373205469 | AU20: =IF(取引額表!AU$46=0,0,取引額表!AU20/取引額表!AU$46) -> 0.089421391 | AV20: =IF(取引額表!AV$46=0,0,取引額表!AV20/取引額表!AV$46) -> 0.02412451362 | AW20: =IF(取引額表!AW$46=0,0,取引額表!AW20/取引額表!AW$46) -> 0.001361055871 | AX20: =IF(取引額表!AX$46=0,0,取引額表!AX20/取引額表!AX$46) -> 0.006571539747 | AY20: =IF(取引額表!AY$46=0,0,取引額表!AY20/取引額表!AY$46) -> 0.00727840121 | AZ20: =IF(取引額表!AZ$46=0,0,取引額表!AZ20/取引額表!AZ$46) -> 0.01556756506 | BA20: =IF(取引額表!BA$46=0,0,取引額表!BA20/取引額表!BA$46) -> 0.01428082108 | BB20: =IF(取引額表!BB$46=0,0,取引額表!BB20/取引額表!BB$46) -> 0.005601602973 | BC20: =IF(取引額表!BC$46=0,0,取引額表!BC20/取引額表!BC$46) -> 0.008240977791 | BD20: =IF(取引額表!BD$46=0,0,取引額表!BD20/取引額表!BD$46) -> 0.007060985718 | BE20: =IF(取引額表!BE$46=0,0,取引額表!BE20/取引額表!BE$46) -> 0.01930067472 | BF20: =IF(取引額表!BF$46=0,0,取引額表!BF20/取引額表!BF$46) -> 0.01662594101 | BG20: =IF(取引額表!BG$46=0,0,取引額表!BG20/取引額表!BG$46) -> -0.002806316065 | BH20: =IF(取引額表!BH$46=0,0,取引額表!BH20/取引額表!BH$46) -> 0.004891071267
B21: 29 | C21: はん用機械 | D21: =IF(取引額表!D$54=0,0,取引額表!D21/取引額表!D$54) -> 0 | E21: =IF(取引額表!E$54=0,0,取引額表!E21/取引額表!E$54) -> 0.001012145749 | F21: =IF(取引額表!F$54=0,0,取引額表!F21/取引額表!F$54) -> 0 | G21: =IF(取引額表!G$54=0,0,取引額表!G21/取引額表!G$54) -> 0 | H21: =IF(取引額表!H$54=0,0,取引額表!H21/取引額表!H$54) -> 0.002000148159 | I21: =IF(取引額表!I$54=0,0,取引額表!I21/取引額表!I$54) -> 0 | J21: =IF(取引額表!J$54=0,0,取引額表!J21/取引額表!J$54) -> 0 | K21: =IF(取引額表!K$54=0,0,取引額表!K21/取引額表!K$54) -> 0.0003796507213 | L21: =IF(取引額表!L$54=0,0,取引額表!L21/取引額表!L$54) -> 0.0009610764056 | M21: =IF(取引額表!M$54=0,0,取引額表!M21/取引額表!M$54) -> 3.416020968e-06 | N21: =IF(取引額表!N$54=0,0,取引額表!N21/取引額表!N$54) -> 0.0001591343094 | O21: =IF(取引額表!O$54=0,0,取引額表!O21/取引額表!O$54) -> 0.001394700139 | P21: =IF(取引額表!P$54=0,0,取引額表!P21/取引額表!P$54) -> 0.1227469358 | Q21: =IF(取引額表!Q$54=0,0,取引額表!Q21/取引額表!Q$54) -> 0.03774566124 | R21: =IF(取引額表!R$54=0,0,取引額表!R21/取引額表!R$54) -> 0.00516560316 | S21: =IF(取引額表!S$54=0,0,取引額表!S21/取引額表!S$54) -> 0.001603420631 | T21: =IF(取引額表!T$54=0,0,取引額表!T21/取引額表!T$54) -> 0.004840739665 | U21: =IF(取引額表!U$54=0,0,取引額表!U21/取引額表!U$54) -> 0.001053518753 | V21: =IF(取引額表!V$54=0,0,取引額表!V21/取引額表!V$54) -> 0.01210653753 | W21: =IF(取引額表!W$54=0,0,取引額表!W21/取引額表!W$54) -> 7.269555103e-05 | X21: =IF(取引額表!X$54=0,0,取引額表!X21/取引額表!X$54) -> 0.005620607447 | Y21: =IF(取引額表!Y$54=0,0,取引額表!Y21/取引額表!Y$54) -> 0 | Z21: =IF(取引額表!Z$54=0,0,取引額表!Z21/取引額表!Z$54) -> 0.003990702978 | AA21: =IF(取引額表!AA$54=0,0,取引額表!AA21/取引額表!AA$54) -> 0 | AB21: =IF(取引額表!AB$54=0,0,取引額表!AB21/取引額表!AB$54) -> 3.102521264e-06 | AC21: =IF(取引額表!AC$54=0,0,取引額表!AC21/取引額表!AC$54) -> 0 | AD21: =IF(取引額表!AD$54=0,0,取引額表!AD21/取引額表!AD$54) -> 0 | AE21: =IF(取引額表!AE$54=0,0,取引額表!AE21/取引額表!AE$54) -> 6.530023743e-05 | AF21: =IF(取引額表!AF$54=0,0,取引額表!AF21/取引額表!AF$54) -> 5.06842372e-06 | AG21: =IF(取引額表!AG$54=0,0,取引額表!AG21/取引額表!AG$54) -> 9.516147172e-05 | AH21: =IF(取引額表!AH$54=0,0,取引額表!AH21/取引額表!AH$54) -> 0 | AI21: =IF(取引額表!AI$54=0,0,取引額表!AI21/取引額表!AI$54) -> 0 | AJ21: =IF(取引額表!AJ$54=0,0,取引額表!AJ21/取引額表!AJ$54) -> 0 | AK21: =IF(取引額表!AK$54=0,0,取引額表!AK21/取引額表!AK$54) -> 0.007996332558 | AL21: =IF(取引額表!AL$54=0,0,取引額表!AL21/取引額表!AL$54) -> 1.065691914e-05 | AM21: =IF(取引額表!AM$54=0,0,取引額表!AM21/取引額表!AM$54) -> 0 | AN21: =IF(取引額表!AN$54=0,0,取引額表!AN21/取引額表!AN$54) -> 0 | AO21: =IF(取引額表!AO$54=0,0,取引額表!AO21/取引額表!AO$54) -> 0.001625759939 | AP21: =IF(取引額表!AP$46=0,0,取引額表!AP21/取引額表!AP$46) -> 0 | AQ21: =IF(取引額表!AQ$46=0,0,取引額表!AQ21/取引額表!AQ$46) -> 4.599759586e-05 | AR21: =IF(取引額表!AR$46=0,0,取引額表!AR21/取引額表!AR$46) -> 0 | AS21: =IF(取引額表!AS$46=0,0,取引額表!AS21/取引額表!AS$46) -> 0.002065293266 | AT21: =IF(取引額表!AT$46=0,0,取引額表!AT21/取引額表!AT$46) -> 0.0297293329 | AU21: =IF(取引額表!AU$46=0,0,取引額表!AU21/取引額表!AU$46) -> 0.07013442431 | AV21: =IF(取引額表!AV$46=0,0,取引額表!AV21/取引額表!AV$46) -> 0.01141374838 | AW21: =IF(取引額表!AW$46=0,0,取引額表!AW21/取引額表!AW$46) -> 0.003425471373 | AX21: =IF(取引額表!AX$46=0,0,取引額表!AX21/取引額表!AX$46) -> 0.003420614385 | AY21: =IF(取引額表!AY$46=0,0,取引額表!AY21/取引額表!AY$46) -> 0.004677846425 | AZ21: =IF(取引額表!AZ$46=0,0,取引額表!AZ21/取引額表!AZ$46) -> 0.002268290846 | BA21: =IF(取引額表!BA$46=0,0,取引額表!BA21/取引額表!BA$46) -> 0.002642331123 | BB21: =IF(取引額表!BB$46=0,0,取引額表!BB21/取引額表!BB$46) -> 0.003168427761 | BC21: =IF(取引額表!BC$46=0,0,取引額表!BC21/取引額表!BC$46) -> 0.003252077834 | BD21: =IF(取引額表!BD$46=0,0,取引額表!BD21/取引額表!BD$46) -> 0.005753081219 | BE21: =IF(取引額表!BE$46=0,0,取引額表!BE21/取引額表!BE$46) -> 0.01033384553 | BF21: =IF(取引額表!BF$46=0,0,取引額表!BF21/取引額表!BF$46) -> 0.009332813173 | BG21: =IF(取引額表!BG$46=0,0,取引額表!BG21/取引額表!BG$46) -> -0.001532956874 | BH21: =IF(取引額表!BH$46=0,0,取引額表!BH21/取引額表!BH$46) -> 0.000822741598
B22: 30 | C22: 生産用機械 | D22: =IF(取引額表!D$54=0,0,取引額表!D22/取引額表!D$54) -> 0 | E22: =IF(取引額表!E$54=0,0,取引額表!E22/取引額表!E$54) -> 0.003036437247 | F22: =IF(取引額表!F$54=0,0,取引額表!F22/取引額表!F$54) -> 0 | G22: =IF(取引額表!G$54=0,0,取引額表!G22/取引額表!G$54) -> 0 | H22: =IF(取引額表!H$54=0,0,取引額表!H22/取引額表!H$54) -> 0.0002222386843 | I22: =IF(取引額表!I$54=0,0,取引額表!I22/取引額表!I$54) -> 0 | J22: =IF(取引額表!J$54=0,0,取引額表!J22/取引額表!J$54) -> 1.284736051e-05 | K22: =IF(取引額表!K$54=0,0,取引額表!K22/取引額表!K$54) -> 0.002657555049 | L22: =IF(取引額表!L$54=0,0,取引額表!L22/取引額表!L$54) -> 0.0007863352409 | M22: =IF(取引額表!M$54=0,0,取引額表!M22/取引額表!M$54) -> 1.62260996e-05 | N22: =IF(取引額表!N$54=0,0,取引額表!N22/取引額表!N$54) -> 5.304476979e-05 | O22: =IF(取引額表!O$54=0,0,取引額表!O22/取引額表!O$54) -> 0.0007883087745 | P22: =IF(取引額表!P$54=0,0,取引額表!P22/取引額表!P$54) -> 0.004325883201 | Q22: =IF(取引額表!Q$54=0,0,取引額表!Q22/取引額表!Q$54) -> 0.153353087 | R22: =IF(取引額表!R$54=0,0,取引額表!R22/取引額表!R$54) -> 0.0003038590094 | S22: =IF(取引額表!S$54=0,0,取引額表!S22/取引額表!S$54) -> 0.002137894174 | T22: =IF(取引額表!T$54=0,0,取引額表!T22/取引額表!T$54) -> 0.002904443799 | U22: =IF(取引額表!U$54=0,0,取引額表!U22/取引額表!U$54) -> 0.0006321112516 | V22: =IF(取引額表!V$54=0,0,取引額表!V22/取引額表!V$54) -> 0.001210653753 | W22: =IF(取引額表!W$54=0,0,取引額表!W22/取引額表!W$54) -> 0 | X22: =IF(取引額表!X$54=0,0,取引額表!X22/取引額表!X$54) -> 4.960271327e-05 | Y22: =IF(取引額表!Y$54=0,0,取引額表!Y22/取引額表!Y$54) -> 1.935196713e-05 | Z22: =IF(取引額表!Z$54=0,0,取引額表!Z22/取引額表!Z$54) -> 0.0001096346972 | AA22: =IF(取引額表!AA$54=0,0,取引額表!AA22/取引額表!AA$54) -> 0 | AB22: =IF(取引額表!AB$54=0,0,取引額表!AB22/取引額表!AB$54) -> 3.102521264e-06 | AC22: =IF(取引額表!AC$54=0,0,取引額表!AC22/取引額表!AC$54) -> 0 | AD22: =IF(取引額表!AD$54=0,0,取引額表!AD22/取引額表!AD$54) -> 0 | AE22: =IF(取引額表!AE$54=0,0,取引額表!AE22/取引額表!AE$54) -> 8.619631341e-05 | AF22: =IF(取引額表!AF$54=0,0,取引額表!AF22/取引額表!AF$54) -> 0 | AG22: =IF(取引額表!AG$54=0,0,取引額表!AG22/取引額表!AG$54) -> 8.651042883e-06 | AH22: =IF(取引額表!AH$54=0,0,取引額表!AH22/取引額表!AH$54) -> 0 | AI22: =IF(取引額表!AI$54=0,0,取引額表!AI22/取引額表!AI$54) -> 0 | AJ22: =IF(取引額表!AJ$54=0,0,取引額表!AJ22/取引額表!AJ$54) -> 0 | AK22: =IF(取引額表!AK$54=0,0,取引額表!AK22/取引額表!AK$54) -> 0.01163594093 | AL22: =IF(取引額表!AL$54=0,0,取引額表!AL22/取引額表!AL$54) -> 7.992689353e-06 | AM22: =IF(取引額表!AM$54=0,0,取引額表!AM22/取引額表!AM$54) -> 0 | AN22: =IF(取引額表!AN$54=0,0,取引額表!AN22/取引額表!AN$54) -> 0 | AO22: =IF(取引額表!AO$54=0,0,取引額表!AO22/取引額表!AO$54) -> 0.00296931417 | AP22: =IF(取引額表!AP$46=0,0,取引額表!AP22/取引額表!AP$46) -> 0 | AQ22: =IF(取引額表!AQ$46=0,0,取引額表!AQ22/取引額表!AQ$46) -> 2.414873783e-05 | AR22: =IF(取引額表!AR$46=0,0,取引額表!AR22/取引額表!AR$46) -> 0 | AS22: =IF(取引額表!AS$46=0,0,取引額表!AS22/取引額表!AS$46) -> 0.001269174633 | AT22: =IF(取引額表!AT$46=0,0,取引額表!AT22/取引額表!AT$46) -> 0.04288904424 | AU22: =IF(取引額表!AU$46=0,0,取引額表!AU22/取引額表!AU$46) -> -0.2562828755 | AV22: =IF(取引額表!AV$46=0,0,取引額表!AV22/取引額表!AV$46) -> 0.2402075227 | AW22: =IF(取引額表!AW$46=0,0,取引額表!AW22/取引額表!AW$46) -> 0.004758316355 | AX22: =IF(取引額表!AX$46=0,0,取引額表!AX22/取引額表!AX$46) -> 0.005400001975 | AY22: =IF(取引額表!AY$46=0,0,取引額表!AY22/取引額表!AY$46) -> 0.1035178414 | AZ22: =IF(取引額表!AZ$46=0,0,取引額表!AZ22/取引額表!AZ$46) -> 0.02233420798 | BA22: =IF(取引額表!BA$46=0,0,取引額表!BA22/取引額表!BA$46) -> 0.03493651065 | BB22: =IF(取引額表!BB$46=0,0,取引額表!BB22/取引額表!BB$46) -> 0.01466345413 | BC22: =IF(取引額表!BC$46=0,0,取引額表!BC22/取引額表!BC$46) -> 0.01179610677 | BD22: =IF(取引額表!BD$46=0,0,取引額表!BD22/取引額表!BD$46) -> 0.01413046432 | BE22: =IF(取引額表!BE$46=0,0,取引額表!BE22/取引額表!BE$46) -> 0.009651762325 | BF22: =IF(取引額表!BF$46=0,0,取引額表!BF22/取引額表!BF$46) -> 0.01063049105 | BG22: =IF(取引額表!BG$46=0,0,取引額表!BG22/取引額表!BG$46) -> 0.01773926937 | BH22: =IF(取引額表!BH$46=0,0,取引額表!BH22/取引額表!BH$46) -> 0.01226178606
B23: 31 | C23: 業務用機械 | D23: =IF(取引額表!D$54=0,0,取引額表!D23/取引額表!D$54) -> 0.001675743611 | E23: =IF(取引額表!E$54=0,0,取引額表!E23/取引額表!E$54) -> 0 | F23: =IF(取引額表!F$54=0,0,取引額表!F23/取引額表!F$54) -> 0 | G23: =IF(取引額表!G$54=0,0,取引額表!G23/取引額表!G$54) -> 0 | H23: =IF(取引額表!H$54=0,0,取引額表!H23/取引額表!H$54) -> 0 | I23: =IF(取引額表!I$54=0,0,取引額表!I23/取引額表!I$54) -> 0 | J23: =IF(取引額表!J$54=0,0,取引額表!J23/取引額表!J$54) -> 0 | K23: =IF(取引額表!K$54=0,0,取引額表!K23/取引額表!K$54) -> 0 | L23: =IF(取引額表!L$54=0,0,取引額表!L23/取引額表!L$54) -> 0 | M23: =IF(取引額表!M$54=0,0,取引額表!M23/取引額表!M$54) -> 0 | N23: =IF(取引額表!N$54=0,0,取引額表!N23/取引額表!N$54) -> 0 | O23: =IF(取引額表!O$54=0,0,取引額表!O23/取引額表!O$54) -> 3.031956825e-05 | P23: =IF(取引額表!P$54=0,0,取引額表!P23/取引額表!P$54) -> 0.002703677001 | Q23: =IF(取引額表!Q$54=0,0,取引額表!Q23/取引額表!Q$54) -> 0.00938501542 | R23: =IF(取引額表!R$54=0,0,取引額表!R23/取引額表!R$54) -> 0.01564873899 | S23: =IF(取引額表!S$54=0,0,取引額表!S23/取引額表!S$54) -> 0 | T23: =IF(取引額表!T$54=0,0,取引額表!T23/取引額表!T$54) -> 0.0014522219 | U23: =IF(取引額表!U$54=0,0,取引額表!U23/取引額表!U$54) -> 0 | V23: =IF(取引額表!V$54=0,0,取引額表!V23/取引額表!V$54) -> 0.0006053268765 | W23: =IF(取引額表!W$54=0,0,取引額表!W23/取引額表!W$54) -> 7.269555103e-05 | X23: =IF(取引額表!X$54=0,0,取引額表!X23/取引額表!X$54) -> 0.0002108115314 | Y23: =IF(取引額表!Y$54=0,0,取引額表!Y23/取引額表!Y$54) -> 0 | Z23: =IF(取引額表!Z$54=0,0,取引額表!Z23/取引額表!Z$54) -> 6.578081831e-05 | AA23: =IF(取引額表!AA$54=0,0,取引額表!AA23/取引額表!AA$54) -> 3.499562555e-05 | AB23: =IF(取引額表!AB$54=0,0,取引額表!AB23/取引額表!AB$54) -> 0.000952474028 | AC23: =IF(取引額表!AC$54=0,0,取引額表!AC23/取引額表!AC$54) -> 7.149214837e-06 | AD23: =IF(取引額表!AD$54=0,0,取引額表!AD23/取引額表!AD$54) -> 0 | AE23: =IF(取引額表!AE$54=0,0,取引額表!AE23/取引額表!AE$54) -> 2.350808548e-05 | AF23: =IF(取引額表!AF$54=0,0,取引額表!AF23/取引額表!AF$54) -> 5.575266092e-05 | AG23: =IF(取引額表!AG$54=0,0,取引額表!AG23/取引額表!AG$54) -> 0.003006237402 | AH23: =IF(取引額表!AH$54=0,0,取引額表!AH23/取引額表!AH$54) -> 0 | AI23: =IF(取引額表!AI$54=0,0,取引額表!AI23/取引額表!AI$54) -> 0.009125880925 | AJ23: =IF(取引額表!AJ$54=0,0,取引額表!AJ23/取引額表!AJ$54) -> 0 | AK23: =IF(取引額表!AK$54=0,0,取引額表!AK23/取引額表!AK$54) -> 0.006778218016 | AL23: =IF(取引額表!AL$54=0,0,取引額表!AL23/取引額表!AL$54) -> 0.0004715686719 | AM23: =IF(取引額表!AM$54=0,0,取引額表!AM23/取引額表!AM$54) -> 0.02703694642 | AN23: =IF(取引額表!AN$54=0,0,取引額表!AN23/取引額表!AN$54) -> 0 | AO23: =IF(取引額表!AO$54=0,0,取引額表!AO23/取引額表!AO$54) -> 0.001536782837 | AP23: =IF(取引額表!AP$46=0,0,取引額表!AP23/取引額表!AP$46) -> 0.0001947019438 | AQ23: =IF(取引額表!AQ$46=0,0,取引額表!AQ23/取引額表!AQ$46) -> 0.0005423883178 | AR23: =IF(取引額表!AR$46=0,0,取引額表!AR23/取引額表!AR$46) -> 0 | AS23: =IF(取引額表!AS$46=0,0,取引額表!AS23/取引額表!AS$46) -> 0.005047853653 | AT23: =IF(取引額表!AT$46=0,0,取引額表!AT23/取引額表!AT$46) -> 0.0470769224 | AU23: =IF(取引額表!AU$46=0,0,取引額表!AU23/取引額表!AU$46) -> 0.06545879603 | AV23: =IF(取引額表!AV$46=0,0,取引額表!AV23/取引額表!AV$46) -> 0.0140077821 | AW23: =IF(取引額表!AW$46=0,0,取引額表!AW23/取引額表!AW$46) -> 0.005754065117 | AX23: =IF(取引額表!AX$46=0,0,取引額表!AX23/取引額表!AX$46) -> 0.004656801783 | AY23: =IF(取引額表!AY$46=0,0,取引額表!AY23/取引額表!AY$46) -> 0.004829151431 | AZ23: =IF(取引額表!AZ$46=0,0,取引額表!AZ23/取引額表!AZ$46) -> 0.002495351626 | BA23: =IF(取引額表!BA$46=0,0,取引額表!BA23/取引額表!BA$46) -> 0.002857632178 | BB23: =IF(取引額表!BB$46=0,0,取引額表!BB23/取引額表!BB$46) -> 0.004803393019 | BC23: =IF(取引額表!BC$46=0,0,取引額表!BC23/取引額表!BC$46) -> 0.004267193199 | BD23: =IF(取引額表!BD$46=0,0,取引額表!BD23/取引額表!BD$46) -> 0.02017400226 | BE23: =IF(取引額表!BE$46=0,0,取引額表!BE23/取引額表!BE$46) -> 0.01036044487 | BF23: =IF(取引額表!BF$46=0,0,取引額表!BF23/取引額表!BF$46) -> 0.01250499714 | BG23: =IF(取引額表!BG$46=0,0,取引額表!BG23/取引額表!BG$46) -> -0.001070380414 | BH23: =IF(取引額表!BH$46=0,0,取引額表!BH23/取引額表!BH$46) -> 0.0009760788029
B24: 32 | C24: 電子部品 | D24: =IF(取引額表!D$54=0,0,取引額表!D24/取引額表!D$54) -> 0 | E24: =IF(取引額表!E$54=0,0,取引額表!E24/取引額表!E$54) -> 0 | F24: =IF(取引額表!F$54=0,0,取引額表!F24/取引額表!F$54) -> 0 | G24: =IF(取引額表!G$54=0,0,取引額表!G24/取引額表!G$54) -> 0 | H24: =IF(取引額表!H$54=0,0,取引額表!H24/取引額表!H$54) -> 0 | I24: =IF(取引額表!I$54=0,0,取引額表!I24/取引額表!I$54) -> 0 | J24: =IF(取引額表!J$54=0,0,取引額表!J24/取引額表!J$54) -> 0 | K24: =IF(取引額表!K$54=0,0,取引額表!K24/取引額表!K$54) -> 0 | L24: =IF(取引額表!L$54=0,0,取引額表!L24/取引額表!L$54) -> 0 | M24: =IF(取引額表!M$54=0,0,取引額表!M24/取引額表!M$54) -> 0 | N24: =IF(取引額表!N$54=0,0,取引額表!N24/取引額表!N$54) -> 0 | O24: =IF(取引額表!O$54=0,0,取引額表!O24/取引額表!O$54) -> 0.000121278273 | P24: =IF(取引額表!P$54=0,0,取引額表!P24/取引額表!P$54) -> 0.0113554434 | Q24: =IF(取引額表!Q$54=0,0,取引額表!Q24/取引額表!Q$54) -> 0.002576041604 | R24: =IF(取引額表!R$54=0,0,取引額表!R24/取引額表!R$54) -> 0.1853539957 | S24: =IF(取引額表!S$54=0,0,取引額表!S24/取引額表!S$54) -> 0.2811330839 | T24: =IF(取引額表!T$54=0,0,取引額表!T24/取引額表!T$54) -> 0.1063994578 | U24: =IF(取引額表!U$54=0,0,取引額表!U24/取引額表!U$54) -> 0.305731142 | V24: =IF(取引額表!V$54=0,0,取引額表!V24/取引額表!V$54) -> 0.007263922518 | W24: =IF(取引額表!W$54=0,0,取引額表!W24/取引額表!W$54) -> 0.0004725210817 | X24: =IF(取引額表!X$54=0,0,取引額表!X24/取引額表!X$54) -> 0.0003131171275 | Y24: =IF(取引額表!Y$54=0,0,取引額表!Y24/取引額表!Y$54) -> 0 | Z24: =IF(取引額表!Z$54=0,0,取引額表!Z24/取引額表!Z$54) -> 0 | AA24: =IF(取引額表!AA$54=0,0,取引額表!AA24/取引額表!AA$54) -> 0 | AB24: =IF(取引額表!AB$54=0,0,取引額表!AB24/取引額表!AB$54) -> 1.706386695e-05 | AC24: =IF(取引額表!AC$54=0,0,取引額表!AC24/取引額表!AC$54) -> 2.144764451e-05 | AD24: =IF(取引額表!AD$54=0,0,取引額表!AD24/取引額表!AD$54) -> 0 | AE24: =IF(取引額表!AE$54=0,0,取引額表!AE24/取引額表!AE$54) -> 2.612009497e-06 | AF24: =IF(取引額表!AF$54=0,0,取引額表!AF24/取引額表!AF$54) -> 0.0005879371515 | AG24: =IF(取引額表!AG$54=0,0,取引額表!AG24/取引額表!AG$54) -> 0.0005536667445 | AH24: =IF(取引額表!AH$54=0,0,取引額表!AH24/取引額表!AH$54) -> 0.0005256025952 | AI24: =IF(取引額表!AI$54=0,0,取引額表!AI24/取引額表!AI$54) -> 2.627665109e-06 | AJ24: =IF(取引額表!AJ$54=0,0,取引額表!AJ24/取引額表!AJ$54) -> 0 | AK24: =IF(取引額表!AK$54=0,0,取引額表!AK24/取引額表!AK$54) -> 0.01354170078 | AL24: =IF(取引額表!AL$54=0,0,取引額表!AL24/取引額表!AL$54) -> 1.332114892e-05 | AM24: =IF(取引額表!AM$54=0,0,取引額表!AM24/取引額表!AM$54) -> 0.02985074627 | AN24: =IF(取引額表!AN$54=0,0,取引額表!AN24/取引額表!AN$54) -> 0 | AO24: =IF(取引額表!AO$54=0,0,取引額表!AO24/取引額表!AO$54) -> 0.002191950894 | AP24: =IF(取引額表!AP$46=0,0,取引額表!AP24/取引額表!AP$46) -> 7.571742258e-05 | AQ24: =IF(取引額表!AQ$46=0,0,取引額表!AQ24/取引額表!AQ$46) -> 0.000404012217 | AR24: =IF(取引額表!AR$46=0,0,取引額表!AR24/取引額表!AR$46) -> 0 | AS24: =IF(取引額表!AS$46=0,0,取引額表!AS24/取引額表!AS$46) -> 0.00157493034 | AT24: =IF(取引額表!AT$46=0,0,取引額表!AT24/取引額表!AT$46) -> 0 | AU24: =IF(取引額表!AU$46=0,0,取引額表!AU24/取引額表!AU$46) -> 0.02074810053 | AV24: =IF(取引額表!AV$46=0,0,取引額表!AV24/取引額表!AV$46) -> 0.01063553826 | AW24: =IF(取引額表!AW$46=0,0,取引額表!AW24/取引額表!AW$46) -> 0.0003457029317 | AX24: =IF(取引額表!AX$46=0,0,取引額表!AX24/取引額表!AX$46) -> 0.002194706007 | AY24: =IF(取引額表!AY$46=0,0,取引額表!AY24/取引額表!AY$46) -> 0.00746438028 | AZ24: =IF(取引額表!AZ$46=0,0,取引額表!AZ24/取引額表!AZ$46) -> 0.001842551885 | BA24: =IF(取引額表!BA$46=0,0,取引額表!BA24/取引額表!BA$46) -> 0.002715239889 | BB24: =IF(取引額表!BB$46=0,0,取引額表!BB24/取引額表!BB$46) -> 0.001123436344 | BC24: =IF(取引額表!BC$46=0,0,取引額表!BC24/取引額表!BC$46) -> 0.002307427158 | BD24: =IF(取引額表!BD$46=0,0,取引額表!BD24/取引額表!BD$46) -> 0.006994741205 | BE24: =IF(取引額表!BE$46=0,0,取引額表!BE24/取引額表!BE$46) -> 0.005721234115 | BF24: =IF(取引額表!BF$46=0,0,取引額表!BF24/取引額表!BF$46) -> 0.005999533044 | BG24: =IF(取引額表!BG$46=0,0,取引額表!BG24/取引額表!BG$46) -> -0.002595410641 | BH24: =IF(取引額表!BH$46=0,0,取引額表!BH24/取引額表!BH$46) -> 0.000832380784
B25: 33 | C25: 電気機械 | D25: =IF(取引額表!D$54=0,0,取引額表!D25/取引額表!D$54) -> 0 | E25: =IF(取引額表!E$54=0,0,取引額表!E25/取引額表!E$54) -> 0 | F25: =IF(取引額表!F$54=0,0,取引額表!F25/取引額表!F$54) -> 0 | G25: =IF(取引額表!G$54=0,0,取引額表!G25/取引額表!G$54) -> 0 | H25: =IF(取引額表!H$54=0,0,取引額表!H25/取引額表!H$54) -> 0.0002222386843 | I25: =IF(取引額表!I$54=0,0,取引額表!I25/取引額表!I$54) -> 0 | J25: =IF(取引額表!J$54=0,0,取引額表!J25/取引額表!J$54) -> 0 | K25: =IF(取引額表!K$54=0,0,取引額表!K25/取引額表!K$54) -> 0 | L25: =IF(取引額表!L$54=0,0,取引額表!L25/取引額表!L$54) -> 0.0001747411646 | M25: =IF(取引額表!M$54=0,0,取引額表!M25/取引額表!M$54) -> 0 | N25: =IF(取引額表!N$54=0,0,取引額表!N25/取引額表!N$54) -> 0 | O25: =IF(取引額表!O$54=0,0,取引額表!O25/取引額表!O$54) -> 0.0003335152507 | P25: =IF(取引額表!P$54=0,0,取引額表!P25/取引額表!P$54) -> 0.013518385 | Q25: =IF(取引額表!Q$54=0,0,取引額表!Q25/取引額表!Q$54) -> 0.01833464353 | R25: =IF(取引額表!R$54=0,0,取引額表!R25/取引額表!R$54) -> 0.01185050137 | S25: =IF(取引額表!S$54=0,0,取引額表!S25/取引額表!S$54) -> 0.05451630144 | T25: =IF(取引額表!T$54=0,0,取引額表!T25/取引額表!T$54) -> 0.09013457256 | U25: =IF(取引額表!U$54=0,0,取引額表!U25/取引額表!U$54) -> 0.01222081753 | V25: =IF(取引額表!V$54=0,0,取引額表!V25/取引額表!V$54) -> 0.0181598063 | W25: =IF(取引額表!W$54=0,0,取引額表!W25/取引額表!W$54) -> 0.0003271299796 | X25: =IF(取引額表!X$54=0,0,取引額表!X25/取引額表!X$54) -> 0.007951934971 | Y25: =IF(取引額表!Y$54=0,0,取引額表!Y25/取引額表!Y$54) -> 0 | Z25: =IF(取引額表!Z$54=0,0,取引額表!Z25/取引額表!Z$54) -> 8.770775775e-05 | AA25: =IF(取引額表!AA$54=0,0,取引額表!AA25/取引額表!AA$54) -> 0 | AB25: =IF(取引額表!AB$54=0,0,取引額表!AB25/取引額表!AB$54) -> 0.0001954588396 | AC25: =IF(取引額表!AC$54=0,0,取引額表!AC25/取引額表!AC$54) -> 3.574607419e-06 | AD25: =IF(取引額表!AD$54=0,0,取引額表!AD25/取引額表!AD$54) -> 1.208415405e-05 | AE25: =IF(取引額表!AE$54=0,0,取引額表!AE25/取引額表!AE$54) -> 0.0003003810922 | AF25: =IF(取引額表!AF$54=0,0,取引額表!AF25/取引額表!AF$54) -> 0.0001241763811 | AG25: =IF(取引額表!AG$54=0,0,取引額表!AG25/取引額表!AG$54) -> 0.0007699428166 | AH25: =IF(取引額表!AH$54=0,0,取引額表!AH25/取引額表!AH$54) -> 0.0004352646491 | AI25: =IF(取引額表!AI$54=0,0,取引額表!AI25/取引額表!AI$54) -> 0.0001418939159 | AJ25: =IF(取引額表!AJ$54=0,0,取引額表!AJ25/取引額表!AJ$54) -> 0 | AK25: =IF(取引額表!AK$54=0,0,取引額表!AK25/取引額表!AK$54) -> 0.007092570156 | AL25: =IF(取引額表!AL$54=0,0,取引額表!AL25/取引額表!AL$54) -> 0.0001545253275 | AM25: =IF(取引額表!AM$54=0,0,取引額表!AM25/取引額表!AM$54) -> 0 | AN25: =IF(取引額表!AN$54=0,0,取引額表!AN25/取引額表!AN$54) -> 0.001260398286 | AO25: =IF(取引額表!AO$54=0,0,取引額表!AO25/取引額表!AO$54) -> 0.001581271388 | AP25: =IF(取引額表!AP$46=0,0,取引額表!AP25/取引額表!AP$46) -> 0.003883222101 | AQ25: =IF(取引額表!AQ$46=0,0,取引額表!AQ25/取引額表!AQ$46) -> 0.0100535412 | AR25: =IF(取引額表!AR$46=0,0,取引額表!AR25/取引額表!AR$46) -> 0 | AS25: =IF(取引額表!AS$46=0,0,取引額表!AS25/取引額表!AS$46) -> 0.03239856699 | AT25: =IF(取引額表!AT$46=0,0,取引額表!AT25/取引額表!AT$46) -> 0.03989989415 | AU25: =IF(取引額表!AU$46=0,0,取引額表!AU25/取引額表!AU$46) -> -0.2548217417 | AV25: =IF(取引額表!AV$46=0,0,取引額表!AV25/取引額表!AV$46) -> 0.05395590143 | AW25: =IF(取引額表!AW$46=0,0,取引額表!AW25/取引額表!AW$46) -> 0.01189304152 | AX25: =IF(取引額表!AX$46=0,0,取引額表!AX25/取引額表!AX$46) -> 0.008170333098 | AY25: =IF(取引額表!AY$46=0,0,取引額表!AY25/取引額表!AY$46) -> 0.01582713403 | AZ25: =IF(取引額表!AZ$46=0,0,取引額表!AZ25/取引額表!AZ$46) -> 0.002369078029 | BA25: =IF(取引額表!BA$46=0,0,取引額表!BA25/取引額表!BA$46) -> 0.00445819979 | BB25: =IF(取引額表!BB$46=0,0,取引額表!BB25/取引額表!BB$46) -> 0.009452765243 | BC25: =IF(取引額表!BC$46=0,0,取引額表!BC25/取引額表!BC$46) -> 0.007366473918 | BD25: =IF(取引額表!BD$46=0,0,取引額表!BD25/取引額表!BD$46) -> 0.03940359555 | BE25: =IF(取引額表!BE$46=0,0,取引額表!BE25/取引額表!BE$46) -> 0.017096254 | BF25: =IF(取引額表!BF$46=0,0,取引額表!BF25/取引額表!BF$46) -> 0.02197106728 | BG25: =IF(取引額表!BG$46=0,0,取引額表!BG25/取引額表!BG$46) -> -9.455357267e-05 | BH25: =IF(取引額表!BH$46=0,0,取引額表!BH25/取引額表!BH$46) -> 0.001531740801
B26: 34 | C26: 情報・通信機器 | D26: =IF(取引額表!D$54=0,0,取引額表!D26/取引額表!D$54) -> 0 | E26: =IF(取引額表!E$54=0,0,取引額表!E26/取引額表!E$54) -> 0 | F26: =IF(取引額表!F$54=0,0,取引額表!F26/取引額表!F$54) -> 7.208739876e-06 | G26: =IF(取引額表!G$54=0,0,取引額表!G26/取引額表!G$54) -> 0 | H26: =IF(取引額表!H$54=0,0,取引額表!H26/取引額表!H$54) -> 0 | I26: =IF(取引額表!I$54=0,0,取引額表!I26/取引額表!I$54) -> 0 | J26: =IF(取引額表!J$54=0,0,取引額表!J26/取引額表!J$54) -> 0 | K26: =IF(取引額表!K$54=0,0,取引額表!K26/取引額表!K$54) -> 0 | L26: =IF(取引額表!L$54=0,0,取引額表!L26/取引額表!L$54) -> 4.368529116e-05 | M26: =IF(取引額表!M$54=0,0,取引額表!M26/取引額表!M$54) -> 0 | N26: =IF(取引額表!N$54=0,0,取引額表!N26/取引額表!N$54) -> 0 | O26: =IF(取引額表!O$54=0,0,取引額表!O26/取引額表!O$54) -> 9.095870475e-05 | P26: =IF(取引額表!P$54=0,0,取引額表!P26/取引額表!P$54) -> 0.002343186734 | Q26: =IF(取引額表!Q$54=0,0,取引額表!Q26/取引額表!Q$54) -> 0.0004837636814 | R26: =IF(取引額表!R$54=0,0,取引額表!R26/取引額表!R$54) -> 0 | S26: =IF(取引額表!S$54=0,0,取引額表!S26/取引額表!S$54) -> 0 | T26: =IF(取引額表!T$54=0,0,取引額表!T26/取引額表!T$54) -> 9.68147933e-05 | U26: =IF(取引額表!U$54=0,0,取引額表!U26/取引額表!U$54) -> 0.02675937632 | V26: =IF(取引額表!V$54=0,0,取引額表!V26/取引額表!V$54) -> 0.00181598063 | W26: =IF(取引額表!W$54=0,0,取引額表!W26/取引額表!W$54) -> 7.269555103e-05 | X26: =IF(取引額表!X$54=0,0,取引額表!X26/取引額表!X$54) -> 0.001813599204 | Y26: =IF(取引額表!Y$54=0,0,取引額表!Y26/取引額表!Y$54) -> 2.580262284e-05 | Z26: =IF(取引額表!Z$54=0,0,取引額表!Z26/取引額表!Z$54) -> 2.192693944e-05 | AA26: =IF(取引額表!AA$54=0,0,取引額表!AA26/取引額表!AA$54) -> 1.749781277e-05 | AB26: =IF(取引額表!AB$54=0,0,取引額表!AB26/取引額表!AB$54) -> 0.0004405580195 | AC26: =IF(取引額表!AC$54=0,0,取引額表!AC26/取引額表!AC$54) -> 0.0001608573338 | AD26: =IF(取引額表!AD$54=0,0,取引額表!AD26/取引額表!AD$54) -> 9.533054861e-05 | AE26: =IF(取引額表!AE$54=0,0,取引額表!AE26/取引額表!AE$54) -> 0.0001384365034 | AF26: =IF(取引額表!AF$54=0,0,取引額表!AF26/取引額表!AF$54) -> 0.0004004054739 | AG26: =IF(取引額表!AG$54=0,0,取引額表!AG26/取引額表!AG$54) -> 0.0005839453946 | AH26: =IF(取引額表!AH$54=0,0,取引額表!AH26/取引額表!AH$54) -> 0.0001108692974 | AI26: =IF(取引額表!AI$54=0,0,取引額表!AI26/取引額表!AI$54) -> 4.467030686e-05 | AJ26: =IF(取引額表!AJ$54=0,0,取引額表!AJ26/取引額表!AJ$54) -> 0.0001004150489 | AK26: =IF(取引額表!AK$54=0,0,取引額表!AK26/取引額表!AK$54) -> 0.001306526081 | AL26: =IF(取引額表!AL$54=0,0,取引額表!AL26/取引額表!AL$54) -> 0.0001864960849 | AM26: =IF(取引額表!AM$54=0,0,取引額表!AM26/取引額表!AM$54) -> 0 | AN26: =IF(取引額表!AN$54=0,0,取引額表!AN26/取引額表!AN$54) -> 0 | AO26: =IF(取引額表!AO$54=0,0,取引額表!AO26/取引額表!AO$54) -> 0.0003624333932 | AP26: =IF(取引額表!AP$46=0,0,取引額表!AP26/取引額表!AP$46) -> 0.006392713821 | AQ26: =IF(取引額表!AQ$46=0,0,取引額表!AQ26/取引額表!AQ$46) -> 0.01496876763 | AR26: =IF(取引額表!AR$46=0,0,取引額表!AR26/取引額表!AR$46) -> 0 | AS26: =IF(取引額表!AS$46=0,0,取引額表!AS26/取引額表!AS$46) -> 0.01666657052 | AT26: =IF(取引額表!AT$46=0,0,取引額表!AT26/取引額表!AT$46) -> 0.03972019451 | AU26: =IF(取引額表!AU$46=0,0,取引額表!AU26/取引額表!AU$46) -> -0.07597895967 | AV26: =IF(取引額表!AV$46=0,0,取引額表!AV26/取引額表!AV$46) -> 0.0215304799 | AW26: =IF(取引額表!AW$46=0,0,取引額表!AW26/取引額表!AW$46) -> 0.01445903707 | AX26: =IF(取引額表!AX$46=0,0,取引額表!AX26/取引額表!AX$46) -> 0.008510352258 | AY26: =IF(取引額表!AY$46=0,0,取引額表!AY26/取引額表!AY$46) -> 0.007423401841 | AZ26: =IF(取引額表!AZ$46=0,0,取引額表!AZ26/取引額表!AZ$46) -> 0.001286484671 | BA26: =IF(取引額表!BA$46=0,0,取引額表!BA26/取引額表!BA$46) -> 0.002239130967 | BB26: =IF(取引額表!BB$46=0,0,取引額表!BB26/取引額表!BB$46) -> 0.0104481989 | BC26: =IF(取引額表!BC$46=0,0,取引額表!BC26/取引額表!BC$46) -> 0.007152324842 | BD26: =IF(取引額表!BD$46=0,0,取引額表!BD26/取引額表!BD$46) -> 0.04530785014 | BE26: =IF(取引額表!BE$46=0,0,取引額表!BE26/取引額表!BE$46) -> 0.017137103 | BF26: =IF(取引額表!BF$46=0,0,取引額表!BF26/取引額表!BF$46) -> 0.02329324365 | BG26: =IF(取引額表!BG$46=0,0,取引額表!BG26/取引額表!BG$46) -> 0.0006516836056 | BH26: =IF(取引額表!BH$46=0,0,取引額表!BH26/取引額表!BH$46) -> 0.0007038088724
B27: 35 | C27: 輸送機械 | D27: =IF(取引額表!D$54=0,0,取引額表!D27/取引額表!D$54) -> 0 | E27: =IF(取引額表!E$54=0,0,取引額表!E27/取引額表!E$54) -> 0 | F27: =IF(取引額表!F$54=0,0,取引額表!F27/取引額表!F$54) -> 0 | G27: =IF(取引額表!G$54=0,0,取引額表!G27/取引額表!G$54) -> 0 | H27: =IF(取引額表!H$54=0,0,取引額表!H27/取引額表!H$54) -> 0 | I27: =IF(取引額表!I$54=0,0,取引額表!I27/取引額表!I$54) -> 0 | J27: =IF(取引額表!J$54=0,0,取引額表!J27/取引額表!J$54) -> 0 | K27: =IF(取引額表!K$54=0,0,取引額表!K27/取引額表!K$54) -> 0 | L27: =IF(取引額表!L$54=0,0,取引額表!L27/取引額表!L$54) -> 0 | M27: =IF(取引額表!M$54=0,0,取引額表!M27/取引額表!M$54) -> 0 | N27: =IF(取引額表!N$54=0,0,取引額表!N27/取引額表!N$54) -> 0 | O27: =IF(取引額表!O$54=0,0,取引額表!O27/取引額表!O$54) -> 0 | P27: =IF(取引額表!P$54=0,0,取引額表!P27/取引額表!P$54) -> 0 | Q27: =IF(取引額表!Q$54=0,0,取引額表!Q27/取引額表!Q$54) -> 0.001681078793 | R27: =IF(取引額表!R$54=0,0,取引額表!R27/取引額表!R$54) -> 0 | S27: =IF(取引額表!S$54=0,0,取引額表!S27/取引額表!S$54) -> 0 | T27: =IF(取引額表!T$54=0,0,取引額表!T27/取引額表!T$54) -> 0 | U27: =IF(取引額表!U$54=0,0,取引額表!U27/取引額表!U$54) -> 0 | V27: =IF(取引額表!V$54=0,0,取引額表!V27/取引額表!V$54) -> 0.2923728814 | W27: =IF(取引額表!W$54=0,0,取引額表!W27/取引額表!W$54) -> 0 | X27: =IF(取引額表!X$54=0,0,取引額表!X27/取引額表!X$54) -> 0 | Y27: =IF(取引額表!Y$54=0,0,取引額表!Y27/取引額表!Y$54) -> 0 | Z27: =IF(取引額表!Z$54=0,0,取引額表!Z27/取引額表!Z$54) -> 0 | AA27: =IF(取引額表!AA$54=0,0,取引額表!AA27/取引額表!AA$54) -> 0 | AB27: =IF(取引額表!AB$54=0,0,取引額表!AB27/取引額表!AB$54) -> 0 | AC27: =IF(取引額表!AC$54=0,0,取引額表!AC27/取引額表!AC$54) -> 0 | AD27: =IF(取引額表!AD$54=0,0,取引額表!AD27/取引額表!AD$54) -> 0 | AE27: =IF(取引額表!AE$54=0,0,取引額表!AE27/取引額表!AE$54) -> 0.02099010832 | AF27: =IF(取引額表!AF$54=0,0,取引額表!AF27/取引額表!AF$54) -> 0 | AG27: =IF(取引額表!AG$54=0,0,取引額表!AG27/取引額表!AG$54) -> 0.00327009421 | AH27: =IF(取引額表!AH$54=0,0,取引額表!AH27/取引額表!AH$54) -> 0.0001396131893 | AI27: =IF(取引額表!AI$54=0,0,取引額表!AI27/取引額表!AI$54) -> 0 | AJ27: =IF(取引額表!AJ$54=0,0,取引額表!AJ27/取引額表!AJ$54) -> 0 | AK27: =IF(取引額表!AK$54=0,0,取引額表!AK27/取引額表!AK$54) -> 0.01974524379 | AL27: =IF(取引額表!AL$54=0,0,取引額表!AL27/取引額表!AL$54) -> 6.394151483e-05 | AM27: =IF(取引額表!AM$54=0,0,取引額表!AM27/取引額表!AM$54) -> 0 | AN27: =IF(取引額表!AN$54=0,0,取引額表!AN27/取引額表!AN$54) -> 0 | AO27: =IF(取引額表!AO$54=0,0,取引額表!AO27/取引額表!AO$54) -> 0.003193091581 | AP27: =IF(取引額表!AP$46=0,0,取引額表!AP27/取引額表!AP$46) -> 0 | AQ27: =IF(取引額表!AQ$46=0,0,取引額表!AQ27/取引額表!AQ$46) -> 0.01642420823 | AR27: =IF(取引額表!AR$46=0,0,取引額表!AR27/取引額表!AR$46) -> 0 | AS27: =IF(取引額表!AS$46=0,0,取引額表!AS27/取引額表!AS$46) -> 0.007078533065 | AT27: =IF(取引額表!AT$46=0,0,取引額表!AT27/取引額表!AT$46) -> 0.05179513365 | AU27: =IF(取引額表!AU$46=0,0,取引額表!AU27/取引額表!AU$46) -> -0.8588544711 | AV27: =IF(取引額表!AV$46=0,0,取引額表!AV27/取引額表!AV$46) -> 0.003112840467 | AW27: =IF(取引額表!AW$46=0,0,取引額表!AW27/取引額表!AW$46) -> 0.01548801731 | AX27: =IF(取引額表!AX$46=0,0,取引額表!AX27/取引額表!AX$46) -> 0.01167412639 | AY27: =IF(取引額表!AY$46=0,0,取引額表!AY27/取引額表!AY$46) -> 0.001635985374 | AZ27: =IF(取引額表!AZ$46=0,0,取引額表!AZ27/取引額表!AZ$46) -> 0.0006284717999 | BA27: =IF(取引額表!BA$46=0,0,取引額表!BA27/取引額表!BA$46) -> 0.0007848702077 | BB27: =IF(取引額表!BB$46=0,0,取引額表!BB27/取引額表!BB$46) -> 0.0106621256 | BC27: =IF(取引額表!BC$46=0,0,取引額表!BC27/取引額表!BC$46) -> 0.009316067613 | BD27: =IF(取引額表!BD$46=0,0,取引額表!BD27/取引額表!BD$46) -> 0.02583705888 | BE27: =IF(取引額表!BE$46=0,0,取引額表!BE27/取引額表!BE$46) -> 0.03375076889 | BF27: =IF(取引額表!BF$46=0,0,取引額表!BF27/取引額表!BF$46) -> 0.03202138941 | BG27: =IF(取引額表!BG$46=0,0,取引額表!BG27/取引額表!BG$46) -> -0.005627919235 | BH27: =IF(取引額表!BH$46=0,0,取引額表!BH27/取引額表!BH$46) -> 0.0002449836193
B28: 39 | C28: その他の製造工業製品 | D28: =IF(取引額表!D$54=0,0,取引額表!D28/取引額表!D$54) -> 0.0002792906019 | E28: =IF(取引額表!E$54=0,0,取引額表!E28/取引額表!E$54) -> 0.006072874494 | F28: =IF(取引額表!F$54=0,0,取引額表!F28/取引額表!F$54) -> 0.006639249426 | G28: =IF(取引額表!G$54=0,0,取引額表!G28/取引額表!G$54) -> 0.02051739518 | H28: =IF(取引額表!H$54=0,0,取引額表!H28/取引額表!H$54) -> 0.01081561597 | I28: =IF(取引額表!I$54=0,0,取引額表!I28/取引額表!I$54) -> 0.00423644668 | J28: =IF(取引額表!J$54=0,0,取引額表!J28/取引額表!J$54) -> 0.01596926911 | K28: =IF(取引額表!K$54=0,0,取引額表!K28/取引額表!K$54) -> 0.009870918755 | L28: =IF(取引額表!L$54=0,0,取引額表!L28/取引額表!L$54) -> 0.005766458433 | M28: =IF(取引額表!M$54=0,0,取引額表!M28/取引額表!M$54) -> 0.007276124661 | N28: =IF(取引額表!N$54=0,0,取引額表!N28/取引額表!N$54) -> 0.01538298324 | O28: =IF(取引額表!O$54=0,0,取引額表!O28/取引額表!O$54) -> 0.001576617549 | P28: =IF(取引額表!P$54=0,0,取引額表!P28/取引額表!P$54) -> 0.0010814708 | Q28: =IF(取引額表!Q$54=0,0,取引額表!Q28/取引額表!Q$54) -> 0.002624417972 | R28: =IF(取引額表!R$54=0,0,取引額表!R28/取引額表!R$54) -> 0.004861744151 | S28: =IF(取引額表!S$54=0,0,取引額表!S28/取引額表!S$54) -> 0.006948156066 | T28: =IF(取引額表!T$54=0,0,取引額表!T28/取引額表!T$54) -> 0.003001258592 | U28: =IF(取引額表!U$54=0,0,取引額表!U28/取引額表!U$54) -> 0.006531816266 | V28: =IF(取引額表!V$54=0,0,取引額表!V28/取引額表!V$54) -> 0.0006053268765 | W28: =IF(取引額表!W$54=0,0,取引額表!W28/取引額表!W$54) -> 0.0437990695 | X28: =IF(取引額表!X$54=0,0,取引額表!X28/取引額表!X$54) -> 0.00368300146 | Y28: =IF(取引額表!Y$54=0,0,取引額表!Y28/取引額表!Y$54) -> 0.01173374273 | Z28: =IF(取引額表!Z$54=0,0,取引額表!Z28/取引額表!Z$54) -> 0.002653159672 | AA28: =IF(取引額表!AA$54=0,0,取引額表!AA28/取引額表!AA$54) -> 0.005896762905 | AB28: =IF(取引額表!AB$54=0,0,取引額表!AB28/取引額表!AB$54) -> 0.006174017315 | AC28: =IF(取引額表!AC$54=0,0,取引額表!AC28/取引額表!AC$54) -> 0.01410182627 | AD28: =IF(取引額表!AD$54=0,0,取引額表!AD28/取引額表!AD$54) -> 6.981955673e-05 | AE28: =IF(取引額表!AE$54=0,0,取引額表!AE28/取引額表!AE$54) -> 0.002426556823 | AF28: =IF(取引額表!AF$54=0,0,取引額表!AF28/取引額表!AF$54) -> 0.01230106437 | AG28: =IF(取引額表!AG$54=0,0,取引額表!AG28/取引額表!AG$54) -> 0.008478022026 | AH28: =IF(取引額表!AH$54=0,0,取引額表!AH28/取引額表!AH$54) -> 0.01615406726 | AI28: =IF(取引額表!AI$54=0,0,取引額表!AI28/取引額表!AI$54) -> 0.004582647951 | AJ28: =IF(取引額表!AJ$54=0,0,取引額表!AJ28/取引額表!AJ$54) -> 0.0386932655 | AK28: =IF(取引額表!AK$54=0,0,取引額表!AK28/取引額表!AK$54) -> 0.006305052556 | AL28: =IF(取引額表!AL$54=0,0,取引額表!AL28/取引額表!AL$54) -> 0.006231633466 | AM28: =IF(取引額表!AM$54=0,0,取引額表!AM28/取引額表!AM$54) -> 0.1586738439 | AN28: =IF(取引額表!AN$54=0,0,取引額表!AN28/取引額表!AN$54) -> 0.001876593003 | AO28: =IF(取引額表!AO$54=0,0,取引額表!AO28/取引額表!AO$54) -> 0.007053066536 | AP28: =IF(取引額表!AP$46=0,0,取引額表!AP28/取引額表!AP$46) -> 0.01664701619 | AQ28: =IF(取引額表!AQ$46=0,0,取引額表!AQ28/取引額表!AQ$46) -> 0.009424907392 | AR28: =IF(取引額表!AR$46=0,0,取引額表!AR28/取引額表!AR$46) -> 0 | AS28: =IF(取引額表!AS$46=0,0,取引額表!AS28/取引額表!AS$46) -> 0.0007038150236 | AT28: =IF(取引額表!AT$46=0,0,取引額表!AT28/取引額表!AT$46) -> 0.01140435268 | AU28: =IF(取引額表!AU$46=0,0,取引額表!AU28/取引額表!AU$46) -> -0.07802454705 | AV28: =IF(取引額表!AV$46=0,0,取引額表!AV28/取引額表!AV$46) -> 0.009857328145 | AW28: =IF(取引額表!AW$46=0,0,取引額表!AW28/取引額表!AW$46) -> 0.007464888201 | AX28: =IF(取引額表!AX$46=0,0,取引額表!AX28/取引額表!AX$46) -> 0.01065569192 | AY28: =IF(取引額表!AY$46=0,0,取引額表!AY28/取引額表!AY$46) -> 0.003375992939 | AZ28: =IF(取引額表!AZ$46=0,0,取引額表!AZ28/取引額表!AZ$46) -> 0.00837576242 | BA28: =IF(取引額表!BA$46=0,0,取引額表!BA28/取引額表!BA$46) -> 0.007599637903 | BB28: =IF(取引額表!BB$46=0,0,取引額表!BB28/取引額表!BB$46) -> 0.007509115975 | BC28: =IF(取引額表!BC$46=0,0,取引額表!BC28/取引額表!BC$46) -> 0.009993906129 | BD28: =IF(取引額表!BD$46=0,0,取引額表!BD28/取引額表!BD$46) -> 0.02130015899 | BE28: =IF(取引額表!BE$46=0,0,取引額表!BE28/取引額表!BE$46) -> 0.0257747653 | BF28: =IF(取引額表!BF$46=0,0,取引額表!BF28/取引額表!BF$46) -> 0.0247969316 | BG28: =IF(取引額表!BG$46=0,0,取引額表!BG28/取引額表!BG$46) -> -0.005675762211 | BH28: =IF(取引額表!BH$46=0,0,取引額表!BH28/取引額表!BH$46) -> 0.004079896692
B29: 41 | C29: 建設 | D29: =IF(取引額表!D$54=0,0,取引額表!D29/取引額表!D$54) -> 0.004887585533 | E29: =IF(取引額表!E$54=0,0,取引額表!E29/取引額表!E$54) -> 0.01012145749 | F29: =IF(取引額表!F$54=0,0,取引額表!F29/取引額表!F$54) -> 0.001012827953 | G29: =IF(取引額表!G$54=0,0,取引額表!G29/取引額表!G$54) -> 0.004460303301 | H29: =IF(取引額表!H$54=0,0,取引額表!H29/取引額表!H$54) -> 0.005852285354 | I29: =IF(取引額表!I$54=0,0,取引額表!I29/取引額表!I$54) -> 0.01032633878 | J29: =IF(取引額表!J$54=0,0,取引額表!J29/取引額表!J$54) -> 0.001104873004 | K29: =IF(取引額表!K$54=0,0,取引額表!K29/取引額表!K$54) -> 0.00863705391 | L29: =IF(取引額表!L$54=0,0,取引額表!L29/取引額表!L$54) -> 0.01127080512 | M29: =IF(取引額表!M$54=0,0,取引額表!M29/取引額表!M$54) -> 0.009606704966 | N29: =IF(取引額表!N$54=0,0,取引額表!N29/取引額表!N$54) -> 0.01034373011 | O29: =IF(取引額表!O$54=0,0,取引額表!O29/取引額表!O$54) -> 0.01230974471 | P29: =IF(取引額表!P$54=0,0,取引額表!P29/取引額表!P$54) -> 0.004145638068 | Q29: =IF(取引額表!Q$54=0,0,取引額表!Q29/取引額表!Q$54) -> 0.00208018383 | R29: =IF(取引額表!R$54=0,0,取引額表!R29/取引額表!R$54) -> 0.004557885141 | S29: =IF(取引額表!S$54=0,0,取引額表!S29/取引額表!S$54) -> 0.006591840371 | T29: =IF(取引額表!T$54=0,0,取引額表!T29/取引額表!T$54) -> 0.004453480492 | U29: =IF(取引額表!U$54=0,0,取引額表!U29/取引額表!U$54) -> 0.003371260008 | V29: =IF(取引額表!V$54=0,0,取引額表!V29/取引額表!V$54) -> 0.0006053268765 | W29: =IF(取引額表!W$54=0,0,取引額表!W29/取引額表!W$54) -> 0.002471648735 | X29: =IF(取引額表!X$54=0,0,取引額表!X29/取引額表!X$54) -> 0.001289670545 | Y29: =IF(取引額表!Y$54=0,0,取引額表!Y29/取引額表!Y$54) -> 0.05183101862 | Z29: =IF(取引額表!Z$54=0,0,取引額表!Z29/取引額表!Z$54) -> 0.06029908345 | AA29: =IF(取引額表!AA$54=0,0,取引額表!AA29/取引額表!AA$54) -> 0.007226596675 | AB29: =IF(取引額表!AB$54=0,0,取引額表!AB29/取引額表!AB$54) -> 0.004388516328 | AC29: =IF(取引額表!AC$54=0,0,取引額表!AC29/取引額表!AC$54) -> 0.001526357368 | AD29: =IF(取引額表!AD$54=0,0,取引額表!AD29/取引額表!AD$54) -> 0.0261058008 | AE29: =IF(取引額表!AE$54=0,0,取引額表!AE29/取引額表!AE$54) -> 0.01028348139 | AF29: =IF(取引額表!AF$54=0,0,取引額表!AF29/取引額表!AF$54) -> 0.004285352255 | AG29: =IF(取引額表!AG$54=0,0,取引額表!AG29/取引額表!AG$54) -> 0.02116045089 | AH29: =IF(取引額表!AH$54=0,0,取引額表!AH29/取引額表!AH$54) -> 0.01014248758 | AI29: =IF(取引額表!AI$54=0,0,取引額表!AI29/取引額表!AI$54) -> 0.005670501306 | AJ29: =IF(取引額表!AJ$54=0,0,取引額表!AJ29/取引額表!AJ$54) -> 0.002209131075 | AK29: =IF(取引額表!AK$54=0,0,取引額表!AK29/取引額表!AK$54) -> 0.0009397819182 | AL29: =IF(取引額表!AL$54=0,0,取引額表!AL29/取引額表!AL$54) -> 0.005392401084 | AM29: =IF(取引額表!AM$54=0,0,取引額表!AM29/取引額表!AM$54) -> 0 | AN29: =IF(取引額表!AN$54=0,0,取引額表!AN29/取引額表!AN$54) -> 0 | AO29: =IF(取引額表!AO$54=0,0,取引額表!AO29/取引額表!AO$54) -> 0.009699097238 | AP29: =IF(取引額表!AP$46=0,0,取引額表!AP29/取引額表!AP$46) -> 0 | AQ29: =IF(取引額表!AQ$46=0,0,取引額表!AQ29/取引額表!AQ$46) -> 0 | AR29: =IF(取引額表!AR$46=0,0,取引額表!AR29/取引額表!AR$46) -> 0 | AS29: =IF(取引額表!AS$46=0,0,取引額表!AS29/取引額表!AS$46) -> 0.8123467616 | AT29: =IF(取引額表!AT$46=0,0,取引額表!AT29/取引額表!AT$46) -> 0.2549674897 | AU29: =IF(取引額表!AU$46=0,0,取引額表!AU29/取引額表!AU$46) -> 0 | AV29: =IF(取引額表!AV$46=0,0,取引額表!AV29/取引額表!AV$46) -> 0 | AW29: =IF(取引額表!AW$46=0,0,取引額表!AW29/取引額表!AW$46) -> 0.06148037359 | AX29: =IF(取引額表!AX$46=0,0,取引額表!AX29/取引額表!AX$46) -> 0.04362673037 | AY29: =IF(取引額表!AY$46=0,0,取引額表!AY29/取引額表!AY$46) -> 0 | AZ29: =IF(取引額表!AZ$46=0,0,取引額表!AZ29/取引額表!AZ$46) -> 0 | BA29: =IF(取引額表!BA$46=0,0,取引額表!BA29/取引額表!BA$46) -> 0 | BB29: =IF(取引額表!BB$46=0,0,取引額表!BB29/取引額表!BB$46) -> 0.0413011818 | BC29: =IF(取引額表!BC$46=0,0,取引額表!BC29/取引額表!BC$46) -> 0.03417940055 | BD29: =IF(取引額表!BD$46=0,0,取引額表!BD29/取引額表!BD$46) -> 0 | BE29: =IF(取引額表!BE$46=0,0,取引額表!BE29/取引額表!BE$46) -> 0 | BF29: =IF(取引額表!BF$46=0,0,取引額表!BF29/取引額表!BF$46) -> 0 | BG29: =IF(取引額表!BG$46=0,0,取引額表!BG29/取引額表!BG$46) -> 0.07280030597 | BH29: =IF(取引額表!BH$46=0,0,取引額表!BH29/取引額表!BH$46) -> 0.04783453462
B30: 46 | C30: 電力・ガス・熱供給 | D30: =IF(取引額表!D$54=0,0,取引額表!D30/取引額表!D$54) -> 0.003211841922 | E30: =IF(取引額表!E$54=0,0,取引額表!E30/取引額表!E$54) -> 0.005060728745 | F30: =IF(取引額表!F$54=0,0,取引額表!F30/取引額表!F$54) -> 0.006624831946 | G30: =IF(取引額表!G$54=0,0,取引額表!G30/取引額表!G$54) -> 0.00356824264 | H30: =IF(取引額表!H$54=0,0,取引額表!H30/取引額表!H$54) -> 0.004667012371 | I30: =IF(取引額表!I$54=0,0,取引額表!I30/取引額表!I$54) -> 0.0189316211 | J30: =IF(取引額表!J$54=0,0,取引額表!J30/取引額表!J$54) -> 0.003622955664 | K30: =IF(取引額表!K$54=0,0,取引額表!K30/取引額表!K$54) -> 0.01262338648 | L30: =IF(取引額表!L$54=0,0,取引額表!L30/取引額表!L$54) -> 0.01079026692 | M30: =IF(取引額表!M$54=0,0,取引額表!M30/取引額表!M$54) -> 0.01376827251 | N30: =IF(取引額表!N$54=0,0,取引額表!N30/取引額表!N$54) -> 0.008752387015 | O30: =IF(取引額表!O$54=0,0,取引額表!O30/取引額表!O$54) -> 0.01000545752 | P30: =IF(取引額表!P$54=0,0,取引額表!P30/取引額表!P$54) -> 0.002343186734 | Q30: =IF(取引額表!Q$54=0,0,取引額表!Q30/取引額表!Q$54) -> 0.002696982524 | R30: =IF(取引額表!R$54=0,0,取引額表!R30/取引額表!R$54) -> 0.003646308113 | S30: =IF(取引額表!S$54=0,0,取引額表!S30/取引額表!S$54) -> 0.008017103153 | T30: =IF(取引額表!T$54=0,0,取引額表!T30/取引額表!T$54) -> 0.003194888179 | U30: =IF(取引額表!U$54=0,0,取引額表!U30/取引額表!U$54) -> 0.001053518753 | V30: =IF(取引額表!V$54=0,0,取引額表!V30/取引額表!V$54) -> 0.004237288136 | W30: =IF(取引額表!W$54=0,0,取引額表!W30/取引額表!W$54) -> 0.004143646409 | X30: =IF(取引額表!X$54=0,0,取引額表!X30/取引額表!X$54) -> 0.001804298695 | Y30: =IF(取引額表!Y$54=0,0,取引額表!Y30/取引額表!Y$54) -> 0.02381582088 | Z30: =IF(取引額表!Z$54=0,0,取引額表!Z30/取引額表!Z$54) -> 0.008310310047 | AA30: =IF(取引額表!AA$54=0,0,取引額表!AA30/取引額表!AA$54) -> 0.01352580927 | AB30: =IF(取引額表!AB$54=0,0,取引額表!AB30/取引額表!AB$54) -> 0.00660371651 | AC30: =IF(取引額表!AC$54=0,0,取引額表!AC30/取引額表!AC$54) -> 0.002827514468 | AD30: =IF(取引額表!AD$54=0,0,取引額表!AD30/取引額表!AD$54) -> 0.001588394916 | AE30: =IF(取引額表!AE$54=0,0,取引額表!AE30/取引額表!AE$54) -> 0.003207547663 | AF30: =IF(取引額表!AF$54=0,0,取引額表!AF30/取引額表!AF$54) -> 0.002394830208 | AG30: =IF(取引額表!AG$54=0,0,取引額表!AG30/取引額表!AG$54) -> 0.004926768922 | AH30: =IF(取引額表!AH$54=0,0,取引額表!AH30/取引額表!AH$54) -> 0.007953845522 | AI30: =IF(取引額表!AI$54=0,0,取引額表!AI30/取引額表!AI$54) -> 0.004390828398 | AJ30: =IF(取引額表!AJ$54=0,0,取引額表!AJ30/取引額表!AJ$54) -> 0.00180747088 | AK30: =IF(取引額表!AK$54=0,0,取引額表!AK30/取引額表!AK$54) -> 0.002694914699 | AL30: =IF(取引額表!AL$54=0,0,取引額表!AL30/取引額表!AL$54) -> 0.01208228207 | AM30: =IF(取引額表!AM$54=0,0,取引額表!AM30/取引額表!AM$54) -> 0 | AN30: =IF(取引額表!AN$54=0,0,取引額表!AN30/取引額表!AN$54) -> 0.002968938184 | AO30: =IF(取引額表!AO$54=0,0,取引額表!AO30/取引額表!AO$54) -> 0.006658897977 | AP30: =IF(取引額表!AP$46=0,0,取引額表!AP30/取引額表!AP$46) -> 0.0001622516198 | AQ30: =IF(取引額表!AQ$46=0,0,取引額表!AQ30/取引額表!AQ$46) -> 0.01300083716 | AR30: =IF(取引額表!AR$46=0,0,取引額表!AR30/取引額表!AR$46) -> 0 | AS30: =IF(取引額表!AS$46=0,0,取引額表!AS30/取引額表!AS$46) -> 0 | AT30: =IF(取引額表!AT$46=0,0,取引額表!AT30/取引額表!AT$46) -> 0 | AU30: =IF(取引額表!AU$46=0,0,取引額表!AU30/取引額表!AU$46) -> 0 | AV30: =IF(取引額表!AV$46=0,0,取引額表!AV30/取引額表!AV$46) -> 0 | AW30: =IF(取引額表!AW$46=0,0,取引額表!AW30/取引額表!AW$46) -> 0.008112304203 | AX30: =IF(取引額表!AX$46=0,0,取引額表!AX30/取引額表!AX$46) -> 0.01066245443 | AY30: =IF(取引額表!AY$46=0,0,取引額表!AY30/取引額表!AY$46) -> 0.0003971756399 | AZ30: =IF(取引額表!AZ$46=0,0,取引額表!AZ30/取引額表!AZ$46) -> 0.0440579005 | BA30: =IF(取引額表!BA$46=0,0,取引額表!BA30/取引額表!BA$46) -> 0.03728035623 | BB30: =IF(取引額表!BB$46=0,0,取引額表!BB30/取引額表!BB$46) -> 0.01768589137 | BC30: =IF(取引額表!BC$46=0,0,取引額表!BC30/取引額表!BC$46) -> 0.01642653749 | BD30: =IF(取引額表!BD$46=0,0,取引額表!BD30/取引額表!BD$46) -> 0 | BE30: =IF(取引額表!BE$46=0,0,取引額表!BE30/取引額表!BE$46) -> 0 | BF30: =IF(取引額表!BF$46=0,0,取引額表!BF30/取引額表!BF$46) -> 0 | BG30: =IF(取引額表!BG$46=0,0,取引額表!BG30/取引額表!BG$46) -> 0.03117436953 | BH30: =IF(取引額表!BH$46=0,0,取引額表!BH30/取引額表!BH$46) -> 0.022989162
B31: 47 | C31: 水道 | D31: =IF(取引額表!D$54=0,0,取引額表!D31/取引額表!D$54) -> 0.00153609831 | E31: =IF(取引額表!E$54=0,0,取引額表!E31/取引額表!E$54) -> 0.005060728745 | F31: =IF(取引額表!F$54=0,0,取引額表!F31/取引額表!F$54) -> 0.002058095235 | G31: =IF(取引額表!G$54=0,0,取引額表!G31/取引額表!G$54) -> 0 | H31: =IF(取引額表!H$54=0,0,取引額表!H31/取引額表!H$54) -> 0.0009630342988 | I31: =IF(取引額表!I$54=0,0,取引額表!I31/取引額表!I$54) -> 0.00324352949 | J31: =IF(取引額表!J$54=0,0,取引額表!J31/取引額表!J$54) -> 0.003995529119 | K31: =IF(取引額表!K$54=0,0,取引額表!K31/取引額表!K$54) -> 0.001613515566 | L31: =IF(取引額表!L$54=0,0,取引額表!L31/取引額表!L$54) -> 0.001354244026 | M31: =IF(取引額表!M$54=0,0,取引額表!M31/取引額表!M$54) -> 0.002797721172 | N31: =IF(取引額表!N$54=0,0,取引額表!N31/取引額表!N$54) -> 0.00249310418 | O31: =IF(取引額表!O$54=0,0,取引額表!O31/取引額表!O$54) -> 0.00103086532 | P31: =IF(取引額表!P$54=0,0,取引額表!P31/取引額表!P$54) -> 0.0001802451334 | Q31: =IF(取引額表!Q$54=0,0,取引額表!Q31/取引額表!Q$54) -> 0.0007498337062 | R31: =IF(取引額表!R$54=0,0,取引額表!R31/取引額表!R$54) -> 0.0006077180188 | S31: =IF(取引額表!S$54=0,0,取引額表!S31/取引額表!S$54) -> 0.001068947087 | T31: =IF(取引額表!T$54=0,0,取引額表!T31/取引額表!T$54) -> 0.0004840739665 | U31: =IF(取引額表!U$54=0,0,取引額表!U31/取引額表!U$54) -> 0 | V31: =IF(取引額表!V$54=0,0,取引額表!V31/取引額表!V$54) -> 0 | W31: =IF(取引額表!W$54=0,0,取引額表!W31/取引額表!W$54) -> 0.00138121547 | X31: =IF(取引額表!X$54=0,0,取引額表!X31/取引額表!X$54) -> 0.001016855622 | Y31: =IF(取引額表!Y$54=0,0,取引額表!Y31/取引額表!Y$54) -> 0.002431897202 | Z31: =IF(取引額表!Z$54=0,0,取引額表!Z31/取引額表!Z$54) -> 0.08402403193 | AA31: =IF(取引額表!AA$54=0,0,取引額表!AA31/取引額表!AA$54) -> 0.01483814523 | AB31: =IF(取引額表!AB$54=0,0,取引額表!AB31/取引額表!AB$54) -> 0.00248046575 | AC31: =IF(取引額表!AC$54=0,0,取引額表!AC31/取引額表!AC$54) -> 0.001297582493 | AD31: =IF(取引額表!AD$54=0,0,取引額表!AD31/取引額表!AD$54) -> 0.0005397588808 | AE31: =IF(取引額表!AE$54=0,0,取引額表!AE31/取引額表!AE$54) -> 0.003565392964 | AF31: =IF(取引額表!AF$54=0,0,取引額表!AF31/取引額表!AF$54) -> 0.001875316776 | AG31: =IF(取引額表!AG$54=0,0,取引額表!AG31/取引額表!AG$54) -> 0.003551253104 | AH31: =IF(取引額表!AH$54=0,0,取引額表!AH31/取引額表!AH$54) -> 0.01100069807 | AI31: =IF(取引額表!AI$54=0,0,取引額表!AI31/取引額表!AI$54) -> 0.006222310979 | AJ31: =IF(取引額表!AJ$54=0,0,取引額表!AJ31/取引額表!AJ$54) -> 0.002409961173 | AK31: =IF(取引額表!AK$54=0,0,取引額表!AK31/取引額表!AK$54) -> 0.0007400373293 | AL31: =IF(取引額表!AL$54=0,0,取引額表!AL31/取引額表!AL$54) -> 0.01157074995 | AM31: =IF(取引額表!AM$54=0,0,取引額表!AM31/取引額表!AM$54) -> 0 | AN31: =IF(取引額表!AN$54=0,0,取引額表!AN31/取引額表!AN$54) -> 0.003921239112 | AO31: =IF(取引額表!AO$54=0,0,取引額表!AO31/取引額表!AO$54) -> 0.003740152459 | AP31: =IF(取引額表!AP$46=0,0,取引額表!AP31/取引額表!AP$46) -> 0.000248785817 | AQ31: =IF(取引額表!AQ$46=0,0,取引額表!AQ31/取引額表!AQ$46) -> 0.008442092093 | AR31: =IF(取引額表!AR$46=0,0,取引額表!AR31/取引額表!AR$46) -> -0.002082726513 | AS31: =IF(取引額表!AS$46=0,0,取引額表!AS31/取引額表!AS$46) -> 0 | AT31: =IF(取引額表!AT$46=0,0,取引額表!AT31/取引額表!AT$46) -> 0 | AU31: =IF(取引額表!AU$46=0,0,取引額表!AU31/取引額表!AU$46) -> 0 | AV31: =IF(取引額表!AV$46=0,0,取引額表!AV31/取引額表!AV$46) -> 0 | AW31: =IF(取引額表!AW$46=0,0,取引額表!AW31/取引額表!AW$46) -> 0.004850360358 | AX31: =IF(取引額表!AX$46=0,0,取引額表!AX31/取引額表!AX$46) -> 0.006155104189 | AY31: =IF(取引額表!AY$46=0,0,取引額表!AY31/取引額表!AY$46) -> 0.000305762199 | AZ31: =IF(取引額表!AZ$46=0,0,取引額表!AZ31/取引額表!AZ$46) -> 0 | BA31: =IF(取引額表!BA$46=0,0,取引額表!BA31/取引額表!BA$46) -> 4.74640961e-05 | BB31: =IF(取引額表!BB$46=0,0,取引額表!BB31/取引額表!BB$46) -> 0.003273945656 | BC31: =IF(取引額表!BC$46=0,0,取引額表!BC31/取引額表!BC$46) -> 0.004832500137 | BD31: =IF(取引額表!BD$46=0,0,取引額表!BD31/取引額表!BD$46) -> 0 | BE31: =IF(取引額表!BE$46=0,0,取引額表!BE31/取引額表!BE$46) -> 0 | BF31: =IF(取引額表!BF$46=0,0,取引額表!BF31/取引額表!BF$46) -> 0 | BG31: =IF(取引額表!BG$46=0,0,取引額表!BG31/取引額表!BG$46) -> 0.005770881973 | BH31: =IF(取引額表!BH$46=0,0,取引額表!BH31/取引額表!BH$46) -> 0.006763149481
B32: 48 | C32: 廃棄物処理 | D32: =IF(取引額表!D$54=0,0,取引額表!D32/取引額表!D$54) -> 0.0008378718056 | E32: =IF(取引額表!E$54=0,0,取引額表!E32/取引額表!E$54) -> 0.004048582996 | F32: =IF(取引額表!F$54=0,0,取引額表!F32/取引額表!F$54) -> 0.0005875122999 | G32: =IF(取引額表!G$54=0,0,取引額表!G32/取引額表!G$54) -> 0 | H32: =IF(取引額表!H$54=0,0,取引額表!H32/取引額表!H$54) -> 0.0001481591229 | I32: =IF(取引額表!I$54=0,0,取引額表!I32/取引額表!I$54) -> 0.004964585954 | J32: =IF(取引額表!J$54=0,0,取引額表!J32/取引額表!J$54) -> 0.0004239628968 | K32: =IF(取引額表!K$54=0,0,取引額表!K32/取引額表!K$54) -> 0 | L32: =IF(取引額表!L$54=0,0,取引額表!L32/取引額表!L$54) -> 0.006858590713 | M32: =IF(取引額表!M$54=0,0,取引額表!M32/取引額表!M$54) -> 0.0002297274101 | N32: =IF(取引額表!N$54=0,0,取引額表!N32/取引額表!N$54) -> 0 | O32: =IF(取引額表!O$54=0,0,取引額表!O32/取引額表!O$54) -> 6.06391365e-05 | P32: =IF(取引額表!P$54=0,0,取引額表!P32/取引額表!P$54) -> 0 | Q32: =IF(取引額表!Q$54=0,0,取引額表!Q32/取引額表!Q$54) -> 2.418818407e-05 | R32: =IF(取引額表!R$54=0,0,取引額表!R32/取引額表!R$54) -> 0 | S32: =IF(取引額表!S$54=0,0,取引額表!S32/取引額表!S$54) -> 0.0007126313914 | T32: =IF(取引額表!T$54=0,0,取引額表!T32/取引額表!T$54) -> 0 | U32: =IF(取引額表!U$54=0,0,取引額表!U32/取引額表!U$54) -> 0 | V32: =IF(取引額表!V$54=0,0,取引額表!V32/取引額表!V$54) -> 0 | W32: =IF(取引額表!W$54=0,0,取引額表!W32/取引額表!W$54) -> 0.0003634777552 | X32: =IF(取引額表!X$54=0,0,取引額表!X32/取引額表!X$54) -> 0.001360974445 | Y32: =IF(取引額表!Y$54=0,0,取引額表!Y32/取引額表!Y$54) -> 0.01017913471 | Z32: =IF(取引額表!Z$54=0,0,取引額表!Z32/取引額表!Z$54) -> 0.002148840065 | AA32: =IF(取引額表!AA$54=0,0,取引額表!AA32/取引額表!AA$54) -> 0 | AB32: =IF(取引額表!AB$54=0,0,取引額表!AB32/取引額表!AB$54) -> 0.001968549742 | AC32: =IF(取引額表!AC$54=0,0,取引額表!AC32/取引額表!AC$54) -> 0.00294905112 | AD32: =IF(取引額表!AD$54=0,0,取引額表!AD32/取引額表!AD$54) -> 2.282562431e-05 | AE32: =IF(取引額表!AE$54=0,0,取引額表!AE32/取引額表!AE$54) -> 0.006104266195 | AF32: =IF(取引額表!AF$54=0,0,取引額表!AF32/取引額表!AF$54) -> 0.004308160162 | AG32: =IF(取引額表!AG$54=0,0,取引額表!AG32/取引額表!AG$54) -> 0.03886481015 | AH32: =IF(取引額表!AH$54=0,0,取引額表!AH32/取引額表!AH$54) -> 0.005284769844 | AI32: =IF(取引額表!AI$54=0,0,取引額表!AI32/取引額表!AI$54) -> 0.005087159652 | AJ32: =IF(取引額表!AJ$54=0,0,取引額表!AJ32/取引額表!AJ$54) -> 0 | AK32: =IF(取引額表!AK$54=0,0,取引額表!AK32/取引額表!AK$54) -> 0.0003913029241 | AL32: =IF(取引額表!AL$54=0,0,取引額表!AL32/取引額表!AL$54) -> 0.02137245133 | AM32: =IF(取引額表!AM$54=0,0,取引額表!AM32/取引額表!AM$54) -> 0 | AN32: =IF(取引額表!AN$54=0,0,取引額表!AN32/取引額表!AN$54) -> 0.006946194998 | AO32: =IF(取引額表!AO$54=0,0,取引額表!AO32/取引額表!AO$54) -> 0.004406294359 | AP32: =IF(取引額表!AP$46=0,0,取引額表!AP32/取引額表!AP$46) -> 0 | AQ32: =IF(取引額表!AQ$46=0,0,取引額表!AQ32/取引額表!AQ$46) -> 0.001292532444 | AR32: =IF(取引額表!AR$46=0,0,取引額表!AR32/取引額表!AR$46) -> 0.01062320766 | AS32: =IF(取引額表!AS$46=0,0,取引額表!AS32/取引額表!AS$46) -> 0 | AT32: =IF(取引額表!AT$46=0,0,取引額表!AT32/取引額表!AT$46) -> 0 | AU32: =IF(取引額表!AU$46=0,0,取引額表!AU32/取引額表!AU$46) -> 0 | AV32: =IF(取引額表!AV$46=0,0,取引額表!AV32/取引額表!AV$46) -> 0 | AW32: =IF(取引額表!AW$46=0,0,取引額表!AW32/取引額表!AW$46) -> 0.002951145912 | AX32: =IF(取引額表!AX$46=0,0,取引額表!AX32/取引額表!AX$46) -> 0.005688220284 | AY32: =IF(取引額表!AY$46=0,0,取引額表!AY32/取引額表!AY$46) -> 0.0001702181314 | AZ32: =IF(取引額表!AZ$46=0,0,取引額表!AZ32/取引額表!AZ$46) -> 0.01190794771 | BA32: =IF(取引額表!BA$46=0,0,取引額表!BA32/取引額表!BA$46) -> 0.01008587576 | BB32: =IF(取引額表!BB$46=0,0,取引額表!BB32/取引額表!BB$46) -> 0.005292918962 | BC32: =IF(取引額表!BC$46=0,0,取引額表!BC32/取引額表!BC$46) -> 0.006640528682 | BD32: =IF(取引額表!BD$46=0,0,取引額表!BD32/取引額表!BD$46) -> 1.698577272e-06 | BE32: =IF(取引額表!BE$46=0,0,取引額表!BE32/取引額表!BE$46) -> 0.002620985458 | BF32: =IF(取引額表!BF$46=0,0,取引額表!BF32/取引額表!BF$46) -> 0.002048593879 | BG32: =IF(取引額表!BG$46=0,0,取引額表!BG32/取引額表!BG$46) -> 0.007767264591 | BH32: =IF(取引額表!BH$46=0,0,取引額表!BH32/取引額表!BH$46) -> 0.008475068913
B33: 51 | C33: 商業 | D33: =IF(取引額表!D$54=0,0,取引額表!D33/取引額表!D$54) -> 0.04042731462 | E33: =IF(取引額表!E$54=0,0,取引額表!E33/取引額表!E$54) -> 0.02226720648 | F33: =IF(取引額表!F$54=0,0,取引額表!F33/取引額表!F$54) -> 0.02987662242 | G33: =IF(取引額表!G$54=0,0,取引額表!G33/取引額表!G$54) -> 0.07047279215 | H33: =IF(取引額表!H$54=0,0,取引額表!H33/取引額表!H$54) -> 0.05415215942 | I33: =IF(取引額表!I$54=0,0,取引額表!I33/取引額表!I$54) -> 0.03806182564 | J33: =IF(取引額表!J$54=0,0,取引額表!J33/取引額表!J$54) -> 0.01022649897 | K33: =IF(取引額表!K$54=0,0,取引額表!K33/取引額表!K$54) -> 0.04176157935 | L33: =IF(取引額表!L$54=0,0,取引額表!L33/取引額表!L$54) -> 0.02538115417 | M33: =IF(取引額表!M$54=0,0,取引額表!M33/取引額表!M$54) -> 0.04715731545 | N33: =IF(取引額表!N$54=0,0,取引額表!N33/取引額表!N$54) -> 0.05983450032 | O33: =IF(取引額表!O$54=0,0,取引額表!O33/取引額表!O$54) -> 0.05254381178 | P33: =IF(取引額表!P$54=0,0,取引額表!P33/取引額表!P$54) -> 0.02541456381 | Q33: =IF(取引額表!Q$54=0,0,取引額表!Q33/取引額表!Q$54) -> 0.02808248171 | R33: =IF(取引額表!R$54=0,0,取引額表!R33/取引額表!R$54) -> 0.03585536311 | S33: =IF(取引額表!S$54=0,0,取引額表!S33/取引額表!S$54) -> 0.02333867807 | T33: =IF(取引額表!T$54=0,0,取引額表!T33/取引額表!T$54) -> 0.03795139897 | U33: =IF(取引額表!U$54=0,0,取引額表!U33/取引額表!U$54) -> 0.02528445006 | V33: =IF(取引額表!V$54=0,0,取引額表!V33/取引額表!V$54) -> 0.02784503632 | W33: =IF(取引額表!W$54=0,0,取引額表!W33/取引額表!W$54) -> 0.04594358825 | X33: =IF(取引額表!X$54=0,0,取引額表!X33/取引額表!X$54) -> 0.02560430056 | Y33: =IF(取引額表!Y$54=0,0,取引額表!Y33/取引額表!Y$54) -> 0.008669681273 | Z33: =IF(取引額表!Z$54=0,0,取引額表!Z33/取引額表!Z$54) -> 0.008880410472 | AA33: =IF(取引額表!AA$54=0,0,取引額表!AA33/取引額表!AA$54) -> 0.01070866142 | AB33: =IF(取引額表!AB$54=0,0,取引額表!AB33/取引額表!AB$54) -> 0.006405155149 | AC33: =IF(取引額表!AC$54=0,0,取引額表!AC33/取引額表!AC$54) -> 0.002877558972 | AD33: =IF(取引額表!AD$54=0,0,取引額表!AD33/取引額表!AD$54) -> 0.001048636035 | AE33: =IF(取引額表!AE$54=0,0,取引額表!AE33/取引額表!AE$54) -> 0.01073013501 | AF33: =IF(取引額表!AF$54=0,0,取引額表!AF33/取引額表!AF$54) -> 0.005542321338 | AG33: =IF(取引額表!AG$54=0,0,取引額表!AG33/取引額表!AG$54) -> 0.006094659711 | AH33: =IF(取引額表!AH$54=0,0,取引額表!AH33/取引額表!AH$54) -> 0.009752391902 | AI33: =IF(取引額表!AI$54=0,0,取引額表!AI33/取引額表!AI$54) -> 0.006910759238 | AJ33: =IF(取引額表!AJ$54=0,0,取引額表!AJ33/取引額表!AJ$54) -> 0.01951399116 | AK33: =IF(取引額表!AK$54=0,0,取引額表!AK33/取引額表!AK$54) -> 0.009613936278 | AL33: =IF(取引額表!AL$54=0,0,取引額表!AL33/取引額表!AL$54) -> 0.0378373914 | AM33: =IF(取引額表!AM$54=0,0,取引額表!AM33/取引額表!AM$54) -> 0.1474186445 | AN33: =IF(取引額表!AN$54=0,0,取引額表!AN33/取引額表!AN$54) -> 0.00739433661 | AO33: =IF(取引額表!AO$54=0,0,取引額表!AO33/取引額表!AO$54) -> 0.01868430153 | AP33: =IF(取引額表!AP$46=0,0,取引額表!AP33/取引額表!AP$46) -> 0.1187141018 | AQ33: =IF(取引額表!AQ$46=0,0,取引額表!AQ33/取引額表!AQ$46) -> 0.1623327987 | AR33: =IF(取引額表!AR$46=0,0,取引額表!AR33/取引額表!AR$46) -> 0.001443344866 | AS33: =IF(取引額表!AS$46=0,0,取引額表!AS33/取引額表!AS$46) -> 0.1017474227 | AT33: =IF(取引額表!AT$46=0,0,取引額表!AT33/取引額表!AT$46) -> 0.06245000734 | AU33: =IF(取引額表!AU$46=0,0,取引額表!AU33/取引額表!AU$46) -> 0.1601402688 | AV33: =IF(取引額表!AV$46=0,0,取引額表!AV33/取引額表!AV$46) -> 0 | AW33: =IF(取引額表!AW$46=0,0,取引額表!AW33/取引額表!AW$46) -> 0.1153239638 | AX33: =IF(取引額表!AX$46=0,0,取引額表!AX33/取引額表!AX$46) -> 0.08228206686 | AY33: =IF(取引額表!AY$46=0,0,取引額表!AY33/取引額表!AY$46) -> 0.172497163 | AZ33: =IF(取引額表!AZ$46=0,0,取引額表!AZ33/取引額表!AZ$46) -> 0.1459838625 | BA33: =IF(取引額表!BA$46=0,0,取引額表!BA33/取引額表!BA$46) -> 0.1500995767 | BB33: =IF(取引額表!BB$46=0,0,取引額表!BB33/取引額表!BB$46) -> 0.1267380741 | BC33: =IF(取引額表!BC$46=0,0,取引額表!BC33/取引額表!BC$46) -> 0.09696788855 | BD33: =IF(取引額表!BD$46=0,0,取引額表!BD33/取引額表!BD$46) -> 0.001081993722 | BE33: =IF(取引額表!BE$46=0,0,取引額表!BE33/取引額表!BE$46) -> 0.1281736937 | BF33: =IF(取引額表!BF$46=0,0,取引額表!BF33/取引額表!BF$46) -> 0.1004004019 | BG33: =IF(取引額表!BG$46=0,0,取引額表!BG33/取引額表!BG$46) -> 0.1468249958 | BH33: =IF(取引額表!BH$46=0,0,取引額表!BH33/取引額表!BH$46) -> 0.09559655291
B34: 53 | C34: 金融・保険 | D34: =IF(取引額表!D$54=0,0,取引額表!D34/取引額表!D$54) -> 0.01103197877 | E34: =IF(取引額表!E$54=0,0,取引額表!E34/取引額表!E$54) -> 0.07085020243 | F34: =IF(取引額表!F$54=0,0,取引額表!F34/取引額表!F$54) -> 0.005961627878 | G34: =IF(取引額表!G$54=0,0,取引額表!G34/取引額表!G$54) -> 0.02765388046 | H34: =IF(取引額表!H$54=0,0,取引額表!H34/取引額表!H$54) -> 0.01911252685 | I34: =IF(取引額表!I$54=0,0,取引額表!I34/取引額表!I$54) -> 0.0109220891 | J34: =IF(取引額表!J$54=0,0,取引額表!J34/取引額表!J$54) -> 0.007155979804 | K34: =IF(取引額表!K$54=0,0,取引額表!K34/取引額表!K$54) -> 0.004650721336 | L34: =IF(取引額表!L$54=0,0,取引額表!L34/取引額表!L$54) -> 0.01633829889 | M34: =IF(取引額表!M$54=0,0,取引額表!M34/取引額表!M$54) -> 0.01179637441 | N34: =IF(取引額表!N$54=0,0,取引額表!N34/取引額表!N$54) -> 0.009760237641 | O34: =IF(取引額表!O$54=0,0,取引額表!O34/取引額表!O$54) -> 0.02346734582 | P34: =IF(取引額表!P$54=0,0,取引額表!P34/取引額表!P$54) -> 0.008651766402 | Q34: =IF(取引額表!Q$54=0,0,取引額表!Q34/取引額表!Q$54) -> 0.01076374191 | R34: =IF(取引額表!R$54=0,0,取引額表!R34/取引額表!R$54) -> 0.02278942571 | S34: =IF(取引額表!S$54=0,0,取引額表!S34/取引額表!S$54) -> 0.007304471762 | T34: =IF(取引額表!T$54=0,0,取引額表!T34/取引額表!T$54) -> 0.007551553877 | U34: =IF(取引額表!U$54=0,0,取引額表!U34/取引額表!U$54) -> 0.009270965023 | V34: =IF(取引額表!V$54=0,0,取引額表!V34/取引額表!V$54) -> 0.006053268765 | W34: =IF(取引額表!W$54=0,0,取引額表!W34/取引額表!W$54) -> 0.01661093341 | X34: =IF(取引額表!X$54=0,0,取引額表!X34/取引額表!X$54) -> 0.01988448768 | Y34: =IF(取引額表!Y$54=0,0,取引額表!Y34/取引額表!Y$54) -> 0.02450604104 | Z34: =IF(取引額表!Z$54=0,0,取引額表!Z34/取引額表!Z$54) -> 0.005744858133 | AA34: =IF(取引額表!AA$54=0,0,取引額表!AA34/取引額表!AA$54) -> 0.01114610674 | AB34: =IF(取引額表!AB$54=0,0,取引額表!AB34/取引額表!AB$54) -> 0.0229881313 | AC34: =IF(取引額表!AC$54=0,0,取引額表!AC34/取引額表!AC$54) -> 0.06675579354 | AD34: =IF(取引額表!AD$54=0,0,取引額表!AD34/取引額表!AD$54) -> 0.09429936746 | AE34: =IF(取引額表!AE$54=0,0,取引額表!AE34/取引額表!AE$54) -> 0.03020527783 | AF34: =IF(取引額表!AF$54=0,0,取引額表!AF34/取引額表!AF$54) -> 0.006203750634 | AG34: =IF(取引額表!AG$54=0,0,取引額表!AG34/取引額表!AG$54) -> 0.04855397818 | AH34: =IF(取引額表!AH$54=0,0,取引額表!AH34/取引額表!AH$54) -> 0.002496612327 | AI34: =IF(取引額表!AI$54=0,0,取引額表!AI34/取引額表!AI$54) -> 0.009667179937 | AJ34: =IF(取引額表!AJ$54=0,0,取引額表!AJ34/取引額表!AJ$54) -> 0.08344490561 | AK34: =IF(取引額表!AK$54=0,0,取引額表!AK34/取引額表!AK$54) -> 0.01442581617 | AL34: =IF(取引額表!AL$54=0,0,取引額表!AL34/取引額表!AL$54) -> 0.008576155676 | AM34: =IF(取引額表!AM$54=0,0,取引額表!AM34/取引額表!AM$54) -> 0 | AN34: =IF(取引額表!AN$54=0,0,取引額表!AN34/取引額表!AN$54) -> 0.007926504776 | AO34: =IF(取引額表!AO$54=0,0,取引額表!AO34/取引額表!AO$54) -> 0.0265408313 | AP34: =IF(取引額表!AP$46=0,0,取引額表!AP34/取引額表!AP$46) -> 1.081677465e-05 | AQ34: =IF(取引額表!AQ$46=0,0,取引額表!AQ34/取引額表!AQ$46) -> 0.07192337414 | AR34: =IF(取引額表!AR$46=0,0,取引額表!AR34/取引額表!AR$46) -> 0 | AS34: =IF(取引額表!AS$46=0,0,取引額表!AS34/取引額表!AS$46) -> 0 | AT34: =IF(取引額表!AT$46=0,0,取引額表!AT34/取引額表!AT$46) -> 0 | AU34: =IF(取引額表!AU$46=0,0,取引額表!AU34/取引額表!AU$46) -> 0 | AV34: =IF(取引額表!AV$46=0,0,取引額表!AV34/取引額表!AV$46) -> 0 | AW34: =IF(取引額表!AW$46=0,0,取引額表!AW34/取引額表!AW$46) -> 0.04485937828 | AX34: =IF(取引額表!AX$46=0,0,取引額表!AX34/取引額表!AX$46) -> 0.04958409868 | AY34: =IF(取引額表!AY$46=0,0,取引額表!AY34/取引額表!AY$46) -> 0.02494326062 | AZ34: =IF(取引額表!AZ$46=0,0,取引額表!AZ34/取引額表!AZ$46) -> 0.002159973587 | BA34: =IF(取引額表!BA$46=0,0,取引額表!BA34/取引額表!BA$46) -> 0.005696670173 | BB34: =IF(取引額表!BB$46=0,0,取引額表!BB34/取引額表!BB$46) -> 0.03200532825 | BC34: =IF(取引額表!BC$46=0,0,取引額表!BC34/取引額表!BC$46) -> 0.04008031491 | BD34: =IF(取引額表!BD$46=0,0,取引額表!BD34/取引額表!BD$46) -> 0.01408969847 | BE34: =IF(取引額表!BE$46=0,0,取引額表!BE34/取引額表!BE$46) -> 0.0428467949 | BF34: =IF(取引額表!BF$46=0,0,取引額表!BF34/取引額表!BF$46) -> 0.0365625196 | BG34: =IF(取引額表!BG$46=0,0,取引額表!BG34/取引額表!BG$46) -> 0.02852970044 | BH34: =IF(取引額表!BH$46=0,0,取引額表!BH34/取引額表!BH$46) -> 0.04148572184
B35: 55 | C35: 不動産 | D35: =IF(取引額表!D$54=0,0,取引額表!D35/取引額表!D$54) -> 0.01417399804 | E35: =IF(取引額表!E$54=0,0,取引額表!E35/取引額表!E$54) -> 0.006072874494 | F35: =IF(取引額表!F$54=0,0,取引額表!F35/取引額表!F$54) -> 0.002631190055 | G35: =IF(取引額表!G$54=0,0,取引額表!G35/取引額表!G$54) -> 0.00267618198 | H35: =IF(取引額表!H$54=0,0,取引額表!H35/取引額表!H$54) -> 0.003926216757 | I35: =IF(取引額表!I$54=0,0,取引額表!I35/取引額表!I$54) -> 0.002846362613 | J35: =IF(取引額表!J$54=0,0,取引額表!J35/取引額表!J$54) -> 0.0007965363516 | K35: =IF(取引額表!K$54=0,0,取引額表!K35/取引額表!K$54) -> 0.004271070615 | L35: =IF(取引額表!L$54=0,0,取引額表!L35/取引額表!L$54) -> 0.003320082128 | M35: =IF(取引額表!M$54=0,0,取引額表!M35/取引額表!M$54) -> 0.001767790851 | N35: =IF(取引額表!N$54=0,0,取引額表!N35/取引額表!N$54) -> 0.001166984935 | O35: =IF(取引額表!O$54=0,0,取引額表!O35/取引額表!O$54) -> 0.006852222424 | P35: =IF(取引額表!P$54=0,0,取引額表!P35/取引額表!P$54) -> 0.003604902668 | Q35: =IF(取引額表!Q$54=0,0,取引額表!Q35/取引額表!Q$54) -> 0.002938864365 | R35: =IF(取引額表!R$54=0,0,取引額表!R35/取引額表!R$54) -> 0.001671224552 | S35: =IF(取引額表!S$54=0,0,取引額表!S35/取引額表!S$54) -> 0.001068947087 | T35: =IF(取引額表!T$54=0,0,取引額表!T35/取引額表!T$54) -> 0.002710814212 | U35: =IF(取引額表!U$54=0,0,取引額表!U35/取引額表!U$54) -> 0.001474926254 | V35: =IF(取引額表!V$54=0,0,取引額表!V35/取引額表!V$54) -> 0 | W35: =IF(取引額表!W$54=0,0,取引額表!W35/取引額表!W$54) -> 0.002471648735 | X35: =IF(取引額表!X$54=0,0,取引額表!X35/取引額表!X$54) -> 0.006225140515 | Y35: =IF(取引額表!Y$54=0,0,取引額表!Y35/取引額表!Y$54) -> 0.01159182831 | Z35: =IF(取引額表!Z$54=0,0,取引額表!Z35/取引額表!Z$54) -> 0.001688374337 | AA35: =IF(取引額表!AA$54=0,0,取引額表!AA35/取引額表!AA$54) -> 0.003692038495 | AB35: =IF(取引額表!AB$54=0,0,取引額表!AB35/取引額表!AB$54) -> 0.03835491913 | AC35: =IF(取引額表!AC$54=0,0,取引額表!AC35/取引額表!AC$54) -> 0.01979617588 | AD35: =IF(取引額表!AD$54=0,0,取引額表!AD35/取引額表!AD$54) -> 0.02822992654 | AE35: =IF(取引額表!AE$54=0,0,取引額表!AE35/取引額表!AE$54) -> 0.0455456096 | AF35: =IF(取引額表!AF$54=0,0,取引額表!AF35/取引額表!AF$54) -> 0.02945767866 | AG35: =IF(取引額表!AG$54=0,0,取引額表!AG35/取引額表!AG$54) -> 0.0008045469881 | AH35: =IF(取引額表!AH$54=0,0,取引額表!AH35/取引額表!AH$54) -> 0.005929454277 | AI35: =IF(取引額表!AI$54=0,0,取引額表!AI35/取引額表!AI$54) -> 0.02427174261 | AJ35: =IF(取引額表!AJ$54=0,0,取引額表!AJ35/取引額表!AJ$54) -> 0.01569821931 | AK35: =IF(取引額表!AK$54=0,0,取引額表!AK35/取引額表!AK$54) -> 0.007398736042 | AL35: =IF(取引額表!AL$54=0,0,取引額表!AL35/取引額表!AL$54) -> 0.01724822362 | AM35: =IF(取引額表!AM$54=0,0,取引額表!AM35/取引額表!AM$54) -> 0 | AN35: =IF(取引額表!AN$54=0,0,取引額表!AN35/取引額表!AN$54) -> 0.04358177184 | AO35: =IF(取引額表!AO$54=0,0,取引額表!AO35/取引額表!AO$54) -> 0.01664598443 | AP35: =IF(取引額表!AP$46=0,0,取引額表!AP35/取引額表!AP$46) -> 0 | AQ35: =IF(取引額表!AQ$46=0,0,取引額表!AQ35/取引額表!AQ$46) -> 0.1937046924 | AR35: =IF(取引額表!AR$46=0,0,取引額表!AR35/取引額表!AR$46) -> 0.158111977 | AS35: =IF(取引額表!AS$46=0,0,取引額表!AS35/取引額表!AS$46) -> 0 | AT35: =IF(取引額表!AT$46=0,0,取引額表!AT35/取引額表!AT$46) -> 0 | AU35: =IF(取引額表!AU$46=0,0,取引額表!AU35/取引額表!AU$46) -> 0 | AV35: =IF(取引額表!AV$46=0,0,取引額表!AV35/取引額表!AV$46) -> 0 | AW35: =IF(取引額表!AW$46=0,0,取引額表!AW35/取引額表!AW$46) -> 0.1527402097 | AX35: =IF(取引額表!AX$46=0,0,取引額表!AX35/取引額表!AX$46) -> 0.1015902591 | AY35: =IF(取引額表!AY$46=0,0,取引額表!AY35/取引額表!AY$46) -> 0.001166309419 | AZ35: =IF(取引額表!AZ$46=0,0,取引額表!AZ35/取引額表!AZ$46) -> 0 | BA35: =IF(取引額表!BA$46=0,0,取引額表!BA35/取引額表!BA$46) -> 0.000181048614 | BB35: =IF(取引額表!BB$46=0,0,取引額表!BB35/取引額表!BB$46) -> 0.1026669849 | BC35: =IF(取引額表!BC$46=0,0,取引額表!BC35/取引額表!BC$46) -> 0.07963018436 | BD35: =IF(取引額表!BD$46=0,0,取引額表!BD35/取引額表!BD$46) -> 0 | BE35: =IF(取引額表!BE$46=0,0,取引額表!BE35/取引額表!BE$46) -> 0.003192396387 | BF35: =IF(取引額表!BF$46=0,0,取引額表!BF35/取引額表!BF$46) -> 0.002494763447 | BG35: =IF(取引額表!BG$46=0,0,取引額表!BG35/取引額表!BG$46) -> 0.1790652162 | BH35: =IF(取引額表!BH$46=0,0,取引額表!BH35/取引額表!BH$46) -> 0.1104468311
B36: 57 | C36: 運輸・郵便 | D36: =IF(取引額表!D$54=0,0,取引額表!D36/取引額表!D$54) -> 0.04859656473 | E36: =IF(取引額表!E$54=0,0,取引額表!E36/取引額表!E$54) -> 0.3319838057 | F36: =IF(取引額表!F$54=0,0,取引額表!F36/取引額表!F$54) -> 0.04541506122 | G36: =IF(取引額表!G$54=0,0,取引額表!G36/取引額表!G$54) -> 0.01962533452 | H36: =IF(取引額表!H$54=0,0,取引額表!H36/取引額表!H$54) -> 0.04444773687 | I36: =IF(取引額表!I$54=0,0,取引額表!I36/取引額表!I$54) -> 0.02654398623 | J36: =IF(取引額表!J$54=0,0,取引額表!J36/取引額表!J$54) -> 0.03863201305 | K36: =IF(取引額表!K$54=0,0,取引額表!K36/取引額表!K$54) -> 0.01746393318 | L36: =IF(取引額表!L$54=0,0,取引額表!L36/取引額表!L$54) -> 0.05858197545 | M36: =IF(取引額表!M$54=0,0,取引額表!M36/取引額表!M$54) -> 0.03288517985 | N36: =IF(取引額表!N$54=0,0,取引額表!N36/取引額表!N$54) -> 0.03012942924 | O36: =IF(取引額表!O$54=0,0,取引額表!O36/取引額表!O$54) -> 0.03820265599 | P36: =IF(取引額表!P$54=0,0,取引額表!P36/取引額表!P$54) -> 0.01694304254 | Q36: =IF(取引額表!Q$54=0,0,取引額表!Q36/取引額表!Q$54) -> 0.01815323215 | R36: =IF(取引額表!R$54=0,0,取引額表!R36/取引額表!R$54) -> 0.01975083561 | S36: =IF(取引額表!S$54=0,0,取引額表!S36/取引額表!S$54) -> 0.01104578657 | T36: =IF(取引額表!T$54=0,0,取引額表!T36/取引額表!T$54) -> 0.0202342918 | U36: =IF(取引額表!U$54=0,0,取引額表!U36/取引額表!U$54) -> 0.01432785504 | V36: =IF(取引額表!V$54=0,0,取引額表!V36/取引額表!V$54) -> 0.009685230024 | W36: =IF(取引額表!W$54=0,0,取引額表!W36/取引額表!W$54) -> 0.1387758069 | X36: =IF(取引額表!X$54=0,0,取引額表!X36/取引額表!X$54) -> 0.03448318623 | Y36: =IF(取引額表!Y$54=0,0,取引額表!Y36/取引額表!Y$54) -> 0.04379995227 | Z36: =IF(取引額表!Z$54=0,0,取引額表!Z36/取引額表!Z$54) -> 0.01276147875 | AA36: =IF(取引額表!AA$54=0,0,取引額表!AA36/取引額表!AA$54) -> 0.05669291339 | AB36: =IF(取引額表!AB$54=0,0,取引額表!AB36/取引額表!AB$54) -> 0.04139538996 | AC36: =IF(取引額表!AC$54=0,0,取引額表!AC36/取引額表!AC$54) -> 0.02366747572 | AD36: =IF(取引額表!AD$54=0,0,取引額表!AD36/取引額表!AD$54) -> 0.00196971711 | AE36: =IF(取引額表!AE$54=0,0,取引額表!AE36/取引額表!AE$54) -> 0.08616758131 | AF36: =IF(取引額表!AF$54=0,0,取引額表!AF36/取引額表!AF$54) -> 0.01701723264 | AG36: =IF(取引額表!AG$54=0,0,取引額表!AG36/取引額表!AG$54) -> 0.02035157838 | AH36: =IF(取引額表!AH$54=0,0,取引額表!AH36/取引額表!AH$54) -> 0.02361926662 | AI36: =IF(取引額表!AI$54=0,0,取引額表!AI36/取引額表!AI$54) -> 0.01217922778 | AJ36: =IF(取引額表!AJ$54=0,0,取引額表!AJ36/取引額表!AJ$54) -> 0.02369795153 | AK36: =IF(取引額表!AK$54=0,0,取引額表!AK36/取引額表!AK$54) -> 0.01148040211 | AL36: =IF(取引額表!AL$54=0,0,取引額表!AL36/取引額表!AL$54) -> 0.02984736628 | AM36: =IF(取引額表!AM$54=0,0,取引額表!AM36/取引額表!AM$54) -> 0.04367506729 | AN36: =IF(取引額表!AN$54=0,0,取引額表!AN36/取引額表!AN$54) -> 0.07422345461 | AO36: =IF(取引額表!AO$54=0,0,取引額表!AO36/取引額表!AO$54) -> 0.02945824216 | AP36: =IF(取引額表!AP$46=0,0,取引額表!AP36/取引額表!AP$46) -> 0.0259494424 | AQ36: =IF(取引額表!AQ$46=0,0,取引額表!AQ36/取引額表!AQ$46) -> 0.05119724076 | AR36: =IF(取引額表!AR$46=0,0,取引額表!AR36/取引額表!AR$46) -> -0.0002249676165 | AS36: =IF(取引額表!AS$46=0,0,取引額表!AS36/取引額表!AS$46) -> 0.001713385754 | AT36: =IF(取引額表!AT$46=0,0,取引額表!AT36/取引額表!AT$46) -> 0.008121547082 | AU36: =IF(取引額表!AU$46=0,0,取引額表!AU36/取引額表!AU$46) -> 0.1735827002 | AV36: =IF(取引額表!AV$46=0,0,取引額表!AV36/取引額表!AV$46) -> 0 | AW36: =IF(取引額表!AW$46=0,0,取引額表!AW36/取引額表!AW$46) -> 0.03355924358 | AX36: =IF(取引額表!AX$46=0,0,取引額表!AX36/取引額表!AX$46) -> 0.04585213819 | AY36: =IF(取引額表!AY$46=0,0,取引額表!AY36/取引額表!AY$46) -> 0.138693103 | AZ36: =IF(取引額表!AZ$46=0,0,取引額表!AZ36/取引額表!AZ$46) -> 0.07474759762 | BA36: =IF(取引額表!BA$46=0,0,取引額表!BA36/取引額表!BA$46) -> 0.08467399016 | BB36: =IF(取引額表!BB$46=0,0,取引額表!BB36/取引額表!BB$46) -> 0.05033621181 | BC36: =IF(取引額表!BC$46=0,0,取引額表!BC36/取引額表!BC$46) -> 0.05425897585 | BD36: =IF(取引額表!BD$46=0,0,取引額表!BD36/取引額表!BD$46) -> 0.01547403894 | BE36: =IF(取引額表!BE$46=0,0,取引額表!BE36/取引額表!BE$46) -> 0.05704799519 | BF36: =IF(取引額表!BF$46=0,0,取引額表!BF36/取引額表!BF$46) -> 0.04796285731 | BG36: =IF(取引額表!BG$46=0,0,取引額表!BG36/取引額表!BG$46) -> 0.05214629533 | BH36: =IF(取引額表!BH$46=0,0,取引額表!BH36/取引額表!BH$46) -> 0.0567743606
B37: 59 | C37: 情報通信 | D37: =IF(取引額表!D$54=0,0,取引額表!D37/取引額表!D$54) -> 0.005306521436 | E37: =IF(取引額表!E$54=0,0,取引額表!E37/取引額表!E$54) -> 0.003036437247 | F37: =IF(取引額表!F$54=0,0,取引額表!F37/取引額表!F$54) -> 0.004599176041 | G37: =IF(取引額表!G$54=0,0,取引額表!G37/取引額表!G$54) -> 0.00356824264 | H37: =IF(取引額表!H$54=0,0,取引額表!H37/取引額表!H$54) -> 0.01237128676 | I37: =IF(取引額表!I$54=0,0,取引額表!I37/取引額表!I$54) -> 0.01343747931 | J37: =IF(取引額表!J$54=0,0,取引額表!J37/取引額表!J$54) -> 0.001554530622 | K37: =IF(取引額表!K$54=0,0,取引額表!K37/取引額表!K$54) -> 0.008826879271 | L37: =IF(取引額表!L$54=0,0,取引額表!L37/取引額表!L$54) -> 0.01210082565 | M37: =IF(取引額表!M$54=0,0,取引額表!M37/取引額表!M$54) -> 0.006347820963 | N37: =IF(取引額表!N$54=0,0,取引額表!N37/取引額表!N$54) -> 0.008381073626 | O37: =IF(取引額表!O$54=0,0,取引額表!O37/取引額表!O$54) -> 0.0127038991 | P37: =IF(取引額表!P$54=0,0,取引額表!P37/取引額表!P$54) -> 0.01063446287 | Q37: =IF(取引額表!Q$54=0,0,取引額表!Q37/取引額表!Q$54) -> 0.02318437443 | R37: =IF(取引額表!R$54=0,0,取引額表!R37/取引額表!R$54) -> 0.01306593741 | S37: =IF(取引額表!S$54=0,0,取引額表!S37/取引額表!S$54) -> 0.008017103153 | T37: =IF(取引額表!T$54=0,0,取引額表!T37/取引額表!T$54) -> 0.04008132443 | U37: =IF(取引額表!U$54=0,0,取引額表!U37/取引額表!U$54) -> 0.06068268015 | V37: =IF(取引額表!V$54=0,0,取引額表!V37/取引額表!V$54) -> 0.001210653753 | W37: =IF(取引額表!W$54=0,0,取引額表!W37/取引額表!W$54) -> 0.007087816226 | X37: =IF(取引額表!X$54=0,0,取引額表!X37/取引額表!X$54) -> 0.01054677691 | Y37: =IF(取引額表!Y$54=0,0,取引額表!Y37/取引額表!Y$54) -> 0.01835856615 | Z37: =IF(取引額表!Z$54=0,0,取引額表!Z37/取引額表!Z$54) -> 0.05593562251 | AA37: =IF(取引額表!AA$54=0,0,取引額表!AA37/取引額表!AA$54) -> 0.0127384077 | AB37: =IF(取引額表!AB$54=0,0,取引額表!AB37/取引額表!AB$54) -> 0.04498190454 | AC37: =IF(取引額表!AC$54=0,0,取引額表!AC37/取引額表!AC$54) -> 0.06131524105 | AD37: =IF(取引額表!AD$54=0,0,取引額表!AD37/取引額表!AD$54) -> 0.005210955763 | AE37: =IF(取引額表!AE$54=0,0,取引額表!AE37/取引額表!AE$54) -> 0.01781390477 | AF37: =IF(取引額表!AF$54=0,0,取引額表!AF37/取引額表!AF$54) -> 0.1278205778 | AG37: =IF(取引額表!AG$54=0,0,取引額表!AG37/取引額表!AG$54) -> 0.02767468618 | AH37: =IF(取引額表!AH$54=0,0,取引額表!AH37/取引額表!AH$54) -> 0.02437892662 | AI37: =IF(取引額表!AI$54=0,0,取引額表!AI37/取引額表!AI$54) -> 0.02009901042 | AJ37: =IF(取引額表!AJ$54=0,0,取引額表!AJ37/取引額表!AJ$54) -> 0.05941223725 | AK37: =IF(取引額表!AK$54=0,0,取引額表!AK37/取引額表!AK$54) -> 0.04567274632 | AL37: =IF(取引額表!AL$54=0,0,取引額表!AL37/取引額表!AL$54) -> 0.02465744666 | AM37: =IF(取引額表!AM$54=0,0,取引額表!AM37/取引額表!AM$54) -> 0 | AN37: =IF(取引額表!AN$54=0,0,取引額表!AN37/取引額表!AN$54) -> 0.04442203736 | AO37: =IF(取引額表!AO$54=0,0,取引額表!AO37/取引額表!AO$54) -> 0.02825734788 | AP37: =IF(取引額表!AP$46=0,0,取引額表!AP37/取引額表!AP$46) -> 0.01508940064 | AQ37: =IF(取引額表!AQ$46=0,0,取引額表!AQ37/取引額表!AQ$46) -> 0.06187098288 | AR37: =IF(取引額表!AR$46=0,0,取引額表!AR37/取引額表!AR$46) -> 8.761896643e-05 | AS37: =IF(取引額表!AS$46=0,0,取引額表!AS37/取引額表!AS$46) -> 0.1098355265 | AT37: =IF(取引額表!AT$46=0,0,取引額表!AT37/取引額表!AT$46) -> 0.3418062443 | AU37: =IF(取引額表!AU$46=0,0,取引額表!AU37/取引額表!AU$46) -> -0.04120397428 | AV37: =IF(取引額表!AV$46=0,0,取引額表!AV37/取引額表!AV$46) -> 0.0002594033722 | AW37: =IF(取引額表!AW$46=0,0,取引額表!AW37/取引額表!AW$46) -> 0.08074793284 | AX37: =IF(取引額表!AX$46=0,0,取引額表!AX37/取引額表!AX$46) -> 0.07145257835 | AY37: =IF(取引額表!AY$46=0,0,取引額表!AY37/取引額表!AY$46) -> 0.009286344723 | AZ37: =IF(取引額表!AZ$46=0,0,取引額表!AZ37/取引額表!AZ$46) -> 0.01445543063 | BA37: =IF(取引額表!BA$46=0,0,取引額表!BA37/取引額表!BA$46) -> 0.01365302278 | BB37: =IF(取引額表!BB$46=0,0,取引額表!BB37/取引額表!BB$46) -> 0.05872592843 | BC37: =IF(取引額表!BC$46=0,0,取引額表!BC37/取引額表!BC$46) -> 0.05893613579 | BD37: =IF(取引額表!BD$46=0,0,取引額表!BD37/取引額表!BD$46) -> 0.009348969303 | BE37: =IF(取引額表!BE$46=0,0,取引額表!BE37/取引額表!BE$46) -> 0.0741442492 | BF37: =IF(取引額表!BF$46=0,0,取引額表!BF37/取引額表!BF$46) -> 0.05998456595 | BG37: =IF(取引額表!BG$46=0,0,取引額表!BG37/取引額表!BG$46) -> 0.05776600482 | BH37: =IF(取引額表!BH$46=0,0,取引額表!BH37/取引額表!BH$46) -> 0.05851727372
B38: 61 | C38: 公務 | D38: =IF(取引額表!D$54=0,0,取引額表!D38/取引額表!D$54) -> 0 | E38: =IF(取引額表!E$54=0,0,取引額表!E38/取引額表!E$54) -> 0 | F38: =IF(取引額表!F$54=0,0,取引額表!F38/取引額表!F$54) -> 0 | G38: =IF(取引額表!G$54=0,0,取引額表!G38/取引額表!G$54) -> 0 | H38: =IF(取引額表!H$54=0,0,取引額表!H38/取引額表!H$54) -> 0 | I38: =IF(取引額表!I$54=0,0,取引額表!I38/取引額表!I$54) -> 0 | J38: =IF(取引額表!J$54=0,0,取引額表!J38/取引額表!J$54) -> 0 | K38: =IF(取引額表!K$54=0,0,取引額表!K38/取引額表!K$54) -> 0 | L38: =IF(取引額表!L$54=0,0,取引額表!L38/取引額表!L$54) -> 0 | M38: =IF(取引額表!M$54=0,0,取引額表!M38/取引額表!M$54) -> 0 | N38: =IF(取引額表!N$54=0,0,取引額表!N38/取引額表!N$54) -> 0 | O38: =IF(取引額表!O$54=0,0,取引額表!O38/取引額表!O$54) -> 0 | P38: =IF(取引額表!P$54=0,0,取引額表!P38/取引額表!P$54) -> 0 | Q38: =IF(取引額表!Q$54=0,0,取引額表!Q38/取引額表!Q$54) -> 0 | R38: =IF(取引額表!R$54=0,0,取引額表!R38/取引額表!R$54) -> 0 | S38: =IF(取引額表!S$54=0,0,取引額表!S38/取引額表!S$54) -> 0 | T38: =IF(取引額表!T$54=0,0,取引額表!T38/取引額表!T$54) -> 0 | U38: =IF(取引額表!U$54=0,0,取引額表!U38/取引額表!U$54) -> 0 | V38: =IF(取引額表!V$54=0,0,取引額表!V38/取引額表!V$54) -> 0 | W38: =IF(取引額表!W$54=0,0,取引額表!W38/取引額表!W$54) -> 0 | X38: =IF(取引額表!X$54=0,0,取引額表!X38/取引額表!X$54) -> 0 | Y38: =IF(取引額表!Y$54=0,0,取引額表!Y38/取引額表!Y$54) -> 0 | Z38: =IF(取引額表!Z$54=0,0,取引額表!Z38/取引額表!Z$54) -> 0 | AA38: =IF(取引額表!AA$54=0,0,取引額表!AA38/取引額表!AA$54) -> 0 | AB38: =IF(取引額表!AB$54=0,0,取引額表!AB38/取引額表!AB$54) -> 0 | AC38: =IF(取引額表!AC$54=0,0,取引額表!AC38/取引額表!AC$54) -> 0 | AD38: =IF(取引額表!AD$54=0,0,取引額表!AD38/取引額表!AD$54) -> 0 | AE38: =IF(取引額表!AE$54=0,0,取引額表!AE38/取引額表!AE$54) -> 0 | AF38: =IF(取引額表!AF$54=0,0,取引額表!AF38/取引額表!AF$54) -> 0 | AG38: =IF(取引額表!AG$54=0,0,取引額表!AG38/取引額表!AG$54) -> 0 | AH38: =IF(取引額表!AH$54=0,0,取引額表!AH38/取引額表!AH$54) -> 0 | AI38: =IF(取引額表!AI$54=0,0,取引額表!AI38/取引額表!AI$54) -> 0 | AJ38: =IF(取引額表!AJ$54=0,0,取引額表!AJ38/取引額表!AJ$54) -> 0 | AK38: =IF(取引額表!AK$54=0,0,取引額表!AK38/取引額表!AK$54) -> 0 | AL38: =IF(取引額表!AL$54=0,0,取引額表!AL38/取引額表!AL$54) -> 0 | AM38: =IF(取引額表!AM$54=0,0,取引額表!AM38/取引額表!AM$54) -> 0 | AN38: =IF(取引額表!AN$54=0,0,取引額表!AN38/取引額表!AN$54) -> 0.2119709828 | AO38: =IF(取引額表!AO$54=0,0,取引額表!AO38/取引額表!AO$54) -> 0.00112229784 | AP38: =IF(取引額表!AP$46=0,0,取引額表!AP38/取引額表!AP$46) -> 0 | AQ38: =IF(取引額表!AQ$46=0,0,取引額表!AQ38/取引額表!AQ$46) -> 0.008730343694 | AR38: =IF(取引額表!AR$46=0,0,取引額表!AR38/取引額表!AR$46) -> 0.2378049791 | AS38: =IF(取引額表!AS$46=0,0,取引額表!AS38/取引額表!AS$46) -> 0 | AT38: =IF(取引額表!AT$46=0,0,取引額表!AT38/取引額表!AT$46) -> 0 | AU38: =IF(取引額表!AU$46=0,0,取引額表!AU38/取引額表!AU$46) -> 0 | AV38: =IF(取引額表!AV$46=0,0,取引額表!AV38/取引額表!AV$46) -> 0 | AW38: =IF(取引額表!AW$46=0,0,取引額表!AW38/取引額表!AW$46) -> 0.05346154784 | AX38: =IF(取引額表!AX$46=0,0,取引額表!AX38/取引額表!AX$46) -> 0.03126796715 | AY38: =IF(取引額表!AY$46=0,0,取引額表!AY38/取引額表!AY$46) -> 0 | AZ38: =IF(取引額表!AZ$46=0,0,取引額表!AZ38/取引額表!AZ$46) -> 0 | BA38: =IF(取引額表!BA$46=0,0,取引額表!BA38/取引額表!BA$46) -> 0 | BB38: =IF(取引額表!BB$46=0,0,取引額表!BB38/取引額表!BB$46) -> 0.03591430855 | BC38: =IF(取引額表!BC$46=0,0,取引額表!BC38/取引額表!BC$46) -> 0.02449691656 | BD38: =IF(取引額表!BD$46=0,0,取引額表!BD38/取引額表!BD$46) -> 0 | BE38: =IF(取引額表!BE$46=0,0,取引額表!BE38/取引額表!BE$46) -> 0 | BF38: =IF(取引額表!BF$46=0,0,取引額表!BF38/取引額表!BF$46) -> 0 | BG38: =IF(取引額表!BG$46=0,0,取引額表!BG38/取引額表!BG$46) -> 0.06330503237 | BH38: =IF(取引額表!BH$46=0,0,取引額表!BH38/取引額表!BH$46) -> 0.03428376696
B39: 63 | C39: 教育・研究 | D39: =IF(取引額表!D$54=0,0,取引額表!D39/取引額表!D$54) -> 0.0003491132523 | E39: =IF(取引額表!E$54=0,0,取引額表!E39/取引額表!E$54) -> 0.001012145749 | F39: =IF(取引額表!F$54=0,0,取引額表!F39/取引額表!F$54) -> 0.003896323903 | G39: =IF(取引額表!G$54=0,0,取引額表!G39/取引額表!G$54) -> 0.009812667261 | H39: =IF(取引額表!H$54=0,0,取引額表!H39/取引額表!H$54) -> 0.005333728424 | I39: =IF(取引額表!I$54=0,0,取引額表!I39/取引額表!I$54) -> 0.05805255842 | J39: =IF(取引額表!J$54=0,0,取引額表!J39/取引額表!J$54) -> 0.001644462145 | K39: =IF(取引額表!K$54=0,0,取引額表!K39/取引額表!K$54) -> 0.01955201215 | L39: =IF(取引額表!L$54=0,0,取引額表!L39/取引額表!L$54) -> 0.009741819929 | M39: =IF(取引額表!M$54=0,0,取引額表!M39/取引額表!M$54) -> 0.009078075721 | N39: =IF(取引額表!N$54=0,0,取引額表!N39/取引額表!N$54) -> 0.0238701464 | O39: =IF(取引額表!O$54=0,0,取引額表!O39/取引額表!O$54) -> 0.009823540113 | P39: =IF(取引額表!P$54=0,0,取引額表!P39/取引額表!P$54) -> 0.01856524874 | Q39: =IF(取引額表!Q$54=0,0,取引額表!Q39/取引額表!Q$54) -> 0.02937654956 | R39: =IF(取引額表!R$54=0,0,取引額表!R39/取引額表!R$54) -> 0.06229109693 | S39: =IF(取引額表!S$54=0,0,取引額表!S39/取引額表!S$54) -> 0.04471761981 | T39: =IF(取引額表!T$54=0,0,取引額表!T39/取引額表!T$54) -> 0.07580598315 | U39: =IF(取引額表!U$54=0,0,取引額表!U39/取引額表!U$54) -> 0.06847871892 | V39: =IF(取引額表!V$54=0,0,取引額表!V39/取引額表!V$54) -> 0.02542372881 | W39: =IF(取引額表!W$54=0,0,取引額表!W39/取引額表!W$54) -> 0.00988659494 | X39: =IF(取引額表!X$54=0,0,取引額表!X39/取引額表!X$54) -> 0.002083313957 | Y39: =IF(取引額表!Y$54=0,0,取引額表!Y39/取引額表!Y$54) -> 0.0122046406 | Z39: =IF(取引額表!Z$54=0,0,取引額表!Z39/取引額表!Z$54) -> 0.0001315616366 | AA39: =IF(取引額表!AA$54=0,0,取引額表!AA39/取引額表!AA$54) -> 0.0002624671916 | AB39: =IF(取引額表!AB$54=0,0,取引額表!AB39/取引額表!AB$54) -> 0.002278801868 | AC39: =IF(取引額表!AC$54=0,0,取引額表!AC39/取引額表!AC$54) -> 0.0006684515873 | AD39: =IF(取引額表!AD$54=0,0,取引額表!AD39/取引額表!AD$54) -> 1.342683783e-06 | AE39: =IF(取引額表!AE$54=0,0,取引額表!AE39/取引額表!AE$54) -> 0.003100455273 | AF39: =IF(取引額表!AF$54=0,0,取引額表!AF39/取引額表!AF$54) -> 0.01843639128 | AG39: =IF(取引額表!AG$54=0,0,取引額表!AG39/取引額表!AG$54) -> 0.0001254401218 | AH39: =IF(取引額表!AH$54=0,0,取引額表!AH39/取引額表!AH$54) -> 0.006364718926 | AI39: =IF(取引額表!AI$54=0,0,取引額表!AI39/取引額表!AI$54) -> 0.004041348938 | AJ39: =IF(取引額表!AJ$54=0,0,取引額表!AJ39/取引額表!AJ$54) -> 0 | AK39: =IF(取引額表!AK$54=0,0,取引額表!AK39/取引額表!AK$54) -> 0.001913946102 | AL39: =IF(取引額表!AL$54=0,0,取引額表!AL39/取引額表!AL$54) -> 0.0007433201099 | AM39: =IF(取引額表!AM$54=0,0,取引額表!AM39/取引額表!AM$54) -> 0 | AN39: =IF(取引額表!AN$54=0,0,取引額表!AN39/取引額表!AN$54) -> 0.01826177072 | AO39: =IF(取引額表!AO$54=0,0,取引額表!AO39/取引額表!AO$54) -> 0.005419298659 | AP39: =IF(取引額表!AP$46=0,0,取引額表!AP39/取引額表!AP$46) -> 0 | AQ39: =IF(取引額表!AQ$46=0,0,取引額表!AQ39/取引額表!AQ$46) -> 0.03183148627 | AR39: =IF(取引額表!AR$46=0,0,取引額表!AR39/取引額表!AR$46) -> 0.1562033044 | AS39: =IF(取引額表!AS$46=0,0,取引額表!AS39/取引額表!AS$46) -> 0 | AT39: =IF(取引額表!AT$46=0,0,取引額表!AT39/取引額表!AT$46) -> 0 | AU39: =IF(取引額表!AU$46=0,0,取引額表!AU39/取引額表!AU$46) -> 0 | AV39: =IF(取引額表!AV$46=0,0,取引額表!AV39/取引額表!AV$46) -> 0 | AW39: =IF(取引額表!AW$46=0,0,取引額表!AW39/取引額表!AW$46) -> 0.05139330713 | AX39: =IF(取引額表!AX$46=0,0,取引額表!AX39/取引額表!AX$46) -> 0.03401692873 | AY39: =IF(取引額表!AY$46=0,0,取引額表!AY39/取引額表!AY$46) -> 0.004094691716 | AZ39: =IF(取引額表!AZ$46=0,0,取引額表!AZ39/取引額表!AZ$46) -> 0.009323393632 | BA39: =IF(取引額表!BA$46=0,0,取引額表!BA39/取引額表!BA$46) -> 0.008511731461 | BB39: =IF(取引額表!BB$46=0,0,取引額表!BB39/取引額表!BB$46) -> 0.03731864413 | BC39: =IF(取引額表!BC$46=0,0,取引額表!BC39/取引額表!BC$46) -> 0.02849380086 | BD39: =IF(取引額表!BD$46=0,0,取引額表!BD39/取引額表!BD$46) -> 0.01240640839 | BE39: =IF(取引額表!BE$46=0,0,取引額表!BE39/取引額表!BE$46) -> 0.008583988619 | BF39: =IF(取引額表!BF$46=0,0,取引額表!BF39/取引額表!BF$46) -> 0.009419300286 | BG39: =IF(取引額表!BG$46=0,0,取引額表!BG39/取引額表!BG$46) -> 0.05859660417 | BH39: =IF(取引額表!BH$46=0,0,取引額表!BH39/取引額表!BH$46) -> 0.03611432253
B40: 64 | C40: 医療・福祉 | D40: =IF(取引額表!D$54=0,0,取引額表!D40/取引額表!D$54) -> 0.002164502165 | E40: =IF(取引額表!E$54=0,0,取引額表!E40/取引額表!E$54) -> 0 | F40: =IF(取引額表!F$54=0,0,取引額表!F40/取引額表!F$54) -> 0 | G40: =IF(取引額表!G$54=0,0,取引額表!G40/取引額表!G$54) -> 0 | H40: =IF(取引額表!H$54=0,0,取引額表!H40/取引額表!H$54) -> 0 | I40: =IF(取引額表!I$54=0,0,取引額表!I40/取引額表!I$54) -> 0 | J40: =IF(取引額表!J$54=0,0,取引額表!J40/取引額表!J$54) -> 0 | K40: =IF(取引額表!K$54=0,0,取引額表!K40/取引額表!K$54) -> 0 | L40: =IF(取引額表!L$54=0,0,取引額表!L40/取引額表!L$54) -> 0 | M40: =IF(取引額表!M$54=0,0,取引額表!M40/取引額表!M$54) -> 2.562015726e-06 | N40: =IF(取引額表!N$54=0,0,取引額表!N40/取引額表!N$54) -> 0 | O40: =IF(取引額表!O$54=0,0,取引額表!O40/取引額表!O$54) -> 0 | P40: =IF(取引額表!P$54=0,0,取引額表!P40/取引額表!P$54) -> 0 | Q40: =IF(取引額表!Q$54=0,0,取引額表!Q40/取引額表!Q$54) -> 0 | R40: =IF(取引額表!R$54=0,0,取引額表!R40/取引額表!R$54) -> 0 | S40: =IF(取引額表!S$54=0,0,取引額表!S40/取引額表!S$54) -> 0 | T40: =IF(取引額表!T$54=0,0,取引額表!T40/取引額表!T$54) -> 0 | U40: =IF(取引額表!U$54=0,0,取引額表!U40/取引額表!U$54) -> 0 | V40: =IF(取引額表!V$54=0,0,取引額表!V40/取引額表!V$54) -> 0 | W40: =IF(取引額表!W$54=0,0,取引額表!W40/取引額表!W$54) -> 0 | X40: =IF(取引額表!X$54=0,0,取引額表!X40/取引額表!X$54) -> 0 | Y40: =IF(取引額表!Y$54=0,0,取引額表!Y40/取引額表!Y$54) -> 6.450655709e-06 | Z40: =IF(取引額表!Z$54=0,0,取引額表!Z40/取引額表!Z$54) -> 0.0001973424549 | AA40: =IF(取引額表!AA$54=0,0,取引額表!AA40/取引額表!AA$54) -> 0 | AB40: =IF(取引額表!AB$54=0,0,取引額表!AB40/取引額表!AB$54) -> 1.706386695e-05 | AC40: =IF(取引額表!AC$54=0,0,取引額表!AC40/取引額表!AC$54) -> 7.864136321e-05 | AD40: =IF(取引額表!AD$54=0,0,取引額表!AD40/取引額表!AD$54) -> 6.713418916e-06 | AE40: =IF(取引額表!AE$54=0,0,取引額表!AE40/取引額表!AE$54) -> 0.0007783788302 | AF40: =IF(取引額表!AF$54=0,0,取引額表!AF40/取引額表!AF$54) -> 0.0003218449062 | AG40: =IF(取引額表!AG$54=0,0,取引額表!AG40/取引額表!AG$54) -> 1.297656432e-05 | AH40: =IF(取引額表!AH$54=0,0,取引額表!AH40/取引額表!AH$54) -> 3.695643247e-05 | AI40: =IF(取引額表!AI$54=0,0,取引額表!AI40/取引額表!AI$54) -> 0.03093550133 | AJ40: =IF(取引額表!AJ$54=0,0,取引額表!AJ40/取引額表!AJ$54) -> 0 | AK40: =IF(取引額表!AK$54=0,0,取引額表!AK40/取引額表!AK$54) -> 8.186253643e-06 | AL40: =IF(取引額表!AL$54=0,0,取引額表!AL40/取引額表!AL$54) -> 4.529190634e-05 | AM40: =IF(取引額表!AM$54=0,0,取引額表!AM40/取引額表!AM$54) -> 0 | AN40: =IF(取引額表!AN$54=0,0,取引額表!AN40/取引額表!AN$54) -> 0.002912920483 | AO40: =IF(取引額表!AO$54=0,0,取引額表!AO40/取引額表!AO$54) -> 0.00184152941 | AP40: =IF(取引額表!AP$46=0,0,取引額表!AP40/取引額表!AP$46) -> 0.0436565025 | AQ40: =IF(取引額表!AQ$46=0,0,取引額表!AQ40/取引額表!AQ$46) -> 0.03346900069 | AR40: =IF(取引額表!AR$46=0,0,取引額表!AR40/取引額表!AR$46) -> 0.4341768435 | AS40: =IF(取引額表!AS$46=0,0,取引額表!AS40/取引額表!AS$46) -> 0 | AT40: =IF(取引額表!AT$46=0,0,取引額表!AT40/取引額表!AT$46) -> 0 | AU40: =IF(取引額表!AU$46=0,0,取引額表!AU40/取引額表!AU$46) -> 0 | AV40: =IF(取引額表!AV$46=0,0,取引額表!AV40/取引額表!AV$46) -> 0 | AW40: =IF(取引額表!AW$46=0,0,取引額表!AW40/取引額表!AW$46) -> 0.1095065437 | AX40: =IF(取引額表!AX$46=0,0,取引額表!AX40/取引額表!AX$46) -> 0.06362983843 | AY40: =IF(取引額表!AY$46=0,0,取引額表!AY40/取引額表!AY$46) -> 3.152187618e-06 | AZ40: =IF(取引額表!AZ$46=0,0,取引額表!AZ40/取引額表!AZ$46) -> 0.01140459103 | BA40: =IF(取引額表!BA$46=0,0,取引額表!BA40/取引額表!BA$46) -> 0.009634722188 | BB40: =IF(取引額表!BB$46=0,0,取引額表!BB40/取引額表!BB$46) -> 0.07672644622 | BC40: =IF(取引額表!BC$46=0,0,取引額表!BC40/取引額表!BC$46) -> 0.05193724383 | BD40: =IF(取引額表!BD$46=0,0,取引額表!BD40/取引額表!BD$46) -> 0 | BE40: =IF(取引額表!BE$46=0,0,取引額表!BE40/取引額表!BE$46) -> 0.05205111824 | BF40: =IF(取引額表!BF$46=0,0,取引額表!BF40/取引額表!BF$46) -> 0.04067641088 | BG40: =IF(取引額表!BG$46=0,0,取引額表!BG40/取引額表!BG$46) -> 0.1042206846 | BH40: =IF(取引額表!BH$46=0,0,取引額表!BH40/取引額表!BH$46) -> 0.05643609932
B41: 65 | C41: その他の非営利団体サービス | D41: =IF(取引額表!D$54=0,0,取引額表!D41/取引額表!D$54) -> 0.0005585812037 | E41: =IF(取引額表!E$54=0,0,取引額表!E41/取引額表!E$54) -> 0.002024291498 | F41: =IF(取引額表!F$54=0,0,取引額表!F41/取引額表!F$54) -> 0.0007136652477 | G41: =IF(取引額表!G$54=0,0,取引額表!G41/取引額表!G$54) -> 0.0008920606601 | H41: =IF(取引額表!H$54=0,0,取引額表!H41/取引額表!H$54) -> 0.0004444773687 | I41: =IF(取引額表!I$54=0,0,取引額表!I41/取引額表!I$54) -> 0.002515390216 | J41: =IF(取引額表!J$54=0,0,取引額表!J41/取引額表!J$54) -> 0.0004881996994 | K41: =IF(取引額表!K$54=0,0,取引額表!K41/取引額表!K$54) -> 0.000569476082 | L41: =IF(取引額表!L$54=0,0,取引額表!L41/取引額表!L$54) -> 0.0009610764056 | M41: =IF(取引額表!M$54=0,0,取引額表!M41/取引額表!M$54) -> 0.001073484589 | N41: =IF(取引額表!N$54=0,0,取引額表!N41/取引額表!N$54) -> 0.0006895820072 | O41: =IF(取引額表!O$54=0,0,取引額表!O41/取引額表!O$54) -> 0.001334061003 | P41: =IF(取引額表!P$54=0,0,取引額表!P41/取引額表!P$54) -> 0.001982696467 | Q41: =IF(取引額表!Q$54=0,0,取引額表!Q41/取引額表!Q$54) -> 0.001015903731 | R41: =IF(取引額表!R$54=0,0,取引額表!R41/取引額表!R$54) -> 0.001063506533 | S41: =IF(取引額表!S$54=0,0,取引額表!S41/取引額表!S$54) -> 0.0005344735436 | T41: =IF(取引額表!T$54=0,0,取引額表!T41/取引額表!T$54) -> 0.0007745183464 | U41: =IF(取引額表!U$54=0,0,取引額表!U41/取引額表!U$54) -> 0.001053518753 | V41: =IF(取引額表!V$54=0,0,取引額表!V41/取引額表!V$54) -> 0 | W41: =IF(取引額表!W$54=0,0,取引額表!W41/取引額表!W$54) -> 0.0009450421634 | X41: =IF(取引額表!X$54=0,0,取引額表!X41/取引額表!X$54) -> 0.001209066136 | Y41: =IF(取引額表!Y$54=0,0,取引額表!Y41/取引額表!Y$54) -> 0.003147919986 | Z41: =IF(取引額表!Z$54=0,0,取引額表!Z41/取引額表!Z$54) -> 0.008617287199 | AA41: =IF(取引額表!AA$54=0,0,取引額表!AA41/取引額表!AA$54) -> 0.002484689414 | AB41: =IF(取引額表!AB$54=0,0,取引額表!AB41/取引額表!AB$54) -> 0.0005243260936 | AC41: =IF(取引額表!AC$54=0,0,取引額表!AC41/取引額表!AC$54) -> 0.0022162566 | AD41: =IF(取引額表!AD$54=0,0,取引額表!AD41/取引額表!AD$54) -> 0.000402805135 | AE41: =IF(取引額表!AE$54=0,0,取引額表!AE41/取引額表!AE$54) -> 0.001292944701 | AF41: =IF(取引額表!AF$54=0,0,取引額表!AF41/取引額表!AF$54) -> 0.001221490117 | AG41: =IF(取引額表!AG$54=0,0,取引額表!AG41/取引額表!AG$54) -> 0 | AH41: =IF(取引額表!AH$54=0,0,取引額表!AH41/取引額表!AH$54) -> 0.001084055353 | AI41: =IF(取引額表!AI$54=0,0,取引額表!AI41/取引額表!AI$54) -> 0.001429449819 | AJ41: =IF(取引額表!AJ$54=0,0,取引額表!AJ41/取引額表!AJ$54) -> 0 | AK41: =IF(取引額表!AK$54=0,0,取引額表!AK41/取引額表!AK$54) -> 0.001976161629 | AL41: =IF(取引額表!AL$54=0,0,取引額表!AL41/取引額表!AL$54) -> 0.003194411512 | AM41: =IF(取引額表!AM$54=0,0,取引額表!AM41/取引額表!AM$54) -> 0 | AN41: =IF(取引額表!AN$54=0,0,取引額表!AN41/取引額表!AN$54) -> 0.002212699213 | AO41: =IF(取引額表!AO$54=0,0,取引額表!AO41/取引額表!AO$54) -> 0.001292837284 | AP41: =IF(取引額表!AP$46=0,0,取引額表!AP41/取引額表!AP$46) -> 0 | AQ41: =IF(取引額表!AQ$46=0,0,取引額表!AQ41/取引額表!AQ$46) -> 0.01217939676 | AR41: =IF(取引額表!AR$46=0,0,取引額表!AR41/取引額表!AR$46) -> 0 | AS41: =IF(取引額表!AS$46=0,0,取引額表!AS41/取引額表!AS$46) -> 0 | AT41: =IF(取引額表!AT$46=0,0,取引額表!AT41/取引額表!AT$46) -> 0 | AU41: =IF(取引額表!AU$46=0,0,取引額表!AU41/取引額表!AU$46) -> 0 | AV41: =IF(取引額表!AV$46=0,0,取引額表!AV41/取引額表!AV$46) -> 0 | AW41: =IF(取引額表!AW$46=0,0,取引額表!AW41/取引額表!AW$46) -> 0.007596379634 | AX41: =IF(取引額表!AX$46=0,0,取引額表!AX41/取引額表!AX$46) -> 0.005476553623 | AY41: =IF(取引額表!AY$46=0,0,取引額表!AY41/取引額表!AY$46) -> 0.0003719581389 | AZ41: =IF(取引額表!AZ$46=0,0,取引額表!AZ41/取引額表!AZ$46) -> 0 | BA41: =IF(取引額表!BA$46=0,0,取引額表!BA41/取引額表!BA$46) -> 5.773982825e-05 | BB41: =IF(取引額表!BB$46=0,0,取引額表!BB41/取引額表!BB$46) -> 0.005122034578 | BC41: =IF(取引額表!BC$46=0,0,取引額表!BC41/取引額表!BC$46) -> 0.004303114296 | BD41: =IF(取引額表!BD$46=0,0,取引額表!BD41/取引額表!BD$46) -> 0.000725292495 | BE41: =IF(取引額表!BE$46=0,0,取引額表!BE41/取引額表!BE$46) -> 0.004895704443 | BF41: =IF(取引額表!BF$46=0,0,取引額表!BF41/取引額表!BF$46) -> 0.003984346204 | BG41: =IF(取引額表!BG$46=0,0,取引額表!BG41/取引額表!BG$46) -> 0.005989714043 | BH41: =IF(取引額表!BH$46=0,0,取引額表!BH41/取引額表!BH$46) -> 0.004430466471
B42: 66 | C42: 対事業所サービス | D42: =IF(取引額表!D$54=0,0,取引額表!D42/取引額表!D$54) -> 0.04622259461 | E42: =IF(取引額表!E$54=0,0,取引額表!E42/取引額表!E$54) -> 0.05060728745 | F42: =IF(取引額表!F$54=0,0,取引額表!F42/取引額表!F$54) -> 0.02734275035 | G42: =IF(取引額表!G$54=0,0,取引額表!G42/取引額表!G$54) -> 0.05619982159 | H42: =IF(取引額表!H$54=0,0,取引額表!H42/取引額表!H$54) -> 0.05704126232 | I42: =IF(取引額表!I$54=0,0,取引額表!I42/取引額表!I$54) -> 0.06381147812 | J42: =IF(取引額表!J$54=0,0,取引額表!J42/取引額表!J$54) -> 0.02193044439 | K42: =IF(取引額表!K$54=0,0,取引額表!K42/取引額表!K$54) -> 0.05808656036 | L42: =IF(取引額表!L$54=0,0,取引額表!L42/取引額表!L$54) -> 0.09021012625 | M42: =IF(取引額表!M$54=0,0,取引額表!M42/取引額表!M$54) -> 0.02218876419 | N42: =IF(取引額表!N$54=0,0,取引額表!N42/取引額表!N$54) -> 0.04015489073 | O42: =IF(取引額表!O$54=0,0,取引額表!O42/取引額表!O$54) -> 0.05648535565 | P42: =IF(取引額表!P$54=0,0,取引額表!P42/取引額表!P$54) -> 0.06885364095 | Q42: =IF(取引額表!Q$54=0,0,取引額表!Q42/取引額表!Q$54) -> 0.05813630042 | R42: =IF(取引額表!R$54=0,0,取引額表!R42/取引額表!R$54) -> 0.04375569736 | S42: =IF(取引額表!S$54=0,0,取引額表!S42/取引額表!S$54) -> 0.0498841974 | T42: =IF(取引額表!T$54=0,0,取引額表!T42/取引額表!T$54) -> 0.06302643044 | U42: =IF(取引額表!U$54=0,0,取引額表!U42/取引額表!U$54) -> 0.05035819638 | V42: =IF(取引額表!V$54=0,0,取引額表!V42/取引額表!V$54) -> 0.02360774818 | W42: =IF(取引額表!W$54=0,0,取引額表!W42/取引額表!W$54) -> 0.05194097121 | X42: =IF(取引額表!X$54=0,0,取引額表!X42/取引額表!X$54) -> 0.13729411 | Y42: =IF(取引額表!Y$54=0,0,取引額表!Y42/取引額表!Y$54) -> 0.08729672371 | Z42: =IF(取引額表!Z$54=0,0,取引額表!Z42/取引額表!Z$54) -> 0.1824321361 | AA42: =IF(取引額表!AA$54=0,0,取引額表!AA42/取引額表!AA$54) -> 0.07910761155 | AB42: =IF(取引額表!AB$54=0,0,取引額表!AB42/取引額表!AB$54) -> 0.08485395657 | AC42: =IF(取引額表!AC$54=0,0,取引額表!AC42/取引額表!AC$54) -> 0.102444674 | AD42: =IF(取引額表!AD$54=0,0,取引額表!AD42/取引額表!AD$54) -> 0.04056113441 | AE42: =IF(取引額表!AE$54=0,0,取引額表!AE42/取引額表!AE$54) -> 0.1190318848 | AF42: =IF(取引額表!AF$54=0,0,取引額表!AF42/取引額表!AF$54) -> 0.1711277243 | AG42: =IF(取引額表!AG$54=0,0,取引額表!AG42/取引額表!AG$54) -> 0.08277750383 | AH42: =IF(取引額表!AH$54=0,0,取引額表!AH42/取引額表!AH$54) -> 0.07969038722 | AI42: =IF(取引額表!AI$54=0,0,取引額表!AI42/取引額表!AI$54) -> 0.08533605209 | AJ42: =IF(取引額表!AJ$54=0,0,取引額表!AJ42/取引額表!AJ$54) -> 0.07688445575 | AK42: =IF(取引額表!AK$54=0,0,取引額表!AK42/取引額表!AK$54) -> 0.1317069976 | AL42: =IF(取引額表!AL$54=0,0,取引額表!AL42/取引額表!AL$54) -> 0.04665066353 | AM42: =IF(取引額表!AM$54=0,0,取引額表!AM42/取引額表!AM$54) -> 0 | AN42: =IF(取引額表!AN$54=0,0,取引額表!AN42/取引額表!AN$54) -> 0.08635128701 | AO42: =IF(取引額表!AO$54=0,0,取引額表!AO42/取引額表!AO$54) -> 0.07753998483 | AP42: =IF(取引額表!AP$46=0,0,取引額表!AP42/取引額表!AP$46) -> 0.007128254497 | AQ42: =IF(取引額表!AQ$46=0,0,取引額表!AQ42/取引額表!AQ$46) -> 0.01600103035 | AR42: =IF(取引額表!AR$46=0,0,取引額表!AR42/取引額表!AR$46) -> 0 | AS42: =IF(取引額表!AS$46=0,0,取引額表!AS42/取引額表!AS$46) -> 0.01331479569 | AT42: =IF(取引額表!AT$46=0,0,取引額表!AT42/取引額表!AT$46) -> 0.06314469985 | AU42: =IF(取引額表!AU$46=0,0,取引額表!AU42/取引額表!AU$46) -> 0 | AV42: =IF(取引額表!AV$46=0,0,取引額表!AV42/取引額表!AV$46) -> 0 | AW42: =IF(取引額表!AW$46=0,0,取引額表!AW42/取引額表!AW$46) -> 0.01757801387 | AX42: =IF(取引額表!AX$46=0,0,取引額表!AX42/取引額表!AX$46) -> 0.08066339172 | AY42: =IF(取引額表!AY$46=0,0,取引額表!AY42/取引額表!AY$46) -> 0.04145757155 | AZ42: =IF(取引額表!AZ$46=0,0,取引額表!AZ42/取引額表!AZ$46) -> 0.107848657 | BA42: =IF(取引額表!BA$46=0,0,取引額表!BA42/取引額表!BA$46) -> 0.09754263206 | BB42: =IF(取引額表!BB$46=0,0,取引額表!BB42/取引額表!BB$46) -> 0.04382413556 | BC42: =IF(取引額表!BC$46=0,0,取引額表!BC42/取引額表!BC$46) -> 0.08431857626 | BD42: =IF(取引額表!BD$46=0,0,取引額表!BD42/取引額表!BD$46) -> 0.02137149923 | BE42: =IF(取引額表!BE$46=0,0,取引額表!BE42/取引額表!BE$46) -> 0.08187943372 | BF42: =IF(取引額表!BF$46=0,0,取引額表!BF42/取引額表!BF$46) -> 0.06865666212 | BG42: =IF(取引額表!BG$46=0,0,取引額表!BG42/取引額表!BG$46) -> 0.02488514147 | BH42: =IF(取引額表!BH$46=0,0,取引額表!BH42/取引額表!BH$46) -> 0.09057572337
B43: 67 | C43: 対個人サービス | D43: =IF(取引額表!D$54=0,0,取引額表!D43/取引額表!D$54) -> 0.0006284038542 | E43: =IF(取引額表!E$54=0,0,取引額表!E43/取引額表!E$54) -> 0 | F43: =IF(取引額表!F$54=0,0,取引額表!F43/取引額表!F$54) -> 0.002739321153 | G43: =IF(取引額表!G$54=0,0,取引額表!G43/取引額表!G$54) -> 0 | H43: =IF(取引額表!H$54=0,0,取引額表!H43/取引額表!H$54) -> 0 | I43: =IF(取引額表!I$54=0,0,取引額表!I43/取引額表!I$54) -> 0 | J43: =IF(取引額表!J$54=0,0,取引額表!J43/取引額表!J$54) -> 5.138944204e-05 | K43: =IF(取引額表!K$54=0,0,取引額表!K43/取引額表!K$54) -> 0 | L43: =IF(取引額表!L$54=0,0,取引額表!L43/取引額表!L$54) -> 4.368529116e-05 | M43: =IF(取引額表!M$54=0,0,取引額表!M43/取引額表!M$54) -> 0.0001007726185 | N43: =IF(取引額表!N$54=0,0,取引額表!N43/取引額表!N$54) -> 0 | O43: =IF(取引額表!O$54=0,0,取引額表!O43/取引額表!O$54) -> 0 | P43: =IF(取引額表!P$54=0,0,取引額表!P43/取引額表!P$54) -> 0 | Q43: =IF(取引額表!Q$54=0,0,取引額表!Q43/取引額表!Q$54) -> 0.0002418818407 | R43: =IF(取引額表!R$54=0,0,取引額表!R43/取引額表!R$54) -> 0 | S43: =IF(取引額表!S$54=0,0,取引額表!S43/取引額表!S$54) -> 0 | T43: =IF(取引額表!T$54=0,0,取引額表!T43/取引額表!T$54) -> 0.0001936295866 | U43: =IF(取引額表!U$54=0,0,取引額表!U43/取引額表!U$54) -> 0 | V43: =IF(取引額表!V$54=0,0,取引額表!V43/取引額表!V$54) -> 0 | W43: =IF(取引額表!W$54=0,0,取引額表!W43/取引額表!W$54) -> 0 | X43: =IF(取引額表!X$54=0,0,取引額表!X43/取引額表!X$54) -> 0.0001891103443 | Y43: =IF(取引額表!Y$54=0,0,取引額表!Y43/取引額表!Y$54) -> 6.450655709e-05 | Z43: =IF(取引額表!Z$54=0,0,取引額表!Z43/取引額表!Z$54) -> 0.0002192693944 | AA43: =IF(取引額表!AA$54=0,0,取引額表!AA43/取引額表!AA$54) -> 5.249343832e-05 | AB43: =IF(取引額表!AB$54=0,0,取引額表!AB43/取引額表!AB$54) -> 0.0006965160237 | AC43: =IF(取引額表!AC$54=0,0,取引額表!AC43/取引額表!AC$54) -> 0.0001465589042 | AD43: =IF(取引額表!AD$54=0,0,取引額表!AD43/取引額表!AD$54) -> 0.0004914222647 | AE43: =IF(取引額表!AE$54=0,0,取引額表!AE43/取引額表!AE$54) -> 0.0006895705073 | AF43: =IF(取引額表!AF$54=0,0,取引額表!AF43/取引額表!AF$54) -> 0.007361885454 | AG43: =IF(取引額表!AG$54=0,0,取引額表!AG43/取引額表!AG$54) -> 0.0003157630652 | AH43: =IF(取引額表!AH$54=0,0,取引額表!AH43/取引額表!AH$54) -> 0.001088161623 | AI43: =IF(取引額表!AI$54=0,0,取引額表!AI43/取引額表!AI$54) -> 0.01832796414 | AJ43: =IF(取引額表!AJ$54=0,0,取引額表!AJ43/取引額表!AJ$54) -> 0.001840942563 | AK43: =IF(取引額表!AK$54=0,0,取引額表!AK43/取引額表!AK$54) -> 0.0009315956646 | AL43: =IF(取引額表!AL$54=0,0,取引額表!AL43/取引額表!AL$54) -> 0.01377939645 | AM43: =IF(取引額表!AM$54=0,0,取引額表!AM43/取引額表!AM$54) -> 0 | AN43: =IF(取引額表!AN$54=0,0,取引額表!AN43/取引額表!AN$54) -> 0.002884911632 | AO43: =IF(取引額表!AO$54=0,0,取引額表!AO43/取引額表!AO$54) -> 0.002704162408 | AP43: =IF(取引額表!AP$46=0,0,取引額表!AP43/取引額表!AP$46) -> 0.6644203831 | AQ43: =IF(取引額表!AQ$46=0,0,取引額表!AQ43/取引額表!AQ$46) -> 0.1408304559 | AR43: =IF(取引額表!AR$46=0,0,取引額表!AR43/取引額表!AR$46) -> 0 | AS43: =IF(取引額表!AS$46=0,0,取引額表!AS43/取引額表!AS$46) -> 0 | AT43: =IF(取引額表!AT$46=0,0,取引額表!AT43/取引額表!AT$46) -> 0 | AU43: =IF(取引額表!AU$46=0,0,取引額表!AU43/取引額表!AU$46) -> 0 | AV43: =IF(取引額表!AV$46=0,0,取引額表!AV43/取引額表!AV$46) -> 0.002853437095 | AW43: =IF(取引額表!AW$46=0,0,取引額表!AW43/取引額表!AW$46) -> 0.1025248268 | AX43: =IF(取引額表!AX$46=0,0,取引額表!AX43/取引額表!AX$46) -> 0.06046687579 | AY43: =IF(取引額表!AY$46=0,0,取引額表!AY43/取引額表!AY$46) -> 0.00786155592 | AZ43: =IF(取引額表!AZ$46=0,0,取引額表!AZ43/取引額表!AZ$46) -> 0.03137667182 | BA43: =IF(取引額表!BA$46=0,0,取引額表!BA43/取引額表!BA$46) -> 0.02772637193 | BB43: =IF(取引額表!BB$46=0,0,取引額表!BB43/取引額表!BB$46) -> 0.07797435192 | BC43: =IF(取引額表!BC$46=0,0,取引額表!BC43/取引額表!BC$46) -> 0.05337694868 | BD43: =IF(取引額表!BD$46=0,0,取引額表!BD43/取引額表!BD$46) -> 0.003950890734 | BE43: =IF(取引額表!BE$46=0,0,取引額表!BE43/取引額表!BE$46) -> 0.05988082543 | BF43: =IF(取引額表!BF$46=0,0,取引額表!BF43/取引額表!BF$46) -> 0.04765848207 | BG43: =IF(取引額表!BG$46=0,0,取引額表!BG43/取引額表!BG$46) -> 0.101095321 | BH43: =IF(取引額表!BH$46=0,0,取引額表!BH43/取引額表!BH$46) -> 0.05566155365
B44: 68 | C44: 事務用品 | D44: =IF(取引額表!D$54=0,0,取引額表!D44/取引額表!D$54) -> 0.0007680491551 | E44: =IF(取引額表!E$54=0,0,取引額表!E44/取引額表!E$54) -> 0 | F44: =IF(取引額表!F$54=0,0,取引額表!F44/取引額表!F$54) -> 0.0004974030515 | G44: =IF(取引額表!G$54=0,0,取引額表!G44/取引額表!G$54) -> 0.0008920606601 | H44: =IF(取引額表!H$54=0,0,取引額表!H44/取引額表!H$54) -> 0.001333432106 | I44: =IF(取引額表!I$54=0,0,取引額表!I44/取引額表!I$54) -> 0.0007281392732 | J44: =IF(取引額表!J$54=0,0,取引額表!J44/取引額表!J$54) -> 8.993152357e-05 | K44: =IF(取引額表!K$54=0,0,取引額表!K44/取引額表!K$54) -> 9.491268033e-05 | L44: =IF(取引額表!L$54=0,0,取引額表!L44/取引額表!L$54) -> 0.0008737058232 | M44: =IF(取引額表!M$54=0,0,取引額表!M44/取引額表!M$54) -> 0.0001725090589 | N44: =IF(取引額表!N$54=0,0,取引額表!N44/取引額表!N$54) -> 0.0003182686187 | O44: =IF(取引額表!O$54=0,0,取引額表!O44/取引額表!O$54) -> 0.0003941543872 | P44: =IF(取引額表!P$54=0,0,取引額表!P44/取引額表!P$54) -> 0.0007209805335 | Q44: =IF(取引額表!Q$54=0,0,取引額表!Q44/取引額表!Q$54) -> 0.0009433391788 | R44: =IF(取引額表!R$54=0,0,取引額表!R44/取引額表!R$54) -> 0.001367365542 | S44: =IF(取引額表!S$54=0,0,取引額表!S44/取引額表!S$54) -> 0.001247104935 | T44: =IF(取引額表!T$54=0,0,取引額表!T44/取引額表!T$54) -> 0.00116177752 | U44: =IF(取引額表!U$54=0,0,取引額表!U44/取引額表!U$54) -> 0.0004214075011 | V44: =IF(取引額表!V$54=0,0,取引額表!V44/取引額表!V$54) -> 0 | W44: =IF(取引額表!W$54=0,0,取引額表!W44/取引額表!W$54) -> 0.0008723466124 | X44: =IF(取引額表!X$54=0,0,取引額表!X44/取引額表!X$54) -> 0.0005890322201 | Y44: =IF(取引額表!Y$54=0,0,取引額表!Y44/取引額表!Y$54) -> 8.385852422e-05 | Z44: =IF(取引額表!Z$54=0,0,取引額表!Z44/取引額表!Z$54) -> 0.0006358812437 | AA44: =IF(取引額表!AA$54=0,0,取引額表!AA44/取引額表!AA$54) -> 0.003289588801 | AB44: =IF(取引額表!AB$54=0,0,取引額表!AB44/取引額表!AB$54) -> 0.001912704359 | AC44: =IF(取引額表!AC$54=0,0,取引額表!AC44/取引額表!AC$54) -> 0.002713127031 | AD44: =IF(取引額表!AD$54=0,0,取引額表!AD44/取引額表!AD$54) -> 0.0003383563134 | AE44: =IF(取引額表!AE$54=0,0,取引額表!AE44/取引額表!AE$54) -> 0.002645965621 | AF44: =IF(取引額表!AF$54=0,0,取引額表!AF44/取引額表!AF$54) -> 0.00130765332 | AG44: =IF(取引額表!AG$54=0,0,取引額表!AG44/取引額表!AG$54) -> 0.0024612217 | AH44: =IF(取引額表!AH$54=0,0,取引額表!AH44/取引額表!AH$54) -> 0.003034533733 | AI44: =IF(取引額表!AI$54=0,0,取引額表!AI44/取引額表!AI$54) -> 0.001894546544 | AJ44: =IF(取引額表!AJ$54=0,0,取引額表!AJ44/取引額表!AJ$54) -> 0.003045923149 | AK44: =IF(取引額表!AK$54=0,0,取引額表!AK44/取引額表!AK$54) -> 0.001062575723 | AL44: =IF(取引額表!AL$54=0,0,取引額表!AL44/取引額表!AL$54) -> 0.001713099751 | AM44: =IF(取引額表!AM$54=0,0,取引額表!AM44/取引額表!AM$54) -> 0 | AN44: =IF(取引額表!AN$54=0,0,取引額表!AN44/取引額表!AN$54) -> 0.000140044254 | AO44: =IF(取引額表!AO$54=0,0,取引額表!AO44/取引額表!AO$54) -> 0.001212164712 | AP44: =IF(取引額表!AP$46=0,0,取引額表!AP44/取引額表!AP$46) -> 0 | AQ44: =IF(取引額表!AQ$46=0,0,取引額表!AQ44/取引額表!AQ$46) -> 0 | AR44: =IF(取引額表!AR$46=0,0,取引額表!AR44/取引額表!AR$46) -> 0 | AS44: =IF(取引額表!AS$46=0,0,取引額表!AS44/取引額表!AS$46) -> 0 | AT44: =IF(取引額表!AT$46=0,0,取引額表!AT44/取引額表!AT$46) -> 0 | AU44: =IF(取引額表!AU$46=0,0,取引額表!AU44/取引額表!AU$46) -> 0 | AV44: =IF(取引額表!AV$46=0,0,取引額表!AV44/取引額表!AV$46) -> 0 | AW44: =IF(取引額表!AW$46=0,0,取引額表!AW44/取引額表!AW$46) -> 0 | AX44: =IF(取引額表!AX$46=0,0,取引額表!AX44/取引額表!AX$46) -> 0.001105535644 | AY44: =IF(取引額表!AY$46=0,0,取引額表!AY44/取引額表!AY$46) -> 0 | AZ44: =IF(取引額表!AZ$46=0,0,取引額表!AZ44/取引額表!AZ$46) -> 0 | BA44: =IF(取引額表!BA$46=0,0,取引額表!BA44/取引額表!BA$46) -> 0 | BB44: =IF(取引額表!BB$46=0,0,取引額表!BB44/取引額表!BB$46) -> 0 | BC44: =IF(取引額表!BC$46=0,0,取引額表!BC44/取引額表!BC$46) -> 0.0008661328799 | BD44: =IF(取引額表!BD$46=0,0,取引額表!BD44/取引額表!BD$46) -> 0 | BE44: =IF(取引額表!BE$46=0,0,取引額表!BE44/取引額表!BE$46) -> 0 | BF44: =IF(取引額表!BF$46=0,0,取引額表!BF44/取引額表!BF$46) -> 0 | BG44: =IF(取引額表!BG$46=0,0,取引額表!BG44/取引額表!BG$46) -> 0 | BH44: =IF(取引額表!BH$46=0,0,取引額表!BH44/取引額表!BH$46) -> 0.001212164712
B45: 69 | C45: 分類不明 | D45: =IF(取引額表!D$54=0,0,取引額表!D45/取引額表!D$54) -> 0.01619885491 | E45: =IF(取引額表!E$54=0,0,取引額表!E45/取引額表!E$54) -> 0.005060728745 | F45: =IF(取引額表!F$54=0,0,取引額表!F45/取引額表!F$54) -> 0.001257925108 | G45: =IF(取引額表!G$54=0,0,取引額表!G45/取引額表!G$54) -> 0.00178412132 | H45: =IF(取引額表!H$54=0,0,取引額表!H45/取引額表!H$54) -> 0.004000296318 | I45: =IF(取引額表!I$54=0,0,取引額表!I45/取引額表!I$54) -> 0.001787250943 | J45: =IF(取引額表!J$54=0,0,取引額表!J45/取引額表!J$54) -> 0.002184051287 | K45: =IF(取引額表!K$54=0,0,取引額表!K45/取引額表!K$54) -> 0.002088078967 | L45: =IF(取引額表!L$54=0,0,取引額表!L45/取引額表!L$54) -> 0.006814905421 | M45: =IF(取引額表!M$54=0,0,取引額表!M45/取引額表!M$54) -> 0.002976208268 | N45: =IF(取引額表!N$54=0,0,取引額表!N45/取引額表!N$54) -> 0.002227880331 | O45: =IF(取引額表!O$54=0,0,取引額表!O45/取引額表!O$54) -> 0.003820265599 | P45: =IF(取引額表!P$54=0,0,取引額表!P45/取引額表!P$54) -> 0.01063446287 | Q45: =IF(取引額表!Q$54=0,0,取引額表!Q45/取引額表!Q$54) -> 0.009905061378 | R45: =IF(取引額表!R$54=0,0,取引額表!R45/取引額表!R$54) -> 0.002734731085 | S45: =IF(取引額表!S$54=0,0,取引額表!S45/取引額表!S$54) -> 0.001959736326 | T45: =IF(取引額表!T$54=0,0,取引額表!T45/取引額表!T$54) -> 0.004163036112 | U45: =IF(取引額表!U$54=0,0,取引額表!U45/取引額表!U$54) -> 0.005267593763 | V45: =IF(取引額表!V$54=0,0,取引額表!V45/取引額表!V$54) -> 0.00181598063 | W45: =IF(取引額表!W$54=0,0,取引額表!W45/取引額表!W$54) -> 0.001781041 | X45: =IF(取引額表!X$54=0,0,取引額表!X45/取引額表!X$54) -> 0.01746945558 | Y45: =IF(取引額表!Y$54=0,0,取引額表!Y45/取引額表!Y$54) -> 0.003147919986 | Z45: =IF(取引額表!Z$54=0,0,取引額表!Z45/取引額表!Z$54) -> 0.008134894531 | AA45: =IF(取引額表!AA$54=0,0,取引額表!AA45/取引額表!AA$54) -> 0.002309711286 | AB45: =IF(取引額表!AB$54=0,0,取引額表!AB45/取引額表!AB$54) -> 0.006636292983 | AC45: =IF(取引額表!AC$54=0,0,取引額表!AC45/取引額表!AC$54) -> 0.003467369196 | AD45: =IF(取引額表!AD$54=0,0,取引額表!AD45/取引額表!AD$54) -> 0.005897067176 | AE45: =IF(取引額表!AE$54=0,0,取引額表!AE45/取引額表!AE$54) -> 0.008392386515 | AF45: =IF(取引額表!AF$54=0,0,取引額表!AF45/取引額表!AF$54) -> 0.005362392296 | AG45: =IF(取引額表!AG$54=0,0,取引額表!AG45/取引額表!AG$54) -> 0.0007223620807 | AH45: =IF(取引額表!AH$54=0,0,取引額表!AH45/取引額表!AH$54) -> 0.01104176077 | AI45: =IF(取引額表!AI$54=0,0,取引額表!AI45/取引額表!AI$54) -> 0.003844274055 | AJ45: =IF(取引額表!AJ$54=0,0,取引額表!AJ45/取引額表!AJ$54) -> 0.002912036417 | AK45: =IF(取引額表!AK$54=0,0,取引額表!AK45/取引額表!AK$54) -> 0.007606666885 | AL45: =IF(取引額表!AL$54=0,0,取引額表!AL45/取引額表!AL$54) -> 0.002451091402 | AM45: =IF(取引額表!AM$54=0,0,取引額表!AM45/取引額表!AM$54) -> 0.001101052116 | AN45: =IF(取引額表!AN$54=0,0,取引額表!AN45/取引額表!AN$54) -> 0 | AO45: =IF(取引額表!AO$54=0,0,取引額表!AO45/取引額表!AO$54) -> 0.005527405837 | AP45: =IF(取引額表!AP$46=0,0,取引額表!AP45/取引額表!AP$46) -> 0 | AQ45: =IF(取引額表!AQ$46=0,0,取引額表!AQ45/取引額表!AQ$46) -> 9.199519172e-05 | AR45: =IF(取引額表!AR$46=0,0,取引額表!AR45/取引額表!AR$46) -> 0.001823421734 | AS45: =IF(取引額表!AS$46=0,0,取引額表!AS45/取引額表!AS$46) -> 0.00139032312 | AT45: =IF(取引額表!AT$46=0,0,取引額表!AT45/取引額表!AT$46) -> 0 | AU45: =IF(取引額表!AU$46=0,0,取引額表!AU45/取引額表!AU$46) -> 0.004967855056 | AV45: =IF(取引額表!AV$46=0,0,取引額表!AV45/取引額表!AV$46) -> 0 | AW45: =IF(取引額表!AW$46=0,0,取引額表!AW45/取引額表!AW$46) -> 0.0004872355289 | AX45: =IF(取引額表!AX$46=0,0,取引額表!AX45/取引額表!AX$46) -> 0.005316823063 | AY45: =IF(取引額表!AY$46=0,0,取引額表!AY45/取引額表!AY$46) -> 9.141344093e-05 | AZ45: =IF(取引額表!AZ$46=0,0,取引額表!AZ45/取引額表!AZ$46) -> 0.002873593179 | BA45: =IF(取引額表!BA$46=0,0,取引額表!BA45/取引額表!BA$46) -> 0.002441709686 | BB45: =IF(取引額表!BB$46=0,0,取引額表!BB45/取引額表!BB$46) -> 0.001128736329 | BC45: =IF(取引額表!BC$46=0,0,取引額表!BC45/取引額表!BC$46) -> 0.004694219808 | BD45: =IF(取引額表!BD$46=0,0,取引額表!BD45/取引額表!BD$46) -> 0.005034583033 | BE45: =IF(取引額表!BE$46=0,0,取引額表!BE45/取引額表!BE$46) -> 0.002676084101 | BF45: =IF(取引額表!BF$46=0,0,取引額表!BF45/取引額表!BF$46) -> 0.003191485808 | BG45: =IF(取引額表!BG$46=0,0,取引額表!BG45/取引額表!BG$46) -> -0.0004444584104 | BH45: =IF(取引額表!BH$46=0,0,取引額表!BH45/取引額表!BH$46) -> 0.005294582422
B46: 70 | C46: 内生部門計 | D46: =IF(取引額表!D$54=0,0,取引額表!D46/取引額表!D$54) -> 0.4810780617 | E46: =IF(取引額表!E$54=0,0,取引額表!E46/取引額表!E$54) -> 0.6325910931 | F46: =IF(取引額表!F$54=0,0,取引額表!F46/取引額表!F$54) -> 0.7446772467 | G46: =IF(取引額表!G$54=0,0,取引額表!G46/取引額表!G$54) -> 0.5771632471 | H46: =IF(取引額表!H$54=0,0,取引額表!H46/取引額表!H$54) -> 0.6173790651 | I46: =IF(取引額表!I$54=0,0,取引額表!I46/取引額表!I$54) -> 0.7358178328 | J46: =IF(取引額表!J$54=0,0,取引額表!J46/取引額表!J$54) -> 0.9120084279 | K46: =IF(取引額表!K$54=0,0,取引額表!K46/取引額表!K$54) -> 0.6581245254 | L46: =IF(取引額表!L$54=0,0,取引額表!L46/取引額表!L$54) -> 0.5460224542 | M46: =IF(取引額表!M$54=0,0,取引額表!M46/取引額表!M$54) -> 0.8388526269 | N46: =IF(取引額表!N$54=0,0,取引額表!N46/取引額表!N$54) -> 0.8114258434 | O46: =IF(取引額表!O$54=0,0,取引額表!O46/取引額表!O$54) -> 0.6286459281 | P46: =IF(取引額表!P$54=0,0,取引額表!P46/取引額表!P$54) -> 0.4792718097 | Q46: =IF(取引額表!Q$54=0,0,取引額表!Q46/取引額表!Q$54) -> 0.5894781399 | R46: =IF(取引額表!R$54=0,0,取引額表!R46/取引額表!R$54) -> 0.6270130659 | S46: =IF(取引額表!S$54=0,0,取引額表!S46/取引額表!S$54) -> 0.6123285231 | T46: =IF(取引額表!T$54=0,0,取引額表!T46/取引額表!T$54) -> 0.6974537709 | U46: =IF(取引額表!U$54=0,0,取引額表!U46/取引額表!U$54) -> 0.6837336705 | V46: =IF(取引額表!V$54=0,0,取引額表!V46/取引額表!V$54) -> 0.5599273608 | W46: =IF(取引額表!W$54=0,0,取引額表!W46/取引額表!W$54) -> 0.5151570224 | X46: =IF(取引額表!X$54=0,0,取引額表!X46/取引額表!X$54) -> 0.5321534088 | Y46: =IF(取引額表!Y$54=0,0,取引額表!Y46/取引額表!Y$54) -> 0.7903472388 | Z46: =IF(取引額表!Z$54=0,0,取引額表!Z46/取引額表!Z$54) -> 0.5039029952 | AA46: =IF(取引額表!AA$54=0,0,取引額表!AA46/取引額表!AA$54) -> 0.2728608924 | AB46: =IF(取引額表!AB$54=0,0,取引額表!AB46/取引額表!AB$54) -> 0.2925879216 | AC46: =IF(取引額表!AC$54=0,0,取引額表!AC46/取引額表!AC$54) -> 0.3156485589 | AD46: =IF(取引額表!AD$54=0,0,取引額表!AD46/取引額表!AD$54) -> 0.2087443624 | AE46: =IF(取引額表!AE$54=0,0,取引額表!AE46/取引額表!AE$54) -> 0.4380078726 | AF46: =IF(取引額表!AF$54=0,0,取引額表!AF46/取引額表!AF$54) -> 0.4313304612 | AG46: =IF(取引額表!AG$54=0,0,取引額表!AG46/取引額表!AG$54) -> 0.2901473273 | AH46: =IF(取引額表!AH$54=0,0,取引額表!AH46/取引額表!AH$54) -> 0.2444257381 | AI46: =IF(取引額表!AI$54=0,0,取引額表!AI46/取引額表!AI$54) -> 0.3859304299 | AJ46: =IF(取引額表!AJ$54=0,0,取引額表!AJ46/取引額表!AJ$54) -> 0.3729749632 | AK46: =IF(取引額表!AK$54=0,0,取引額表!AK46/取引額表!AK$54) -> 0.3333933659 | AL46: =IF(取引額表!AL$54=0,0,取引額表!AL46/取引額表!AL$54) -> 0.4332890183 | AM46: =IF(取引額表!AM$54=0,0,取引額表!AM46/取引額表!AM$54) -> 1 | AN46: =IF(取引額表!AN$54=0,0,取引額表!AN46/取引額表!AN$54) -> 0.5994454248 | AO46: =IF(取引額表!AO$54=0,0,取引額表!AO46/取引額表!AO$54) -> 0.476163776 | AP46: =IF(取引額表!AP$46=0,0,取引額表!AP46/取引額表!AP$46) -> 1 | AQ46: =IF(取引額表!AQ$46=0,0,取引額表!AQ46/取引額表!AQ$46) -> 1 | AR46: =IF(取引額表!AR$46=0,0,取引額表!AR46/取引額表!AR$46) -> 1 | AS46: =IF(取引額表!AS$46=0,0,取引額表!AS46/取引額表!AS$46) -> 1 | AT46: =IF(取引額表!AT$46=0,0,取引額表!AT46/取引額表!AT$46) -> 1 | AU46: =IF(取引額表!AU$46=0,0,取引額表!AU46/取引額表!AU$46) -> 1 | AV46: =IF(取引額表!AV$46=0,0,取引額表!AV46/取引額表!AV$46) -> 1 | AW46: =IF(取引額表!AW$46=0,0,取引額表!AW46/取引額表!AW$46) -> 1 | AX46: =IF(取引額表!AX$46=0,0,取引額表!AX46/取引額表!AX$46) -> 1 | AY46: =IF(取引額表!AY$46=0,0,取引額表!AY46/取引額表!AY$46) -> 1 | AZ46: =IF(取引額表!AZ$46=0,0,取引額表!AZ46/取引額表!AZ$46) -> 1 | BA46: =IF(取引額表!BA$46=0,0,取引額表!BA46/取引額表!BA$46) -> 1 | BB46: =IF(取引額表!BB$46=0,0,取引額表!BB46/取引額表!BB$46) -> 1 | BC46: =IF(取引額表!BC$46=0,0,取引額表!BC46/取引額表!BC$46) -> 1 | BD46: =IF(取引額表!BD$46=0,0,取引額表!BD46/取引額表!BD$46) -> 1 | BE46: =IF(取引額表!BE$46=0,0,取引額表!BE46/取引額表!BE$46) -> 1 | BF46: =IF(取引額表!BF$46=0,0,取引額表!BF46/取引額表!BF$46) -> 1 | BG46: =IF(取引額表!BG$46=0,0,取引額表!BG46/取引額表!BG$46) -> 1 | BH46: =IF(取引額表!BH$46=0,0,取引額表!BH46/取引額表!BH$46) -> 1
B47: 71 | C47: 家計外消費支出（行） | D47: =IF(取引額表!D$54=0,0,取引額表!D47/取引額表!D$54) -> 0.005585812037 | E47: =IF(取引額表!E$54=0,0,取引額表!E47/取引額表!E$54) -> 0.06781376518 | F47: =IF(取引額表!F$54=0,0,取引額表!F47/取引額表!F$54) -> 0.008686531551 | G47: =IF(取引額表!G$54=0,0,取引額表!G47/取引額表!G$54) -> 0.01605709188 | H47: =IF(取引額表!H$54=0,0,取引額表!H47/取引額表!H$54) -> 0.01303800282 | I47: =IF(取引額表!I$54=0,0,取引額表!I47/取引額表!I$54) -> 0.01462897994 | J47: =IF(取引額表!J$54=0,0,取引額表!J47/取引額表!J$54) -> 0.004483728818 | K47: =IF(取引額表!K$54=0,0,取引額表!K47/取引額表!K$54) -> 0.01670463174 | L47: =IF(取引額表!L$54=0,0,取引額表!L47/取引額表!L$54) -> 0.02149316325 | M47: =IF(取引額表!M$54=0,0,取引額表!M47/取引額表!M$54) -> 0.00538450305 | N47: =IF(取引額表!N$54=0,0,取引額表!N47/取引額表!N$54) -> 0.007691491619 | O47: =IF(取引額表!O$54=0,0,取引額表!O47/取引額表!O$54) -> 0.02049602814 | P47: =IF(取引額表!P$54=0,0,取引額表!P47/取引額表!P$54) -> 0.009192501802 | Q47: =IF(取引額表!Q$54=0,0,取引額表!Q47/取引額表!Q$54) -> 0.007522525246 | R47: =IF(取引額表!R$54=0,0,取引額表!R47/取引額表!R$54) -> 0.0161045275 | S47: =IF(取引額表!S$54=0,0,取引額表!S47/取引額表!S$54) -> 0.008729734545 | T47: =IF(取引額表!T$54=0,0,取引額表!T47/取引額表!T$54) -> 0.02701132733 | U47: =IF(取引額表!U$54=0,0,取引額表!U47/取引額表!U$54) -> 0.03286978508 | V47: =IF(取引額表!V$54=0,0,取引額表!V47/取引額表!V$54) -> 0.006658595642 | W47: =IF(取引額表!W$54=0,0,取引額表!W47/取引額表!W$54) -> 0.0143937191 | X47: =IF(取引額表!X$54=0,0,取引額表!X47/取引額表!X$54) -> 0.01917144868 | Y47: =IF(取引額表!Y$54=0,0,取引額表!Y47/取引額表!Y$54) -> 0.01035330241 | Z47: =IF(取引額表!Z$54=0,0,取引額表!Z47/取引額表!Z$54) -> 0.01232293996 | AA47: =IF(取引額表!AA$54=0,0,取引額表!AA47/取引額表!AA$54) -> 0.02468941382 | AB47: =IF(取引額表!AB$54=0,0,取引額表!AB47/取引額表!AB$54) -> 0.0219006976 | AC47: =IF(取引額表!AC$54=0,0,取引額表!AC47/取引額表!AC$54) -> 0.03028764866 | AD47: =IF(取引額表!AD$54=0,0,取引額表!AD47/取引額表!AD$54) -> 0.005237809438 | AE47: =IF(取引額表!AE$54=0,0,取引額表!AE47/取引額表!AE$54) -> 0.02391817097 | AF47: =IF(取引額表!AF$54=0,0,取引額表!AF47/取引額表!AF$54) -> 0.01820831221 | AG47: =IF(取引額表!AG$54=0,0,取引額表!AG47/取引額表!AG$54) -> 0.007777287552 | AH47: =IF(取引額表!AH$54=0,0,取引額表!AH47/取引額表!AH$54) -> 0.009292489632 | AI47: =IF(取引額表!AI$54=0,0,取引額表!AI47/取引額表!AI$54) -> 0.00998249975 | AJ47: =IF(取引額表!AJ$54=0,0,取引額表!AJ47/取引額表!AJ$54) -> 0.02891953407 | AK47: =IF(取引額表!AK$54=0,0,取引額表!AK47/取引額表!AK$54) -> 0.0170830741 | AL47: =IF(取引額表!AL$54=0,0,取引額表!AL47/取引額表!AL$54) -> 0.02076500694 | AM47: =IF(取引額表!AM$54=0,0,取引額表!AM47/取引額表!AM$54) -> 0 | AN47: =IF(取引額表!AN$54=0,0,取引額表!AN47/取引額表!AN$54) -> 0.003249026692 | AO47: =IF(取引額表!AO$54=0,0,取引額表!AO47/取引額表!AO$54) -> 0.01370974009
B48: 91 | C48: 雇用者所得 | D48: =IF(取引額表!D$54=0,0,取引額表!D48/取引額表!D$54) -> 0.1833542801 | E48: =IF(取引額表!E$54=0,0,取引額表!E48/取引額表!E$54) -> 0.1609311741 | F48: =IF(取引額表!F$54=0,0,取引額表!F48/取引額表!F$54) -> 0.1304601699 | G48: =IF(取引額表!G$54=0,0,取引額表!G48/取引額表!G$54) -> 0.3693131133 | H48: =IF(取引額表!H$54=0,0,取引額表!H48/取引額表!H$54) -> 0.2166827172 | I48: =IF(取引額表!I$54=0,0,取引額表!I48/取引額表!I$54) -> 0.1152445886 | J48: =IF(取引額表!J$54=0,0,取引額表!J48/取引額表!J$54) -> 0.01372098102 | K48: =IF(取引額表!K$54=0,0,取引額表!K48/取引額表!K$54) -> 0.2488610478 | L48: =IF(取引額表!L$54=0,0,取引額表!L48/取引額表!L$54) -> 0.161591892 | M48: =IF(取引額表!M$54=0,0,取引額表!M48/取引額表!M$54) -> 0.03316187755 | N48: =IF(取引額表!N$54=0,0,取引額表!N48/取引額表!N$54) -> 0.1312858052 | O48: =IF(取引額表!O$54=0,0,取引額表!O48/取引額表!O$54) -> 0.3033472803 | P48: =IF(取引額表!P$54=0,0,取引額表!P48/取引額表!P$54) -> 0.4248377794 | Q48: =IF(取引額表!Q$54=0,0,取引額表!Q48/取引額表!Q$54) -> 0.2140896172 | R48: =IF(取引額表!R$54=0,0,取引額表!R48/取引額表!R$54) -> 0.2698268004 | S48: =IF(取引額表!S$54=0,0,取引額表!S48/取引額表!S$54) -> 0.3247817566 | T48: =IF(取引額表!T$54=0,0,取引額表!T48/取引額表!T$54) -> 0.135347081 | U48: =IF(取引額表!U$54=0,0,取引額表!U48/取引額表!U$54) -> 0.1519174041 | V48: =IF(取引額表!V$54=0,0,取引額表!V48/取引額表!V$54) -> 0.3728813559 | W48: =IF(取引額表!W$54=0,0,取引額表!W48/取引額表!W$54) -> 0.3694387903 | X48: =IF(取引額表!X$54=0,0,取引額表!X48/取引額表!X$54) -> 0.367695613 | Y48: =IF(取引額表!Y$54=0,0,取引額表!Y48/取引額表!Y$54) -> 0.0453094057 | Z48: =IF(取引額表!Z$54=0,0,取引額表!Z48/取引額表!Z$54) -> 0.1368021752 | AA48: =IF(取引額表!AA$54=0,0,取引額表!AA48/取引額表!AA$54) -> 0.5174453193 | AB48: =IF(取引額表!AB$54=0,0,取引額表!AB48/取引額表!AB$54) -> 0.4252160518 | AC48: =IF(取引額表!AC$54=0,0,取引額表!AC48/取引額表!AC$54) -> 0.3339005044 | AD48: =IF(取引額表!AD$54=0,0,取引額表!AD48/取引額表!AD$54) -> 0.04668377246 | AE48: =IF(取引額表!AE$54=0,0,取引額表!AE48/取引額表!AE$54) -> 0.2678563499 | AF48: =IF(取引額表!AF$54=0,0,取引額表!AF48/取引額表!AF$54) -> 0.3106918398 | AG48: =IF(取引額表!AG$54=0,0,取引額表!AG48/取引額表!AG$54) -> 0.3910617425 | AH48: =IF(取引額表!AH$54=0,0,取引額表!AH48/取引額表!AH$54) -> 0.6546996263 | AI48: =IF(取引額表!AI$54=0,0,取引額表!AI48/取引額表!AI$54) -> 0.498838572 | AJ48: =IF(取引額表!AJ$54=0,0,取引額表!AJ48/取引額表!AJ$54) -> 0.5385928504 | AK48: =IF(取引額表!AK$54=0,0,取引額表!AK48/取引額表!AK$54) -> 0.3940567799 | AL48: =IF(取引額表!AL$54=0,0,取引額表!AL48/取引額表!AL$54) -> 0.313340065 | AM48: =IF(取引額表!AM$54=0,0,取引額表!AM48/取引額表!AM$54) -> 0 | AN48: =IF(取引額表!AN$54=0,0,取引額表!AN48/取引額表!AN$54) -> 0.03812004593 | AO48: =IF(取引額表!AO$54=0,0,取引額表!AO48/取引額表!AO$54) -> 0.2585710159
B49: 92 | C49: 営業余剰 | D49: =IF(取引額表!D$54=0,0,取引額表!D49/取引額表!D$54) -> 0.2565284178 | E49: =IF(取引額表!E$54=0,0,取引額表!E49/取引額表!E$54) -> 0.02327935223 | F49: =IF(取引額表!F$54=0,0,取引額表!F49/取引額表!F$54) -> 0.04814717363 | G49: =IF(取引額表!G$54=0,0,取引額表!G49/取引額表!G$54) -> -0.05084745763 | H49: =IF(取引額表!H$54=0,0,取引額表!H49/取引額表!H$54) -> 0.0672642418 | I49: =IF(取引額表!I$54=0,0,取引額表!I49/取引額表!I$54) -> 0.04382074535 | J49: =IF(取引額表!J$54=0,0,取引額表!J49/取引額表!J$54) -> -0.0002826419312 | K49: =IF(取引額表!K$54=0,0,取引額表!K49/取引額表!K$54) -> -0.02391799544 | L49: =IF(取引額表!L$54=0,0,取引額表!L49/取引額表!L$54) -> 0.1649993447 | M49: =IF(取引額表!M$54=0,0,取引額表!M49/取引額表!M$54) -> 0.06783449037 | N49: =IF(取引額表!N$54=0,0,取引額表!N49/取引額表!N$54) -> 0.01771695311 | O49: =IF(取引額表!O$54=0,0,取引額表!O49/取引額表!O$54) -> -0.04238675641 | P49: =IF(取引額表!P$54=0,0,取引額表!P49/取引額表!P$54) -> 0.03965392934 | Q49: =IF(取引額表!Q$54=0,0,取引額表!Q49/取引額表!Q$54) -> 0.1161758481 | R49: =IF(取引額表!R$54=0,0,取引額表!R49/取引額表!R$54) -> -0.01686417502 | S49: =IF(取引額表!S$54=0,0,取引額表!S49/取引額表!S$54) -> -0.02244788883 | T49: =IF(取引額表!T$54=0,0,取引額表!T49/取引額表!T$54) -> 0.034659696 | U49: =IF(取引額表!U$54=0,0,取引額表!U49/取引額表!U$54) -> 0.002949852507 | V49: =IF(取引額表!V$54=0,0,取引額表!V49/取引額表!V$54) -> 0.0205811138 | W49: =IF(取引額表!W$54=0,0,取引額表!W49/取引額表!W$54) -> 0.016029369 | X49: =IF(取引額表!X$54=0,0,取引額表!X49/取引額表!X$54) -> 0.01992789006 | Y49: =IF(取引額表!Y$54=0,0,取引額表!Y49/取引額表!Y$54) -> -0.0411874367 | Z49: =IF(取引額表!Z$54=0,0,取引額表!Z49/取引額表!Z$54) -> 0.1314739289 | AA49: =IF(取引額表!AA$54=0,0,取引額表!AA49/取引額表!AA$54) -> 0.03167104112 | AB49: =IF(取引額表!AB$54=0,0,取引額表!AB49/取引額表!AB$54) -> 0.1553370346 | AC49: =IF(取引額表!AC$54=0,0,取引額表!AC49/取引額表!AC$54) -> 0.2172753627 | AD49: =IF(取引額表!AD$54=0,0,取引額表!AD49/取引額表!AD$54) -> 0.4158399091 | AE49: =IF(取引額表!AE$54=0,0,取引額表!AE49/取引額表!AE$54) -> 0.0638349001 | AF49: =IF(取引額表!AF$54=0,0,取引額表!AF49/取引額表!AF$54) -> 0.1288976178 | AG49: =IF(取引額表!AG$54=0,0,取引額表!AG49/取引額表!AG$54) -> 0 | AH49: =IF(取引額表!AH$54=0,0,取引額表!AH49/取引額表!AH$54) -> 0.00374081222 | AI49: =IF(取引額表!AI$54=0,0,取引額表!AI49/取引額表!AI$54) -> 0.03121403383 | AJ49: =IF(取引額表!AJ$54=0,0,取引額表!AJ49/取引額表!AJ$54) -> -0.004317847101 | AK49: =IF(取引額表!AK$54=0,0,取引額表!AK49/取引額表!AK$54) -> 0.08404499165 | AL49: =IF(取引額表!AL$54=0,0,取引額表!AL49/取引額表!AL$54) -> 0.09673019079 | AM49: =IF(取引額表!AM$54=0,0,取引額表!AM49/取引額表!AM$54) -> 0 | AN49: =IF(取引額表!AN$54=0,0,取引額表!AN49/取引額表!AN$54) -> 0.2951852785 | AO49: =IF(取引額表!AO$54=0,0,取引額表!AO49/取引額表!AO$54) -> 0.1150017173
B50: 93 | C50: 資本減耗引当 | D50: =IF(取引額表!D$54=0,0,取引額表!D50/取引額表!D$54) -> 0.1300097752 | E50: =IF(取引額表!E$54=0,0,取引額表!E50/取引額表!E$54) -> 0.06072874494 | F50: =IF(取引額表!F$54=0,0,取引額表!F50/取引額表!F$54) -> 0.03305928107 | G50: =IF(取引額表!G$54=0,0,取引額表!G50/取引額表!G$54) -> 0.05084745763 | H50: =IF(取引額表!H$54=0,0,取引額表!H50/取引額表!H$54) -> 0.05222609082 | I50: =IF(取引額表!I$54=0,0,取引額表!I50/取引額表!I$54) -> 0.07155623221 | J50: =IF(取引額表!J$54=0,0,取引額表!J50/取引額表!J$54) -> 0.06584272261 | K50: =IF(取引額表!K$54=0,0,取引額表!K50/取引額表!K$54) -> 0.07033029613 | L50: =IF(取引額表!L$54=0,0,取引額表!L50/取引額表!L$54) -> 0.07688611245 | M50: =IF(取引額表!M$54=0,0,取引額表!M50/取引額表!M$54) -> 0.04555007759 | N50: =IF(取引額表!N$54=0,0,取引額表!N50/取引額表!N$54) -> 0.0198387439 | O50: =IF(取引額表!O$54=0,0,取引額表!O50/取引額表!O$54) -> 0.06382269116 | P50: =IF(取引額表!P$54=0,0,取引額表!P50/取引額表!P$54) -> 0.03911319394 | Q50: =IF(取引額表!Q$54=0,0,取引額表!Q50/取引額表!Q$54) -> 0.0631795368 | R50: =IF(取引額表!R$54=0,0,取引額表!R50/取引額表!R$54) -> 0.08842297174 | S50: =IF(取引額表!S$54=0,0,取引額表!S50/取引額表!S$54) -> 0.06876892927 | T50: =IF(取引額表!T$54=0,0,取引額表!T50/取引額表!T$54) -> 0.09700842289 | U50: =IF(取引額表!U$54=0,0,取引額表!U50/取引額表!U$54) -> 0.1211546566 | V50: =IF(取引額表!V$54=0,0,取引額表!V50/取引額表!V$54) -> 0.0411622276 | W50: =IF(取引額表!W$54=0,0,取引額表!W50/取引額表!W$54) -> 0.05212271009 | X50: =IF(取引額表!X$54=0,0,取引額表!X50/取引額表!X$54) -> 0.02844405589 | Y50: =IF(取引額表!Y$54=0,0,取引額表!Y50/取引額表!Y$54) -> 0.1656205853 | Z50: =IF(取引額表!Z$54=0,0,取引額表!Z50/取引額表!Z$54) -> 0.2322282156 | AA50: =IF(取引額表!AA$54=0,0,取引額表!AA50/取引額表!AA$54) -> 0.1135258093 | AB50: =IF(取引額表!AB$54=0,0,取引額表!AB50/取引額表!AB$54) -> 0.06932894016 | AC50: =IF(取引額表!AC$54=0,0,取引額表!AC50/取引額表!AC$54) -> 0.1129897659 | AD50: =IF(取引額表!AD$54=0,0,取引額表!AD50/取引額表!AD$54) -> 0.266921508 | AE50: =IF(取引額表!AE$54=0,0,取引額表!AE50/取引額表!AE$54) -> 0.1653245291 | AF50: =IF(取引額表!AF$54=0,0,取引額表!AF50/取引額表!AF$54) -> 0.09063608718 | AG50: =IF(取引額表!AG$54=0,0,取引額表!AG50/取引額表!AG$54) -> 0.3101312363 | AH50: =IF(取引額表!AH$54=0,0,取引額表!AH50/取引額表!AH$54) -> 0.07953024268 | AI50: =IF(取引額表!AI$54=0,0,取引額表!AI50/取引額表!AI$54) -> 0.07286778115 | AJ50: =IF(取引額表!AJ$54=0,0,取引額表!AJ50/取引額表!AJ$54) -> 0.05512786183 | AK50: =IF(取引額表!AK$54=0,0,取引額表!AK50/取引額表!AK$54) -> 0.1348603425 | AL50: =IF(取引額表!AL$54=0,0,取引額表!AL50/取引額表!AL$54) -> 0.08579619175 | AM50: =IF(取引額表!AM$54=0,0,取引額表!AM50/取引額表!AM$54) -> 0 | AN50: =IF(取引額表!AN$54=0,0,取引額表!AN50/取引額表!AN$54) -> 0.05475730331 | AO50: =IF(取引額表!AO$54=0,0,取引額表!AO50/取引額表!AO$54) -> 0.1110619595
B51: 94 | C51: 間接税（関税・輸入品商品税を除く。） | D51: =IF(取引額表!D$54=0,0,取引額表!D51/取引額表!D$54) -> 0.04259181679 | E51: =IF(取引額表!E$54=0,0,取引額表!E51/取引額表!E$54) -> 0.05465587045 | F51: =IF(取引額表!F$54=0,0,取引額表!F51/取引額表!F$54) -> 0.0402499991 | G51: =IF(取引額表!G$54=0,0,取引額表!G51/取引額表!G$54) -> 0.03746654773 | H51: =IF(取引額表!H$54=0,0,取引額表!H51/取引額表!H$54) -> 0.03340988221 | I51: =IF(取引額表!I$54=0,0,取引額表!I51/取引額表!I$54) -> 0.0189316211 | J51: =IF(取引額表!J$54=0,0,取引額表!J51/取引額表!J$54) -> 0.004226781608 | K51: =IF(取引額表!K$54=0,0,取引額表!K51/取引額表!K$54) -> 0.02989749431 | L51: =IF(取引額表!L$54=0,0,取引額表!L51/取引額表!L$54) -> 0.02900703333 | M51: =IF(取引額表!M$54=0,0,取引額表!M51/取引額表!M$54) -> 0.009223256612 | N51: =IF(取引額表!N$54=0,0,取引額表!N51/取引額表!N$54) -> 0.01204116274 | O51: =IF(取引額表!O$54=0,0,取引額表!O51/取引額表!O$54) -> 0.02607482869 | P51: =IF(取引額表!P$54=0,0,取引額表!P51/取引額表!P$54) -> 0.007930785869 | Q51: =IF(取引額表!Q$54=0,0,取引額表!Q51/取引額表!Q$54) -> 0.009578520893 | R51: =IF(取引額表!R$54=0,0,取引額表!R51/取引額表!R$54) -> 0.01549680948 | S51: =IF(取引額表!S$54=0,0,取引額表!S51/取引額表!S$54) -> 0.007838945306 | T51: =IF(取引額表!T$54=0,0,取引額表!T51/取引額表!T$54) -> 0.00851970181 | U51: =IF(取引額表!U$54=0,0,取引額表!U51/取引額表!U$54) -> 0.007374631268 | V51: =IF(取引額表!V$54=0,0,取引額表!V51/取引額表!V$54) -> -0.001210653753 | W51: =IF(取引額表!W$54=0,0,取引額表!W51/取引額表!W$54) -> 0.03289473684 | X51: =IF(取引額表!X$54=0,0,取引額表!X51/取引額表!X$54) -> 0.03552484321 | Y51: =IF(取引額表!Y$54=0,0,取引額表!Y51/取引額表!Y$54) -> 0.03326603149 | Z51: =IF(取引額表!Z$54=0,0,取引額表!Z51/取引額表!Z$54) -> 0.03810902074 | AA51: =IF(取引額表!AA$54=0,0,取引額表!AA51/取引額表!AA$54) -> 0.03982502187 | AB51: =IF(取引額表!AB$54=0,0,取引額表!AB51/取引額表!AB$54) -> 0.03616453911 | AC51: =IF(取引額表!AC$54=0,0,取引額表!AC51/取引額表!AC$54) -> 0.01680780408 | AD51: =IF(取引額表!AD$54=0,0,取引額表!AD51/取引額表!AD$54) -> 0.05750848912 | AE51: =IF(取引額表!AE$54=0,0,取引額表!AE51/取引額表!AE$54) -> 0.04899346214 | AF51: =IF(取引額表!AF$54=0,0,取引額表!AF51/取引額表!AF$54) -> 0.02028636594 | AG51: =IF(取引額表!AG$54=0,0,取引額表!AG51/取引額表!AG$54) -> 0.0008824063741 | AH51: =IF(取引額表!AH$54=0,0,取引額表!AH51/取引額表!AH$54) -> 0.01118137396 | AI51: =IF(取引額表!AI$54=0,0,取引額表!AI51/取引額表!AI$54) -> 0.01479638223 | AJ51: =IF(取引額表!AJ$54=0,0,取引額表!AJ51/取引額表!AJ$54) -> 0.02235908421 | AK51: =IF(取引額表!AK$54=0,0,取引額表!AK51/取引額表!AK$54) -> 0.03681194538 | AL51: =IF(取引額表!AL$54=0,0,取引額表!AL51/取引額表!AL$54) -> 0.05009551264 | AM51: =IF(取引額表!AM$54=0,0,取引額表!AM51/取引額表!AM$54) -> 0 | AN51: =IF(取引額表!AN$54=0,0,取引額表!AN51/取引額表!AN$54) -> 0.009242920763 | AO51: =IF(取引額表!AO$54=0,0,取引額表!AO51/取引額表!AO$54) -> 0.02919842902
B52: 95 | C52: （控除）経常補助金 | D52: =IF(取引額表!D$54=0,0,取引額表!D52/取引額表!D$54) -> -0.09914816366 | E52: =IF(取引額表!E$54=0,0,取引額表!E52/取引額表!E$54) -> 0 | F52: =IF(取引額表!F$54=0,0,取引額表!F52/取引額表!F$54) -> -0.005280401959 | G52: =IF(取引額表!G$54=0,0,取引額表!G52/取引額表!G$54) -> 0 | H52: =IF(取引額表!H$54=0,0,取引額表!H52/取引額表!H$54) -> 0 | I52: =IF(取引額表!I$54=0,0,取引額表!I52/取引額表!I$54) -> 0 | J52: =IF(取引額表!J$54=0,0,取引額表!J52/取引額表!J$54) -> 0 | K52: =IF(取引額表!K$54=0,0,取引額表!K52/取引額表!K$54) -> 0 | L52: =IF(取引額表!L$54=0,0,取引額表!L52/取引額表!L$54) -> 0 | M52: =IF(取引額表!M$54=0,0,取引額表!M52/取引額表!M$54) -> -6.832041935e-06 | N52: =IF(取引額表!N$54=0,0,取引額表!N52/取引額表!N$54) -> 0 | O52: =IF(取引額表!O$54=0,0,取引額表!O52/取引額表!O$54) -> 0 | P52: =IF(取引額表!P$54=0,0,取引額表!P52/取引額表!P$54) -> 0 | Q52: =IF(取引額表!Q$54=0,0,取引額表!Q52/取引額表!Q$54) -> -2.418818407e-05 | R52: =IF(取引額表!R$54=0,0,取引額表!R52/取引額表!R$54) -> 0 | S52: =IF(取引額表!S$54=0,0,取引額表!S52/取引額表!S$54) -> 0 | T52: =IF(取引額表!T$54=0,0,取引額表!T52/取引額表!T$54) -> 0 | U52: =IF(取引額表!U$54=0,0,取引額表!U52/取引額表!U$54) -> 0 | V52: =IF(取引額表!V$54=0,0,取引額表!V52/取引額表!V$54) -> 0 | W52: =IF(取引額表!W$54=0,0,取引額表!W52/取引額表!W$54) -> -3.634777552e-05 | X52: =IF(取引額表!X$54=0,0,取引額表!X52/取引額表!X$54) -> -0.002917259574 | Y52: =IF(取引額表!Y$54=0,0,取引額表!Y52/取引額表!Y$54) -> -0.003709127033 | Z52: =IF(取引額表!Z$54=0,0,取引額表!Z52/取引額表!Z$54) -> -0.05483927553 | AA52: =IF(取引額表!AA$54=0,0,取引額表!AA52/取引額表!AA$54) -> -1.749781277e-05 | AB52: =IF(取引額表!AB$54=0,0,取引額表!AB52/取引額表!AB$54) -> -0.000535184918 | AC52: =IF(取引額表!AC$54=0,0,取引額表!AC52/取引額表!AC$54) -> -0.02690964465 | AD52: =IF(取引額表!AD$54=0,0,取引額表!AD52/取引額表!AD$54) -> -0.0009358505969 | AE52: =IF(取引額表!AE$54=0,0,取引額表!AE52/取引額表!AE$54) -> -0.007935284853 | AF52: =IF(取引額表!AF$54=0,0,取引額表!AF52/取引額表!AF$54) -> -5.06842372e-05 | AG52: =IF(取引額表!AG$54=0,0,取引額表!AG52/取引額表!AG$54) -> 0 | AH52: =IF(取引額表!AH$54=0,0,取引額表!AH52/取引額表!AH$54) -> -0.002870282922 | AI52: =IF(取引額表!AI$54=0,0,取引額表!AI52/取引額表!AI$54) -> -0.01362969892 | AJ52: =IF(取引額表!AJ$54=0,0,取引額表!AJ52/取引額表!AJ$54) -> -0.01365644665 | AK52: =IF(取引額表!AK$54=0,0,取引額表!AK52/取引額表!AK$54) -> -0.0002504993615 | AL52: =IF(取引額表!AL$54=0,0,取引額表!AL52/取引額表!AL$54) -> -1.598537871e-05 | AM52: =IF(取引額表!AM$54=0,0,取引額表!AM52/取引額表!AM$54) -> 0 | AN52: =IF(取引額表!AN$54=0,0,取引額表!AN52/取引額表!AN$54) -> 0 | AO52: =IF(取引額表!AO$54=0,0,取引額表!AO52/取引額表!AO$54) -> -0.003706637751
B53: 96 | C53: 粗付加価値部門計 | D53: =IF(取引額表!D$54=0,0,取引額表!D53/取引額表!D$54) -> 0.5189219383 | E53: =IF(取引額表!E$54=0,0,取引額表!E53/取引額表!E$54) -> 0.3674089069 | F53: =IF(取引額表!F$54=0,0,取引額表!F53/取引額表!F$54) -> 0.2553227533 | G53: =IF(取引額表!G$54=0,0,取引額表!G53/取引額表!G$54) -> 0.4228367529 | H53: =IF(取引額表!H$54=0,0,取引額表!H53/取引額表!H$54) -> 0.3826209349 | I53: =IF(取引額表!I$54=0,0,取引額表!I53/取引額表!I$54) -> 0.2641821672 | J53: =IF(取引額表!J$54=0,0,取引額表!J53/取引額表!J$54) -> 0.08799157213 | K53: =IF(取引額表!K$54=0,0,取引額表!K53/取引額表!K$54) -> 0.3418754746 | L53: =IF(取引額表!L$54=0,0,取引額表!L53/取引額表!L$54) -> 0.4539775458 | M53: =IF(取引額表!M$54=0,0,取引額表!M53/取引額表!M$54) -> 0.1611473731 | N53: =IF(取引額表!N$54=0,0,取引額表!N53/取引額表!N$54) -> 0.1885741566 | O53: =IF(取引額表!O$54=0,0,取引額表!O53/取引額表!O$54) -> 0.3713540719 | P53: =IF(取引額表!P$54=0,0,取引額表!P53/取引額表!P$54) -> 0.5207281903 | Q53: =IF(取引額表!Q$54=0,0,取引額表!Q53/取引額表!Q$54) -> 0.4105218601 | R53: =IF(取引額表!R$54=0,0,取引額表!R53/取引額表!R$54) -> 0.3729869341 | S53: =IF(取引額表!S$54=0,0,取引額表!S53/取引額表!S$54) -> 0.3876714769 | T53: =IF(取引額表!T$54=0,0,取引額表!T53/取引額表!T$54) -> 0.3025462291 | U53: =IF(取引額表!U$54=0,0,取引額表!U53/取引額表!U$54) -> 0.3162663295 | V53: =IF(取引額表!V$54=0,0,取引額表!V53/取引額表!V$54) -> 0.4400726392 | W53: =IF(取引額表!W$54=0,0,取引額表!W53/取引額表!W$54) -> 0.4848429776 | X53: =IF(取引額表!X$54=0,0,取引額表!X53/取引額表!X$54) -> 0.4678465912 | Y53: =IF(取引額表!Y$54=0,0,取引額表!Y53/取引額表!Y$54) -> 0.2096527612 | Z53: =IF(取引額表!Z$54=0,0,取引額表!Z53/取引額表!Z$54) -> 0.4960970048 | AA53: =IF(取引額表!AA$54=0,0,取引額表!AA53/取引額表!AA$54) -> 0.7271391076 | AB53: =IF(取引額表!AB$54=0,0,取引額表!AB53/取引額表!AB$54) -> 0.7074120784 | AC53: =IF(取引額表!AC$54=0,0,取引額表!AC53/取引額表!AC$54) -> 0.6843514411 | AD53: =IF(取引額表!AD$54=0,0,取引額表!AD53/取引額表!AD$54) -> 0.7912556376 | AE53: =IF(取引額表!AE$54=0,0,取引額表!AE53/取引額表!AE$54) -> 0.5619921274 | AF53: =IF(取引額表!AF$54=0,0,取引額表!AF53/取引額表!AF$54) -> 0.5686695388 | AG53: =IF(取引額表!AG$54=0,0,取引額表!AG53/取引額表!AG$54) -> 0.7098526727 | AH53: =IF(取引額表!AH$54=0,0,取引額表!AH53/取引額表!AH$54) -> 0.7555742619 | AI53: =IF(取引額表!AI$54=0,0,取引額表!AI53/取引額表!AI$54) -> 0.6140695701 | AJ53: =IF(取引額表!AJ$54=0,0,取引額表!AJ53/取引額表!AJ$54) -> 0.6270250368 | AK53: =IF(取引額表!AK$54=0,0,取引額表!AK53/取引額表!AK$54) -> 0.6666066341 | AL53: =IF(取引額表!AL$54=0,0,取引額表!AL53/取引額表!AL$54) -> 0.5667109817 | AM53: =IF(取引額表!AM$54=0,0,取引額表!AM53/取引額表!AM$54) -> 0 | AN53: =IF(取引額表!AN$54=0,0,取引額表!AN53/取引額表!AN$54) -> 0.4005545752 | AO53: =IF(取引額表!AO$54=0,0,取引額表!AO53/取引額表!AO$54) -> 0.523836224
B54: 97 | C54: 市内生産額 | D54: =IF(取引額表!D$54=0,0,取引額表!D54/取引額表!D$54) -> 1 | E54: =IF(取引額表!E$54=0,0,取引額表!E54/取引額表!E$54) -> 1 | F54: =IF(取引額表!F$54=0,0,取引額表!F54/取引額表!F$54) -> 1 | G54: =IF(取引額表!G$54=0,0,取引額表!G54/取引額表!G$54) -> 1 | H54: =IF(取引額表!H$54=0,0,取引額表!H54/取引額表!H$54) -> 1 | I54: =IF(取引額表!I$54=0,0,取引額表!I54/取引額表!I$54) -> 1 | J54: =IF(取引額表!J$54=0,0,取引額表!J54/取引額表!J$54) -> 1 | K54: =IF(取引額表!K$54=0,0,取引額表!K54/取引額表!K$54) -> 1 | L54: =IF(取引額表!L$54=0,0,取引額表!L54/取引額表!L$54) -> 1 | M54: =IF(取引額表!M$54=0,0,取引額表!M54/取引額表!M$54) -> 1 | N54: =IF(取引額表!N$54=0,0,取引額表!N54/取引額表!N$54) -> 1 | O54: =IF(取引額表!O$54=0,0,取引額表!O54/取引額表!O$54) -> 1 | P54: =IF(取引額表!P$54=0,0,取引額表!P54/取引額表!P$54) -> 1 | Q54: =IF(取引額表!Q$54=0,0,取引額表!Q54/取引額表!Q$54) -> 1 | R54: =IF(取引額表!R$54=0,0,取引額表!R54/取引額表!R$54) -> 1 | S54: =IF(取引額表!S$54=0,0,取引額表!S54/取引額表!S$54) -> 1 | T54: =IF(取引額表!T$54=0,0,取引額表!T54/取引額表!T$54) -> 1 | U54: =IF(取引額表!U$54=0,0,取引額表!U54/取引額表!U$54) -> 1 | V54: =IF(取引額表!V$54=0,0,取引額表!V54/取引額表!V$54) -> 1 | W54: =IF(取引額表!W$54=0,0,取引額表!W54/取引額表!W$54) -> 1 | X54: =IF(取引額表!X$54=0,0,取引額表!X54/取引額表!X$54) -> 1 | Y54: =IF(取引額表!Y$54=0,0,取引額表!Y54/取引額表!Y$54) -> 1 | Z54: =IF(取引額表!Z$54=0,0,取引額表!Z54/取引額表!Z$54) -> 1 | AA54: =IF(取引額表!AA$54=0,0,取引額表!AA54/取引額表!AA$54) -> 1 | AB54: =IF(取引額表!AB$54=0,0,取引額表!AB54/取引額表!AB$54) -> 1 | AC54: =IF(取引額表!AC$54=0,0,取引額表!AC54/取引額表!AC$54) -> 1 | AD54: =IF(取引額表!AD$54=0,0,取引額表!AD54/取引額表!AD$54) -> 1 | AE54: =IF(取引額表!AE$54=0,0,取引額表!AE54/取引額表!AE$54) -> 1 | AF54: =IF(取引額表!AF$54=0,0,取引額表!AF54/取引額表!AF$54) -> 1 | AG54: =IF(取引額表!AG$54=0,0,取引額表!AG54/取引額表!AG$54) -> 1 | AH54: =IF(取引額表!AH$54=0,0,取引額表!AH54/取引額表!AH$54) -> 1 | AI54: =IF(取引額表!AI$54=0,0,取引額表!AI54/取引額表!AI$54) -> 1 | AJ54: =IF(取引額表!AJ$54=0,0,取引額表!AJ54/取引額表!AJ$54) -> 1 | AK54: =IF(取引額表!AK$54=0,0,取引額表!AK54/取引額表!AK$54) -> 1 | AL54: =IF(取引額表!AL$54=0,0,取引額表!AL54/取引額表!AL$54) -> 1 | AM54: =IF(取引額表!AM$54=0,0,取引額表!AM54/取引額表!AM$54) -> 1 | AN54: =IF(取引額表!AN$54=0,0,取引額表!AN54/取引額表!AN$54) -> 1 | AO54: =IF(取引額表!AO$54=0,0,取引額表!AO54/取引額表!AO$54) -> 1
B55: 91 | C55: 雇用者所得 | D55: =IF(取引額表!D$54=0,0,取引額表!D55/取引額表!D$54) -> 0.1833542801 | E55: =IF(取引額表!E$54=0,0,取引額表!E55/取引額表!E$54) -> 0.1609311741 | F55: =IF(取引額表!F$54=0,0,取引額表!F55/取引額表!F$54) -> 0.1304601699 | G55: =IF(取引額表!G$54=0,0,取引額表!G55/取引額表!G$54) -> 0.3693131133 | H55: =IF(取引額表!H$54=0,0,取引額表!H55/取引額表!H$54) -> 0.2166827172 | I55: =IF(取引額表!I$54=0,0,取引額表!I55/取引額表!I$54) -> 0.1152445886 | J55: =IF(取引額表!J$54=0,0,取引額表!J55/取引額表!J$54) -> 0.01372098102 | K55: =IF(取引額表!K$54=0,0,取引額表!K55/取引額表!K$54) -> 0.2488610478 | L55: =IF(取引額表!L$54=0,0,取引額表!L55/取引額表!L$54) -> 0.161591892 | M55: =IF(取引額表!M$54=0,0,取引額表!M55/取引額表!M$54) -> 0.03316187755 | N55: =IF(取引額表!N$54=0,0,取引額表!N55/取引額表!N$54) -> 0.1312858052 | O55: =IF(取引額表!O$54=0,0,取引額表!O55/取引額表!O$54) -> 0.3033472803 | P55: =IF(取引額表!P$54=0,0,取引額表!P55/取引額表!P$54) -> 0.4248377794 | Q55: =IF(取引額表!Q$54=0,0,取引額表!Q55/取引額表!Q$54) -> 0.2140896172 | R55: =IF(取引額表!R$54=0,0,取引額表!R55/取引額表!R$54) -> 0.2698268004 | S55: =IF(取引額表!S$54=0,0,取引額表!S55/取引額表!S$54) -> 0.3247817566 | T55: =IF(取引額表!T$54=0,0,取引額表!T55/取引額表!T$54) -> 0.135347081 | U55: =IF(取引額表!U$54=0,0,取引額表!U55/取引額表!U$54) -> 0.1519174041 | V55: =IF(取引額表!V$54=0,0,取引額表!V55/取引額表!V$54) -> 0.3728813559 | W55: =IF(取引額表!W$54=0,0,取引額表!W55/取引額表!W$54) -> 0.3694387903 | X55: =IF(取引額表!X$54=0,0,取引額表!X55/取引額表!X$54) -> 0.367695613 | Y55: =IF(取引額表!Y$54=0,0,取引額表!Y55/取引額表!Y$54) -> 0.0453094057 | Z55: =IF(取引額表!Z$54=0,0,取引額表!Z55/取引額表!Z$54) -> 0.1368021752 | AA55: =IF(取引額表!AA$54=0,0,取引額表!AA55/取引額表!AA$54) -> 0.5174453193 | AB55: =IF(取引額表!AB$54=0,0,取引額表!AB55/取引額表!AB$54) -> 0.4252160518 | AC55: =IF(取引額表!AC$54=0,0,取引額表!AC55/取引額表!AC$54) -> 0.3339005044 | AD55: =IF(取引額表!AD$54=0,0,取引額表!AD55/取引額表!AD$54) -> 0.04668377246 | AE55: =IF(取引額表!AE$54=0,0,取引額表!AE55/取引額表!AE$54) -> 0.2678563499 | AF55: =IF(取引額表!AF$54=0,0,取引額表!AF55/取引額表!AF$54) -> 0.3106918398 | AG55: =IF(取引額表!AG$54=0,0,取引額表!AG55/取引額表!AG$54) -> 0.3910617425 | AH55: =IF(取引額表!AH$54=0,0,取引額表!AH55/取引額表!AH$54) -> 0.6546996263 | AI55: =IF(取引額表!AI$54=0,0,取引額表!AI55/取引額表!AI$54) -> 0.498838572 | AJ55: =IF(取引額表!AJ$54=0,0,取引額表!AJ55/取引額表!AJ$54) -> 0.5385928504 | AK55: =IF(取引額表!AK$54=0,0,取引額表!AK55/取引額表!AK$54) -> 0.3940567799 | AL55: =IF(取引額表!AL$54=0,0,取引額表!AL55/取引額表!AL$54) -> 0.313340065 | AM55: =IF(取引額表!AM$54=0,0,取引額表!AM55/取引額表!AM$54) -> 0 | AN55: =IF(取引額表!AN$54=0,0,取引額表!AN55/取引額表!AN$54) -> 0.03812004593 | AO55: =IF(取引額表!AO$54=0,0,取引額表!AO55/取引額表!AO$54) -> 0.2585710159
C56: 賃金・俸給 | D56: =IF(取引額表!D$54=0,0,取引額表!D56/取引額表!D$54) -> 0.1628264209 | E56: =IF(取引額表!E$54=0,0,取引額表!E56/取引額表!E$54) -> 0.1396761134 | F56: =IF(取引額表!F$54=0,0,取引額表!F56/取引額表!F$54) -> 0.1097242297 | G56: =IF(取引額表!G$54=0,0,取引額表!G56/取引額表!G$54) -> 0.3113291704 | H56: =IF(取引額表!H$54=0,0,取引額表!H56/取引額表!H$54) -> 0.1806800504 | I56: =IF(取引額表!I$54=0,0,取引額表!I56/取引額表!I$54) -> 0.09201032634 | J56: =IF(取引額表!J$54=0,0,取引額表!J56/取引額表!J$54) -> 0.01097164588 | K56: =IF(取引額表!K$54=0,0,取引額表!K56/取引額表!K$54) -> 0.2069096431 | L56: =IF(取引額表!L$54=0,0,取引額表!L56/取引額表!L$54) -> 0.1333711939 | M56: =IF(取引額表!M$54=0,0,取引額表!M56/取引額表!M$54) -> 0.02644085629 | N56: =IF(取引額表!N$54=0,0,取引額表!N56/取引額表!N$54) -> 0.1069382559 | O56: =IF(取引額表!O$54=0,0,取引額表!O56/取引額表!O$54) -> 0.2543205385 | P56: =IF(取引額表!P$54=0,0,取引額表!P56/取引額表!P$54) -> 0.3507570296 | Q56: =IF(取引額表!Q$54=0,0,取引額表!Q56/取引額表!Q$54) -> 0.1733809034 | R56: =IF(取引額表!R$54=0,0,取引額表!R56/取引額表!R$54) -> 0.2204497113 | S56: =IF(取引額表!S$54=0,0,取引額表!S56/取引額表!S$54) -> 0.261179405 | T56: =IF(取引額表!T$54=0,0,取引額表!T56/取引額表!T$54) -> 0.1084325685 | U56: =IF(取引額表!U$54=0,0,取引額表!U56/取引額表!U$54) -> 0.1264222503 | V56: =IF(取引額表!V$54=0,0,取引額表!V56/取引額表!V$54) -> 0.3117433414 | W56: =IF(取引額表!W$54=0,0,取引額表!W56/取引額表!W$54) -> 0.3095013085 | X56: =IF(取引額表!X$54=0,0,取引額表!X56/取引額表!X$54) -> 0.3178944888 | Y56: =IF(取引額表!Y$54=0,0,取引額表!Y56/取引額表!Y$54) -> 0.03636879689 | Z56: =IF(取引額表!Z$54=0,0,取引額表!Z56/取引額表!Z$54) -> 0.09781607683 | AA56: =IF(取引額表!AA$54=0,0,取引額表!AA56/取引額表!AA$54) -> 0.4540682415 | AB56: =IF(取引額表!AB$54=0,0,取引額表!AB56/取引額表!AB$54) -> 0.3674377983 | AC56: =IF(取引額表!AC$54=0,0,取引額表!AC56/取引額表!AC$54) -> 0.2484816855 | AD56: =IF(取引額表!AD$54=0,0,取引額表!AD56/取引額表!AD$54) -> 0.04281415779 | AE56: =IF(取引額表!AE$54=0,0,取引額表!AE56/取引額表!AE$54) -> 0.2263332349 | AF56: =IF(取引額表!AF$54=0,0,取引額表!AF56/取引額表!AF$54) -> 0.2647187025 | AG56: =IF(取引額表!AG$54=0,0,取引額表!AG56/取引額表!AG$54) -> 0.2876947566 | AH56: =IF(取引額表!AH$54=0,0,取引額表!AH56/取引額表!AH$54) -> 0.5262678109 | AI56: =IF(取引額表!AI$54=0,0,取引額表!AI56/取引額表!AI$54) -> 0.4339063395 | AJ56: =IF(取引額表!AJ$54=0,0,取引額表!AJ56/取引額表!AJ$54) -> 0.4873811755 | AK56: =IF(取引額表!AK$54=0,0,取引額表!AK56/取引額表!AK$54) -> 0.3434477226 | AL56: =IF(取引額表!AL$54=0,0,取引額表!AL56/取引額表!AL$54) -> 0.2821659122 | AM56: =IF(取引額表!AM$54=0,0,取引額表!AM56/取引額表!AM$54) -> 0 | AN56: =IF(取引額表!AN$54=0,0,取引額表!AN56/取引額表!AN$54) -> 0.03431084223 | AO56: =IF(取引額表!AO$54=0,0,取引額表!AO56/取引額表!AO$54) -> 0.2185460015
C57: 社会保険料（雇用主負担） | D57: =IF(取引額表!D$54=0,0,取引額表!D57/取引額表!D$54) -> 0.01298701299 | E57: =IF(取引額表!E$54=0,0,取引額表!E57/取引額表!E$54) -> 0.01518218623 | F57: =IF(取引額表!F$54=0,0,取引額表!F57/取引額表!F$54) -> 0.01406785587 | G57: =IF(取引額表!G$54=0,0,取引額表!G57/取引額表!G$54) -> 0.03925066905 | H57: =IF(取引額表!H$54=0,0,取引額表!H57/取引額表!H$54) -> 0.0236313801 | I57: =IF(取引額表!I$54=0,0,取引額表!I57/取引額表!I$54) -> 0.01191500629 | J57: =IF(取引額表!J$54=0,0,取引額表!J57/取引額表!J$54) -> 0.001426057017 | K57: =IF(取引額表!K$54=0,0,取引額表!K57/取引額表!K$54) -> 0.0270501139 | L57: =IF(取引額表!L$54=0,0,取引額表!L57/取引額表!L$54) -> 0.01743043117 | M57: =IF(取引額表!M$54=0,0,取引額表!M57/取引額表!M$54) -> 0.00344078712 | N57: =IF(取引額表!N$54=0,0,取引額表!N57/取引額表!N$54) -> 0.01389772968 | O57: =IF(取引額表!O$54=0,0,取引額表!O57/取引額表!O$54) -> 0.03326056637 | P57: =IF(取引額表!P$54=0,0,取引額表!P57/取引額表!P$54) -> 0.04578226388 | Q57: =IF(取引額表!Q$54=0,0,取引額表!Q57/取引額表!Q$54) -> 0.02259176392 | R57: =IF(取引額表!R$54=0,0,取引額表!R57/取引額表!R$54) -> 0.02871467639 | S57: =IF(取引額表!S$54=0,0,取引額表!S57/取引額表!S$54) -> 0.03402814894 | T57: =IF(取引額表!T$54=0,0,取引額表!T57/取引額表!T$54) -> 0.01432858941 | U57: =IF(取引額表!U$54=0,0,取引額表!U57/取引額表!U$54) -> 0.01622418879 | V57: =IF(取引額表!V$54=0,0,取引額表!V57/取引額表!V$54) -> 0.03753026634 | W57: =IF(取引額表!W$54=0,0,取引額表!W57/取引額表!W$54) -> 0.03947368421 | X57: =IF(取引額表!X$54=0,0,取引額表!X57/取引額表!X$54) -> 0.03509391964 | Y57: =IF(取引額表!Y$54=0,0,取引額表!Y57/取引額表!Y$54) -> 0.005037962109 | Z57: =IF(取引額表!Z$54=0,0,取引額表!Z57/取引額表!Z$54) -> 0.01988773407 | AA57: =IF(取引額表!AA$54=0,0,取引額表!AA57/取引額表!AA$54) -> 0.05431321085 | AB57: =IF(取引額表!AB$54=0,0,取引額表!AB57/取引額表!AB$54) -> 0.04103394624 | AC57: =IF(取引額表!AC$54=0,0,取引額表!AC57/取引額表!AC$54) -> 0.0372438347 | AD57: =IF(取引額表!AD$54=0,0,取引額表!AD57/取引額表!AD$54) -> 0.002861259142 | AE57: =IF(取引額表!AE$54=0,0,取引額表!AE57/取引額表!AE$54) -> 0.02613054301 | AF57: =IF(取引額表!AF$54=0,0,取引額表!AF57/取引額表!AF$54) -> 0.03204510897 | AG57: =IF(取引額表!AG$54=0,0,取引額表!AG57/取引額表!AG$54) -> 0.06222262594 | AH57: =IF(取引額表!AH$54=0,0,取引額表!AH57/取引額表!AH$54) -> 0.0839198456 | AI57: =IF(取引額表!AI$54=0,0,取引額表!AI57/取引額表!AI$54) -> 0.04945265736 | AJ57: =IF(取引額表!AJ$54=0,0,取引額表!AJ57/取引額表!AJ$54) -> 0.03387334315 | AK57: =IF(取引額表!AK$54=0,0,取引額表!AK57/取引額表!AK$54) -> 0.03837224533 | AL57: =IF(取引額表!AL$54=0,0,取引額表!AL57/取引額表!AL$54) -> 0.02537412447 | AM57: =IF(取引額表!AM$54=0,0,取引額表!AM57/取引額表!AM$54) -> 0 | AN57: =IF(取引額表!AN$54=0,0,取引額表!AN57/取引額表!AN$54) -> 0.002856902781 | AO57: =IF(取引額表!AO$54=0,0,取引額表!AO57/取引額表!AO$54) -> 0.02672056504
C58: その他の給与及び手当 | D58: =IF(取引額表!D$54=0,0,取引額表!D58/取引額表!D$54) -> 0.007540846251 | E58: =IF(取引額表!E$54=0,0,取引額表!E58/取引額表!E$54) -> 0.006072874494 | F58: =IF(取引額表!F$54=0,0,取引額表!F58/取引額表!F$54) -> 0.006668084386 | G58: =IF(取引額表!G$54=0,0,取引額表!G58/取引額表!G$54) -> 0.01873327386 | H58: =IF(取引額表!H$54=0,0,取引額表!H58/取引額表!H$54) -> 0.01237128676 | I58: =IF(取引額表!I$54=0,0,取引額表!I58/取引額表!I$54) -> 0.01131925597 | J58: =IF(取引額表!J$54=0,0,取引額表!J58/取引額表!J$54) -> 0.001323278133 | K58: =IF(取引額表!K$54=0,0,取引額表!K58/取引額表!K$54) -> 0.01490129081 | L58: =IF(取引額表!L$54=0,0,取引額表!L58/取引額表!L$54) -> 0.01079026692 | M58: =IF(取引額表!M$54=0,0,取引額表!M58/取引額表!M$54) -> 0.003280234134 | N58: =IF(取引額表!N$54=0,0,取引額表!N58/取引額表!N$54) -> 0.01044981965 | O58: =IF(取引額表!O$54=0,0,取引額表!O58/取引額表!O$54) -> 0.01576617549 | P58: =IF(取引額表!P$54=0,0,取引額表!P58/取引額表!P$54) -> 0.02829848594 | Q58: =IF(取引額表!Q$54=0,0,取引額表!Q58/取引額表!Q$54) -> 0.01811694987 | R58: =IF(取引額表!R$54=0,0,取引額表!R58/取引額表!R$54) -> 0.02066241264 | S58: =IF(取引額表!S$54=0,0,取引額表!S58/取引額表!S$54) -> 0.02957420274 | T58: =IF(取引額表!T$54=0,0,取引額表!T58/取引額表!T$54) -> 0.01258592313 | U58: =IF(取引額表!U$54=0,0,取引額表!U58/取引額表!U$54) -> 0.009270965023 | V58: =IF(取引額表!V$54=0,0,取引額表!V58/取引額表!V$54) -> 0.02360774818 | W58: =IF(取引額表!W$54=0,0,取引額表!W58/取引額表!W$54) -> 0.02046379762 | X58: =IF(取引額表!X$54=0,0,取引額表!X58/取引額表!X$54) -> 0.01470720448 | Y58: =IF(取引額表!Y$54=0,0,取引額表!Y58/取引額表!Y$54) -> 0.003902646704 | Z58: =IF(取引額表!Z$54=0,0,取引額表!Z58/取引額表!Z$54) -> 0.01909836425 | AA58: =IF(取引額表!AA$54=0,0,取引額表!AA58/取引額表!AA$54) -> 0.009063867017 | AB58: =IF(取引額表!AB$54=0,0,取引額表!AB58/取引額表!AB$54) -> 0.01674430726 | AC58: =IF(取引額表!AC$54=0,0,取引額表!AC58/取引額表!AC$54) -> 0.04817498418 | AD58: =IF(取引額表!AD$54=0,0,取引額表!AD58/取引額表!AD$54) -> 0.001008355521 | AE58: =IF(取引額表!AE$54=0,0,取引額表!AE58/取引額表!AE$54) -> 0.01539257197 | AF58: =IF(取引額表!AF$54=0,0,取引額表!AF58/取引額表!AF$54) -> 0.01392802838 | AG58: =IF(取引額表!AG$54=0,0,取引額表!AG58/取引額表!AG$54) -> 0.04114435995 | AH58: =IF(取引額表!AH$54=0,0,取引額表!AH58/取引額表!AH$54) -> 0.04451196978 | AI58: =IF(取引額表!AI$54=0,0,取引額表!AI58/取引額表!AI$54) -> 0.01547957516 | AJ58: =IF(取引額表!AJ$54=0,0,取引額表!AJ58/取引額表!AJ$54) -> 0.01733833177 | AK58: =IF(取引額表!AK$54=0,0,取引額表!AK58/取引額表!AK$54) -> 0.01223681195 | AL58: =IF(取引額表!AL$54=0,0,取引額表!AL58/取引額表!AL$54) -> 0.005800028241 | AM58: =IF(取引額表!AM$54=0,0,取引額表!AM58/取引額表!AM$54) -> 0 | AN58: =IF(取引額表!AN$54=0,0,取引額表!AN58/取引額表!AN$54) -> 0.0009523009271 | AO58: =IF(取引額表!AO$54=0,0,取引額表!AO58/取引額表!AO$54) -> 0.01330444939

Sheet 逆行列 (hidden)
B5: 平成23年千葉市産業連関表 逆行列係数表（I-A)-1型 統合大分類（37部門）
D7: 01 | E7: 06 | F7: 11 | G7: 15 | H7: 16 | I7: 20 | J7: 21 | K7: 22 | L7: 25 | M7: 26 | N7: 27 | O7: 28 | P7: 29 | Q7: 30 | R7: 31 | S7: 32 | T7: 33 | U7: 34 | V7: 35 | W7: 39 | X7: 41 | Y7: 46 | Z7: 47 | AA7: 48 | AB7: 51 | AC7: 53 | AD7: 55 | AE7: 57 | AF7: 59 | AG7: 61 | AH7: 63 | AI7: 64 | AJ7: 65 | AK7: 66 | AL7: 67 | AM7: 68 | AN7: 69
D8: 農林水産業 | E8: 鉱業 | F8: 飲食料品 | G8: 繊維製品 | H8: パルプ・紙・木製品 | I8: 化学製品 | J8: 石油・石炭製品 | K8: プラスチック・ゴム | L8: 窯業・土石製品 | M8: 鉄鋼 | N8: 非鉄金属 | O8: 金属製品 | P8: はん用機械 | Q8: 生産用機械 | R8: 業務用機械 | S8: 電子部品 | T8: 電気機械 | U8: 情報・通信機器 | V8: 輸送機械 | W8: その他の製造工業製品 | X8: 建設 | Y8: 電力・ガス・熱供給 | Z8: 水道 | AA8: 廃棄物処理 | AB8: 商業 | AC8: 金融・保険 | AD8: 不動産 | AE8: 運輸・郵便 | AF8: 情報通信 | AG8: 公務 | AH8: 教育・研究 | AI8: 医療・福祉 | AJ8: その他の非営利団体サービス | AK8: 対事業所サービス | AL8: 対個人サービス | AM8: 事務用品 | AN8: 分類不明
B9: 01 | C9: 農林水産業 | D9: =MINVERSE(単位行列マイナス市内品投入係数!D9:AN45) -> 1.005586858 | E9: 6.155828251e-06 | F9: 0.02168100039 | G9: 0.0003190724366 | H9: 0.0003228147481 | I9: 9.639673765e-05 | J9: 4.201570103e-06 | K9: 0.0003635130242 | L9: 3.088707346e-05 | M9: 6.701574215e-06 | N9: 6.439885e-06 | O9: 4.600277604e-06 | P9: 3.375572095e-06 | Q9: 5.198852741e-06 | R9: 7.364685907e-06 | S9: 5.888765162e-06 | T9: 8.088430586e-06 | U9: 7.463604157e-06 | V9: 2.916684315e-06 | W9: 0.001329805618 | X9: 5.033836245e-05 | Y9: 7.508056892e-06 | Z9: 7.519292269e-06 | AA9: 3.579353322e-06 | AB9: 9.890926923e-06 | AC9: 5.256994857e-06 | AD9: 2.939086672e-06 | AE9: 1.589891777e-05 | AF9: 1.728040309e-05 | AG9: 6.044591529e-06 | AH9: 6.647522317e-05 | AI9: 0.0001811145494 | AJ9: 0.0001165343461 | AK9: 4.943858281e-06 | AL9: 0.002028676398 | AM9: 3.688737768e-05 | AN9: 1.667882735e-05
B10: 06 | C10: 鉱業 | D10: 3.967832789e-06 | E10: 1.000010068 | F10: 5.845441687e-06 | G10: 3.111174201e-06 | H10: 9.558080136e-06 | I10: 3.08798312e-05 | J10: 0.001136425686 | K10: 9.780712544e-06 | L10: 0.0001584335741 | M10: 0.0002411596038 | N10: 8.17944776e-06 | O10: 6.108507517e-05 | P10: 1.774777863e-05 | Q10: 1.968103171e-05 | R10: 7.169188359e-06 | S10: 8.4990635e-06 | T10: 1.099363287e-05 | U10: 2.939179387e-06 | V10: 1.423482221e-05 | W10: 7.652393374e-06 | X10: 2.037793743e-05 | Y10: 0.0006449650415 | Z10: 9.823158508e-06 | AA10: 1.106586856e-05 | AB10: 5.276189752e-06 | AC10: 2.594132533e-06 | AD10: 2.007828828e-06 | AE10: 8.280008553e-06 | AF10: 2.734920635e-06 | AG10: 5.047600169e-06 | AH10: 6.901520819e-06 | AI10: 4.187082142e-06 | AJ10: 2.322540664e-06 | AK10: 2.716401388e-06 | AL10: 9.720515281e-06 | AM10: 1.554059332e-06 | AN10: 9.260572883e-06
B11: 11 | C11: 飲食料品 | D11: 0.01323953746 | E11: 5.838045796e-05 | F11: 1.056859029 | G11: 0.0002576802861 | H11: 0.000319769115 | I11: 0.001787608737 | J11: 1.150029666e-05 | K11: 3.221728788e-05 | L11: 0.0003027874141 | M11: 3.184044359e-05 | N11: 2.108865925e-05 | O11: 2.703219766e-05 | P11: 2.273095956e-05 | Q11: 3.466096216e-05 | R11: 3.3147665e-05 | S11: 2.630872449e-05 | T11: 4.85840101e-05 | U11: 4.126122883e-05 | V11: 1.499100827e-05 | W11: 0.0002335353968 | X11: 3.500282914e-05 | Y11: 2.558962127e-05 | Z11: 3.937146682e-05 | AA11: 2.000175696e-05 | AB11: 7.062454289e-05 | AC11: 2.649911728e-05 | AD11: 2.150014038e-05 | AE11: 0.0002351077597 | AF11: 0.0002370762058 | AG11: 8.056386504e-05 | AH11: 0.0003621579776 | AI11: 0.002657564037 | AJ11: 0.000921192569 | AK11: 4.597731652e-05 | AL11: 0.03750209607 | AM11: 2.282219249e-05 | AN11: 0.0004727523642
B12: 15 | C12: 繊維製品 | D12: 8.193470199e-06 | E12: 1.507467433e-05 | F12: 3.735394857e-06 | G12: 1.000622266 | H12: 1.421283263e-05 | I12: 2.462969243e-06 | J12: 9.086318239e-07 | K12: 6.907850858e-06 | L12: 8.476215896e-06 | M12: 3.569517216e-06 | N12: 2.449622893e-06 | O12: 5.507792504e-06 | P12: 3.239960827e-06 | Q12: 3.099267304e-06 | R12: 4.324128938e-06 | S12: 1.125004415e-05 | T12: 5.205576605e-06 | U12: 3.981448163e-06 | V12: 5.839516477e-07 | W12: 6.529147258e-06 | X12: 9.592819621e-06 | Y12: 2.145775956e-06 | Z12: 3.755431279e-06 | AA12: 6.785291719e-06 | AB12: 9.381542248e-06 | AC12: 3.938300248e-06 | AD12: 8.578049203e-07 | AE12: 9.598761765e-06 | AF12: 3.362522484e-06 | AG12: 1.015587445e-05 | AH12: 2.699078743e-06 | AI12: 8.764783005e-06 | AJ12: 3.459905738e-05 | AK12: 5.531318952e-06 | AL12: 8.421612423e-06 | AM12: 4.842459487e-05 | AN12: 5.032757167e-06
B13: 16 | C13: パルプ・紙・木製品 | D13: 0.0006149915907 | E13: 8.03641557e-05 | F13: 0.0001406272528 | G13: 0.0001292654793 | H13: 1.004087641 | I13: 0.0001319680063 | J13: 1.330205443e-05 | K13: 0.0001459185303 | L13: 0.0001815996898 | M13: 5.483796723e-05 | N13: 8.665181308e-05 | O13: 9.940981542e-05 | P13: 3.486110574e-05 | Q13: 4.117163822e-05 | R13: 0.0002206292343 | S13: 9.838060062e-05 | T13: 0.0002354791063 | U13: 0.0001252631088 | V13: 4.092937735e-05 | W13: 0.001192088118 | X13: 0.0008717788178 | Y13: 8.144586759e-05 | Z13: 0.0001157599178 | AA13: 0.0001154291052 | AB13: 0.0001393176972 | AC13: 9.392833015e-05 | AD13: 4.294817383e-05 | AE13: 0.0001253711578 | AF13: 0.0001746988252 | AG13: 7.558350186e-05 | AH13: 0.0001339211771 | AI13: 0.000115015384 | AJ13: 0.000248106498 | AK13: 6.956620465e-05 | AL13: 0.0001269934132 | AM13: 0.007889704255 | AN13: 7.599989528e-05
B14: 20 | C14: 化学製品 | D14: 0.002402506424 | E14: 0.0005333424151 | F14: 0.0002476805124 | G14: 0.001949665026 | H14: 0.0009092173942 | I14: 1.011851072 | J14: 6.830560575e-05 | K14: 0.005916000702 | L14: 0.001092792654 | M14: 0.0002584664829 | N14: 0.0001589661319 | O14: 0.0004180830025 | P14: 0.0001183750614 | Q14: 0.000152857671 | R14: 0.0005329065081 | S14: 0.0003142976188 | T14: 0.0004122107557 | U14: 0.0002955719433 | V14: 0.0003320701313 | W14: 0.0006958236703 | X14: 0.0002021656843 | Y14: 0.0001012059611 | Z14: 0.0003202103622 | AA14: 0.0004827588988 | AB14: 1.863408262e-05 | AC14: 1.927755437e-05 | AD14: 1.326780023e-05 | AE14: 3.731753612e-05 | AF14: 5.169141883e-05 | AG14: 5.444278805e-05 | AH14: 0.0001346732529 | AI14: 0.003259032178 | AJ14: 6.37596207e-05 | AK14: 0.0001053443038 | AL14: 0.000231137069 | AM14: 0.0005720343129 | AN14: 0.0003785014761
B15: 21 | C15: 石油・石炭製品 | D15: 0.0008717386334 | E15: 0.004833985707 | F15: 0.0007883568136 | G15: 0.0001366952794 | H15: 0.0005776984339 | I15: 0.001536508073 | J15: 1.005737011 | K15: 0.0003568923448 | L15: 0.002649618773 | M15: 0.007419405599 | N15: 0.0004917018335 | O15: 0.002215054257 | P15: 0.0006362198613 | Q15: 0.0007720361895 | R15: 0.0005099546471 | S15: 0.0003373992219 | T15: 0.0005483731493 | U15: 0.0001869197458 | V15: 0.0005323876881 | W15: 0.0007753143193 | X15: 0.000946591678 | Y15: 0.006357231739 | Z15: 0.001574190035 | AA15: 0.001582695317 | AB15: 0.0003934835312 | AC15: 0.0001851975633 | AD15: 0.0001363942114 | AE15: 0.004699007762 | AF15: 0.0002471084093 | AG15: 0.0007000339294 | AH15: 0.0008454523924 | AI15: 0.0004489706022 | AJ15: 0.0004575739889 | AK15: 0.0003283861735 | AL15: 0.000834487466 | AM15: 0.0001969528413 | AN15: 0.003139998487
B16: 22 | C16: プラスチック・ゴム | D16: 0.0004613331529 | E16: 0.0002294423364 | F16: 0.000468235971 | G16: 0.0009588011376 | H16: 0.001082003025 | I16: 0.0005183219042 | J16: 3.005477341e-05 | K16: 1.011065883 | L16: 0.0002495153379 | M16: 0.0001269554334 | N16: 0.0001190269978 | O16: 0.0002428233945 | P16: 0.0005978253088 | Q16: 0.001755632681 | R16: 0.003194787271 | S16: 0.0009009174431 | T16: 0.001891610774 | U16: 0.001012326973 | V16: 0.001262143921 | W16: 0.001819925648 | X16: 0.0006681814338 | Y16: 9.247275156e-05 | Z16: 0.001443504882 | AA16: 0.0005876498429 | AB16: 0.0002461179845 | AC16: 0.0001651157858 | AD16: 7.186322271e-05 | AE16: 0.0001847879487 | AF16: 0.0002534436103 | AG16: 0.000143518597 | AH16: 0.000209470565 | AI16: 0.0001580959 | AJ16: 0.0002588342975 | AK16: 0.0004285917488 | AL16: 0.000186337102 | AM16: 0.002656436508 | AN16: 0.0004621488235
B17: 25 | C17: 窯業・土石製品 | D17: 0.001917021565 | E17: 0.000422252599 | F17: 0.0003516948276 | G17: 0.0005823902632 | H17: 0.004214000318 | I17: 0.003810440375 | J17: 0.0008524764421 | K17: 0.002314885927 | L17: 1.039576745 | M17: 0.003503139168 | N17: 0.0009808501114 | O17: 0.004302214738 | P17: 0.004721366233 | Q17: 0.002049149986 | R17: 0.003114631088 | S17: 0.01254747958 | T17: 0.004068953812 | U17: 0.001180078098 | V17: 0.001041492923 | W17: 0.00181064487 | X17: 0.02297731557 | Y17: 0.001368259457 | Z17: 0.003875266582 | AA17: 0.0005758915162 | AB17: 0.000319023751 | AC17: 0.0001543087404 | AD17: 0.0006904178156 | AE17: 0.000434590121 | AF17: 0.0002779022354 | AG17: 0.0006803554316 | AH17: 0.001288358608 | AI17: 0.0006096230304 | AJ17: 0.0002411497632 | AK17: 0.0005318091587 | AL17: 0.0008170026191 | AM17: 0.003960224005 | AN17: 0.003836215509
B18: 26 | C18: 鉄鋼 | D18: 0.0003842849416 | E18: 0.001489402001 | F18: 0.0001863783662 | G18: 0.000231708427 | H18: 0.03607637306 | I18: 0.001012648299 | J18: 0.0001517122811 | K18: 0.001666919899 | L18: 0.01200398481 | M18: 1.770795825 | N18: 0.0003282138355 | O18: 0.3852195032 | P18: 0.1096076867 | Q18: 0.1233101792 | R18: 0.02162447862 | S18: 0.00445126137 | T18: 0.05230381134 | U18: 0.008658913715 | V18: 0.07974760963 | W18: 0.002473531443 | X18: 0.01694456712 | Y18: 0.001059168627 | Z18: 0.00187143115 | AA18: 0.0002778907714 | AB18: 0.0003273839812 | AC18: 0.0001791955934 | AD18: 0.0005629637203 | AE18: 0.0005760080016 | AF18: 0.0003107167859 | AG18: 0.0005290059308 | AH18: 0.0004009433727 | AI18: 0.0002640869411 | AJ18: 0.0002280506553 | AK18: 0.0008655840971 | AL18: 0.0003487969162 | AM18: 0.0004659485052 | AN18: 0.01214555293
B19: 27 | C19: 非鉄金属 | D19: 1.407676901e-05 | E19: 2.398389315e-05 | F19: 3.528030194e-05 | G19: 1.023838607e-05 | H19: 0.0003463442291 | I19: 0.0003726235945 | J19: 5.71394375e-06 | K19: 0.0001376103725 | L19: 0.0004950591884 | M19: 0.001115339671 | N19: 1.036647424 | O19: 0.002949928033 | P19: 0.001723679225 | Q19: 0.001018803616 | R19: 0.003179257174 | S19: 0.001394502307 | T19: 0.004636332344 | U19: 0.002103093507 | V19: 0.001164178412 | W19: 0.0007096157858 | X19: 0.0006165921462 | Y19: 4.625392655e-05 | Z19: 6.432327166e-05 | AA19: 1.282897612e-05 | AB19: 1.215013015e-05 | AC19: 9.277021823e-06 | AD19: 2.079747045e-05 | AE19: 1.856100116e-05 | AF19: 1.535381638e-05 | AG19: 2.323167251e-05 | AH19: 1.842208811e-05 | AI19: 8.096074449e-05 | AJ19: 1.821960533e-05 | AK19: 4.812072278e-05 | AL19: 2.808343188e-05 | AM19: 7.210220567e-05 | AN19: 0.0003957472636
B20: 28 | C20: 金属製品 | D20: 0.0001498921529 | E20: 0.002711378351 | F20: 0.0002418569809 | G20: 0.0001975779871 | H20: 0.002717095237 | I20: 0.001328543617 | J20: 0.0001642429017 | K20: 0.0005356491183 | L20: 0.001098650526 | M20: 0.000194592918 | N20: 0.0001909432976 | O20: 1.004823074 | P20: 0.00183012811 | Q20: 0.00300295346 | R20: 0.001594453344 | S20: 0.0009083701302 | T20: 0.003491437106 | U20: 0.0009918975116 | V20: 0.000959663913 | W20: 0.0005810552814 | X20: 0.007133057327 | Y20: 0.0004704952301 | Z20: 0.0005734872895 | AA20: 0.0001017840439 | AB20: 0.0002429058603 | AC20: 4.594927837e-05 | AD20: 0.0002208965901 | AE20: 0.0002532967884 | AF20: 9.30460422e-05 | AG20: 0.0003236611991 | AH20: 0.0001137837396 | AI20: 0.0001012935609 | AJ20: 0.0001556114818 | AK20: 0.0001375286283 | AL20: 0.0002679668805 | AM20: 9.748884669e-05 | AN20: 0.000408181344
B21: 29 | C21: はん用機械 | D21: 1.747408262e-06 | E21: 7.190082421e-06 | F21: 1.13958481e-06 | G21: 1.882727462e-06 | H21: 1.039712478e-05 | I21: 2.539331928e-06 | J21: 8.903310481e-07 | K21: 3.805043708e-06 | L21: 7.357517164e-06 | M21: 2.208623685e-06 | N21: 2.471197039e-06 | O21: 8.525755789e-06 | P21: 1.000508402 | Q21: 0.0001643594327 | R21: 2.306588677e-05 | S21: 8.596622429e-06 | T21: 2.25148446e-05 | U21: 6.326158488e-06 | V21: 5.088356788e-05 | W21: 2.354294564e-06 | X21: 2.7308193e-05 | Y21: 4.185214465e-06 | Z21: 2.528128443e-05 | AA21: 2.92990548e-06 | AB21: 2.859877555e-06 | AC21: 3.23876088e-06 | AD21: 2.101958101e-06 | AE21: 4.251229291e-06 | AF21: 5.283185717e-06 | AG21: 3.5980884e-06 | AH21: 2.901908125e-06 | AI21: 2.86644178e-06 | AJ21: 2.676493226e-06 | AK21: 3.72121299e-05 | AL21: 2.161713787e-06 | AM21: 5.415499941e-07 | AN21: 3.700461539e-06
B22: 30 | C22: 生産用機械 | D22: 0.0001497046951 | E22: 0.00107558401 | F22: 9.97713839e-05 | G22: 0.0001685421048 | H22: 0.0002443540543 | I22: 0.0002071513745 | J22: 7.759886785e-05 | K22: 0.0009194876221 | L22: 0.0005005120392 | M22: 0.0001633633532 | N22: 0.0001543518435 | O22: 0.0004355331796 | P22: 0.001405610898 | Q22: 1.042667288 | R22: 0.0002366382502 | S22: 0.0007503357799 | T22: 0.001017878081 | U22: 0.0003500641045 | V22: 0.0004186433453 | W22: 0.000183393554 | X22: 0.0003963442594 | Y22: 0.0002814616099 | Z22: 0.0005872919687 | AA22: 0.00023458351 | AB22: 0.000254615357 | AC22: 0.0003016612251 | AD22: 0.0001399675486 | AE22: 0.0003701557174 | AF22: 0.0004869567905 | AG22: 0.0002529913839 | AH22: 0.0002325630746 | AI22: 0.000246329644 | AJ22: 0.0002439785155 | AK22: 0.00357733701 | AL22: 0.0001662917207 | AM22: 4.193216005e-05 | AN22: 0.0003209379357
B23: 31 | C23: 業務用機械 | D23: 4.157401844e-05 | E23: 1.09120775e-05 | F23: 5.754908131e-06 | G23: 8.572580873e-06 | H23: 9.253806003e-06 | I23: 9.872967513e-06 | J23: 3.365047494e-06 | K23: 8.284421448e-06 | L23: 1.277428978e-05 | M23: 7.984342181e-06 | N23: 6.987845157e-06 | O23: 1.107639843e-05 | P23: 6.408781853e-05 | Q23: 0.0002053242997 | R23: 1.000321056 | S23: 7.822741336e-06 | T23: 3.95915937e-05 | U23: 8.278170134e-06 | V23: 1.613036039e-05 | W23: 1.046764773e-05 | X23: 2.116202673e-05 | Y23: 1.231340962e-05 | Z23: 2.602423562e-05 | AA23: 1.275098634e-05 | AB23: 3.125577154e-05 | AC23: 1.479311219e-05 | AD23: 6.496010351e-06 | AE23: 1.72286751e-05 | AF23: 2.31007544e-05 | AG23: 7.25935391e-05 | AH23: 1.194215039e-05 | AI23: 0.0001990839727 | AJ23: 1.258004354e-05 | AK23: 0.0001522970903 | AL23: 1.820428286e-05 | AM23: 0.0005447217974 | AN23: 2.757221458e-05
B24: 32 | C24: 電子部品 | D24: 9.547094791e-07 | E24: 1.434398923e-06 | F24: 6.339936981e-07 | G24: 1.073251082e-06 | H24: 1.16960846e-06 | I24: 1.339092433e-06 | J24: 4.494969014e-07 | K24: 1.092030926e-06 | L24: 1.717909525e-06 | M24: 9.838812922e-07 | N24: 8.897670331e-07 | O24: 1.520005301e-06 | P24: 1.750110525e-05 | Q24: 5.177385807e-06 | R24: 0.00026462745 | S24: 1.000400815 | T24: 0.000152899802 | U24: 0.0004358270913 | V24: 1.089759964e-05 | W24: 1.829371001e-06 | X24: 2.775558479e-06 | Y24: 1.714168575e-06 | Z24: 3.431800185e-06 | AA24: 1.564746711e-06 | AB24: 1.68079636e-06 | AC24: 2.01952504e-06 | AD24: 8.873617347e-07 | AE24: 2.230618e-06 | AF24: 3.935093837e-06 | AG24: 2.459414237e-06 | AH24: 2.307340881e-06 | AI24: 1.644727158e-06 | AJ24: 1.659230026e-06 | AK24: 2.153511557e-05 | AL24: 1.11221161e-06 | AM24: 4.284042923e-05 | AN24: 2.184574251e-06
B25: 33 | C25: 電気機械 | D25: 7.021963593e-06 | E25: 1.206250704e-05 | F25: 4.349161343e-06 | G25: 7.350944603e-06 | H25: 1.197377434e-05 | I25: 1.011290996e-05 | J25: 3.221397686e-06 | K25: 8.528949134e-06 | L25: 1.568168628e-05 | M25: 9.067544001e-06 | N25: 7.325291137e-06 | O25: 1.669137567e-05 | P25: 0.0002366815525 | Q25: 0.0003297365593 | R25: 0.000206554406 | S25: 0.0009239164747 | T25: 1.001524514 | U25: 0.0002137605787 | V25: 0.0003089846204 | W25: 1.357418681e-05 | X25: 0.0001487336058 | Y25: 1.796513928e-05 | Z25: 3.166132996e-05 | AA25: 1.035209767e-05 | AB25: 1.40728598e-05 | AC25: 1.20636149e-05 | AD25: 9.266754151e-06 | AE25: 2.028937291e-05 | AF25: 2.175834757e-05 | AG25: 2.551717163e-05 | AH25: 1.805236894e-05 | AI25: 1.299044874e-05 | AJ25: 9.973394454e-06 | AK25: 0.000134054315 | AL25: 1.017070055e-05 | AM25: 2.389934972e-06 | AN25: 3.744771702e-05
B26: 34 | C26: 情報・通信機器 | D26: 1.339953128e-07 | E26: 2.419958418e-07 | F26: 9.849897331e-08 | G26: 1.483601374e-07 | H26: 1.622975309e-07 | I26: 1.894332204e-07 | J26: 5.986282458e-08 | K26: 1.553907217e-07 | L26: 2.863253169e-07 | M26: 1.929011808e-07 | N26: 1.48951295e-07 | O26: 3.463435101e-07 | P26: 3.407668836e-06 | Q26: 8.593789428e-07 | R26: 1.399321903e-07 | S26: 1.341901349e-07 | T26: 3.239365219e-07 | U26: 1.000037213 | V26: 2.587862021e-06 | W26: 2.619786614e-07 | X26: 2.764590008e-06 | Y26: 3.607725423e-07 | Z26: 5.574369922e-07 | AA26: 2.056474013e-07 | AB26: 8.129313575e-07 | AC26: 4.523815614e-07 | AD26: 3.088898716e-07 | AE26: 4.627419295e-07 | AF26: 9.218511201e-07 | AG26: 1.038455801e-06 | AH26: 3.411445896e-07 | AI26: 2.498384631e-07 | AJ26: 3.454738456e-07 | AK26: 2.050519634e-06 | AL26: 4.135251084e-07 | AM26: 8.866031363e-08 | AN26: 4.261358225e-07
B27: 35 | C27: 輸送機械 | D27: 6.880681262e-07 | E27: 2.518063381e-06 | F27: 5.477713939e-07 | G27: 5.666587896e-07 | H27: 7.479094403e-07 | I27: 7.16548357e-07 | J27: 4.193920793e-07 | K27: 5.735153571e-07 | L27: 1.078501998e-06 | M27: 7.667318937e-07 | N27: 5.600909844e-07 | O27: 8.723947374e-07 | P27: 6.67824657e-07 | Q27: 1.385500762e-06 | R27: 5.287319673e-07 | S27: 4.856819159e-07 | T27: 6.988169224e-07 | U27: 5.602584801e-07 | V27: 1.000122269 | W27: 1.28106449e-06 | X27: 1.198930662e-06 | Y27: 9.938894162e-07 | Z27: 1.53647718e-06 | AA27: 9.404992158e-07 | AB27: 9.081282718e-07 | AC27: 9.341354018e-07 | AD27: 3.934662009e-07 | AE27: 1.016178093e-05 | AF27: 1.379693139e-06 | AG27: 2.154449345e-06 | AH27: 8.134818074e-07 | AI27: 7.239777981e-07 | AJ27: 7.911427767e-07 | AK27: 9.234823534e-06 | AL27: 6.556690984e-07 | AM27: 3.932408839e-07 | AN27: 1.5858881e-06
B28: 39 | C28: その他の製造工業製品 | D28: 0.0002409096104 | E28: 0.001337522779 | F28: 0.001217838565 | G28: 0.003368648017 | H28: 0.001948210667 | I28: 0.00104097415 | J28: 0.002538568273 | K28: 0.001741046193 | L28: 0.00122129636 | M28: 0.002301675928 | N28: 0.002669932037 | O28: 0.001002071022 | P28: 0.0005291735988 | Q28: 0.0008520588495 | R28: 0.00113388009 | S28: 0.001350110465 | T28: 0.0009553121403 | U28: 0.001397916778 | V28: 0.0003350545728 | W28: 1.006951421 | X28: 0.0008747287312 | Y28: 0.002148036148 | Z28: 0.0008978140986 | AA28: 0.001193465921 | AB28: 0.001252074746 | AC28: 0.002580747844 | AD28: 0.0002838705332 | AE28: 0.0007427444662 | AF28: 0.002379123539 | AG28: 0.001653026322 | AH28: 0.002749083197 | AI28: 0.0009807249004 | AJ28: 0.006348999541 | AK28: 0.001252729053 | AL28: 0.001275799987 | AM28: 0.02438131687 | AN28: 0.0009609856136
B29: 41 | C29: 建設 | D29: 0.00649257959 | E29: 0.01413638663 | F29: 0.002506907611 | G29: 0.005513879452 | H29: 0.007694503725 | I29: 0.01316814488 | J29: 0.002095550259 | K29: 0.01049401712 | L29: 0.01377621828 | M29: 0.02006106701 | N29: 0.01238387748 | O29: 0.01849856027 | P29: 0.006428337683 | Q29: 0.004852550853 | R29: 0.006423204131 | S29: 0.008231984473 | T29: 0.006993211498 | U29: 0.005023603302 | V29: 0.002327022746 | W29: 0.004582425188 | X29: 1.003055862 | Y29: 0.05470811589 | Z29: 0.06746969998 | AA29: 0.009839965785 | AB29: 0.006819668389 | AC29: 0.003174971702 | AD29: 0.02743852453 | AE29: 0.01320393775 | AF29: 0.00669916947 | AG29: 0.02265796095 | AH29: 0.01219788042 | AI29: 0.007839874612 | AJ29: 0.003818840418 | AK29: 0.002021750823 | AL29: 0.008322187866 | AM29: 0.00118195495 | AN29: 0.007901230398
B30: 46 | C30: 電力・ガス・熱供給 | D30: 0.004108777582 | E30: 0.006753557395 | F30: 0.007756886186 | G30: 0.004413421866 | H30: 0.00612395133 | I30: 0.02080913068 | J30: 0.004068466528 | K30: 0.01389281418 | L30: 0.01256537736 | M30: 0.02604347449 | N30: 0.01009488953 | O30: 0.01676383186 | P30: 0.004702873997 | Q30: 0.005511483184 | R30: 0.005138961893 | S30: 0.009183193192 | T30: 0.005355118076 | U30: 0.002307257886 | V30: 0.006005765437 | W30: 0.005272366198 | X30: 0.003220388322 | Y30: 1.025399483 | Z30: 0.01040116839 | AA30: 0.0145527273 | AB30: 0.007505533568 | AC30: 0.003696185908 | AD30: 0.002186883402 | AE30: 0.004324024844 | AF30: 0.003687530617 | AG30: 0.006152827213 | AH30: 0.00889325381 | AI30: 0.005500584885 | AJ30: 0.002704419746 | AK30: 0.003438485342 | AL30: 0.01372940717 | AM30: 0.00100774546 | AN30: 0.005582764866
B31: 47 | C31: 水道 | D31: 0.002163814611 | E31: 0.006829718283 | F31: 0.002784943652 | G31: 0.0004373000913 | H31: 0.001643372207 | I31: 0.004685560039 | J31: 0.004616778588 | K31: 0.00232008566 | L31: 0.002262795398 | M31: 0.006191671907 | N31: 0.003438867225 | O31: 0.00300084943 | P31: 0.001067927193 | Q31: 0.001938345633 | R31: 0.001723827743 | S31: 0.001928219963 | T31: 0.001917205794 | U31: 0.001118804188 | V31: 0.0007089586475 | W31: 0.002257037147 | X31: 0.001690017381 | Y31: 0.003462992072 | Z31: 1.092350775 | AA31: 0.01659119357 | AB31: 0.003194863153 | AC31: 0.001901460538 | AD31: 0.0008813461478 | AE31: 0.004604423175 | AF31: 0.002933806247 | AG31: 0.004768991666 | AH31: 0.01249724598 | AI31: 0.007536156789 | AJ31: 0.003110164296 | AK31: 0.001187291304 | AL31: 0.01353564748 | AM31: 0.0004764478881 | AN31: 0.00616147486
B32: 48 | C32: 廃棄物処理 | D32: 0.001320424235 | E32: 0.005143929458 | F32: 0.0009887377922 | G32: 0.0003967873836 | H32: 0.0006717183348 | I32: 0.005155093253 | J32: 0.0006580256495 | K32: 0.00049953549 | L32: 0.006867088023 | M32: 0.001230572375 | N32: 0.0005335765937 | O32: 0.0008972476709 | P32: 0.0005318920559 | Q32: 0.0006612847194 | R32: 0.0006447101065 | S32: 0.001171950759 | T32: 0.0008157935666 | U32: 0.0007389191654 | V32: 0.0003464321097 | W32: 0.001125951638 | X32: 0.001898639716 | Y32: 0.009628878762 | Z32: 0.002762149966 | AA32: 1.000558123 | AB32: 0.00230956544 | AC32: 0.00315327599 | AD32: 0.0004354495729 | AE32: 0.006038506926 | AF32: 0.00463368659 | AG32: 0.03422821185 | AH32: 0.005128540785 | AI32: 0.005148861709 | AJ32: 0.0006415244248 | AK32: 0.0007940138794 | AL32: 0.01929361322 | AM32: 0.0004264464817 | AN32: 0.01401960903
B33: 51 | C33: 商業 | D33: 0.02384626916 | E33: 0.01493422846 | F33: 0.0188084145 | G33: 0.04020922461 | H33: 0.0324470016 | I33: 0.02300306657 | J33: 0.006264409931 | K33: 0.0246419979 | L33: 0.01648188541 | M33: 0.04799590051 | N33: 0.03555678849 | O33: 0.04101779584 | P33: 0.01816952497 | Q33: 0.02077224818 | R33: 0.02194014109 | S33: 0.01439524931 | T33: 0.02427230934 | U33: 0.0156178174 | V33: 0.01821157219 | W33: 0.0272809651 | X33: 0.01649577476 | Y33: 0.006913791122 | Z33: 0.008081449863 | AA33: 0.007388986941 | AB33: 1.004845919 | AC33: 0.002983604507 | AD33: 0.00156676752 | AE33: 0.007767883648 | AF33: 0.005032122997 | AG33: 0.005006351541 | AH33: 0.00684325699 | AI33: 0.005435918012 | AJ33: 0.01233376198 | AK33: 0.006565615727 | AL33: 0.02317025332 | AM33: 0.08355108942 | AN33: 0.006923941863
B34: 53 | C34: 金融・保険 | D34: 0.01225462669 | E34: 0.06291516502 | F34: 0.007314674019 | G34: 0.02379402858 | H34: 0.01823336192 | I34: 0.01175717909 | J34: 0.007054535806 | K34: 0.006271182879 | L34: 0.01686536611 | M34: 0.02036094437 | N34: 0.01044255939 | O34: 0.0259417887 | P34: 0.01024365673 | Q34: 0.01240736813 | R34: 0.02002916363 | S34: 0.007684453208 | T34: 0.009240444832 | U34: 0.009507970216 | V34: 0.006683443833 | W34: 0.01729624297 | X34: 0.01940770659 | Y34: 0.0237817723 | Z34: 0.009955768431 | AA34: 0.01176933772 | AB34: 0.02311824418 | AC34: 1.055296486 | AD34: 0.07606069418 | AE34: 0.03044789676 | AF34: 0.01052701722 | AG34: 0.04001722591 | AH34: 0.004795820437 | AI34: 0.01156639359 | AJ34: 0.06776277653 | AK34: 0.01405543869 | AL34: 0.01095275999 | AM34: 0.003390445112 | AN34: 0.0211950919
B35: 55 | C35: 不動産 | D35: 0.0187756843 | E35: 0.0197809507 | F35: 0.00632816646 | G35: 0.006435216405 | H35: 0.008531491821 | I35: 0.006935376102 | J35: 0.0029265808 | K35: 0.007430241578 | L35: 0.0083269992 | M35: 0.009128788479 | N35: 0.005086903011 | O35: 0.01332877526 | P35: 0.007133683632 | Q35: 0.007192154499 | R35: 0.005257333656 | S35: 0.003573164924 | T35: 0.007280590756 | U35: 0.005598854207 | V35: 0.002114715202 | W35: 0.009422119883 | X35: 0.01093179941 | Y35: 0.01641386941 | Z35: 0.0071658913 | AA35: 0.007568892507 | AB35: 0.04341199313 | AC35: 0.02491593805 | AD35: 1.031675466 | AE35: 0.05218460424 | AF35: 0.0360815848 | AG35: 0.004494677515 | AH35: 0.009256302918 | AI35: 0.02813755122 | AJ35: 0.02118036212 | AK35: 0.01105101419 | AL35: 0.0217639943 | AM35: 0.005358866374 | AN35: 0.0505328453
B36: 57 | C36: 運輸・郵便 | D36: 0.03495315611 | E36: 0.22068055 | F36: 0.03375459472 | G36: 0.0157733063 | H36: 0.0329437978 | I36: 0.02162495312 | J36: 0.02679114725 | K36: 0.0144090517 | L36: 0.04340304171 | M36: 0.04271528605 | N36: 0.02346378887 | O36: 0.03749431452 | P36: 0.0162252289 | Q36: 0.01812715807 | R36: 0.01666861346 | S36: 0.01034341193 | T36: 0.0183317611 | U36: 0.0129004351 | V36: 0.009783766275 | W36: 0.09387146742 | X36: 0.02705558052 | Y36: 0.03348928278 | Z36: 0.0143459399 | AA36: 0.03946858533 | AB36: 0.02975062817 | AC36: 0.01867123929 | AD36: 0.004101525887 | AE36: 1.059654176 | AF36: 0.01528605327 | AG36: 0.01737441731 | AH36: 0.01842347007 | AI36: 0.01082748037 | AJ36: 0.01925395286 | AK36: 0.01008646021 | AL36: 0.02425109443 | AM36: 0.03386098061 | AN36: 0.05521411867
B37: 59 | C37: 情報通信 | D37: 0.008533387918 | E37: 0.01231563953 | F37: 0.006830248985 | G37: 0.00774751891 | H37: 0.01464568172 | I37: 0.01616790309 | J37: 0.00333537475 | K37: 0.01103142116 | L37: 0.01555847239 | M37: 0.01488319262 | N37: 0.01115246592 | O37: 0.01818250514 | P37: 0.01326020395 | Q37: 0.02391456484 | R37: 0.01515552356 | S37: 0.01016823261 | T37: 0.03653059343 | U37: 0.05094446084 | V37: 0.003995654588 | W37: 0.01106103513 | X37: 0.01521784645 | Y37: 0.02041161278 | Z37: 0.05499252042 | AA37: 0.01483973108 | AB37: 0.03950521471 | AC37: 0.05349061377 | AD37: 0.009830398859 | AE37: 0.02091453287 | AF37: 1.104695555 | AG37: 0.02701291033 | AH37: 0.02322033879 | AI37: 0.02045750474 | AJ37: 0.05227752738 | AK37: 0.04030733991 | AL37: 0.02391231835 | AM37: 0.004323130747 | AN37: 0.04515958998
B38: 61 | C38: 公務 | D38: 0.0028991157 | E38: 0.001385200664 | F38: 0.0004271753555 | G38: 0.0004951799239 | H38: 0.0009152493211 | I38: 0.0006280662425 | J38: 0.0004672858234 | K38: 0.000570173845 | L38: 0.001471306555 | M38: 0.001197182506 | N38: 0.0006203573265 | O38: 0.001149709126 | P38: 0.00203111959 | Q38: 0.002011383763 | R38: 0.0007368966644 | S38: 0.0005597954916 | T38: 0.001061994942 | U38: 0.001174366405 | V38: 0.0004740310059 | W38: 0.0006045535267 | X38: 0.003192779941 | Y38: 0.0009403572102 | Z38: 0.001995135265 | AA38: 0.0006286532284 | AB38: 0.001372982289 | AC38: 0.000846708419 | AD38: 0.001206952155 | AE38: 0.001764698351 | AF38: 0.001307029485 | AG38: 1.000391728 | AH38: 0.00206095631 | AI38: 0.0008782714842 | AJ38: 0.0007482175152 | AK38: 0.001498539341 | AL38: 0.0006590031142 | AM38: 0.0003722287771 | AN38: 0.2123956398
B39: 63 | C39: 教育・研究 | D39: 0.001200898576 | E39: 0.002265377595 | F39: 0.004205900724 | G39: 0.009503176322 | H39: 0.005967054059 | I39: 0.05401438698 | J39: 0.001809126537 | K39: 0.01886172667 | L39: 0.01022413042 | M39: 0.01562803305 | N39: 0.02301926174 | O39: 0.01317542007 | P39: 0.01851507159 | Q39: 0.02969321899 | R39: 0.05732568913 | S39: 0.04124455012 | T39: 0.07033618144 | U39: 0.0632946127 | V39: 0.02405594142 | W39: 0.009867914195 | X39: 0.003228789673 | Y39: 0.01217800225 | Z39: 0.001934143272 | AA39: 0.00103889281 | AB39: 0.00320252161 | AC39: 0.001905469015 | AD39: 0.0004941532901 | AE39: 0.003798380636 | AF39: 0.0189524733 | AG39: 0.0009796886077 | AH39: 1.006683816 | AI39: 0.004642538297 | AJ39: 0.001303633853 | AK39: 0.002956906052 | AL39: 0.001693239818 | AM39: 0.0008128425676 | AN39: 0.01796898155
B40: 64 | C40: 医療・福祉 | D40: 0.001766937151 | E40: 0.0001588788889 | F40: 6.546549754e-05 | G40: 2.024804523e-05 | H40: 3.679399933e-05 | I40: 2.815571564e-05 | J40: 2.375758068e-05 | K40: 2.047301879e-05 | L40: 4.902680471e-05 | M40: 5.021388102e-05 | N40: 2.656844425e-05 | O40: 4.432516422e-05 | P40: 3.750853958e-05 | Q40: 4.180136856e-05 | R40: 2.586644239e-05 | S40: 1.750669286e-05 | T40: 3.577970633e-05 | U40: 3.670284813e-05 | V40: 1.395426585e-05 | W40: 7.151877257e-05 | X40: 5.763132568e-05 | Y40: 4.411253814e-05 | Z40: 0.0002156256747 | AA40: 3.870557998e-05 | AB40: 5.933030925e-05 | AC40: 0.0001004706944 | AD40: 2.866412117e-05 | AE40: 0.0006762780401 | AF40: 0.0003059746341 | AG40: 3.577398056e-05 | AH40: 7.167507048e-05 | AI40: 1.024331338 | AJ40: 3.882368282e-05 | AK40: 4.104298103e-05 | AL40: 7.104521563e-05 | AM40: 2.742769239e-05 | AN40: 0.002344616049
B41: 65 | C41: その他の非営利団体サービス | D41: 0.000627197082 | E41: 0.002028118742 | F41: 0.0007207623912 | G41: 0.0008473298982 | H41: 0.0005812144709 | I41: 0.002182858353 | J41: 0.0004880467301 | K41: 0.0006406526069 | L41: 0.00105218258 | M41: 0.001724613421 | N41: 0.0007362751241 | O41: 0.001601653019 | P41: 0.00175275961 | Q41: 0.001109469076 | R41: 0.001028353045 | S41: 0.0005976095945 | T41: 0.0008915386485 | U41: 0.001024279333 | V41: 0.0001793414511 | W41: 0.000973943226 | X41: 0.00122949876 | Y41: 0.002704993995 | Z41: 0.007365814419 | AA41: 0.002164007017 | AB41: 0.0006803615118 | AC41: 0.001969715961 | AD41: 0.0005535567877 | AE41: 0.001333655932 | AF41: 0.001339186496 | AG41: 0.000356642185 | AH41: 0.001100191654 | AI41: 0.001373602221 | AJ41: 1.000343611 | AK41: 0.001726711566 | AL41: 0.002712610944 | AM41: 0.000128831183 | AN41: 0.00204103996
B42: 66 | C42: 対事業所サービス | D42: 0.04586910023 | E42: 0.07075380766 | F42: 0.03049902931 | G42: 0.05185896237 | H42: 0.0555580402 | I42: 0.06349422207 | J42: 0.02233560655 | K42: 0.05399901056 | L42: 0.08442811659 | M42: 0.04734689361 | N42: 0.04277114089 | O42: 0.06572646596 | P42: 0.06323617982 | Q42: 0.05961012283 | R42: 0.04591881981 | S42: 0.04751611597 | T42: 0.06458535449 | U42: 0.05362684221 | V42: 0.02510444995 | W42: 0.05554156577 | X42: 0.1161987228 | Y42: 0.08478783526 | Z42: 0.1708771435 | AA42: 0.07208473819 | AB42: 0.07834338721 | AC42: 0.09337185861 | AD42: 0.04318866488 | AE42: 0.1067950573 | AF42: 0.1508294032 | AG42: 0.07736478255 | AH42: 0.0716868816 | AI42: 0.07613494384 | AJ42: 0.07541511239 | AK42: 1.109780543 | AL42: 0.05040957823 | AM42: 0.01167119159 | AN42: 0.09848853177
B43: 67 | C43: 対個人サービス | D43: 0.0006499974927 | E43: 0.0002679515621 | F43: 0.002190399168 | G43: 0.0001241764721 | H43: 0.0001727540461 | I43: 0.0002136500142 | J43: 9.644747684e-05 | K43: 0.0001421399519 | L43: 0.000235846719 | M43: 0.0003223715054 | N43: 0.0001486051649 | O43: 0.0002437246328 | P43: 0.0001808642023 | Q43: 0.0004273848093 | R43: 0.0001915926162 | S43: 0.0001420642055 | T43: 0.0004744854664 | U43: 0.0003882090668 | V43: 8.41758066e-05 | W43: 0.0001799560184 | X43: 0.0003623268576 | Y43: 0.0002730105475 | Z43: 0.0006376182348 | AA43: 0.0002073230891 | AB43: 0.0008183673264 | AC43: 0.0004920901374 | AD43: 0.0004746043552 | AE43: 0.0007691232678 | AF43: 0.006015718862 | AG43: 0.0004506500543 | AH43: 0.001004262337 | AI43: 0.01371603157 | AJ43: 0.001695867528 | AK43: 0.0009932092051 | AL43: 1.010204588 | AM43: 9.712820296e-05 | AN43: 0.002538263592
B44: 68 | C44: 事務用品 | D44: 0.001050397966 | E44: 0.0009343662552 | F44: 0.0007603738443 | G44: 0.00118746451 | H44: 0.001664344089 | I44: 0.001169823934 | J44: 0.0002400789964 | K44: 0.000354081058 | L44: 0.001291525458 | M44: 0.0007240968137 | N44: 0.000640319647 | O44: 0.0008815008026 | P44: 0.001015365571 | Q44: 0.001335825 | R44: 0.001776751563 | S44: 0.001544065625 | T44: 0.001649592412 | U44: 0.0008490731081 | V44: 0.000207139613 | W44: 0.001352243229 | X44: 0.0009544187399 | Y44: 0.0004940121057 | Z44: 0.001122755675 | AA44: 0.003572798781 | AB44: 0.002247015319 | AC44: 0.003128030946 | AD44: 0.0006554866951 | AE44: 0.003116795056 | AF44: 0.001796977493 | AG44: 0.002882912085 | AH44: 0.00328823478 | AI44: 0.002205635402 | AJ44: 0.003483991692 | AK44: 0.001344430482 | AL44: 0.002077548734 | AM44: 1.000322197 | AN44: 0.001193334219
B45: 69 | C45: 分類不明 | D45: 0.01367694607 | E45: 0.006534859844 | F45: 0.002015253927 | G45: 0.002336074104 | H45: 0.004317804772 | I45: 0.002962982169 | J45: 0.002204480147 | K45: 0.00268986744 | L45: 0.00694107531 | M45: 0.005647860334 | N45: 0.00292661438 | O45: 0.005423898642 | P45: 0.009582064312 | Q45: 0.009488958048 | R45: 0.003476403489 | S45: 0.002640906242 | T45: 0.005010095851 | U45: 0.005540222485 | V45: 0.002236301401 | W45: 0.00285205795 | X45: 0.01506234438 | Y45: 0.004436254423 | Z45: 0.009412303695 | AA45: 0.00296575135 | AB45: 0.006477218112 | AC45: 0.003994454371 | AD45: 0.005693949891 | AE45: 0.008325188322 | AF45: 0.00616607739 | AG45: 0.001848027668 | AH45: 0.009722822824 | AI45: 0.004143357135 | AJ45: 0.003529811039 | AK45: 0.007069549429 | AL45: 0.003108930786 | AM45: 0.001756036473 | AN45: 1.002003373

Sheet 単位行列 (hidden)
D7: 01 | E7: 06 | F7: 11 | G7: 15 | H7: 16 | I7: 20 | J7: 21 | K7: 22 | L7: 25 | M7: 26 | N7: 27 | O7: 28 | P7: 29 | Q7: 30 | R7: 31 | S7: 32 | T7: 33 | U7: 34 | V7: 35 | W7: 39 | X7: 41 | Y7: 46 | Z7: 47 | AA7: 48 | AB7: 51 | AC7: 53 | AD7: 55 | AE7: 57 | AF7: 59 | AG7: 61 | AH7: 63 | AI7: 64 | AJ7: 65 | AK7: 66 | AL7: 67 | AM7: 68 | AN7: 69
D8: 農林水産業 | E8: 鉱業 | F8: 飲食料品 | G8: 繊維製品 | H8: パルプ・紙・木製品 | I8: 化学製品 | J8: 石油・石炭製品 | K8: プラスチック・ゴム | L8: 窯業・土石製品 | M8: 鉄鋼 | N8: 非鉄金属 | O8: 金属製品 | P8: はん用機械 | Q8: 生産用機械 | R8: 業務用機械 | S8: 電子部品 | T8: 電気機械 | U8: 情報・通信機器 | V8: 輸送機械 | W8: その他の製造工業製品 | X8: 建設 | Y8: 電力・ガス・熱供給 | Z8: 水道 | AA8: 廃棄物処理 | AB8: 商業 | AC8: 金融・保険 | AD8: 不動産 | AE8: 運輸・郵便 | AF8: 情報通信 | AG8: 公務 | AH8: 教育・研究 | AI8: 医療・福祉 | AJ8: その他の非営利団体サービス | AK8: 対事業所サービス | AL8: 対個人サービス | AM8: 事務用品 | AN8: 分類不明
B9: 01 | C9: 農林水産業 | D9: =IF($B9=D$7,1,0) -> 1 | E9: =IF($B9=E$7,1,0) -> 0 | F9: =IF($B9=F$7,1,0) -> 0 | G9: 0 | H9: 0 | I9: 0 | J9: 0 | K9: 0 | L9: 0 | M9: 0 | N9: 0 | O9: 0 | P9: 0 | Q9: 0 | R9: 0 | S9: 0 | T9: 0 | U9: 0 | V9: 0 | W9: 0 | X9: 0 | Y9: 0 | Z9: 0 | AA9: 0 | AB9: 0 | AC9: 0 | AD9: 0 | AE9: 0 | AF9: 0 | AG9: 0 | AH9: 0 | AI9: 0 | AJ9: 0 | AK9: 0 | AL9: 0 | AM9: 0 | AN9: 0
B10: 06 | C10: 鉱業 | D10: =IF($B10=D$7,1,0) -> 0 | E10: 1 | F10: 0 | G10: 0 | H10: 0 | I10: 0 | J10: 0 | K10: 0 | L10: 0 | M10: 0 | N10: 0 | O10: 0 | P10: 0 | Q10: 0 | R10: 0 | S10: 0 | T10: 0 | U10: 0 | V10: 0 | W10: 0 | X10: 0 | Y10: 0 | Z10: 0 | AA10: 0 | AB10: 0 | AC10: 0 | AD10: 0 | AE10: 0 | AF10: 0 | AG10: 0 | AH10: 0 | AI10: 0 | AJ10: 0 | AK10: 0 | AL10: 0 | AM10: 0 | AN10: 0
B11: 11 | C11: 飲食料品 | D11: 0 | E11: 0 | F11: =IF($B11=F$7,1,0) -> 1 | G11: 0 | H11: 0 | I11: 0 | J11: 0 | K11: 0 | L11: 0 | M11: 0 | N11: 0 | O11: 0 | P11: 0 | Q11: 0 | R11: 0 | S11: 0 | T11: 0 | U11: 0 | V11: 0 | W11: 0 | X11: 0 | Y11: 0 | Z11: 0 | AA11: 0 | AB11: 0 | AC11: 0 | AD11: 0 | AE11: 0 | AF11: 0 | AG11: 0 | AH11: 0 | AI11: 0 | AJ11: 0 | AK11: 0 | AL11: 0 | AM11: 0 | AN11: 0
B12: 15 | C12: 繊維製品 | D12: 0 | E12: 0 | F12: 0 | G12: 1 | H12: 0 | I12: 0 | J12: 0 | K12: 0 | L12: 0 | M12: 0 | N12: 0 | O12: 0 | P12: 0 | Q12: 0 | R12: 0 | S12: 0 | T12: 0 | U12: 0 | V12: 0 | W12: 0 | X12: 0 | Y12: 0 | Z12: 0 | AA12: 0 | AB12: 0 | AC12: 0 | AD12: 0 | AE12: 0 | AF12: 0 | AG12: 0 | AH12: 0 | AI12: 0 | AJ12: 0 | AK12: 0 | AL12: 0 | AM12: 0 | AN12: 0
B13: 16 | C13: パルプ・紙・木製品 | D13: 0 | E13: 0 | F13: 0 | G13: 0 | H13: 1 | I13: 0 | J13: 0 | K13: 0 | L13: 0 | M13: 0 | N13: 0 | O13: 0 | P13: 0 | Q13: 0 | R13: 0 | S13: 0 | T13: 0 | U13: 0 | V13: 0 | W13: 0 | X13: 0 | Y13: 0 | Z13: 0 | AA13: 0 | AB13: 0 | AC13: 0 | AD13: 0 | AE13: 0 | AF13: 0 | AG13: 0 | AH13: 0 | AI13: 0 | AJ13: 0 | AK13: 0 | AL13: 0 | AM13: 0 | AN13: 0
B14: 20 | C14: 化学製品 | D14: 0 | E14: 0 | F14: 0 | G14: 0 | H14: 0 | I14: 1 | J14: 0 | K14: 0 | L14: 0 | M14: 0 | N14: 0 | O14: 0 | P14: 0 | Q14: 0 | R14: 0 | S14: 0 | T14: 0 | U14: 0 | V14: 0 | W14: 0 | X14: 0 | Y14: 0 | Z14: 0 | AA14: 0 | AB14: 0 | AC14: 0 | AD14: 0 | AE14: 0 | AF14: 0 | AG14: 0 | AH14: 0 | AI14: 0 | AJ14: 0 | AK14: 0 | AL14: 0 | AM14: 0 | AN14: 0
B15: 21 | C15: 石油・石炭製品 | D15: 0 | E15: 0 | F15: =IF($B15=F$7,1,0) -> 0 | G15: 0 | H15: 0 | I15: 0 | J15: 1 | K15: 0 | L15: 0 | M15: 0 | N15: 0 | O15: 0 | P15: 0 | Q15: 0 | R15: 0 | S15: 0 | T15: 0 | U15: 0 | V15: 0 | W15: 0 | X15: 0 | Y15: 0 | Z15: 0 | AA15: 0 | AB15: 0 | AC15: 0 | AD15: 0 | AE15: 0 | AF15: 0 | AG15: 0 | AH15: 0 | AI15: 0 | AJ15: 0 | AK15: 0 | AL15: 0 | AM15: 0 | AN15: 0
B16: 22 | C16: プラスチック・ゴム | D16: 0 | E16: 0 | F16: 0 | G16: 0 | H16: 0 | I16: 0 | J16: 0 | K16: 1 | L16: 0 | M16: 0 | N16: 0 | O16: 0 | P16: 0 | Q16: 0 | R16: 0 | S16: 0 | T16: 0 | U16: 0 | V16: 0 | W16: 0 | X16: 0 | Y16: 0 | Z16: 0 | AA16: 0 | AB16: 0 | AC16: 0 | AD16: 0 | AE16: 0 | AF16: 0 | AG16: 0 | AH16: 0 | AI16: 0 | AJ16: 0 | AK16: 0 | AL16: 0 | AM16: 0 | AN16: 0
B17: 25 | C17: 窯業・土石製品 | D17: 0 | E17: 0 | F17: 0 | G17: 0 | H17: 0 | I17: 0 | J17: 0 | K17: 0 | L17: 1 | M17: 0 | N17: 0 | O17: 0 | P17: 0 | Q17: 0 | R17: 0 | S17: 0 | T17: 0 | U17: 0 | V17: 0 | W17: 0 | X17: 0 | Y17: 0 | Z17: 0 | AA17: 0 | AB17: 0 | AC17: 0 | AD17: 0 | AE17: 0 | AF17: 0 | AG17: 0 | AH17: 0 | AI17: 0 | AJ17: 0 | AK17: 0 | AL17: 0 | AM17: 0 | AN17: 0
B18: 26 | C18: 鉄鋼 | D18: 0 | E18: 0 | F18: 0 | G18: 0 | H18: 0 | I18: 0 | J18: 0 | K18: 0 | L18: 0 | M18: 1 | N18: 0 | O18: 0 | P18: 0 | Q18: 0 | R18: 0 | S18: 0 | T18: 0 | U18: 0 | V18: 0 | W18: 0 | X18: 0 | Y18: 0 | Z18: 0 | AA18: 0 | AB18: 0 | AC18: 0 | AD18: 0 | AE18: 0 | AF18: 0 | AG18: 0 | AH18: 0 | AI18: 0 | AJ18: 0 | AK18: 0 | AL18: 0 | AM18: 0 | AN18: 0
B19: 27 | C19: 非鉄金属 | D19: 0 | E19: 0 | F19: =IF($B19=F$7,1,0) -> 0 | G19: 0 | H19: 0 | I19: 0 | J19: 0 | K19: 0 | L19: 0 | M19: 0 | N19: 1 | O19: 0 | P19: 0 | Q19: 0 | R19: 0 | S19: 0 | T19: 0 | U19: 0 | V19: 0 | W19: 0 | X19: 0 | Y19: 0 | Z19: 0 | AA19: 0 | AB19: 0 | AC19: 0 | AD19: 0 | AE19: 0 | AF19: 0 | AG19: 0 | AH19: 0 | AI19: 0 | AJ19: 0 | AK19: 0 | AL19: 0 | AM19: 0 | AN19: 0
B20: 28 | C20: 金属製品 | D20: 0 | E20: 0 | F20: 0 | G20: 0 | H20: 0 | I20: 0 | J20: 0 | K20: 0 | L20: 0 | M20: 0 | N20: 0 | O20: 1 | P20: 0 | Q20: 0 | R20: 0 | S20: 0 | T20: 0 | U20: 0 | V20: 0 | W20: 0 | X20: 0 | Y20: 0 | Z20: 0 | AA20: 0 | AB20: 0 | AC20: 0 | AD20: 0 | AE20: 0 | AF20: 0 | AG20: 0 | AH20: 0 | AI20: 0 | AJ20: 0 | AK20: 0 | AL20: 0 | AM20: 0 | AN20: 0
B21: 29 | C21: はん用機械 | D21: 0 | E21: 0 | F21: 0 | G21: 0 | H21: 0 | I21: 0 | J21: 0 | K21: 0 | L21: 0 | M21: 0 | N21: 0 | O21: 0 | P21: 1 | Q21: 0 | R21: 0 | S21: 0 | T21: 0 | U21: 0 | V21: 0 | W21: 0 | X21: 0 | Y21: 0 | Z21: 0 | AA21: 0 | AB21: 0 | AC21: 0 | AD21: 0 | AE21: 0 | AF21: 0 | AG21: 0 | AH21: 0 | AI21: 0 | AJ21: 0 | AK21: 0 | AL21: 0 | AM21: 0 | AN21: 0
B22: 30 | C22: 生産用機械 | D22: 0 | E22: 0 | F22: 0 | G22: 0 | H22: 0 | I22: 0 | J22: 0 | K22: 0 | L22: 0 | M22: 0 | N22: 0 | O22: 0 | P22: 0 | Q22: 1 | R22: 0 | S22: 0 | T22: 0 | U22: 0 | V22: 0 | W22: 0 | X22: 0 | Y22: 0 | Z22: 0 | AA22: 0 | AB22: 0 | AC22: 0 | AD22: 0 | AE22: 0 | AF22: 0 | AG22: 0 | AH22: 0 | AI22: 0 | AJ22: 0 | AK22: 0 | AL22: 0 | AM22: 0 | AN22: 0
B23: 31 | C23: 業務用機械 | D23: 0 | E23: 0 | F23: =IF($B23=F$7,1,0) -> 0 | G23: 0 | H23: 0 | I23: 0 | J23: 0 | K23: 0 | L23: 0 | M23: 0 | N23: 0 | O23: 0 | P23: 0 | Q23: 0 | R23: 1 | S23: 0 | T23: 0 | U23: 0 | V23: 0 | W23: 0 | X23: 0 | Y23: 0 | Z23: 0 | AA23: 0 | AB23: 0 | AC23: 0 | AD23: 0 | AE23: 0 | AF23: 0 | AG23: 0 | AH23: 0 | AI23: 0 | AJ23: 0 | AK23: 0 | AL23: 0 | AM23: 0 | AN23: 0
B24: 32 | C24: 電子部品 | D24: 0 | E24: 0 | F24: 0 | G24: 0 | H24: 0 | I24: 0 | J24: 0 | K24: 0 | L24: 0 | M24: 0 | N24: 0 | O24: 0 | P24: 0 | Q24: 0 | R24: 0 | S24: 1 | T24: 0 | U24: 0 | V24: 0 | W24: 0 | X24: 0 | Y24: 0 | Z24: 0 | AA24: 0 | AB24: 0 | AC24: 0 | AD24: 0 | AE24: 0 | AF24: 0 | AG24: 0 | AH24: 0 | AI24: 0 | AJ24: 0 | AK24: 0 | AL24: 0 | AM24: 0 | AN24: 0
B25: 33 | C25: 電気機械 | D25: 0 | E25: 0 | F25: 0 | G25: 0 | H25: 0 | I25: 0 | J25: 0 | K25: 0 | L25: 0 | M25: 0 | N25: 0 | O25: 0 | P25: 0 | Q25: 0 | R25: 0 | S25: 0 | T25: 1 | U25: 0 | V25: 0 | W25: 0 | X25: 0 | Y25: 0 | Z25: 0 | AA25: 0 | AB25: 0 | AC25: 0 | AD25: 0 | AE25: 0 | AF25: 0 | AG25: 0 | AH25: 0 | AI25: 0 | AJ25: 0 | AK25: 0 | AL25: 0 | AM25: 0 | AN25: 0
B26: 34 | C26: 情報・通信機器 | D26: 0 | E26: 0 | F26: 0 | G26: 0 | H26: 0 | I26: 0 | J26: 0 | K26: 0 | L26: 0 | M26: 0 | N26: 0 | O26: 0 | P26: 0 | Q26: 0 | R26: 0 | S26: 0 | T26: 0 | U26: 1 | V26: 0 | W26: 0 | X26: 0 | Y26: 0 | Z26: 0 | AA26: 0 | AB26: 0 | AC26: 0 | AD26: 0 | AE26: 0 | AF26: 0 | AG26: 0 | AH26: 0 | AI26: 0 | AJ26: 0 | AK26: 0 | AL26: 0 | AM26: 0 | AN26: 0
B27: 35 | C27: 輸送機械 | D27: 0 | E27: 0 | F27: =IF($B27=F$7,1,0) -> 0 | G27: 0 | H27: 0 | I27: 0 | J27: 0 | K27: 0 | L27: 0 | M27: 0 | N27: 0 | O27: 0 | P27: 0 | Q27: 0 | R27: 0 | S27: 0 | T27: 0 | U27: 0 | V27: 1 | W27: 0 | X27: 0 | Y27: 0 | Z27: 0 | AA27: 0 | AB27: 0 | AC27: 0 | AD27: 0 | AE27: 0 | AF27: 0 | AG27: 0 | AH27: 0 | AI27: 0 | AJ27: 0 | AK27: 0 | AL27: 0 | AM27: 0 | AN27: 0
B28: 39 | C28: その他の製造工業製品 | D28: 0 | E28: 0 | F28: 0 | G28: 0 | H28: 0 | I28: 0 | J28: 0 | K28: 0 | L28: 0 | M28: 0 | N28: 0 | O28: 0 | P28: 0 | Q28: 0 | R28: 0 | S28: 0 | T28: 0 | U28: 0 | V28: 0 | W28: 1 | X28: 0 | Y28: 0 | Z28: 0 | AA28: 0 | AB28: 0 | AC28: 0 | AD28: 0 | AE28: 0 | AF28: 0 | AG28: 0 | AH28: 0 | AI28: 0 | AJ28: 0 | AK28: 0 | AL28: 0 | AM28: 0 | AN28: 0
B29: 41 | C29: 建設 | D29: 0 | E29: 0 | F29: 0 | G29: 0 | H29: 0 | I29: 0 | J29: 0 | K29: 0 | L29: 0 | M29: 0 | N29: 0 | O29: 0 | P29: 0 | Q29: 0 | R29: 0 | S29: 0 | T29: 0 | U29: 0 | V29: 0 | W29: 0 | X29: 1 | Y29: 0 | Z29: 0 | AA29: 0 | AB29: 0 | AC29: 0 | AD29: 0 | AE29: 0 | AF29: 0 | AG29: 0 | AH29: 0 | AI29: 0 | AJ29: 0 | AK29: 0 | AL29: 0 | AM29: 0 | AN29: 0
B30: 46 | C30: 電力・ガス・熱供給 | D30: 0 | E30: 0 | F30: 0 | G30: 0 | H30: 0 | I30: 0 | J30: 0 | K30: 0 | L30: 0 | M30: 0 | N30: 0 | O30: 0 | P30: 0 | Q30: 0 | R30: 0 | S30: 0 | T30: 0 | U30: 0 | V30: 0 | W30: 0 | X30: 0 | Y30: 1 | Z30: 0 | AA30: 0 | AB30: 0 | AC30: 0 | AD30: 0 | AE30: 0 | AF30: 0 | AG30: 0 | AH30: 0 | AI30: 0 | AJ30: 0 | AK30: 0 | AL30: 0 | AM30: 0 | AN30: 0
B31: 47 | C31: 水道 | D31: 0 | E31: 0 | F31: =IF($B31=F$7,1,0) -> 0 | G31: 0 | H31: 0 | I31: 0 | J31: 0 | K31: 0 | L31: 0 | M31: 0 | N31: 0 | O31: 0 | P31: 0 | Q31: 0 | R31: 0 | S31: 0 | T31: 0 | U31: 0 | V31: 0 | W31: 0 | X31: 0 | Y31: 0 | Z31: 1 | AA31: 0 | AB31: 0 | AC31: 0 | AD31: 0 | AE31: 0 | AF31: 0 | AG31: 0 | AH31: 0 | AI31: 0 | AJ31: 0 | AK31: 0 | AL31: 0 | AM31: 0 | AN31: 0
B32: 48 | C32: 廃棄物処理 | D32: 0 | E32: 0 | F32: 0 | G32: 0 | H32: 0 | I32: 0 | J32: 0 | K32: 0 | L32: 0 | M32: 0 | N32: 0 | O32: 0 | P32: 0 | Q32: 0 | R32: 0 | S32: 0 | T32: 0 | U32: 0 | V32: 0 | W32: 0 | X32: 0 | Y32: 0 | Z32: 0 | AA32: 1 | AB32: 0 | AC32: 0 | AD32: 0 | AE32: 0 | AF32: 0 | AG32: 0 | AH32: 0 | AI32: 0 | AJ32: 0 | AK32: 0 | AL32: 0 | AM32: 0 | AN32: 0
B33: 51 | C33: 商業 | D33: 0 | E33: 0 | F33: 0 | G33: 0 | H33: 0 | I33: 0 | J33: 0 | K33: 0 | L33: 0 | M33: 0 | N33: 0 | O33: 0 | P33: 0 | Q33: 0 | R33: 0 | S33: 0 | T33: 0 | U33: 0 | V33: 0 | W33: 0 | X33: 0 | Y33: 0 | Z33: 0 | AA33: 0 | AB33: 1 | AC33: 0 | AD33: 0 | AE33: 0 | AF33: 0 | AG33: 0 | AH33: 0 | AI33: 0 | AJ33: 0 | AK33: 0 | AL33: 0 | AM33: 0 | AN33: 0
B34: 53 | C34: 金融・保険 | D34: 0 | E34: 0 | F34: 0 | G34: 0 | H34: 0 | I34: 0 | J34: 0 | K34: 0 | L34: 0 | M34: 0 | N34: 0 | O34: 0 | P34: 0 | Q34: 0 | R34: 0 | S34: 0 | T34: 0 | U34: 0 | V34: 0 | W34: 0 | X34: 0 | Y34: 0 | Z34: 0 | AA34: 0 | AB34: 0 | AC34: 1 | AD34: 0 | AE34: 0 | AF34: 0 | AG34: 0 | AH34: 0 | AI34: 0 | AJ34: 0 | AK34: 0 | AL34: 0 | AM34: 0 | AN34: 0
B35: 55 | C35: 不動産 | D35: 0 | E35: 0 | F35: =IF($B35=F$7,1,0) -> 0 | G35: 0 | H35: 0 | I35: 0 | J35: 0 | K35: 0 | L35: 0 | M35: 0 | N35: 0 | O35: 0 | P35: 0 | Q35: 0 | R35: 0 | S35: 0 | T35: 0 | U35: 0 | V35: 0 | W35: 0 | X35: 0 | Y35: 0 | Z35: 0 | AA35: 0 | AB35: 0 | AC35: 0 | AD35: 1 | AE35: 0 | AF35: 0 | AG35: 0 | AH35: 0 | AI35: 0 | AJ35: 0 | AK35: 0 | AL35: 0 | AM35: 0 | AN35: 0
B36: 57 | C36: 運輸・郵便 | D36: 0 | E36: 0 | F36: 0 | G36: 0 | H36: 0 | I36: 0 | J36: 0 | K36: 0 | L36: 0 | M36: 0 | N36: 0 | O36: 0 | P36: 0 | Q36: 0 | R36: 0 | S36: 0 | T36: 0 | U36: 0 | V36: 0 | W36: 0 | X36: 0 | Y36: 0 | Z36: 0 | AA36: 0 | AB36: 0 | AC36: 0 | AD36: 0 | AE36: 1 | AF36: 0 | AG36: 0 | AH36: 0 | AI36: 0 | AJ36: 0 | AK36: 0 | AL36: 0 | AM36: 0 | AN36: 0
B37: 59 | C37: 情報通信 | D37: 0 | E37: 0 | F37: 0 | G37: 0 | H37: 0 | I37: 0 | J37: 0 | K37: 0 | L37: 0 | M37: 0 | N37: 0 | O37: 0 | P37: 0 | Q37: 0 | R37: 0 | S37: 0 | T37: 0 | U37: 0 | V37: 0 | W37: 0 | X37: 0 | Y37: 0 | Z37: 0 | AA37: 0 | AB37: 0 | AC37: 0 | AD37: 0 | AE37: 0 | AF37: 1 | AG37: 0 | AH37: 0 | AI37: 0 | AJ37: 0 | AK37: 0 | AL37: 0 | AM37: 0 | AN37: 0
B38: 61 | C38: 公務 | D38: 0 | E38: 0 | F38: 0 | G38: 0 | H38: 0 | I38: 0 | J38: 0 | K38: 0 | L38: 0 | M38: 0 | N38: 0 | O38: 0 | P38: 0 | Q38: 0 | R38: 0 | S38: 0 | T38: 0 | U38: 0 | V38: 0 | W38: 0 | X38: 0 | Y38: 0 | Z38: 0 | AA38: 0 | AB38: 0 | AC38: 0 | AD38: 0 | AE38: 0 | AF38: 0 | AG38: 1 | AH38: 0 | AI38: 0 | AJ38: 0 | AK38: 0 | AL38: 0 | AM38: 0 | AN38: 0
B39: 63 | C39: 教育・研究 | D39: 0 | E39: 0 | F39: =IF($B39=F$7,1,0) -> 0 | G39: 0 | H39: 0 | I39: 0 | J39: 0 | K39: 0 | L39: 0 | M39: 0 | N39: 0 | O39: 0 | P39: 0 | Q39: 0 | R39: 0 | S39: 0 | T39: 0 | U39: 0 | V39: 0 | W39: 0 | X39: 0 | Y39: 0 | Z39: 0 | AA39: 0 | AB39: 0 | AC39: 0 | AD39: 0 | AE39: 0 | AF39: 0 | AG39: 0 | AH39: 1 | AI39: 0 | AJ39: 0 | AK39: 0 | AL39: 0 | AM39: 0 | AN39: 0
B40: 64 | C40: 医療・福祉 | D40: 0 | E40: 0 | F40: 0 | G40: 0 | H40: 0 | I40: 0 | J40: 0 | K40: 0 | L40: 0 | M40: 0 | N40: 0 | O40: 0 | P40: 0 | Q40: 0 | R40: 0 | S40: 0 | T40: 0 | U40: 0 | V40: 0 | W40: 0 | X40: 0 | Y40: 0 | Z40: 0 | AA40: 0 | AB40: 0 | AC40: 0 | AD40: 0 | AE40: 0 | AF40: 0 | AG40: 0 | AH40: 0 | AI40: 1 | AJ40: 0 | AK40: 0 | AL40: 0 | AM40: 0 | AN40: 0
B41: 65 | C41: その他の非営利団体サービス | D41: 0 | E41: 0 | F41: 0 | G41: 0 | H41: 0 | I41: 0 | J41: 0 | K41: 0 | L41: 0 | M41: 0 | N41: 0 | O41: 0 | P41: 0 | Q41: 0 | R41: 0 | S41: 0 | T41: 0 | U41: 0 | V41: 0 | W41: 0 | X41: 0 | Y41: 0 | Z41: 0 | AA41: 0 | AB41: 0 | AC41: 0 | AD41: 0 | AE41: 0 | AF41: 0 | AG41: 0 | AH41: 0 | AI41: 0 | AJ41: 1 | AK41: 0 | AL41: 0 | AM41: 0 | AN41: 0
B42: 66 | C42: 対事業所サービス | D42: 0 | E42: 0 | F42: 0 | G42: 0 | H42: 0 | I42: 0 | J42: 0 | K42: 0 | L42: 0 | M42: 0 | N42: 0 | O42: 0 | P42: 0 | Q42: 0 | R42: 0 | S42: 0 | T42: 0 | U42: 0 | V42: 0 | W42: 0 | X42: 0 | Y42: 0 | Z42: 0 | AA42: 0 | AB42: 0 | AC42: 0 | AD42: 0 | AE42: 0 | AF42: 0 | AG42: 0 | AH42: 0 | AI42: 0 | AJ42: 0 | AK42: 1 | AL42: 0 | AM42: 0 | AN42: 0
B43: 67 | C43: 対個人サービス | D43: 0 | E43: 0 | F43: =IF($B43=F$7,1,0) -> 0 | G43: 0 | H43: 0 | I43: 0 | J43: 0 | K43: 0 | L43: 0 | M43: 0 | N43: 0 | O43: 0 | P43: 0 | Q43: 0 | R43: 0 | S43: 0 | T43: 0 | U43: 0 | V43: 0 | W43: 0 | X43: 0 | Y43: 0 | Z43: 0 | AA43: 0 | AB43: 0 | AC43: 0 | AD43: 0 | AE43: 0 | AF43: 0 | AG43: 0 | AH43: 0 | AI43: 0 | AJ43: 0 | AK43: 0 | AL43: 1 | AM43: 0 | AN43: 0
B44: 68 | C44: 事務用品 | D44: 0 | E44: 0 | F44: 0 | G44: 0 | H44: 0 | I44: 0 | J44: 0 | K44: 0 | L44: 0 | M44: 0 | N44: 0 | O44: 0 | P44: 0 | Q44: 0 | R44: 0 | S44: 0 | T44: 0 | U44: 0 | V44: 0 | W44: 0 | X44: 0 | Y44: 0 | Z44: 0 | AA44: 0 | AB44: 0 | AC44: 0 | AD44: 0 | AE44: 0 | AF44: 0 | AG44: 0 | AH44: 0 | AI44: 0 | AJ44: 0 | AK44: 0 | AL44: 0 | AM44: 1 | AN44: 0
B45: 69 | C45: 分類不明 | D45: 0 | E45: 0 | F45: 0 | G45: 0 | H45: 0 | I45: 0 | J45: 0 | K45: 0 | L45: 0 | M45: 0 | N45: 0 | O45: 0 | P45: 0 | Q45: 0 | R45: 0 | S45: 0 | T45: 0 | U45: 0 | V45: 0 | W45: 0 | X45: 0 | Y45: 0 | Z45: 0 | AA45: 0 | AB45: 0 | AC45: 0 | AD45: 0 | AE45: 0 | AF45: 0 | AG45: 0 | AH45: 0 | AI45: 0 | AJ45: 0 | AK45: 0 | AL45: 0 | AM45: 0 | AN45: 1

Sheet 移輸入係数 (hidden)
J7: M
D8: 移輸入係数 | E8: 市内品係数 | F8: 比率 | J8: 1 | K8: 2 | L8: 3 | M8: 4 | N8: 5 | O8: 6 | P8: 7 | Q8: 8 | R8: 9 | S8: 10 | T8: 11 | U8: 12 | V8: 13 | W8: 14 | X8: 15 | Y8: 16 | Z8: 17 | AA8: 18 | AB8: 19 | AC8: 20 | AD8: 21 | AE8: 22 | AF8: 23 | AG8: 24 | AH8: 25 | AI8: 26 | AJ8: 27 | AK8: 28 | AL8: 29 | AM8: 30 | AN8: 31 | AO8: 32 | AP8: 33 | AQ8: 34 | AR8: 35 | AS8: 36 | AT8: 37
B9: 01 | C9: 農林水産業 | D9: =-取引額表!BF9/(取引額表!BH9-取引額表!BF9-取引額表!BA9-取引額表!AV9) -> 0.9428784794 | E9: =1-D9 -> 0.05712152061 | F9: =D9/E9 -> 16.50653675 | I9: 1 | J9: =IF($I9=J$8,$D9,0) -> 0.9428784794 | K9: =IF($I9=K$8,$D9,0) -> 0 | L9: 0 | M9: 0 | N9: 0 | O9: 0 | P9: 0 | Q9: 0 | R9: 0 | S9: 0 | T9: 0 | U9: 0 | V9: 0 | W9: 0 | X9: 0 | Y9: 0 | Z9: 0 | AA9: 0 | AB9: 0 | AC9: 0 | AD9: 0 | AE9: 0 | AF9: 0 | AG9: 0 | AH9: 0 | AI9: 0 | AJ9: 0 | AK9: 0 | AL9: 0 | AM9: 0 | AN9: 0 | AO9: 0 | AP9: 0 | AQ9: 0 | AR9: 0 | AS9: 0 | AT9: 0
B10: 06 | C10: 鉱業 | D10: =-取引額表!BF10/(取引額表!BH10-取引額表!BF10-取引額表!BA10-取引額表!AV10) -> 0.9984567046 | E10: =1-D10 -> 0.001543295444 | F10: =D10/E10 -> 646.9640719 | I10: 2 | J10: =IF($I10=J$8,$D10,0) -> 0 | K10: 0.9984567046 | L10: 0 | M10: 0 | N10: 0 | O10: 0 | P10: 0 | Q10: 0 | R10: 0 | S10: 0 | T10: 0 | U10: 0 | V10: 0 | W10: 0 | X10: 0 | Y10: 0 | Z10: 0 | AA10: 0 | AB10: 0 | AC10: 0 | AD10: 0 | AE10: 0 | AF10: 0 | AG10: 0 | AH10: 0 | AI10: 0 | AJ10: 0 | AK10: 0 | AL10: 0 | AM10: 0 | AN10: 0 | AO10: 0 | AP10: 0 | AQ10: 0 | AR10: 0 | AS10: 0 | AT10: 0
B11: 11 | C11: 飲食料品 | D11: =-取引額表!BF11/(取引額表!BH11-取引額表!BF11-取引額表!BA11-取引額表!AV11) -> 0.7498380875 | E11: 0.2501619125 | F11: 2.997411077 | I11: 3 | J11: 0 | K11: =IF($I11=K$8,$D11,0) -> 0 | L11: 0.7498380875 | M11: 0 | N11: 0 | O11: 0 | P11: 0 | Q11: 0 | R11: 0 | S11: 0 | T11: 0 | U11: 0 | V11: 0 | W11: 0 | X11: 0 | Y11: 0 | Z11: 0 | AA11: 0 | AB11: 0 | AC11: 0 | AD11: 0 | AE11: 0 | AF11: 0 | AG11: 0 | AH11: 0 | AI11: 0 | AJ11: 0 | AK11: 0 | AL11: 0 | AM11: 0 | AN11: 0 | AO11: 0 | AP11: 0 | AQ11: 0 | AR11: 0 | AS11: 0 | AT11: 0
B12: 15 | C12: 繊維製品 | D12: =-取引額表!BF12/(取引額表!BH12-取引額表!BF12-取引額表!BA12-取引額表!AV12) -> 0.9975663178 | E12: 0.002433682161 | F12: 409.9 | I12: 4 | J12: 0 | K12: 0 | L12: 0 | M12: 0.9975663178 | N12: 0 | O12: 0 | P12: 0 | Q12: 0 | R12: 0 | S12: 0 | T12: 0 | U12: 0 | V12: 0 | W12: 0 | X12: 0 | Y12: 0 | Z12: 0 | AA12: 0 | AB12: 0 | AC12: 0 | AD12: 0 | AE12: 0 | AF12: 0 | AG12: 0 | AH12: 0 | AI12: 0 | AJ12: 0 | AK12: 0 | AL12: 0 | AM12: 0 | AN12: 0 | AO12: 0 | AP12: 0 | AQ12: 0 | AR12: 0 | AS12: 0 | AT12: 0
B13: 16 | C13: パルプ・紙・木製品 | D13: =-取引額表!BF13/(取引額表!BH13-取引額表!BF13-取引額表!BA13-取引額表!AV13) -> 0.9840501389 | E13: 0.01594986114 | F13: 61.69647059 | I13: 5 | J13: 0 | K13: 0 | L13: 0 | M13: 0 | N13: 0.9840501389 | O13: 0 | P13: 0 | Q13: 0 | R13: 0 | S13: 0 | T13: 0 | U13: 0 | V13: 0 | W13: 0 | X13: 0 | Y13: 0 | Z13: 0 | AA13: 0 | AB13: 0 | AC13: 0 | AD13: 0 | AE13: 0 | AF13: 0 | AG13: 0 | AH13: 0 | AI13: 0 | AJ13: 0 | AK13: 0 | AL13: 0 | AM13: 0 | AN13: 0 | AO13: 0 | AP13: 0 | AQ13: 0 | AR13: 0 | AS13: 0 | AT13: 0
B14: 20 | C14: 化学製品 | D14: =-取引額表!BF14/(取引額表!BH14-取引額表!BF14-取引額表!BA14-取引額表!AV14) -> 0.9707057401 | E14: 0.02929425992 | F14: 33.13638039 | I14: 6 | J14: 0 | K14: 0 | L14: 0 | M14: 0 | N14: 0 | O14: 0.9707057401 | P14: 0 | Q14: 0 | R14: 0 | S14: 0 | T14: 0 | U14: 0 | V14: 0 | W14: 0 | X14: 0 | Y14: 0 | Z14: 0 | AA14: 0 | AB14: 0 | AC14: 0 | AD14: 0 | AE14: 0 | AF14: 0 | AG14: 0 | AH14: 0 | AI14: 0 | AJ14: 0 | AK14: 0 | AL14: 0 | AM14: 0 | AN14: 0 | AO14: 0 | AP14: 0 | AQ14: 0 | AR14: 0 | AS14: 0 | AT14: 0
B15: 21 | C15: 石油・石炭製品 | D15: =-取引額表!BF15/(取引額表!BH15-取引額表!BF15-取引額表!BA15-取引額表!AV15) -> 0.9159561273 | E15: 0.08404387269 | F15: 10.89854737 | I15: 7 | J15: 0 | K15: =IF($I15=K$8,$D15,0) -> 0 | L15: 0 | M15: 0 | N15: 0 | O15: 0 | P15: 0.9159561273 | Q15: 0 | R15: 0 | S15: 0 | T15: 0 | U15: 0 | V15: 0 | W15: 0 | X15: 0 | Y15: 0 | Z15: 0 | AA15: 0 | AB15: 0 | AC15: 0 | AD15: 0 | AE15: 0 | AF15: 0 | AG15: 0 | AH15: 0 | AI15: 0 | AJ15: 0 | AK15: 0 | AL15: 0 | AM15: 0 | AN15: 0 | AO15: 0 | AP15: 0 | AQ15: 0 | AR15: 0 | AS15: 0 | AT15: 0
B16: 22 | C16: プラスチック・ゴム | D16: =-取引額表!BF16/(取引額表!BH16-取引額表!BF16-取引額表!BA16-取引額表!AV16) -> 0.9541348532 | E16: 0.04586514679 | F16: 20.80304807 | I16: 8 | J16: 0 | K16: 0 | L16: 0 | M16: 0 | N16: 0 | O16: 0 | P16: 0 | Q16: 0.9541348532 | R16: 0 | S16: 0 | T16: 0 | U16: 0 | V16: 0 | W16: 0 | X16: 0 | Y16: 0 | Z16: 0 | AA16: 0 | AB16: 0 | AC16: 0 | AD16: 0 | AE16: 0 | AF16: 0 | AG16: 0 | AH16: 0 | AI16: 0 | AJ16: 0 | AK16: 0 | AL16: 0 | AM16: 0 | AN16: 0 | AO16: 0 | AP16: 0 | AQ16: 0 | AR16: 0 | AS16: 0 | AT16: 0
B17: 25 | C17: 窯業・土石製品 | D17: =-取引額表!BF17/(取引額表!BH17-取引額表!BF17-取引額表!BA17-取引額表!AV17) -> 0.5755991285 | E17: 0.4244008715 | F17: 1.356262834 | I17: 9 | J17: 0 | K17: 0 | L17: 0 | M17: 0 | N17: 0 | O17: 0 | P17: 0 | Q17: 0 | R17: 0.5755991285 | S17: 0 | T17: 0 | U17: 0 | V17: 0 | W17: 0 | X17: 0 | Y17: 0 | Z17: 0 | AA17: 0 | AB17: 0 | AC17: 0 | AD17: 0 | AE17: 0 | AF17: 0 | AG17: 0 | AH17: 0 | AI17: 0 | AJ17: 0 | AK17: 0 | AL17: 0 | AM17: 0 | AN17: 0 | AO17: 0 | AP17: 0 | AQ17: 0 | AR17: 0 | AS17: 0 | AT17: 0
B18: 26 | C18: 鉄鋼 | D18: =-取引額表!BF18/(取引額表!BH18-取引額表!BF18-取引額表!BA18-取引額表!AV18) -> 0.1693686443 | E18: 0.8306313557 | F18: 0.2039035044 | I18: 10 | J18: 0 | K18: 0 | L18: 0 | M18: 0 | N18: 0 | O18: 0 | P18: 0 | Q18: 0 | R18: 0 | S18: 0.1693686443 | T18: 0 | U18: 0 | V18: 0 | W18: 0 | X18: 0 | Y18: 0 | Z18: 0 | AA18: 0 | AB18: 0 | AC18: 0 | AD18: 0 | AE18: 0 | AF18: 0 | AG18: 0 | AH18: 0 | AI18: 0 | AJ18: 0 | AK18: 0 | AL18: 0 | AM18: 0 | AN18: 0 | AO18: 0 | AP18: 0 | AQ18: 0 | AR18: 0 | AS18: 0 | AT18: 0
B19: 27 | C19: 非鉄金属 | D19: =-取引額表!BF19/(取引額表!BH19-取引額表!BF19-取引額表!BA19-取引額表!AV19) -> 0.9392186611 | E19: 0.0607813389 | F19: 15.4524181 | I19: 11 | J19: 0 | K19: =IF($I19=K$8,$D19,0) -> 0 | L19: 0 | M19: 0 | N19: 0 | O19: 0 | P19: 0 | Q19: 0 | R19: 0 | S19: 0 | T19: 0.9392186611 | U19: 0 | V19: 0 | W19: 0 | X19: 0 | Y19: 0 | Z19: 0 | AA19: 0 | AB19: 0 | AC19: 0 | AD19: 0 | AE19: 0 | AF19: 0 | AG19: 0 | AH19: 0 | AI19: 0 | AJ19: 0 | AK19: 0 | AL19: 0 | AM19: 0 | AN19: 0 | AO19: 0 | AP19: 0 | AQ19: 0 | AR19: 0 | AS19: 0 | AT19: 0
B20: 28 | C20: 金属製品 | D20: =-取引額表!BF20/(取引額表!BH20-取引額表!BF20-取引額表!BA20-取引額表!AV20) -> 0.9236209919 | E20: 0.07637900815 | F20: 12.09260259 | I20: 12 | J20: 0 | K20: 0 | L20: 0 | M20: 0 | N20: 0 | O20: 0 | P20: 0 | Q20: 0 | R20: 0 | S20: 0 | T20: 0 | U20: 0.9236209919 | V20: 0 | W20: 0 | X20: 0 | Y20: 0 | Z20: 0 | AA20: 0 | AB20: 0 | AC20: 0 | AD20: 0 | AE20: 0 | AF20: 0 | AG20: 0 | AH20: 0 | AI20: 0 | AJ20: 0 | AK20: 0 | AL20: 0 | AM20: 0 | AN20: 0 | AO20: 0 | AP20: 0 | AQ20: 0 | AR20: 0 | AS20: 0 | AT20: 0
B21: 29 | C21: はん用機械 | D21: =-取引額表!BF21/(取引額表!BH21-取引額表!BF21-取引額表!BA21-取引額表!AV21) -> 0.9958806987 | E21: 0.004119301303 | F21: 241.7596154 | I21: 13 | J21: 0 | K21: 0 | L21: 0 | M21: 0 | N21: 0 | O21: 0 | P21: 0 | Q21: 0 | R21: 0 | S21: 0 | T21: 0 | U21: 0 | V21: 0.9958806987 | W21: 0 | X21: 0 | Y21: 0 | Z21: 0 | AA21: 0 | AB21: 0 | AC21: 0 | AD21: 0 | AE21: 0 | AF21: 0 | AG21: 0 | AH21: 0 | AI21: 0 | AJ21: 0 | AK21: 0 | AL21: 0 | AM21: 0 | AN21: 0 | AO21: 0 | AP21: 0 | AQ21: 0 | AR21: 0 | AS21: 0 | AT21: 0
B22: 30 | C22: 生産用機械 | D22: =-取引額表!BF22/(取引額表!BH22-取引額表!BF22-取引額表!BA22-取引額表!AV22) -> 0.7343333333 | E22: 0.2656666667 | F22: 2.764115433 | I22: 14 | J22: 0 | K22: 0 | L22: 0 | M22: 0 | N22: 0 | O22: 0 | P22: 0 | Q22: 0 | R22: 0 | S22: 0 | T22: 0 | U22: 0 | V22: 0 | W22: 0.7343333333 | X22: 0 | Y22: 0 | Z22: 0 | AA22: 0 | AB22: 0 | AC22: 0 | AD22: 0 | AE22: 0 | AF22: 0 | AG22: 0 | AH22: 0 | AI22: 0 | AJ22: 0 | AK22: 0 | AL22: 0 | AM22: 0 | AN22: 0 | AO22: 0 | AP22: 0 | AQ22: 0 | AR22: 0 | AS22: 0 | AT22: 0
B23: 31 | C23: 業務用機械 | D23: =-取引額表!BF23/(取引額表!BH23-取引額表!BF23-取引額表!BA23-取引額表!AV23) -> 0.979986619 | E23: 0.02001338104 | F23: 48.96656977 | I23: 15 | J23: 0 | K23: =IF($I23=K$8,$D23,0) -> 0 | L23: 0 | M23: 0 | N23: 0 | O23: 0 | P23: 0 | Q23: 0 | R23: 0 | S23: 0 | T23: 0 | U23: 0 | V23: 0 | W23: 0 | X23: 0.979986619 | Y23: 0 | Z23: 0 | AA23: 0 | AB23: 0 | AC23: 0 | AD23: 0 | AE23: 0 | AF23: 0 | AG23: 0 | AH23: 0 | AI23: 0 | AJ23: 0 | AK23: 0 | AL23: 0 | AM23: 0 | AN23: 0 | AO23: 0 | AP23: 0 | AQ23: 0 | AR23: 0 | AS23: 0 | AT23: 0
B24: 32 | C24: 電子部品 | D24: =-取引額表!BF24/(取引額表!BH24-取引額表!BF24-取引額表!BA24-取引額表!AV24) -> 0.9985790189 | E24: 0.001420981095 | F24: 702.7391304 | I24: 16 | J24: 0 | K24: 0 | L24: 0 | M24: 0 | N24: 0 | O24: 0 | P24: 0 | Q24: 0 | R24: 0 | S24: 0 | T24: 0 | U24: 0 | V24: 0 | W24: 0 | X24: 0 | Y24: 0.9985790189 | Z24: 0 | AA24: 0 | AB24: 0 | AC24: 0 | AD24: 0 | AE24: 0 | AF24: 0 | AG24: 0 | AH24: 0 | AI24: 0 | AJ24: 0 | AK24: 0 | AL24: 0 | AM24: 0 | AN24: 0 | AO24: 0 | AP24: 0 | AQ24: 0 | AR24: 0 | AS24: 0 | AT24: 0
B25: 33 | C25: 電気機械 | D25: =-取引額表!BF25/(取引額表!BH25-取引額表!BF25-取引額表!BA25-取引額表!AV25) -> 0.9832228701 | E25: 0.01677712995 | F25: 58.6049505 | I25: 17 | J25: 0 | K25: 0 | L25: 0 | M25: 0 | N25: 0 | O25: 0 | P25: 0 | Q25: 0 | R25: 0 | S25: 0 | T25: 0 | U25: 0 | V25: 0 | W25: 0 | X25: 0 | Y25: 0 | Z25: 0.9832228701 | AA25: 0 | AB25: 0 | AC25: 0 | AD25: 0 | AE25: 0 | AF25: 0 | AG25: 0 | AH25: 0 | AI25: 0 | AJ25: 0 | AK25: 0 | AL25: 0 | AM25: 0 | AN25: 0 | AO25: 0 | AP25: 0 | AQ25: 0 | AR25: 0 | AS25: 0 | AT25: 0
B26: 34 | C26: 情報・通信機器 | D26: =-取引額表!BF26/(取引額表!BH26-取引額表!BF26-取引額表!BA26-取引額表!AV26) -> 0.9986155315 | E26: 0.001384468491 | F26: 721.2988506 | I26: 18 | J26: =IF($I26=J$8,$D26,0) -> 0 | K26: 0 | L26: 0 | M26: 0 | N26: 0 | O26: 0 | P26: 0 | Q26: 0 | R26: 0 | S26: 0 | T26: 0 | U26: 0 | V26: 0 | W26: 0 | X26: 0 | Y26: 0 | Z26: 0 | AA26: 0.9986155315 | AB26: 0 | AC26: 0 | AD26: 0 | AE26: 0 | AF26: 0 | AG26: 0 | AH26: 0 | AI26: 0 | AJ26: 0 | AK26: 0 | AL26: 0 | AM26: 0 | AN26: 0 | AO26: 0 | AP26: 0 | AQ26: 0 | AR26: 0 | AS26: 0 | AT26: 0
B27: 35 | C27: 輸送機械 | D27: =-取引額表!BF27/(取引額表!BH27-取引額表!BF27-取引額表!BA27-取引額表!AV27) -> 0.999582865 | E27: 0.0004171349779 | F27: 2396.305556 | I27: 19 | J27: 0 | K27: =IF($I27=K$8,$D27,0) -> 0 | L27: 0 | M27: 0 | N27: 0 | O27: 0 | P27: 0 | Q27: 0 | R27: 0 | S27: 0 | T27: 0 | U27: 0 | V27: 0 | W27: 0 | X27: 0 | Y27: 0 | Z27: 0 | AA27: 0 | AB27: 0.999582865 | AC27: 0 | AD27: 0 | AE27: 0 | AF27: 0 | AG27: 0 | AH27: 0 | AI27: 0 | AJ27: 0 | AK27: 0 | AL27: 0 | AM27: 0 | AN27: 0 | AO27: 0 | AP27: 0 | AQ27: 0 | AR27: 0 | AS27: 0 | AT27: 0
B28: 39 | C28: その他の製造工業製品 | D28: =-取引額表!BF28/(取引額表!BH28-取引額表!BF28-取引額表!BA28-取引額表!AV28) -> 0.8483370795 | E28: 0.1516629205 | F28: 5.593569455 | I28: 20 | J28: 0 | K28: 0 | L28: 0 | M28: 0 | N28: 0 | O28: 0 | P28: 0 | Q28: 0 | R28: 0 | S28: 0 | T28: 0 | U28: 0 | V28: 0 | W28: 0 | X28: 0 | Y28: 0 | Z28: 0 | AA28: 0 | AB28: 0 | AC28: 0.8483370795 | AD28: 0 | AE28: 0 | AF28: 0 | AG28: 0 | AH28: 0 | AI28: 0 | AJ28: 0 | AK28: 0 | AL28: 0 | AM28: 0 | AN28: 0 | AO28: 0 | AP28: 0 | AQ28: 0 | AR28: 0 | AS28: 0 | AT28: 0
B29: 41 | C29: 建設 | D29: =-取引額表!BF29/(取引額表!BH29-取引額表!BF29-取引額表!BA29-取引額表!AV29) -> 0 | E29: 1 | F29: 0 | I29: 21 | J29: 0 | K29: 0 | L29: 0 | M29: 0 | N29: 0 | O29: 0 | P29: 0 | Q29: 0 | R29: 0 | S29: 0 | T29: 0 | U29: 0 | V29: 0 | W29: 0 | X29: 0 | Y29: 0 | Z29: 0 | AA29: 0 | AB29: 0 | AC29: 0 | AD29: 0 | AE29: 0 | AF29: 0 | AG29: 0 | AH29: 0 | AI29: 0 | AJ29: 0 | AK29: 0 | AL29: 0 | AM29: 0 | AN29: 0 | AO29: 0 | AP29: 0 | AQ29: 0 | AR29: 0 | AS29: 0 | AT29: 0
B30: 46 | C30: 電力・ガス・熱供給 | D30: =-取引額表!BF30/(取引額表!BH30-取引額表!BF30-取引額表!BA30-取引額表!AV30) -> 0 | E30: 1 | F30: 0 | I30: 22 | J30: 0 | K30: 0 | L30: 0 | M30: 0 | N30: 0 | O30: 0 | P30: 0 | Q30: 0 | R30: 0 | S30: 0 | T30: 0 | U30: 0 | V30: 0 | W30: 0 | X30: 0 | Y30: 0 | Z30: 0 | AA30: 0 | AB30: 0 | AC30: 0 | AD30: 0 | AE30: 0 | AF30: 0 | AG30: 0 | AH30: 0 | AI30: 0 | AJ30: 0 | AK30: 0 | AL30: 0 | AM30: 0 | AN30: 0 | AO30: 0 | AP30: 0 | AQ30: 0 | AR30: 0 | AS30: 0 | AT30: 0
B31: 47 | C31: 水道 | D31: =-取引額表!BF31/(取引額表!BH31-取引額表!BF31-取引額表!BA31-取引額表!AV31) -> 0 | E31: 1 | F31: 0 | I31: 23 | J31: 0 | K31: =IF($I31=K$8,$D31,0) -> 0 | L31: 0 | M31: 0 | N31: 0 | O31: 0 | P31: 0 | Q31: 0 | R31: 0 | S31: 0 | T31: 0 | U31: 0 | V31: 0 | W31: 0 | X31: 0 | Y31: 0 | Z31: 0 | AA31: 0 | AB31: 0 | AC31: 0 | AD31: 0 | AE31: 0 | AF31: 0 | AG31: 0 | AH31: 0 | AI31: 0 | AJ31: 0 | AK31: 0 | AL31: 0 | AM31: 0 | AN31: 0 | AO31: 0 | AP31: 0 | AQ31: 0 | AR31: 0 | AS31: 0 | AT31: 0
B32: 48 | C32: 廃棄物処理 | D32: =-取引額表!BF32/(取引額表!BH32-取引額表!BF32-取引額表!BA32-取引額表!AV32) -> 0.1312266686 | E32: =1-D32 -> 0.8687733314 | F32: 0.1510482238 | I32: 24 | J32: 0 | K32: 0 | L32: 0 | M32: 0 | N32: 0 | O32: 0 | P32: 0 | Q32: 0 | R32: 0 | S32: 0 | T32: 0 | U32: 0 | V32: 0 | W32: 0 | X32: 0 | Y32: 0 | Z32: 0 | AA32: 0 | AB32: 0 | AC32: 0 | AD32: 0 | AE32: 0 | AF32: 0 | AG32: 0.1312266686 | AH32: 0 | AI32: 0 | AJ32: 0 | AK32: 0 | AL32: 0 | AM32: 0 | AN32: 0 | AO32: 0 | AP32: 0 | AQ32: 0 | AR32: 0 | AS32: 0 | AT32: 0
B33: 51 | C33: 商業 | D33: =-取引額表!BF33/(取引額表!BH33-取引額表!BF33-取引額表!BA33-取引額表!AV33) -> 0.4446035219 | E33: 0.5553964781 | F33: 0.8005155585 | I33: 25 | J33: 0 | K33: 0 | L33: 0 | M33: 0 | N33: 0 | O33: 0 | P33: 0 | Q33: 0 | R33: 0 | S33: 0 | T33: 0 | U33: 0 | V33: 0 | W33: 0 | X33: 0 | Y33: 0 | Z33: 0 | AA33: 0 | AB33: 0 | AC33: 0 | AD33: 0 | AE33: 0 | AF33: 0 | AG33: 0 | AH33: 0.4446035219 | AI33: 0 | AJ33: 0 | AK33: 0 | AL33: 0 | AM33: 0 | AN33: 0 | AO33: 0 | AP33: 0 | AQ33: 0 | AR33: 0 | AS33: 0 | AT33: 0
B34: 53 | C34: 金融・保険 | D34: =-取引額表!BF34/(取引額表!BH34-取引額表!BF34-取引額表!BA34-取引額表!AV34) -> 0.2686806143 | E34: 0.7313193857 | F34: 0.3673916206 | I34: 26 | J34: 0 | K34: 0 | L34: 0 | M34: 0 | N34: 0 | O34: 0 | P34: 0 | Q34: 0 | R34: 0 | S34: 0 | T34: 0 | U34: 0 | V34: 0 | W34: 0 | X34: 0 | Y34: 0 | Z34: 0 | AA34: 0 | AB34: 0 | AC34: 0 | AD34: 0 | AE34: 0 | AF34: 0 | AG34: 0 | AH34: 0 | AI34: 0.2686806143 | AJ34: 0 | AK34: 0 | AL34: 0 | AM34: 0 | AN34: 0 | AO34: 0 | AP34: 0 | AQ34: 0 | AR34: 0 | AS34: 0 | AT34: 0
B35: 55 | C35: 不動産 | D35: =-取引額表!BF35/(取引額表!BH35-取引額表!BF35-取引額表!BA35-取引額表!AV35) -> 0.008947875728 | E35: 0.9910521243 | F35: 0.009028663084 | I35: 27 | J35: 0 | K35: =IF($I35=K$8,$D35,0) -> 0 | L35: 0 | M35: 0 | N35: 0 | O35: 0 | P35: 0 | Q35: 0 | R35: 0 | S35: 0 | T35: 0 | U35: 0 | V35: 0 | W35: 0 | X35: 0 | Y35: 0 | Z35: 0 | AA35: 0 | AB35: 0 | AC35: 0 | AD35: 0 | AE35: 0 | AF35: 0 | AG35: 0 | AH35: 0 | AI35: 0 | AJ35: 0.008947875728 | AK35: 0 | AL35: 0 | AM35: 0 | AN35: 0 | AO35: 0 | AP35: 0 | AQ35: 0 | AR35: 0 | AS35: 0 | AT35: 0
B36: 57 | C36: 運輸・郵便 | D36: =-取引額表!BF36/(取引額表!BH36-取引額表!BF36-取引額表!BA36-取引額表!AV36) -> 0.3811431285 | E36: 0.6188568715 | F36: 0.6158825184 | I36: 28 | J36: 0 | K36: 0 | L36: 0 | M36: 0 | N36: 0 | O36: 0 | P36: 0 | Q36: 0 | R36: 0 | S36: 0 | T36: 0 | U36: 0 | V36: 0 | W36: 0 | X36: 0 | Y36: 0 | Z36: 0 | AA36: 0 | AB36: 0 | AC36: 0 | AD36: 0 | AE36: 0 | AF36: 0 | AG36: 0 | AH36: 0 | AI36: 0 | AJ36: 0 | AK36: 0.3811431285 | AL36: 0 | AM36: 0 | AN36: 0 | AO36: 0 | AP36: 0 | AQ36: 0 | AR36: 0 | AS36: 0 | AT36: 0
B37: 59 | C37: 情報通信 | D37: =-取引額表!BF37/(取引額表!BH37-取引額表!BF37-取引額表!BA37-取引額表!AV37) -> 0.3058898576 | E37: 0.6941101424 | F37: 0.4406935426 | I37: 29 | J37: 0 | K37: 0 | L37: 0 | M37: 0 | N37: 0 | O37: 0 | P37: 0 | Q37: 0 | R37: 0 | S37: 0 | T37: 0 | U37: 0 | V37: 0 | W37: 0 | X37: 0 | Y37: 0 | Z37: 0 | AA37: 0 | AB37: 0 | AC37: 0 | AD37: 0 | AE37: 0 | AF37: 0 | AG37: 0 | AH37: 0 | AI37: 0 | AJ37: 0 | AK37: 0 | AL37: 0.3058898576 | AM37: 0 | AN37: 0 | AO37: 0 | AP37: 0 | AQ37: 0 | AR37: 0 | AS37: 0 | AT37: 0
B38: 61 | C38: 公務 | D38: =-取引額表!BF38/(取引額表!BH38-取引額表!BF38-取引額表!BA38-取引額表!AV38) -> 0 | E38: 1 | F38: 0 | I38: 30 | J38: 0 | K38: 0 | L38: 0 | M38: 0 | N38: 0 | O38: 0 | P38: 0 | Q38: 0 | R38: 0 | S38: 0 | T38: 0 | U38: 0 | V38: 0 | W38: 0 | X38: 0 | Y38: 0 | Z38: 0 | AA38: 0 | AB38: 0 | AC38: 0 | AD38: 0 | AE38: 0 | AF38: 0 | AG38: 0 | AH38: 0 | AI38: 0 | AJ38: 0 | AK38: 0 | AL38: 0 | AM38: 0 | AN38: 0 | AO38: 0 | AP38: 0 | AQ38: 0 | AR38: 0 | AS38: 0 | AT38: 0
B39: 63 | C39: 教育・研究 | D39: =-取引額表!BF39/(取引額表!BH39-取引額表!BF39-取引額表!BA39-取引額表!AV39) -> 0.1008941955 | E39: 0.8991058045 | F39: 0.1122161541 | I39: 31 | J39: 0 | K39: =IF($I39=K$8,$D39,0) -> 0 | L39: 0 | M39: 0 | N39: 0 | O39: 0 | P39: 0 | Q39: 0 | R39: 0 | S39: 0 | T39: 0 | U39: 0 | V39: 0 | W39: 0 | X39: 0 | Y39: 0 | Z39: 0 | AA39: 0 | AB39: 0 | AC39: 0 | AD39: 0 | AE39: 0 | AF39: 0 | AG39: 0 | AH39: 0 | AI39: 0 | AJ39: 0 | AK39: 0 | AL39: 0 | AM39: 0 | AN39: 0.1008941955 | AO39: 0 | AP39: 0 | AQ39: 0 | AR39: 0 | AS39: 0 | AT39: 0
B40: 64 | C40: 医療・福祉 | D40: =-取引額表!BF40/(取引額表!BH40-取引額表!BF40-取引額表!BA40-取引額表!AV40) -> 0.2329294733 | E40: 0.7670705267 | F40: 0.3036610913 | I40: 32 | J40: 0 | K40: 0 | L40: 0 | M40: 0 | N40: 0 | O40: 0 | P40: 0 | Q40: 0 | R40: 0 | S40: 0 | T40: 0 | U40: 0 | V40: 0 | W40: 0 | X40: 0 | Y40: 0 | Z40: 0 | AA40: 0 | AB40: 0 | AC40: 0 | AD40: 0 | AE40: 0 | AF40: 0 | AG40: 0 | AH40: 0 | AI40: 0 | AJ40: 0 | AK40: 0 | AL40: 0 | AM40: 0 | AN40: 0 | AO40: 0.2329294733 | AP40: 0 | AQ40: 0 | AR40: 0 | AS40: 0 | AT40: 0
B41: 65 | C41: その他の非営利団体サービス | D41: =-取引額表!BF41/(取引額表!BH41-取引額表!BF41-取引額表!BA41-取引額表!AV41) -> 0.2650894004 | E41: 0.7349105996 | F41: 0.3607097251 | I41: 33 | J41: 0 | K41: 0 | L41: 0 | M41: 0 | N41: 0 | O41: 0 | P41: 0 | Q41: 0 | R41: 0 | S41: 0 | T41: 0 | U41: 0 | V41: 0 | W41: 0 | X41: 0 | Y41: 0 | Z41: 0 | AA41: 0 | AB41: 0 | AC41: 0 | AD41: 0 | AE41: 0 | AF41: 0 | AG41: 0 | AH41: 0 | AI41: 0 | AJ41: 0 | AK41: 0 | AL41: 0 | AM41: 0 | AN41: 0 | AO41: 0 | AP41: 0.2650894004 | AQ41: 0 | AR41: 0 | AS41: 0 | AT41: 0
B42: 66 | C42: 対事業所サービス | D42: =-取引額表!BF42/(取引額表!BH42-取引額表!BF42-取引額表!BA42-取引額表!AV42) -> 0.3101336182 | E42: 0.6898663818 | F42: 0.4495560681 | I42: 34 | J42: 0 | K42: 0 | L42: 0 | M42: 0 | N42: 0 | O42: 0 | P42: 0 | Q42: 0 | R42: 0 | S42: 0 | T42: 0 | U42: 0 | V42: 0 | W42: 0 | X42: 0 | Y42: 0 | Z42: 0 | AA42: 0 | AB42: 0 | AC42: 0 | AD42: 0 | AE42: 0 | AF42: 0 | AG42: 0 | AH42: 0 | AI42: 0 | AJ42: 0 | AK42: 0 | AL42: 0 | AM42: 0 | AN42: 0 | AO42: 0 | AP42: 0 | AQ42: 0.3101336182 | AR42: 0 | AS42: 0 | AT42: 0
B43: 67 | C43: 対個人サービス | D43: =-取引額表!BF43/(取引額表!BH43-取引額表!BF43-取引額表!BA43-取引額表!AV43) -> 0.2871944223 | E43: 0.7128055777 | F43: 0.4029070917 | I43: 35 | J43: 0 | K43: =IF($I43=K$8,$D43,0) -> 0 | L43: 0 | M43: 0 | N43: 0 | O43: 0 | P43: 0 | Q43: 0 | R43: 0 | S43: 0 | T43: 0 | U43: 0 | V43: 0 | W43: 0 | X43: 0 | Y43: 0 | Z43: 0 | AA43: 0 | AB43: 0 | AC43: 0 | AD43: 0 | AE43: 0 | AF43: 0 | AG43: 0 | AH43: 0 | AI43: 0 | AJ43: 0 | AK43: 0 | AL43: 0 | AM43: 0 | AN43: 0 | AO43: 0 | AP43: 0 | AQ43: 0 | AR43: 0.2871944223 | AS43: 0 | AT43: 0
B44: 68 | C44: 事務用品 | D44: =-取引額表!BF44/(取引額表!BH44-取引額表!BF44-取引額表!BA44-取引額表!AV44) -> 0 | E44: 1 | F44: 0 | I44: 36 | J44: 0 | K44: 0 | L44: 0 | M44: 0 | N44: 0 | O44: 0 | P44: 0 | Q44: 0 | R44: 0 | S44: 0 | T44: 0 | U44: 0 | V44: 0 | W44: 0 | X44: 0 | Y44: 0 | Z44: 0 | AA44: 0 | AB44: 0 | AC44: 0 | AD44: 0 | AE44: 0 | AF44: 0 | AG44: 0 | AH44: 0 | AI44: 0 | AJ44: 0 | AK44: 0 | AL44: 0 | AM44: 0 | AN44: 0 | AO44: 0 | AP44: 0 | AQ44: 0 | AR44: 0 | AS44: 0 | AT44: 0
B45: 69 | C45: 分類不明 | D45: =-取引額表!BF45/(取引額表!BH45-取引額表!BF45-取引額表!BA45-取引額表!AV45) -> 0.2187174073 | E45: 0.7812825927 | F45: 0.2799466024 | I45: 37 | J45: 0 | K45: 0 | L45: 0 | M45: 0 | N45: 0 | O45: 0 | P45: 0 | Q45: 0 | R45: 0 | S45: 0 | T45: 0 | U45: 0 | V45: 0 | W45: 0 | X45: 0 | Y45: 0 | Z45: 0 | AA45: 0 | AB45: 0 | AC45: 0 | AD45: 0 | AE45: 0 | AF45: 0 | AG45: 0 | AH45: 0 | AI45: 0 | AJ45: 0 | AK45: 0 | AL45: 0 | AM45: 0 | AN45: 0 | AO45: 0 | AP45: 0 | AQ45: 0 | AR45: 0 | AS45: 0 | AT45: 0.2187174073

Sheet 付加価値率 (hidden)
D8: 粗付加価値額 | E8: 市内生産額 | F8: 付加価値率 | G8: 雇用者数 | H8: 雇用者数/生産額
B9: 01 | C9: 農林水産業 | D9: =TRANSPOSE(取引額表!D53:AN53) -> 7432 | E9: =TRANSPOSE(取引額表!D54:AN54) -> 14322 | F9: =IF(E9=0,0,D9/E9) -> 0.5189219383 | G9: 1225 | H9: =IF(E9=0,0,G9/E9) -> 0.08553274682
B10: 06 | C10: 鉱業 | D10: 363 | E10: 988 | F10: =IF(E10=0,0,D10/E10) -> 0.3674089069 | G10: 3 | H10: =IF(E10=0,0,G10/E10) -> 0.003036437247
B11: 11 | C11: 飲食料品 | D11: 70837 | E11: 277441 | F11: 0.2553227533 | G11: 8209 | H11: 0.02958827282
B12: 15 | C12: 繊維製品 | D12: 474 | E12: 1121 | F12: 0.4228367529 | G12: 161 | H12: 0.1436217663
B13: 16 | C13: パルプ・紙・木製品 | D13: 5165 | E13: 13499 | F13: 0.3826209349 | G13: 681 | H13: 0.05044818135
B14: 20 | C14: 化学製品 | D14: 3991 | E14: 15107 | F14: 0.2641821672 | G14: 927 | H14: 0.06136228239
B15: 21 | C15: 石油・石炭製品 | D15: 6849 | E15: 77837 | F15: 0.08799157213 | G15: 175 | H15: 0.002248288089
B16: 22 | C16: プラスチック・ゴム | D16: 3602 | E16: 10536 | F16: 0.3418754746 | G16: 870 | H16: 0.08257403189
B17: 25 | C17: 窯業・土石製品 | D17: 10392 | E17: 22891 | F17: 0.4539775458 | G17: 546 | H17: 0.02385216897
B18: 26 | C18: 鉄鋼 | D18: 188696 | E18: 1170953 | F18: 0.1611473731 | G18: 5156 | H18: 0.004403251027
B19: 27 | C19: 非鉄金属 | D19: 3555 | E19: 18852 | F19: 0.1885741566 | G19: 422 | H19: 0.02238489285
B20: 28 | C20: 金属製品 | D20: 12248 | E20: 32982 | F20: 0.3713540719 | G20: 2378 | H20: 0.0720999333
B21: 29 | C21: はん用機械 | D21: 2889 | E21: 5548 | F21: 0.5207281903 | G21: 652 | H21: 0.117519827
B22: 30 | C22: 生産用機械 | D22: 33944 | E22: 82685 | F22: 0.4105218601 | G22: 2703 | H22: 0.03269033077
B23: 31 | C23: 業務用機械 | D23: 2455 | E23: 6582 | F23: 0.3729869341 | G23: 459 | H23: 0.06973564266
B24: 32 | C24: 電子部品 | D24: 2176 | E24: 5613 | F24: 0.3876714769 | G24: 930 | H24: 0.1656867985
B25: 33 | C25: 電気機械 | D25: 3125 | E25: 10329 | F25: 0.3025462291 | G25: 806 | H25: 0.0780327234
B26: 34 | C26: 情報・通信機器 | D26: 1501 | E26: 4746 | F26: 0.3162663295 | G26: 586 | H26: 0.1234723978
B27: 35 | C27: 輸送機械 | D27: 727 | E27: 1652 | F27: 0.4400726392 | G27: 459 | H27: 0.2778450363
B28: 39 | C28: その他の製造工業製品 | D28: 13339 | E28: 27512 | F28: 0.4848429776 | G28: 3493 | H28: 0.1269627799
B29: 41 | C29: 建設 | D29: 150910 | E29: 322563 | F29: 0.4678465912 | G29: 40577 | H29: 0.125795581
B30: 46 | C30: 電力・ガス・熱供給 | D30: 32501 | E30: 155023 | F30: 0.2096527612 | G30: 2097 | H30: 0.01352702502
B31: 47 | C31: 水道 | D31: 22625 | E31: 45606 | F31: 0.4960970048 | G31: 782 | H31: 0.01714686664
B32: 48 | C32: 廃棄物処理 | D32: 41556 | E32: 57150 | F32: 0.7271391076 | G32: 2393 | H32: 0.04187226597
B33: 51 | C33: 商業 | D33: 456024 | E33: 644637 | F33: 0.7074120784 | G33: 80958 | H33: 0.1255869582
B34: 53 | C34: 金融・保険 | D34: 191448 | E34: 279751 | F34: 0.6843514411 | G34: 15698 | H34: 0.05611418726
B35: 55 | C35: 不動産 | D35: 589309 | E35: 744777 | F35: 0.7912556376 | G35: 5797 | H35: 0.007783537891
B36: 57 | C36: 運輸・郵便 | D36: 215157 | E36: 382847 | F36: 0.5619921274 | G36: 24582 | H36: 0.06420841746
B37: 59 | C37: 情報通信 | D37: 224397 | E37: 394600 | F37: 0.5686695388 | G37: 14728 | H37: 0.03732387228
B38: 61 | C38: 公務 | D38: 164108 | E38: 231186 | F38: 0.7098526727 | G38: 15616 | H38: 0.06754734283
B39: 63 | C39: 教育・研究 | D39: 184005 | E39: 243530 | F39: 0.7555742619 | G39: 23293 | H39: 0.09564735351
B40: 64 | C40: 医療・福祉 | D40: 233694 | E40: 380566 | F40: 0.6140695701 | G40: 40877 | H40: 0.1074110667
B41: 65 | C41: その他の非営利団体サービス | D41: 18733 | E41: 29876 | F41: 0.6270250368 | G41: 2619 | H41: 0.08766233766
B42: 66 | C42: 対事業所サービス | D42: 407150 | E42: 610780 | F42: 0.6666066341 | G42: 63782 | H42: 0.104427126
B43: 67 | C43: 対個人サービス | D43: 212711 | E43: 375343 | F43: 0.5667109817 | G43: 51895 | H43: 0.1382602047
B44: 68 | C44: 事務用品 | D44: 0 | E44: 8174 | F44: 0 | G44: 0 | H44: 0
B45: 69 | C45: 分類不明 | D45: 14301 | E45: 35703 | F45: 0.4005545752 | G45: 299 | H45: 0.008374646388

Sheet 市内品投入係数表 (hidden)
D7: 01 | E7: 06 | F7: 11 | G7: 15 | H7: 16 | I7: 20 | J7: 21 | K7: 22 | L7: 25 | M7: 26 | N7: 27 | O7: 28 | P7: 29 | Q7: 30 | R7: 31 | S7: 32 | T7: 33 | U7: 34 | V7: 35 | W7: 39 | X7: 41 | Y7: 46 | Z7: 47 | AA7: 48 | AB7: 51 | AC7: 53 | AD7: 55 | AE7: 57 | AF7: 59 | AG7: 61 | AH7: 63 | AI7: 64 | AJ7: 65 | AK7: 66 | AL7: 67 | AM7: 68 | AN7: 69
D8: 農林水産業 | E8: 鉱業 | F8: 飲食料品 | G8: 繊維製品 | H8: パルプ・紙・木製品 | I8: 化学製品 | J8: 石油・石炭製品 | K8: プラスチック・ゴム | L8: 窯業・土石製品 | M8: 鉄鋼 | N8: 非鉄金属 | O8: 金属製品 | P8: はん用機械 | Q8: 生産用機械 | R8: 業務用機械 | S8: 電子部品 | T8: 電気機械 | U8: 情報・通信機器 | V8: 輸送機械 | W8: その他の製造工業製品 | X8: 建設 | Y8: 電力・ガス・熱供給 | Z8: 水道 | AA8: 廃棄物処理 | AB8: 商業 | AC8: 金融・保険 | AD8: 不動産 | AE8: 運輸・郵便 | AF8: 情報通信 | AG8: 公務 | AH8: 教育・研究 | AI8: 医療・福祉 | AJ8: その他の非営利団体サービス | AK8: 対事業所サービス | AL8: 対個人サービス | AM8: 事務用品 | AN8: 分類不明
B9: 01 | C9: 農林水産業 | D9: =投入係数表!D9*移輸入係数!$E9 -> 0.005284598157 | E9: =投入係数表!E9*移輸入係数!$E9 -> 0 | F9: =投入係数表!F9*移輸入係数!$E9 -> 0.02040114603 | G9: =投入係数表!G9*移輸入係数!$E9 -> 0.0003057351683 | H9: =投入係数表!H9*移輸入係数!$E9 -> 0.0003089022153 | I9: =投入係数表!I9*移輸入係数!$E9 -> 5.293581046e-05 | J9: =投入係数表!J9*移輸入係数!$E9 -> 0 | K9: =投入係数表!K9*移輸入係数!$E9 -> 0.0003524011807 | L9: =投入係数表!L9*移輸入係数!$E9 -> 1.996296208e-05 | M9: =投入係数表!M9*移輸入係数!$E9 -> 0 | N9: =投入係数表!N9*移輸入係数!$E9 -> 0 | O9: =投入係数表!O9*移輸入係数!$E9 -> 0 | P9: =投入係数表!P9*移輸入係数!$E9 -> 0 | Q9: =投入係数表!Q9*移輸入係数!$E9 -> 0 | R9: =投入係数表!R9*移輸入係数!$E9 -> 0 | S9: =投入係数表!S9*移輸入係数!$E9 -> 0 | T9: =投入係数表!T9*移輸入係数!$E9 -> 0 | U9: =投入係数表!U9*移輸入係数!$E9 -> 0 | V9: =投入係数表!V9*移輸入係数!$E9 -> 0 | W9: =投入係数表!W9*移輸入係数!$E9 -> 0.001305955091 | X9: =投入係数表!X9*移輸入係数!$E9 -> 4.604246413e-05 | Y9: =投入係数表!Y9*移輸入係数!$E9 -> 0 | Z9: =投入係数表!Z9*移輸入係数!$E9 -> 0 | AA9: =投入係数表!AA9*移輸入係数!$E9 -> 0 | AB9: =投入係数表!AB9*移輸入係数!$E9 -> 4.784959773e-06 | AC9: =投入係数表!AC9*移輸入係数!$E9 -> 0 | AD9: =投入係数表!AD9*移輸入係数!$E9 -> 7.66961394e-08 | AE9: =投入係数表!AE9*移輸入係数!$E9 -> 7.460097717e-06 | AF9: =投入係数表!AF9*移輸入係数!$E9 -> 0 | AG9: =投入係数表!AG9*移輸入係数!$E9 -> 2.470803622e-07 | AH9: =投入係数表!AH9*移輸入係数!$E9 -> 5.254063408e-05 | AI9: =投入係数表!AI9*移輸入係数!$E9 -> 0.0001040166851 | AJ9: =投入係数表!AJ9*移輸入係数!$E9 -> 8.603790425e-05 | AK9: =投入係数表!AK9*移輸入係数!$E9 -> 3.740890049e-07 | AL9: =投入係数表!AL9*移輸入係数!$E9 -> 0.001237415069 | AM9: =投入係数表!AM9*移輸入係数!$E9 -> 0 | AN9: =投入係数表!AN9*移輸入係数!$E9 -> 0
B10: 06 | C10: 鉱業 | D10: =投入係数表!D10*移輸入係数!$E10 -> 0 | E10: =投入係数表!E10*移輸入係数!$E10 -> 0 | F10: =投入係数表!F10*移輸入係数!$E10 -> 2.781303852e-08 | G10: =投入係数表!G10*移輸入係数!$E10 -> 0 | H10: =投入係数表!H10*移輸入係数!$E10 -> 0 | I10: =投入係数表!I10*移輸入係数!$E10 -> 1.522148813e-05 | J10: =投入係数表!J10*移輸入係数!$E10 -> 0.001127259776 | K10: =投入係数表!K10*移輸入係数!$E10 -> 0 | L10: =投入係数表!L10*移輸入係数!$E10 -> 0.0001404344244 | M10: =投入係数表!M10*移輸入係数!$E10 -> 0.000121909418 | N10: =投入係数表!N10*移輸入係数!$E10 -> 9.823650185e-07 | O10: =投入係数表!O10*移輸入係数!$E10 -> 3.743364124e-07 | P10: =投入係数表!P10*移輸入係数!$E10 -> 0 | Q10: =投入係数表!Q10*移輸入係数!$E10 -> 0 | R10: =投入係数表!R10*移輸入係数!$E10 -> 2.344721124e-07 | S10: =投入係数表!S10*移輸入係数!$E10 -> 0 | T10: =投入係数表!T10*移輸入係数!$E10 -> 0 | U10: =投入係数表!U10*移輸入係数!$E10 -> 0 | V10: =投入係数表!V10*移輸入係数!$E10 -> 0 | W10: =投入係数表!W10*移輸入係数!$E10 -> 2.860863174e-06 | X10: =投入係数表!X10*移輸入係数!$E10 -> 1.197076292e-05 | Y10: =投入係数表!Y10*移輸入係数!$E10 -> 0.0006210394566 | Z10: =投入係数表!Z10*移輸入係数!$E10 -> 0 | AA10: =投入係数表!AA10*移輸入係数!$E10 -> 0 | AB10: =投入係数表!AB10*移輸入係数!$E10 -> 0 | AC10: =投入係数表!AC10*移輸入係数!$E10 -> 0 | AD10: =投入係数表!AD10*移輸入係数!$E10 -> 0 | AE10: =投入係数表!AE10*移輸入係数!$E10 -> 4.031102357e-09 | AF10: =投入係数表!AF10*移輸入係数!$E10 -> 0 | AG10: =投入係数表!AG10*移輸入係数!$E10 -> 0 | AH10: =投入係数表!AH10*移輸入係数!$E10 -> 3.802312924e-08 | AI10: =投入係数表!AI10*移輸入係数!$E10 -> 0 | AJ10: =投入係数表!AJ10*移輸入係数!$E10 -> 0 | AK10: =投入係数表!AK10*移輸入係数!$E10 -> 0 | AL10: =投入係数表!AL10*移輸入係数!$E10 -> -1.233508106e-08 | AM10: =投入係数表!AM10*移輸入係数!$E10 -> 0 | AN10: =投入係数表!AN10*移輸入係数!$E10 -> 1.296777955e-07
B11: 11 | C11: 飲食料品 | D11: =投入係数表!D11*移輸入係数!$E11 -> 0.01241901409 | E11: =投入係数表!E11*移輸入係数!$E11 -> 0 | F11: =投入係数表!F11*移輸入係数!$E11 -> 0.05346307963 | G11: =投入係数表!G11*移輸入係数!$E11 -> 0.0002231596008 | H11: =投入係数表!H11*移輸入係数!$E11 -> 0.0002779782715 | I11: =投入係数表!I11*移輸入係数!$E11 -> 0.001639374418 | J11: =投入係数表!J11*移輸入係数!$E11 -> 0 | K11: =投入係数表!K11*移輸入係数!$E11 -> 0 | L11: =投入係数表!L11*移輸入係数!$E11 -> 0.0002513531076 | M11: =投入係数表!M11*移輸入係数!$E11 -> 0 | N11: =投入係数表!N11*移輸入係数!$E11 -> 0 | O11: =投入係数表!O11*移輸入係数!$E11 -> 0 | P11: =投入係数表!P11*移輸入係数!$E11 -> 0 | Q11: =投入係数表!Q11*移輸入係数!$E11 -> 0 | R11: =投入係数表!R11*移輸入係数!$E11 -> 0 | S11: =投入係数表!S11*移輸入係数!$E11 -> 0 | T11: =投入係数表!T11*移輸入係数!$E11 -> 0 | U11: =投入係数表!U11*移輸入係数!$E11 -> 0 | V11: =投入係数表!V11*移輸入係数!$E11 -> 0 | W11: =投入係数表!W11*移輸入係数!$E11 -> 0.0001727637517 | X11: =投入係数表!X11*移輸入係数!$E11 -> 7.755443509e-07 | Y11: =投入係数表!Y11*移輸入係数!$E11 -> 0 | Z11: =投入係数表!Z11*移輸入係数!$E11 -> 0 | AA11: =投入係数表!AA11*移輸入係数!$E11 -> 0 | AB11: =投入係数表!AB11*移輸入係数!$E11 -> 2.832884183e-05 | AC11: =投入係数表!AC11*移輸入係数!$E11 -> 0 | AD11: =投入係数表!AD11*移輸入係数!$E11 -> 0 | AE11: =投入係数表!AE11*移輸入係数!$E11 -> 0.0001777316792 | AF11: =投入係数表!AF11*移輸入係数!$E11 -> 0 | AG11: =投入係数表!AG11*移輸入係数!$E11 -> 5.518611653e-05 | AH11: =投入係数表!AH11*移輸入係数!$E11 -> 0.0002958429384 | AI11: =投入係数表!AI11*移輸入係数!$E11 -> 0.001972025187 | AJ11: =投入係数表!AJ11*移輸入係数!$E11 -> 0.0008038406613 | AK11: =投入係数表!AK11*移輸入係数!$E11 -> 1.22873332e-06 | AL11: =投入係数表!AL11*移輸入係数!$E11 -> 0.03510396605 | AM11: =投入係数表!AM11*移輸入係数!$E11 -> 0 | AN11: =投入係数表!AN11*移輸入係数!$E11 -> 0.0003223103933
B12: 15 | C12: 繊維製品 | D12: =投入係数表!D12*移輸入係数!$E12 -> 7.136897833e-06 | E12: =投入係数表!E12*移輸入係数!$E12 -> 1.231620527e-05 | F12: =投入係数表!F12*移輸入係数!$E12 -> 2.684198591e-06 | G12: =投入係数表!G12*移輸入係数!$E12 -> 0.0006209037449 | H12: =投入係数表!H12*移輸入係数!$E12 -> 1.298059972e-05 | I12: =投入係数表!I12*移輸入係数!$E12 -> 1.288770589e-06 | J12: =投入係数表!J12*移輸入係数!$E12 -> 4.064630972e-07 | K12: =投入係数表!K12*移輸入係数!$E12 -> 6.005669722e-06 | L12: =投入係数表!L12*移輸入係数!$E12 -> 6.910547397e-06 | M12: =投入係数表!M12*移輸入係数!$E12 -> 1.207537224e-06 | N12: =投入係数表!N12*移輸入係数!$E12 -> 1.42003521e-06 | O12: =投入係数表!O12*移輸入係数!$E12 -> 3.615621427e-06 | P12: =投入係数表!P12*移輸入係数!$E12 -> 2.193296829e-06 | Q12: =投入係数表!Q12*移輸入係数!$E12 -> 1.913156443e-06 | R12: =投入係数表!R12*移輸入係数!$E12 -> 3.327733128e-06 | S12: =投入係数表!S12*移輸入係数!$E12 -> 1.040590983e-05 | T12: =投入係数表!T12*移輸入係数!$E12 -> 4.005479402e-06 | U12: =投入係数表!U12*移輸入係数!$E12 -> 3.076715754e-06 | V12: =投入係数表!V12*移輸入係数!$E12 -> 0 | W12: =投入係数表!W12*移輸入係数!$E12 -> 4.953700241e-06 | X12: =投入係数表!X12*移輸入係数!$E12 -> 8.201227385e-06 | Y12: =投入係数表!Y12*移輸入係数!$E12 -> 6.122549833e-07 | Z12: =投入係数表!Z12*移輸入係数!$E12 -> 1.547532839e-06 | AA12: =投入係数表!AA12*移輸入係数!$E12 -> 5.621103154e-06 | AB12: =投入係数表!AB12*移輸入係数!$E12 -> 8.339583198e-06 | AC12: =投入係数表!AC12*移輸入係数!$E12 -> 2.7751272e-06 | AD12: =投入係数表!AD12*移輸入係数!$E12 -> 6.862097699e-08 | AE12: =投入係数表!AE12*移輸入係数!$E12 -> 8.02863956e-06 | AF12: =投入係数表!AF12*移輸入係数!$E12 -> 1.936584386e-06 | AG12: =投入係数表!AG12*移輸入係数!$E12 -> 8.884741048e-06 | AH12: =投入係数表!AH12*移輸入係数!$E12 -> 1.678883928e-06 | AI12: =投入係数表!AI12*移輸入係数!$E12 -> 7.616327927e-06 | AJ12: =投入係数表!AJ12*移輸入係数!$E12 -> 3.339836946e-05 | AK12: =投入係数表!AK12*移輸入係数!$E12 -> 4.566291884e-06 | AL12: =投入係数表!AL12*移輸入係数!$E12 -> 7.106341796e-06 | AM12: =投入係数表!AM12*移輸入係数!$E12 -> 4.704205792e-05 | AN12: =投入係数表!AN12*移輸入係数!$E12 -> 1.635951373e-06
B13: 16 | C13: パルプ・紙・木製品 | D13: =投入係数表!D13*移輸入係数!$E13 -> 0.0005835586677 | E13: =投入係数表!E13*移輸入係数!$E13 -> 3.22871683e-05 | F13: =投入係数表!F13*移輸入係数!$E13 -> 0.0001039979628 | G13: =投入係数表!G13*移輸入係数!$E13 -> 9.959770562e-05 | H13: =投入係数表!H13*移輸入係数!$E13 -> 0.004036204583 | I13: =投入係数表!I13*移輸入係数!$E13 -> 9.29097624e-05 | J13: =投入係数表!J13*移輸入係数!$E13 -> 1.639308929e-06 | K13: =投入係数表!K13*移輸入係数!$E13 -> 0.0001195936817 | L13: =投入係数表!L13*移輸入係数!$E13 -> 0.0001386580913 | M13: =投入係数表!M13*移輸入係数!$E13 -> 7.600665883e-06 | N13: =投入係数表!N13*移輸入係数!$E13 -> 5.414762959e-05 | O13: =投入係数表!O13*移輸入係数!$E13 -> 5.60967768e-05 | P13: =投入係数表!P13*移輸入係数!$E13 -> 8.624654547e-06 | Q13: =投入係数表!Q13*移輸入係数!$E13 -> 1.041655079e-05 | R13: =投入係数表!R13*移輸入係数!$E13 -> 0.0001841673423 | S13: =投入係数表!S13*移輸入係数!$E13 -> 6.53566375e-05 | T13: =投入係数表!T13*移輸入係数!$E13 -> 0.0001945669962 | U13: =投入係数表!U13*移輸入係数!$E13 -> 9.409947577e-05 | V13: =投入係数表!V13*移輸入係数!$E13 -> 2.896463888e-05 | W13: =投入係数表!W13*移輸入係数!$E13 -> 0.001147889105 | X13: =投入係数表!X13*移輸入係数!$E13 -> 0.0008405047687 | Y13: =投入係数表!Y13*移輸入係数!$E13 -> 1.512439824e-05 | Z13: =投入係数表!Z13*移輸入係数!$E13 -> 2.657960459e-05 | AA13: =投入係数表!AA13*移輸入係数!$E13 -> 6.670195648e-05 | AB13: =投入係数表!AB13*移輸入係数!$E13 -> 0.000100503595 | AC13: =投入係数表!AC13*移輸入係数!$E13 -> 4.720799935e-05 | AD13: =投入係数表!AD13*移輸入係数!$E13 -> 6.317607871e-06 | AE13: =投入係数表!AE13*移輸入係数!$E13 -> 7.274043562e-05 | AF13: =投入係数表!AF13*移輸入係数!$E13 -> 0.0001264347837 | AG13: =投入係数表!AG13*移輸入係数!$E13 -> 1.848971299e-05 | AH13: =投入係数表!AH13*移輸入係数!$E13 -> 8.363640077e-05 | AI13: =投入係数表!AI13*移輸入係数!$E13 -> 7.644546997e-05 | AJ13: =投入係数表!AJ13*移輸入係数!$E13 -> 0.000192726599 | AK13: =投入係数表!AK13*移輸入係数!$E13 -> 4.243512289e-05 | AL13: =投入係数表!AL13*移輸入係数!$E13 -> 8.311845004e-05 | AM13: =投入係数表!AM13*移輸入係数!$E13 -> 0.007812973332 | AN13: =投入係数表!AN13*移輸入係数!$E13 -> 3.439877063e-05
B14: 20 | C14: 化学製品 | D14: =投入係数表!D14*移輸入係数!$E14 -> 0.002335850079 | E14: =投入係数表!E14*移輸入係数!$E14 -> 0.0005040510311 | F14: =投入係数表!F14*移輸入係数!$E14 -> 0.0001728464917 | G14: =投入係数表!G14*移輸入係数!$E14 -> 0.00190765475 | H14: =投入係数表!H14*移輸入係数!$E14 -> 0.0008658722653 | I14: =投入係数表!I14*移輸入係数!$E14 -> 0.01168318766 | J14: =投入係数表!J14*移輸入係数!$E14 -> 5.833485731e-05 | K14: =投入係数表!K14*移輸入係数!$E14 -> 0.005766542813 | L14: =投入係数表!L14*移輸入係数!$E14 -> 0.00101610425 | M14: =投入係数表!M14*移輸入係数!$E14 -> 0.0001315167427 | N14: =投入係数表!N14*移輸入係数!$E14 -> 0.0001367438401 | O14: =投入係数表!O14*移輸入係数!$E14 -> 0.0003384001283 | P14: =投入係数表!P14*移輸入係数!$E14 -> 7.920221681e-05 | Q14: =投入係数表!Q14*移輸入係数!$E14 -> 0.000101326218 | R14: =投入係数表!R14*移輸入係数!$E14 -> 0.0004851222017 | S14: =投入係数表!S14*移輸入係数!$E14 -> 0.000276607122 | T14: =投入係数表!T14*移輸入係数!$E14 -> 0.0003630230681 | U14: =投入係数表!U14*移輸入係数!$E14 -> 0.0002654136487 | V14: =投入係数表!V14*移輸入係数!$E14 -> 0.0003014542486 | W14: =投入係数表!W14*移輸入係数!$E14 -> 0.0006548404279 | X14: =投入係数表!X14*移輸入係数!$E14 -> 0.000147668724 | Y14: =投入係数表!Y14*移輸入係数!$E14 -> 6.916198972e-05 | Z14: =投入係数表!Z14*移輸入係数!$E14 -> 0.0002472983833 | AA14: =投入係数表!AA14*移輸入係数!$E14 -> 0.0004551759022 | AB14: =投入係数表!AB14*移輸入係数!$E14 -> 2.72658193e-07 | AC14: =投入係数表!AC14*移輸入係数!$E14 -> 5.235773942e-07 | AD14: =投入係数表!AD14*移輸入係数!$E14 -> 5.113280606e-07 | AE14: =投入係数表!AE14*移輸入係数!$E14 -> 1.07888808e-05 | AF14: =投入係数表!AF14*移輸入係数!$E14 -> 2.100931464e-05 | AG14: =投入係数表!AG14*移輸入係数!$E14 -> 2.05274978e-05 | AH14: =投入係数表!AH14*移輸入係数!$E14 -> 0.000107539393 | AI14: =投入係数表!AI14*移輸入係数!$E14 -> 0.003123127152 | AJ14: =投入係数表!AJ14*移輸入係数!$E14 -> 4.314323995e-05 | AK14: =投入係数表!AK14*移輸入係数!$E14 -> 8.431728109e-05 | AL14: =投入係数表!AL14*移輸入係数!$E14 -> 0.0001901996612 | AM14: =投入係数表!AM14*移輸入係数!$E14 -> 0.0005196559443 | AN14: =投入係数表!AN14*移輸入係数!$E14 -> 0.0003298404193
B15: 21 | C15: 石油・石炭製品 | D15: =投入係数表!D15*移輸入係数!$E15 -> 0.0006102892585 | E15: =投入係数表!E15*移輸入係数!$E15 -> 0.003742844533 | F15: =投入係数表!F15*移輸入係数!$E15 -> 0.0005213342833 | G15: =投入係数表!G15*移輸入係数!$E15 -> 0 | H15: =投入係数表!H15*移輸入係数!$E15 -> 0.0001992298634 | I15: =投入係数表!I15*移輸入係数!$E15 -> 0.001201659926 | J15: =投入係数表!J15*移輸入係数!$E15 -> 0.005536916623 | K15: =投入係数表!K15*移輸入係数!$E15 -> 0.000143582926 | L15: =投入係数表!L15*移輸入係数!$E15 -> 0.0021698453 | M15: =投入係数表!M15*移輸入係数!$E15 -> 0.003932348862 | N15: =投入係数表!N15*移輸入係数!$E15 -> 0.0002630271849 | O15: =投入係数表!O15*移輸入係数!$E15 -> 0.0003516480029 | P15: =投入係数表!P15*移輸入係数!$E15 -> 3.029699809e-05 | Q15: =投入係数表!Q15*移輸入係数!$E15 -> 9.249552416e-05 | R15: =投入係数表!R15*移輸入係数!$E15 -> 0.0002426061351 | S15: =投入係数表!S15*移輸入係数!$E15 -> 0.0001347576794 | T15: =投入係数表!T15*移輸入係数!$E15 -> 0.0001301870426 | U15: =投入係数表!U15*移輸入係数!$E15 -> 0 | V15: =投入係数表!V15*移輸入係数!$E15 -> 0.0001017480299 | W15: =投入係数表!W15*移輸入係数!$E15 -> 0.0002779875115 | X15: =投入係数表!X15*移輸入係数!$E15 -> 0.0006070820999 | Y15: =投入係数表!Y15*移輸入係数!$E15 -> 0.005925027155 | Z15: =投入係数表!Z15*移輸入係数!$E15 -> 0.001199679014 | AA15: =投入係数表!AA15*移輸入係数!$E15 -> 0.001260290444 | AB15: =投入係数表!AB15*移輸入係数!$E15 -> 0.0001623155691 | AC15: =投入係数表!AC15*移輸入係数!$E15 -> 3.244577589e-05 | AD15: =投入係数表!AD15*移輸入係数!$E15 -> 5.269830909e-05 | AE15: =投入係数表!AE15*移輸入係数!$E15 -> 0.004311000405 | AF15: =投入係数表!AF15*移輸入係数!$E15 -> 6.836817824e-05 | AG15: =投入係数表!AG15*移輸入係数!$E15 -> 0.0004918609248 | AH15: =投入係数表!AH15*移輸入係数!$E15 -> 0.0006246434097 | AI15: =投入係数表!AI15*移輸入係数!$E15 -> 0.0002899618065 | AJ15: =投入係数表!AJ15*移輸入係数!$E15 -> 0.0003094398847 | AK15: =投入係数表!AK15*移輸入係数!$E15 -> 0.0002040621225 | AL15: =投入係数表!AL15*移輸入係数!$E15 -> 0.0005405240238 | AM15: =投入係数表!AM15*移輸入係数!$E15 -> 0 | AN15: =投入係数表!AN15*移輸入係数!$E15 -> 0.002612909243
B16: 22 | C16: プラスチック・ゴム | D16: =投入係数表!D16*移輸入係数!$E16 -> 0.0004035056902 | E16: =投入係数表!E16*移輸入係数!$E16 -> 0.0001392666401 | F16: =投入係数表!F16*移輸入係数!$E16 -> 0.0004005581391 | G16: =投入係数表!G16*移輸入係数!$E16 -> 0.0009001188487 | H16: =投入係数表!H16*移輸入係数!$E16 -> 0.001012505648 | I16: =投入係数表!I16*移輸入係数!$E16 -> 0.000443258849 | J16: =投入係数表!J16*移輸入係数!$E16 -> 2.946230378e-06 | K16: =投入係数表!K16*移輸入係数!$E16 -> 0.01089601959 | L16: =投入係数表!L16*移輸入係数!$E16 -> 0.0001723123771 | M16: =投入係数表!M16*移輸入係数!$E16 -> 3.388125055e-05 | N16: =投入係数表!N16*移輸入係数!$E16 -> 6.568846612e-05 | O16: =投入係数表!O16*移輸入係数!$E16 -> 0.000161310928 | P16: =投入係数表!P16*移輸入係数!$E16 -> 0.0005373530175 | Q16: =投入係数表!Q16*移輸入係数!$E16 -> 0.001611395675 | R16: =投入係数表!R16*移輸入係数!$E16 -> 0.00310784799 | S16: =投入係数表!S16*移輸入係数!$E16 -> 0.0008416372919 | T16: =投入係数表!T16*移輸入係数!$E16 -> 0.001802812431 | U16: =投入係数表!U16*移輸入係数!$E16 -> 0.0009470679278 | V16: =投入係数表!V16*移輸入係数!$E16 -> 0.001221589866 | W16: =投入係数表!W16*移輸入係数!$E16 -> 0.001735446998 | X16: =投入係数表!X16*移輸入係数!$E16 -> 0.0005866748376 | Y16: =投入係数表!Y16*移輸入係数!$E16 -> 0 | Z16: =投入係数表!Z16*移輸入係数!$E16 -> 0.001191733521 | AA16: =投入係数表!AA16*移輸入係数!$E16 -> 0.0005072051229 | AB16: =投入係数表!AB16*移輸入係数!$E16 -> 0.0001817851753 | AC16: =投入係数表!AC16*移輸入係数!$E16 -> 9.279563999e-05 | AD16: =投入係数表!AD16*移輸入係数!$E16 -> 2.333972536e-05 | AE16: =投入係数表!AE16*移輸入係数!$E16 -> 9.955396538e-05 | AF16: =投入係数表!AF16*移輸入係数!$E16 -> 0.0001514502946 | AG16: =投入係数表!AG16*移輸入係数!$E16 -> 5.535099857e-05 | AH16: =投入係数表!AH16*移輸入係数!$E16 -> 0.0001307042741 | AI16: =投入係数表!AI16*移輸入係数!$E16 -> 8.906298376e-05 | AJ16: =投入係数表!AJ16*移輸入係数!$E16 -> 0.0001811516709 | AK16: =投入係数表!AK16*移輸入係数!$E16 -> 0.0003560897968 | AL16: =投入係数表!AL16*移輸入係数!$E16 -> 9.67786698e-05 | AM16: =投入係数表!AM16*移輸入係数!$E16 -> 0.002547440255 | AN16: =投入係数表!AN16*移輸入係数!$E16 -> 0.0003635503051
B17: 25 | C17: 窯業・土石製品 | D17: =投入係数表!D17*移輸入係数!$E17 -> 0.00160017086 | E17: =投入係数表!E17*移輸入係数!$E17 -> 0 | F17: =投入係数表!F17*移輸入係数!$E17 -> 0.0001973310088 | G17: =投入係数表!G17*移輸入係数!$E17 -> 0.0003785913216 | H17: =投入係数表!H17*移輸入係数!$E17 -> 0.003741292222 | I17: =投入係数表!I17*移輸入係数!$E17 -> 0.003230694395 | J17: =投入係数表!J17*移輸入係数!$E17 -> 0.0007360781845 | K17: =投入係数表!K17*移輸入係数!$E17 -> 0.00189320814 | L17: =投入係数表!L17*移輸入係数!$E17 -> 0.0376734337 | M17: =投入係数表!M17*移輸入係数!$E17 -> 0.001608511245 | N17: =投入係数表!N17*移輸入係数!$E17 -> 0.0005853184096 | O17: =投入係数表!O17*移輸入係数!$E17 -> 0.003023898029 | P17: =投入係数表!P17*移輸入係数!$E17 -> 0.004130794351 | Q17: =投入係数表!Q17*移輸入係数!$E17 -> 0.001493628271 | R17: =投入係数表!R17*移輸入係数!$E17 -> 0.002708118596 | S17: =投入係数表!S17*移輸入係数!$E17 -> 0.01179521396 | T17: =投入係数表!T17*移輸入係数!$E17 -> 0.003533592308 | U17: =投入係数表!U17*移輸入係数!$E17 -> 0.0008942285534 | V17: =投入係数表!V17*移輸入係数!$E17 -> 0.0007707037617 | W17: =投入係数表!W17*移輸入係数!$E17 -> 0.001558028788 | X17: =投入係数表!X17*移輸入係数!$E17 -> 0.02187901927 | Y17: =投入係数表!Y17*移輸入係数!$E17 -> 3.558963076e-05 | Z17: =投入係数表!Z17*移輸入係数!$E17 -> 0.001954220563 | AA17: =投入係数表!AA17*移輸入係数!$E17 -> 0.0002450608707 | AB17: =投入係数表!AB17*移輸入係数!$E17 -> 8.031947642e-05 | AC17: =投入係数表!AC17*移輸入係数!$E17 -> 4.551199511e-06 | AD17: =投入係数表!AD17*移輸入係数!$E17 -> 1.93744297e-05 | AE17: =投入係数表!AE17*移輸入係数!$E17 -> 2.327932124e-05 | AF17: =投入係数表!AF17*移輸入係数!$E17 -> 1.075521722e-06 | AG17: =投入係数表!AG17*移輸入係数!$E17 -> 8.628048826e-05 | AH17: =投入係数表!AH17*移輸入係数!$E17 -> 0.0008591534087 | AI17: =投入係数表!AI17*移輸入係数!$E17 -> 0.0003122513414 | AJ17: =投入係数表!AJ17*移輸入係数!$E17 -> 7.102705708e-05 | AK17: =投入係数表!AK17*移輸入係数!$E17 -> 0.000377998746 | AL17: =投入係数表!AL17*移輸入係数!$E17 -> 0.000508815649 | AM17: =投入係数表!AM17*移輸入係数!$E17 -> 0.003686378991 | AN17: =投入係数表!AN17*移輸入係数!$E17 -> 0.003387789496
